Workbook

Sheet Resource Options
C1: Avista 2020 IRP Resource Assumptions
B6: Short Description | C6: Long Description | D6: Technology | E6: Type | F6: Ownership (Utility or PPA) | G6: First Year Available | H6: Modeled Plant Total Units | I6: Unit Size (MW) (59F) | J6: Plant Size (MW) (59F) | K6: Storage (MWh) | L6: Capital Cost Excludes AFUDC ($mill) | M6: Capital Cost Excludes AFUDC (2018$/kW) | N6: Transmission Upgrades (2018 $000) | O6: Winter Capacity Credit (%) (9F) | P6: Summer Capacity Credit (%) (93F) | Q6: Fixed O&M (2018$/kW/Yr) | R6: Variable Costs (2018$/MWh) | S6: Net HHV Heat Rate(s) (Btu/kWh) | T6: Net HHV DF Heat Rate(s) (Btu/kWh) | U6: Net HHV Total Heat Rate(s) (Btu/kWh) | V6: Availability/CF (%) | W6: Round Trip Efficiency | X6: Technology Improvement (%) | Y6: Forced Outage (%) | Z6: Annual Avg Maintenance (days) | AA6: Net Degradation Per Year (%) | AB6: CO2 (lbs/mmbtu) | AC6: Federal Incentives | AD6: Development (Yrs) | AE6: Tax Depreciation Life | AF6: Book Depreciation Life
A7: =ROW() -> 7 | B7: Advanced Large Frame CT | C7: GE - 7F.06 Simple Cycle | D7: Frame SC | E7: Brownfield | F7: Utility | G7: 2020 | H7: 1 | I7: 245 | J7: =H7*I7 -> 245 | K7: n/a | L7: 160.6 | M7: =L7/J7*1000 -> 655.5102041 | N7: 0 | O7: 112.244898 | P7: 92.65306122 | Q7: 2 | R7: 2 | S7: 9240 | T7: n/a | U7: =S7 -> 9240 | V7: =100-Y7-(Z7/365*100) -> 93.16438356 | W7: n/a | X7: 0.005 | Y7: 3 | Z7: 14 | AA7: 0 | AB7: 117 | AC7: n/a | AD7: 3 | AE7: 20 | AF7: 30
A8: =ROW() -> 8 | B8: Advanced Small Frame CT | C8: GE- 7E.03 Simple Cycle | D8: Frame SC | E8: Brownfield | F8: Utility | G8: 2020 | H8: 1 | I8: 84 | J8: 84 | K8: n/a | L8: 78.6 | M8: =L8/J8*1000 -> 935.7142857 | N8: 0 | O8: 114.2857143 | P8: 88.0952381 | Q8: 5 | R8: 3 | S8: 11160 | T8: n/a | U8: =S8 -> 11160 | V8: 93.16438356 | W8: n/a | X8: 0.005 | Y8: 3 | Z8: 14 | AA8: 0 | AB8: 117 | AC8: n/a | AD8: 3 | AE8: 20 | AF8: 30
A9: =ROW() -> 9 | B9: Frame/Aero Hybrid CT | C9: GE-LMS100PB Wet Intercooler DLN | D9: Advanced Aero SC | E9: Brownfield | F9: Utility | G9: 2021 | H9: 1 | I9: 92 | J9: 92 | K9: n/a | L9: 92.063 | M9: 1000.684783 | N9: 0 | O9: 101.0869565 | P9: 88.04347826 | Q9: 3 | R9: 3 | S9: 8945 | T9: n/a | U9: 8945 | V9: =100-Y9-(Z9/365*100) -> 93.16438356 | W9: n/a | X9: 0.005 | Y9: 3 | Z9: 14 | AA9: 0 | AB9: 117 | AC9: n/a | AD9: 3 | AE9: 20 | AF9: 30
A10: =ROW() -> 10 | B10: Large Reciprocating Engine Facility | C10: 10X Wartsila 18V50SG-B | D10: NG Recip | E10: Greenfield | F10: Utility | G10: 2021 | H10: 10 | I10: 18.4222 | J10: 184.222 | K10: n/a | L10: 188.73 | M10: 1024.470476 | N10: 0 | O10: 100 | P10: 100 | Q10: 7 | R10: 3 | S10: 8380 | T10: n/a | U10: 8380 | V10: 93.16438356 | W10: n/a | X10: 0.005 | Y10: 3 | Z10: 14 | AA10: 0 | AB10: 117 | AC10: n/a | AD10: 3 | AE10: 20 | AF10: 30
A11: =ROW() -> 11 | B11: Small Reciprocating Engine Facility (Option 2) | C11: Jenbacher 920 | D11: NG Recip | E11: Brownfield | F11: Utility | G11: 2021 | H11: 10 | I11: 9.14 | J11: 91.4 | K11: n/a | L11: 103.12 | M11: 1128.227571 | N11: 0 | O11: 100 | P11: 100 | Q11: 13 | R11: 4 | S11: 7971 | T11: n/a | U11: 7971 | V11: 93.16438356 | W11: n/a | X11: 0.005 | Y11: 3 | Z11: 14 | AA11: 0 | AB11: 117 | AC11: n/a | AD11: 3 | AE11: 20 | AF11: 30
A12: =ROW() -> 12 | B12: Modern Small Frame CT | C12: Siemens- SGT-800-50 | D12: Frame SC | E12: Brownfield | F12: Utility | G12: 2021 | H12: 1 | I12: 47.875 | J12: 47.875 | K12: n/a | L12: 50.587 | M12: 1056.64752 | N12: 0 | O12: 108.8250653 | P12: 87.72845953 | Q12: 4 | R12: 2.5 | S12: 10031 | T12: n/a | U12: 10031 | V12: 93.16438356 | W12: n/a | X12: 0.005 | Y12: 3 | Z12: 14 | AA12: 0 | AB12: 117 | AC12: n/a | AD12: 3 | AE12: 20 | AF12: 30
A13: =ROW() -> 13 | B13: Aero CT option 1 | C13: PW- FT8 Swift Pac | D13: 2 on 1 SS | E13: Brownfield | F13: Utility | G13: 2021 | H13: 1 | I13: 44.9 | J13: 44.9 | K13: n/a | L13: 54.012 | M13: 1202.939866 | N13: 0 | O13: 122.4944321 | P13: 86.8596882 | Q13: 6 | R13: 2.5 | S13: 10439 | T13: n/a | U13: 10439 | V13: 93.16438356 | W13: n/a | X13: 0.005 | Y13: 3 | Z13: 14 | AA13: 0 | AB13: 117 | AC13: n/a | AD13: 3 | AE13: 20 | AF13: 30
A14: =ROW() -> 14 | B14: Aero CT option 2 | C14: GE- LM6000- PF Sprint | D14: Aero SS | E14: Brownfield | F14: Utility | G14: 2021 | H14: 1 | I14: 42.316 | J14: 42.316 | K14: n/a | L14: 52.838 | M14: 1248.652992 | N14: 0 | O14: 107.9969751 | P14: 86.72842424 | Q14: 6 | R14: 2.5 | S14: 9354 | T14: n/a | U14: 9354 | V14: 93.16438356 | W14: n/a | X14: 0.005 | Y14: 3 | Z14: 14 | AA14: 0 | AB14: 117 | AC14: n/a | AD14: 3 | AE14: 20 | AF14: 30
A15: =ROW() -> 15 | B15: 1 on 1 Advanced CCCT option 1 | C15: GE - 7F.06 One on One | D15: 1 on 1 CC | E15: Greenfield | F15: Utility | G15: 2021 | H15: 1 | I15: 412.509 | J15: 412.509 | K15: n/a | L15: 392.00112 | M15: 950.285012 | N15: 0 | O15: 104.7052055 | P15: 90.91178082 | Q15: 17 | R15: 3.75 | S15: 6513 | T15: 7719.902924 | U15: 6652 | V15: 93.16438356 | W15: n/a | X15: 0.005 | Y15: 3 | Z15: 14 | AA15: 0 | AB15: 117 | AC15: n/a | AD15: 4 | AE15: 20 | AF15: 30
A16: =ROW() -> 16 | B16: 1 on 1 Advanced CCCT option 2 | C16: Siemens- SGT6-5000F CCCT (Flex Plant) | D16: 1 on 1 CC | E16: Greenfield | F16: Utility | G16: 2021 | H16: 1 | I16: 479.401 | J16: 479.401 | K16: n/a | L16: 421.20432 | M16: 878.6054264 | N16: 0 | O16: 110.2140991 | P16: 91.2317254 | Q16: 13 | R16: 3.75 | S16: 6723 | T16: 7231.593087 | U16: 6811 | V16: 93.16438356 | W16: n/a | X16: 0.005 | Y16: 3 | Z16: 14 | AA16: 0 | AB16: 117 | AC16: n/a | AD16: 4 | AE16: 20 | AF16: 30
A17: =ROW() -> 17 | B17: 1 on 1 Advanced CCCT option 3 | C17: MHI- 501 F 1 on 1 | D17: 1 on 1 CC | E17: Greenfield | F17: Utility | G17: 2021 | H17: 1 | I17: 423.937 | J17: 423.937 | K17: n/a | L17: 394.05636 | M17: 929.5163196 | N17: 0 | O17: 110.0390231 | P17: 89.11829718 | Q17: 13 | R17: 3.5 | S17: 6689 | T17: 7448.571921 | U17: 6792 | V17: 93.16438356 | W17: n/a | X17: 0.005 | Y17: 3 | Z17: 14 | AA17: 0 | AB17: 117 | AC17: n/a | AD17: 4 | AE17: 20 | AF17: 30
A18: =ROW() -> 18 | B18: 1 on 1 modern CCCT | C18: GE - 7F.04 One on One | D18: 1 on 1 CC | E18: Greenfield | F18: Utility | G18: 2021 | H18: 1 | I18: 308.15 | J18: 308.15 | K18: n/a | L18: 314.71092 | M18: 1021.291319 | N18: 0 | O18: 107.0745593 | P18: 90.35088678 | Q18: 14 | R18: 3 | S18: 6623 | T18: 7649.647232 | U18: 6735 | V18: 93.16438356 | W18: n/a | X18: 0.005 | Y18: 3 | Z18: 14 | AA18: 0 | AB18: 117 | AC18: n/a | AD18: 4 | AE18: 20 | AF18: 30
A19: =ROW() -> 19 | B19: 3 x 2 small CCCT | C19: Siemens- SGT-800 3 on 2 | D19: 3 on 2 CC | E19: Greenfield | F19: Utility | G19: 2021 | H19: 1 | I19: 235.375 | J19: 235.375 | K19: n/a | L19: 342.3222 | M19: 1454.369411 | N19: 0 | O19: 105.9884976 | P19: 91.14102516 | Q19: 26 | R19: 3.5 | S19: 6805 | T19: 8369.33563 | U19: 6941 | V19: 93.16438356 | W19: n/a | X19: 0.005 | Y19: 3 | Z19: 14 | AA19: 0 | AB19: 117 | AC19: n/a | AD19: 4 | AE19: 20 | AF19: 30
A20: =ROW() -> 20 | B20: 2 x 1 small CCCT | C20: Siemens- SGT-800 2 on 1 | D20: 2 on 1 CC | E20: Greenfield | F20: Utility | G20: 2021 | H20: 1 | I20: 158.895 | J20: 158.895 | K20: n/a | L20: 235.82664 | M20: 1484.166525 | N20: 0 | O20: 105.7520087 | P20: 91.07033255 | Q20: 32 | R20: 3.5 | S20: 6800 | T20: 8284.617243 | U20: 6945 | V20: 93.16438356 | W20: n/a | X20: 0.005 | Y20: 3 | Z20: 14 | AA20: 0 | AB20: 117 | AC20: n/a | AD20: 4 | AE20: 20 | AF20: 30
A21: =ROW() -> 21 | B21: Small Nuclear | C21: Small Nuclear (share) | D21: Nuclear | E21: Greenfield | F21: PPA | G21: 2030 | H21: 2 | I21: 50 | J21: 100 | K21: n/a | L21: =M21*J21/1000 -> 438.5964912 | M21: =3000000/684 -> 4385.964912 | N21: BPA | O21: 100 | P21: 100 | Q21: 135 | R21: 0.75 | S21: 10450 | T21: n/a | U21: 10450 | V21: 91.16438356 | W21: n/a | X21: 0 | Y21: 5 | Z21: 14 | AA21: 0 | AB21: 0 | AC21: PTC- 2021 | AD21: 6 | AE21: 20 | AF21: 40
A22: =ROW() -> 22 | B22: NW Wind On System | C22: NW Wind On System | D22: Wind | E22: Greenfield | F22: PPA | G22: 2021 | H22: 46 | I22: 2.2 | J22: 101.2 | K22: n/a | L22: =M22*J22/1000 -> 155.0916263 | M22: =(206000000/144500)*1.075 -> 1532.525952 | N22: 0 | O22: 5 | P22: 0 | Q22: 35 | R22: 0 | S22: n/a | T22: n/a | U22: n/a | V22: 37 | W22: n/a | X22: 0.003 | Y22: n/a | Z22: n/a | AA22: 0 | AB22: 0 | AC22: PTC online- 2020: 100%,80%,60%,40% | AD22: 2 | AE22: 5 | AF22: 20
A23: =ROW() -> 23 | B23: NW Wind Off System | C23: NW Wind Off System | D23: Wind | E23: Greenfield | F23: PPA | G23: 2021 | H23: 46 | I23: 2.2 | J23: 101.2 | K23: n/a | L23: =M23*J23/1000 -> 144.2712803 | M23: =(206000000/144500) -> 1425.605536 | N23: BPA | O23: 5 | P23: 0 | Q23: 35 | R23: 0 | S23: n/a | T23: n/a | U23: n/a | V23: 37 | W23: n/a | X23: 0.003 | Y23: n/a | Z23: n/a | AA23: 0 | AB23: 0 | AC23: =AC22 -> PTC online- 2020: 100%,80%,60%,40% | AD23: 2 | AE23: 5 | AF23: 20
A24: =ROW() -> 24 | B24: Wind Montana | C24: Wind Montana | D24: Wind | E24: Greenfield | F24: PPA | G24: 2021 | H24: 46 | I24: 2.2 | J24: 101.2 | K24: n/a | L24: 144.2712803 | M24: =M23 -> 1425.605536 | N24: NWE' | O24: 30 | P24: 0 | Q24: 35 | R24: 0.15 | S24: n/a | T24: n/a | U24: n/a | V24: 48 | W24: n/a | X24: 0.003 | Y24: n/a | Z24: n/a | AA24: 0 | AB24: 0 | AC24: =AC22 -> PTC online- 2020: 100%,80%,60%,40% | AD24: 2 | AE24: 5 | AF24: 20
B25: Off Shore Wind (Share) | C25: Off Shore Wind (Share) | D25: Wind | E25: Greenfield | F25: PPA | G25: 2025 | H25: 50 | I25: 4 | J25: =(H25*I25)/2 -> 100 | K25: n/a | L25: 350 | M25: 3500 | N25: BPA | O25: TBD | P25: TBD | Q25: 90 | R25: 0 | S25: n/a | T25: n/a | U25: n/a | V25: 50 | W25: n/a | X25: 0.003 | Y25: n/a | Z25: n/a | AA25: 0 | AB25: 0 | AC25: =AC23 -> PTC online- 2020: 100%,80%,60%,40% | AD25: 2 | AE25: 5 | AF25: 20
A26: =ROW() -> 26 | B26: Solar Photovoltaic Fixed Array (5 MW AC) | C26: Solar Photovoltaic Fixed Array (5 MW AC) | D26: Solar | E26: Greenfield | F26: PPA | G26: 2020 | H26: n/a | I26: n/a | J26: 5 | K26: n/a | L26: =M26*J26/1000 -> 7 | M26: 1400 | N26: 0 | O26: 2 | P26: 62 | Q26: 10 | R26: 0 | S26: n/a | T26: n/a | U26: n/a | V26: 25 | W26: n/a | X26: 0.003 | Y26: n/a | Z26: n/a | AA26: 0.005 | AB26: 0 | AC26: 30% ITC through 2023, 10% thereafter | AD26: 1 | AE26: 5 | AF26: 25
A27: =ROW() -> 27 | B27: Solar Photovoltaic w/ Single Axis Tracking (100 MW AC) | C27: Solar Photovoltaic w/ Single Axis Tracking (100 MW AC) | D27: Solar | E27: Greenfield | F27: PPA | G27: 2021 | H27: n/a | I27: n/a | J27: 100 | K27: n/a | L27: =M27*J27/1000 -> 115.6741813 | M27: =(178877600/150000)*0.97 -> 1156.741813 | N27: 0 | O27: 2 | P27: 70 | Q27: 8 | R27: 0 | S27: n/a | T27: n/a | U27: n/a | V27: 27 | W27: n/a | X27: 0.003 | Y27: n/a | Z27: n/a | AA27: 0.005 | AB27: 0 | AC27: 30% ITC through 2023, 10% thereafter | AD27: 1 | AE27: 5 | AF27: 25
A28: =ROW() -> 28 | B28: Southern NW Solar Photovoltaic w/ Single Axis Tracking (100 MW AC) | C28: Southern NW Solar Photovoltaic w/ Single Axis Tracking (100 MW AC) | D28: Solar | E28: Greenfield | F28: PPA | G28: 2021 | H28: n/a | I28: n/a | J28: 100 | K28: n/a | L28: =M28*J28/1000 -> 115.6741813 | M28: =M27 -> 1156.741813 | N28: BPA | O28: 2 | P28: 70 | Q28: 8 | R28: 0 | S28: n/a | T28: n/a | U28: n/a | V28: 30 | W28: n/a | X28: 0.003 | Y28: n/a | Z28: n/a | AA28: 0.005 | AB28: 0 | AC28: 30% ITC through 2023, 10% thereafter | AD28: 1 | AE28: 5 | AF28: 25
A29: =ROW() -> 29 | B29: Solar Photovoltaic w/ Single Axis Tracking (100 MW AC w/ 50 MW/200 MWh Lithium-ion) | C29: Solar Photovoltaic w/ Single Axis Tracking (100 MW AC w/ 25 MW/100 MWh Lithium-ion) | D29: Solar/Storage | E29: Greenfield | F29: PPA | G29: 2021 | H29: n/a | I29: n/a | J29: 100 | K29: 100 | L29: =L28+((L33)*0.965) -> 150.3659313 | M29: =L29/J29*1000 -> 1503.659313 | N29: 0 | O29: 2 | P29: 70 | Q29: n/a | R29: n/a | S29: n/a | T29: n/a | U29: n/a | V29: 27 | W29: n/a | X29: 0.003 | Y29: n/a | Z29: n/a | AA29: 0.005 | AB29: 0 | AC29: 30% ITC through 2023, 10% thereafter | AD29: 1 | AE29: 5 | AF29: 25
A30: =ROW() -> 30 | B30: Geothermal | C30: Geothermal (Off System) | D30: Geothermal | E30: Greenfield | F30: PPA | G30: 2021 | H30: n/a | I30: n/a | J30: 20 | K30: n/a | L30: 70 | M30: 3500 | N30: BPA | O30: 100 | P30: 100 | Q30: 30 | R30: 0 | S30: n/a | T30: n/a | U30: n/a | V30: =100-Y30-(Z30/365*100) -> 90.08219178 | W30: n/a | X30: 0 | Y30: 8 | Z30: 7 | AA30: 0.01 | AB30: TBD | AC30: n/a | AD30: 3 | AE30: 5 | AF30: 25
A31: =ROW() -> 31 | B31: Distribution Scale 4hr Lithium-Ion | C31: Distribution Scale 4hr Lithium-Ion | D31: Storage | E31: Brownfield | F31: Utility | G31: 2020 | H31: n/a | I31: n/a | J31: 5 | K31: 20 | L31: =M31*J31/1000 -> 9.75 | M31: 1950 | N31: TBD Savings | O31: TBD | P31: TBD | Q31: =M31*0.035 -> 68.25 | R31: 0 | S31: n/a | T31: n/a | U31: n/a | V31: n/a | W31: 0.88 | X31: varies | Y31: 2 | Z31: n/a | AA31: varies | AB31: TBD | AC31: n/a | AD31: 1 | AE31: 7 | AF31: 10
A32: =ROW() -> 32 | B32: Distribution Scale 8hr Lithium-Ion | C32: Distribution Scale 8hr Lithium-Ion | D32: Storage | E32: Brownfield | F32: Utility | G32: 2020 | H32: n/a | I32: n/a | J32: 5 | K32: =5*8 -> 40 | L32: 19.11 | M32: 3822 | N32: TBD Savings | O32: TBD | P32: TBD | Q32: 133.77 | R32: 0 | S32: n/a | T32: n/a | U32: n/a | V32: n/a | W32: 0.88 | X32: varies | Y32: 2 | Z32: n/a | AA32: varies | AB32: TBD | AC32: n/a | AD32: 1 | AE32: 7 | AF32: 10
A33: =ROW() -> 33 | B33: 4hr Lithium-Ion | C33: 4hr Lithium-Ion | D33: Storage | E33: Greenfield | F33: Utility | G33: 2020 | H33: n/a | I33: n/a | J33: 25 | K33: 100 | L33: =M33*J33/1000 -> 35.95 | M33: 1438 | N33: 0 | O33: TBD | P33: TBD | Q33: =M33*0.035 -> 50.33 | R33: 0 | S33: n/a | T33: n/a | U33: n/a | V33: n/a | W33: 0.88 | X33: varies | Y33: 2 | Z33: n/a | AA33: varies | AB33: TBD | AC33: n/a | AD33: 1 | AE33: 7 | AF33: 10
A34: =ROW() -> 34 | B34: 8hr Lithium-Ion | C34: 8hr Lithium-Ion | D34: Storage | E34: Greenfield | F34: Utility | G34: 2020 | H34: n/a | I34: n/a | J34: 25 | K34: 200 | L34: =M34*J34/1000 -> 70.45 | M34: 2818 | N34: 0 | O34: TBD | P34: TBD | Q34: =M34*0.035 -> 98.63 | R34: 0 | S34: n/a | T34: n/a | U34: n/a | V34: n/a | W34: 0.88 | X34: varies | Y34: 2 | Z34: n/a | AA34: varies | AB34: TBD | AC34: n/a | AD34: 1 | AE34: 7 | AF34: 10
A35: =ROW() -> 35 | B35: 16hr Lithium-Ion | C35: 16hr Lithium-Ion | D35: Storage | E35: Greenfield | F35: Utility | G35: 2020 | H35: n/a | I35: n/a | J35: 25 | K35: 400 | L35: =M35*J35/1000 -> 139.45 | M35: 5578 | N35: 0 | O35: TBD | P35: TBD | Q35: 195.23 | R35: 0 | S35: n/a | T35: n/a | U35: n/a | V35: n/a | W35: 0.88 | X35: varies | Y35: 2 | Z35: n/a | AA35: varies | AB35: TBD | AC35: n/a | AD35: 1 | AE35: 7 | AF35: 10
A36: =ROW() -> 36 | B36: 40hr Lithium-Ion | C36: 40hr Lithium-Ion | D36: Storage | E36: Greenfield | F36: Utility | G36: 2020 | H36: n/a | I36: n/a | J36: 25 | K36: 1000 | L36: 346.45 | M36: 13858 | N36: 0 | O36: TBD | P36: TBD | Q36: =M36*0.035 -> 485.03 | R36: 0 | S36: n/a | T36: n/a | U36: n/a | V36: n/a | W36: 0.88 | X36: varies | Y36: 2 | Z36: n/a | AA36: varies | AB36: TBD | AC36: n/a | AD36: 1 | AE36: 7 | AF36: 10
A37: =ROW() -> 37 | B37: 4 hr Vanadium Flow Battery | C37: 4 hr Vanadium Flow Battery | D37: Storage | E37: Greenfield | F37: Utility | G37: 2020 | H37: n/a | I37: n/a | J37: 25 | K37: 100 | L37: 40 | M37: =((400)*4) -> 1600 | N37: 0 | O37: TBD | P37: TBD | Q37: 56 | R37: 0 | S37: n/a | T37: n/a | U37: n/a | V37: n/a | W37: 0.7 | X37: varies | Y37: 2 | Z37: n/a | AA37: 0 | AB37: TBD | AC37: n/a | AD37: 1 | AE37: 20 | AF37: 30
A38: =ROW() -> 38 | B38: 4 hr Zinc Bromide Flow Battery | C38: 4 hr Zinc Bromide Flow Battery | D38: Storage | E38: Greenfield | F38: Utility | G38: 2020 | H38: n/a | I38: n/a | J38: 25 | K38: 100 | L38: 45 | M38: =((450)*4) -> 1800 | N38: 0 | O38: TBD | P38: TBD | Q38: 63 | R38: 0 | S38: n/a | T38: n/a | U38: n/a | V38: n/a | W38: 0.67 | X38: varies | Y38: 2 | Z38: n/a | AA38: 0 | AB38: TBD | AC38: n/a | AD38: 1 | AE38: 20 | AF38: 30
A39: =ROW() -> 39 | B39: Hydrogen Fuel Cell with 4 hrs storage w/ Electrolysis | C39: Hydrogen Fuel Cell with 4 hrs storage w/ Electrolysis | D39: Storage | E39: Greenfield | F39: Utility | G39: 2021 | H39: n/a | I39: n/a | J39: 25 | K39: =J39*4 -> 100 | L39: ='Capital Costs'!B207+'Capital Costs'!B222 -> 137.6154223 | M39: =L39*1000000/(J39*1000) -> 5504.616891 | N39: 0 | O39: TBD | P39: TBD | Q39: =70000/447 -> 156.5995526 | R39: 0 | S39: n/a | T39: n/a | U39: n/a | V39: n/a | W39: ='Ownership Storage'!$GF$7/(HydrogenFuel!$D$7+'Ownership Storage'!$GF$9) -> 0.3442340792 | X39: n/a | Y39: 5 | Z39: n/a | AA39: 0.007 | AB39: TBD | AC39: n/a | AD39: 2 | AE39: 20 | AF39: 20
A40: =ROW() -> 40 | B40: Hydrogen Fuel Cell with 16 hrs Storage w/ Electrolysis | C40: Hydrogen Fuel Cell with 16 hrs Storage w/ Electrolysis | D40: Storage | E40: Greenfield | F40: Utility | G40: 2021 | H40: n/a | I40: n/a | J40: 25 | K40: =J40*16 -> 400 | L40: ='Capital Costs'!B208+'Capital Costs'!B223 -> 139.4122335 | M40: =L40*1000000/(J40*1000) -> 5576.489341 | N40: 0 | O40: TBD | P40: TBD | Q40: =70000/447 -> 156.5995526 | R40: 0 | S40: n/a | T40: n/a | U40: n/a | V40: n/a | W40: =W39 -> 0.3442340792 | X40: n/a | Y40: 5 | Z40: n/a | AA40: 0.007 | AB40: TBD | AC40: n/a | AD40: 2 | AE40: 20 | AF40: 20
A41: =ROW() -> 41 | B41: Hydrogen Fuel Cell with 40 Hrs Storage w/ Electrolysis | C41: Hydrogen Fuel Cell with 40 Hrs Storage w/ Electrolysis | D41: Storage | E41: Greenfield | F41: Utility | G41: 2021 | H41: n/a | I41: n/a | J41: 25 | K41: =J41*40 -> 1000 | L41: ='Capital Costs'!B209+'Capital Costs'!B224 -> 141.6767707 | M41: 5667.070827 | N41: 0 | O41: TBD | P41: TBD | Q41: 156.5995526 | R41: 0 | S41: n/a | T41: n/a | U41: n/a | V41: n/a | W41: =W40 -> 0.3442340792 | X41: n/a | Y41: 5 | Z41: n/a | AA41: 0.007 | AB41: TBD | AC41: n/a | AD41: 2 | AE41: 20 | AF41: 20
A42: =ROW() -> 42 | B42: Liquid Air | C42: Liquid Air | D42: Storage | E42: Greenfield | F42: Utility | G42: 2020 | H42: n/a | I42: n/a | J42: 25 | K42: =J42*12 -> 300 | L42: =M42*J42/1000 -> 35 | M42: 1400 | N42: 0 | O42: TBD | P42: TBD | Q42: 25 | R42: 3 | S42: n/a | T42: n/a | U42: n/a | V42: n/a | W42: 0.65 | X42: 0 | Y42: 2 | Z42: n/a | AA42: 0 | AB42: TBD | AC42: n/a | AD42: 2 | AE42: 20 | AF42: 30
A43: =ROW() -> 43 | B43: Pumped Hydro (16 hr/ 100 MW share) | C43: Pumped Hydro (16 hr/ 100 MW share) | D43: Storage | E43: Greenfield | F43: Utility | G43: 2025 | H43: n/a | I43: n/a | J43: 100 | K43: =J43*16 -> 1600 | L43: =M43*J43/1000 -> 285 | M43: 2850 | N43: BPA | O43: TBD | P43: TBD | Q43: 15 | R43: 0.5 | S43: n/a | T43: n/a | U43: n/a | V43: n/a | W43: 0.81 | X43: 0 | Y43: 2 | Z43: n/a | AA43: 0 | AB43: TBD | AC43: n/a | AD43: 6 | AE43: 20 | AF43: 50
A45: =ROW() -> 45 | B45: Supplemental Compression- two unit operation | C45: Supplemental Compression to CT | D45: Existing CT Upgrade | E45: Thermal Upgrade | F45: Utility | G45: 2020 | H45: n/a | I45: n/a | J45: 24 | K45: n/a | L45: 17.278 | M45: =L45/J45*1000 -> 719.9166667 | N45: 0 | O45: 100 | P45: 100 | Q45: 4 | R45: 2.5 | S45: 11650 | T45: n/a | U45: 11650 | V45: 91.32420091 | W45: n/a | X45: 0 | Y45: n/a | Z45: n/a | AA45: 0 | AB45: 117 | AC45: n/a | AD45: 1 | AE45: 20 | AF45: 20
A46: =ROW() -> 46 | B46: Rathdrum CT 2055 Uprates two unit operation | C46: Rathdrum CT 2055 Uprates two unit operation | D46: Existing CT Upgrade | E46: Thermal Upgrade | F46: Utility | G46: 2020 | H46: n/a | I46: n/a | J46: 5 | K46: n/a | L46: 3.605 | M46: =L46/J46*1000 -> 721 | N46: 0 | O46: 100 | P46: 100 | Q46: 0 | R46: 2.5 | S46: 11750 | T46: n/a | U46: 11750 | V46: 91.32420091 | W46: n/a | X46: 0 | Y46: n/a | Z46: n/a | AA46: 0 | AB46: 117 | AC46: n/a | AD46: 1 | AE46: 20 | AF46: 20
A47: =ROW() -> 47 | B47: Kettle Falls Turbine Generator Upgrade | C47: Kettle Falls Turbine Generator Upgrade | D47: Plant Re Power | E47: Thermal Upgrade | F47: Utility | G47: 2025 | H47: n/a | I47: n/a | J47: 12 | K47: n/a | L47: 16.05 | M47: 1337.5 | N47: 0 | O47: 100 | P47: 100 | Q47: 0 | R47: 0 | S47: 13050 | T47: n/a | U47: 13050 | V47: 83.33333333 | W47: n/a | X47: 0 | Y47: n/a | Z47: n/a | AA47: 0 | AB47: 0 | AC47: n/a | AD47: 1 | AE47: 20 | AF47: 20
A48: =ROW() -> 48 | B48: Rathdrum CT: Inlet Evaporation 2 unit operation | C48: Rathdrum CT: Inlet Evaporation 2 unit operation | D48: Inlet Evap | E48: Thermal Upgrade | F48: Utility | G48: 2018 | H48: n/a | I48: n/a | J48: 4.316 | K48: n/a | L48: 1.04 | M48: 240.9638554 | N48: 0 | O48: 0 | P48: 402.5949954 | Q48: 2 | R48: 0.901051359 | S48: 11950 | T48: n/a | U48: 11950 | V48: 91.32420091 | W48: n/a | X48: 0 | Y48: n/a | Z48: n/a | AA48: 0 | AB48: 117 | AC48: n/a | AD48: 1 | AE48: 20 | AF48: 20
A49: =ROW() -> 49 | B49: Post Falls Redevelopment | C49: Post Falls Redevelopment | D49: Plant Re Power | E49: Hydro Upgrade | F49: Utility | G49: 2023 | H49: n/a | I49: n/a | J49: 8 | K49: n/a | L49: 17 | M49: 2125 | N49: 0 | O49: =3.84/J49*100 -> 48 | P49: =1.27/J49*100 -> 15.875 | Q49: =-308/J49 -> -38.5 | R49: 0 | S49: n/a | T49: n/a | U49: n/a | V49: =4.5/J49*100 -> 56.25 | W49: n/a | X49: 0 | Y49: n/a | Z49: n/a | AA49: 0 | AB49: 0 | AC49: n/a | AD49: n/a | AE49: 20 | AF49: 50
A50: =ROW() -> 50 | B50: Long Lake 2nd Powerhouse | C50: Long Lake 2nd Powerhouse | D50: 2nd Power House | E50: Hydro Upgrade | F50: Utility | G50: 2022 | H50: n/a | I50: n/a | J50: 68 | K50: n/a | L50: =J50*M50/1000 -> 158.2515818 | M50: =2150*1.02^4 -> 2327.229144 | N50: 0 | O50: 100 | P50: 100 | Q50: 8.764120814 | R50: 0 | S50: n/a | T50: n/a | U50: n/a | V50: 34 | W50: n/a | X50: 0 | Y50: n/a | Z50: n/a | AA50: 0 | AB50: 0 | AC50: n/a | AD50: 5 | AE50: 20 | AF50: 50
A51: =ROW() -> 51 | B51: Monroe St/Upper Falls 2nd Powerhouse | C51: Monroe St/Upper Falls 2nd Powerhouse | D51: 2nd Power House | E51: Hydro Upgrade | F51: Utility | G51: 2022 | H51: n/a | I51: n/a | J51: 80 | K51: n/a | L51: =J51*M51/1000 -> 164.5296883 | M51: =1900*1.02^4 -> 2056.621104 | N51: 0 | O51: 31 | P51: 0 | Q51: 3.390880077 | R51: 0 | S51: n/a | T51: n/a | U51: n/a | V51: 33.87 | W51: n/a | X51: 0 | Y51: n/a | Z51: n/a | AA51: 0 | AB51: 0 | AC51: n/a | AD51: 5 | AE51: 20 | AF51: 50
A52: =ROW() -> 52 | B52: Cabinet Gorge 2nd Powerhouse | C52: Cabinet Gorge 2nd Powerhouse | D52: 2nd Power House | E52: Hydro Upgrade | F52: Utility | G52: 2022 | H52: n/a | I52: n/a | J52: 110 | K52: n/a | L52: 250.041829 | M52: =2100*1.02^4 -> 2273.107536 | N52: 0 | O52: 0 | P52: 0 | Q52: 0 | R52: 0 | S52: n/a | T52: n/a | U52: n/a | V52: 16.8 | W52: n/a | X52: 0 | Y52: n/a | Z52: n/a | AA52: 0 | AB52: 0 | AC52: n/a | AD52: 5 | AE52: 20 | AF52: 50
A53: =ROW() -> 53 | B53: Biomass | C53: Biomass | D53: Wood Boiler | E53: Thermal Addition | F53: Utility | G53: 2025 | H53: n/a | I53: n/a | J53: 100 | K53: n/a | L53: 250 | M53: =L53/J53*1000 -> 2500 | N53: 0 | O53: 100 | P53: 100 | Q53: 25 | R53: 3.05 | S53: 12000 | T53: n/a | U53: 12000 | V53: 50 | W53: n/a | X53: 0 | Y53: n/a | Z53: n/a | AA53: 0 | AB53: 0 | AC53: n/a | AD53: 1 | AE53: 20 | AF53: 20

Sheet Storage Summary
C1: 4 | D1: 8 | E1: 4 | F1: 8 | G1: 16 | H1: 40 | I1: 4 | J1: 4 | K1: 4 | L1: 16 | M1: 40 | O1: 16
B3: Levelized Fixed Cost $/kW | W3: Levelized Fixed Cost $/kW-month
C4: ='Resource Options'!$B$31 -> Distribution Scale 4hr Lithium-Ion | D4: ='Resource Options'!$B$32 -> Distribution Scale 8hr Lithium-Ion | E4: ='Resource Options'!$B$33 -> 4hr Lithium-Ion | F4: ='Resource Options'!$B$34 -> 8hr Lithium-Ion | G4: ='Resource Options'!$B$35 -> 16hr Lithium-Ion | H4: ='Resource Options'!$B$36 -> 40hr Lithium-Ion | I4: ='Resource Options'!$B$37 -> 4 hr Vanadium Flow Battery | J4: ='Resource Options'!$B$38 -> 4 hr Zinc Bromide Flow Battery | K4: ='Resource Options'!B39 -> Hydrogen Fuel Cell with 4 hrs storage w/ Electrolysis | L4: ='Resource Options'!B40 -> Hydrogen Fuel Cell with 16 hrs Storage w/ Electrolysis | M4: ='Resource Options'!B41 -> Hydrogen Fuel Cell with 40 Hrs Storage w/ Electrolysis | N4: ='Resource Options'!B42 -> Liquid Air | O4: Pumped Hydro (16 hr/ 100 MW share) | W4: =C4 -> Distribution Scale 4hr Lithium-Ion | X4: Distribution Scale 8hr Lithium-Ion | Y4: 4hr Lithium-Ion | Z4: 8hr Lithium-Ion | AA4: 16hr Lithium-Ion | AB4: 40hr Lithium-Ion | AC4: 4 hr Vanadium Flow Battery | AD4: 4 hr Zinc Bromide Flow Battery | AE4: Hydrogen Fuel Cell with 4 hrs storage w/ Electrolysis | AF4: Hydrogen Fuel Cell with 16 hrs Storage w/ Electrolysis | AG4: Hydrogen Fuel Cell with 40 Hrs Storage w/ Electrolysis | AH4: Liquid Air | AI4: =O4 -> Pumped Hydro (16 hr/ 100 MW share)
B5: 2020 | C5: ='Ownership Storage'!C23 -> 287.2087855 | D5: ='Ownership Storage'!Z23 -> 562.9292195 | E5: ='Ownership Storage'!AW23 -> 211.7980685 | F5: ='Ownership Storage'!BT23 -> 415.0535166 | G5: ='Ownership Storage'!CQ23 -> 821.564413 | H5: ='Ownership Storage'!DN23 -> 2041.097102 | I5: ='Ownership Storage'!EK23 -> 230.2992381 | J5: ='Ownership Storage'!FH23 -> 247.132645 | K5: ='Ownership Storage'!GE23 -> 861.3965508 | L5: ='Ownership Storage'!HB23 -> 870.131534 | M5: ='Ownership Storage'!HY23 -> 881.1796128 | N5: ='Ownership Storage'!IV23 -> 214.7876617 | O5: ='PPA Summary'!W57*12 -> 267.3186089 | W5: =C5/12 -> 23.93406545 | X5: =D5/12 -> 46.91076829 | Y5: =E5/12 -> 17.64983904 | Z5: =F5/12 -> 34.58779305 | AA5: =G5/12 -> 68.46370108 | AB5: =H5/12 -> 170.0914252 | AC5: =I5/12 -> 19.19160317 | AD5: =J5/12 -> 20.59438708 | AE5: =K5/12 -> 71.7830459 | AF5: =L5/12 -> 72.51096116 | AG5: =M5/12 -> 73.4316344 | AH5: =N5/12 -> 17.89897181 | AI5: =O5/12 -> 22.27655074
B6: 2021 | C6: ='Ownership Storage'!C46 -> 275.9706896 | D6: ='Ownership Storage'!Z46 -> 540.9025516 | E6: ='Ownership Storage'!AW46 -> 203.5106931 | F6: ='Ownership Storage'!BT46 -> 398.8130273 | G6: ='Ownership Storage'!CQ46 -> 789.4176957 | H6: ='Ownership Storage'!DN46 -> 1961.231701 | I6: ='Ownership Storage'!EK46 -> 216.9175816 | J6: ='Ownership Storage'!FH46 -> 228.027297 | K6: ='Ownership Storage'!GE46 -> 863.5269039 | L6: ='Ownership Storage'!HB46 -> 872.2603243 | M6: ='Ownership Storage'!HY46 -> 883.3262692 | N6: ='Ownership Storage'!IV46 -> 219.083415 | O6: ='PPA Summary'!W58*12 -> 271.21722 | W6: =C6/12 -> 22.99755747 | X6: 45.07521263 | Y6: 16.95922443 | Z6: 33.23441894 | AA6: 65.78480797 | AB6: 163.4359751 | AC6: 18.07646513 | AD6: 19.00227475 | AE6: 71.96057532 | AF6: 72.68836036 | AG6: 73.61052243 | AH6: 18.25695125 | AI6: 22.601435
B7: 2022 | C7: ='Ownership Storage'!C69 -> 266.1002194 | D7: ='Ownership Storage'!Z69 -> 521.5564299 | E7: ='Ownership Storage'!AW69 -> 196.2318541 | F7: ='Ownership Storage'!BT69 -> 384.5489324 | G7: ='Ownership Storage'!CQ69 -> 761.183089 | H7: ='Ownership Storage'!DN69 -> 1891.085559 | I7: ='Ownership Storage'!EK69 -> 204.9267525 | J7: ='Ownership Storage'!FH69 -> 211.4929365 | K7: ='Ownership Storage'!GE69 -> 865.7403819 | L7: ='Ownership Storage'!HB69 -> 874.4724154 | M7: ='Ownership Storage'!HY69 -> 885.5565722 | N7: ='Ownership Storage'!IV69 -> 223.4650833 | O7: ='PPA Summary'!W59*12 -> 275.1722316 | W7: 22.17501828 | X7: 43.46303583 | Y7: 16.35265451 | Z7: 32.04574436 | AA7: 63.43192408 | AB7: 157.5904632 | AC7: 17.07722937 | AD7: 17.62441138 | AE7: 72.14503182 | AF7: 72.87270128 | AG7: 73.79638102 | AH7: 18.62209027 | AI7: 22.9310193
B8: 2023 | C8: ='Ownership Storage'!C92 -> 257.6414485 | D8: ='Ownership Storage'!Z92 -> 504.9772391 | E8: ='Ownership Storage'!AW92 -> 189.9940528 | F8: ='Ownership Storage'!BT92 -> 372.3249241 | G8: ='Ownership Storage'!CQ92 -> 736.9866666 | H8: ='Ownership Storage'!DN92 -> 1830.971894 | I8: ='Ownership Storage'!EK69 -> 204.9267525 | J8: ='Ownership Storage'!FH92 -> 197.2183433 | K8: ='Ownership Storage'!GE92 -> 868.0385377 | L8: ='Ownership Storage'!HB92 -> 876.7693609 | M8: ='Ownership Storage'!HY92 -> 887.8720781 | N8: ='Ownership Storage'!IV92 -> 227.9343849 | O8: ='PPA Summary'!W60*12 -> 279.1844504 | W8: 21.47012071 | X8: 42.08143659 | Y8: 15.83283773 | Z8: 31.02707701 | AA8: 61.41555555 | AB8: 152.5809912 | AC8: 17.07722937 | AD8: 16.43486194 | AE8: 72.33654481 | AF8: 73.0641134 | AG8: 73.98933984 | AH8: 18.99453208 | AI8: 23.26537087
B9: 2024 | C9: ='Ownership Storage'!C115 -> 251.4301331 | D9: ='Ownership Storage'!Z115 -> 492.8030608 | E9: ='Ownership Storage'!AW115 -> 185.4136058 | F9: ='Ownership Storage'!BT115 -> 363.3487769 | G9: ='Ownership Storage'!CQ115 -> 719.2191191 | H9: ='Ownership Storage'!DN115 -> 1786.830146 | I9: ='Ownership Storage'!EK138 -> 187.5849396 | J9: ='Ownership Storage'!FH115 -> 194.2010765 | K9: ='Ownership Storage'!GE115 -> 870.4229555 | L9: ='Ownership Storage'!HB115 -> 879.1527459 | M9: ='Ownership Storage'!HY115 -> 890.2743743 | N9: ='Ownership Storage'!IV115 -> 232.4930726 | O9: ='PPA Summary'!W61*12 -> 283.2546944 | W9: 20.95251109 | X9: 41.06692174 | Y9: 15.45113382 | Z9: 30.27906474 | AA9: 59.93492659 | AB9: 148.9025121 | AC9: 15.6320783 | AD9: 16.18342304 | AE9: 72.53524629 | AF9: 73.26272883 | AG9: 74.18953119 | AH9: 19.37442272 | AI9: 23.60455786
B10: 2025 | C10: ='Ownership Storage'!C138 -> 246.1297159 | D10: ='Ownership Storage'!Z138 -> 482.4142431 | E10: ='Ownership Storage'!AW138 -> 181.5048879 | F10: ='Ownership Storage'!BT138 -> 355.6889945 | G10: ='Ownership Storage'!CQ138 -> 704.0572077 | H10: ='Ownership Storage'!DN138 -> 1749.161847 | I10: ='Ownership Storage'!EK138 -> 187.5849396 | J10: ='Ownership Storage'!FH138 -> 191.4791335 | K10: ='Ownership Storage'!GE138 -> 872.8952517 | L10: ='Ownership Storage'!HB138 -> 881.6241877 | M10: ='Ownership Storage'!HY138 -> 892.7650803 | N10: ='Ownership Storage'!IV138 -> 237.1429341 | O10: ='PPA Summary'!W62*12 -> 287.3837928 | W10: 20.51080966 | X10: 40.20118692 | Y10: 15.12540733 | Z10: 29.64074954 | AA10: 58.67143398 | AB10: 145.7634873 | AC10: 15.6320783 | AD10: 15.95659446 | AE10: 72.74127098 | AF10: 73.46868231 | AG10: 74.39709003 | AH10: 19.76191117 | AI10: 23.9486494
B11: 2026 | C11: ='Ownership Storage'!C161 -> 242.4590091 | D11: ='Ownership Storage'!Z161 -> 475.2196579 | E11: ='Ownership Storage'!AW161 -> 178.797977 | F11: ='Ownership Storage'!BT161 -> 350.3843527 | G11: ='Ownership Storage'!CQ161 -> 693.557104 | H11: ='Ownership Storage'!DN161 -> 1723.075358 | I11: ='Ownership Storage'!EK161 -> 186.708504 | J11: ='Ownership Storage'!FH161 -> 190.9223923 | K11: ='Ownership Storage'!GE161 -> 883.844904 | L11: ='Ownership Storage'!HB161 -> 892.6553755 | M11: ='Ownership Storage'!HY161 -> 903.8973971 | N11: ='Ownership Storage'!IV161 -> 241.8857928 | O11: ='PPA Summary'!W63*12 -> 291.572587 | W11: 20.20491743 | X11: 39.60163816 | Y11: 14.89983141 | Z11: 29.19869605 | AA11: 57.79642533 | AB11: 143.5896132 | AC11: 15.559042 | AD11: 15.91019935 | AE11: 73.653742 | AF11: 74.38794795 | AG11: 75.32478309 | AH11: 20.1571494 | AI11: 24.29771558
B12: 2027 | C12: ='Ownership Storage'!C184 -> 239.2231642 | D12: ='Ownership Storage'!Z184 -> 468.8774018 | E12: ='Ownership Storage'!AW184 -> 176.4117488 | F12: ='Ownership Storage'!BT184 -> 345.7081419 | G12: ='Ownership Storage'!CQ184 -> 684.3009281 | H12: ='Ownership Storage'!DN184 -> 1700.079287 | I12: ='Ownership Storage'!EK184 -> 186.0035558 | J12: ='Ownership Storage'!FH184 -> 190.5336564 | K12: ='Ownership Storage'!GE184 -> 894.9478809 | L12: ='Ownership Storage'!HB184 -> 903.8406643 | M12: ='Ownership Storage'!HY184 -> 915.1847492 | N12: ='Ownership Storage'!IV184 -> 246.7235086 | O12: ='PPA Summary'!W64*12 -> 295.8219296 | W12: 19.93526368 | X12: 39.07311682 | Y12: 14.70097906 | Z12: 28.80901183 | AA12: 57.02507735 | AB12: 141.6732739 | AC12: 15.50029631 | AD12: 15.8778047 | AE12: 74.57899007 | AF12: 75.32005536 | AG12: 76.26539577 | AH12: 20.56029238 | AI12: 24.65182747
B13: 2028 | C13: ='Ownership Storage'!C207 -> 236.5014889 | D13: ='Ownership Storage'!Z207 -> 463.5429182 | E13: ='Ownership Storage'!AW207 -> 174.4046877 | F13: ='Ownership Storage'!BT207 -> 341.7749721 | G13: ='Ownership Storage'!CQ207 -> 676.515541 | H13: ='Ownership Storage'!DN207 -> 1680.737248 | I13: ='Ownership Storage'!EK207 -> 185.763728 | J13: ='Ownership Storage'!FH207 -> 190.5913271 | K13: ='Ownership Storage'!GE207 -> 906.2065862 | L13: ='Ownership Storage'!HB207 -> 915.1824656 | M13: ='Ownership Storage'!HY207 -> 926.6295566 | N13: ='Ownership Storage'!IV207 -> 251.6579788 | O13: ='PPA Summary'!W65*12 -> 300.1326857 | W13: 19.70845741 | X13: 38.62857652 | Y13: 14.53372397 | Z13: 28.48124768 | AA13: 56.37629508 | AB13: 140.0614373 | AC13: 15.48031066 | AD13: 15.8826106 | AE13: 75.51721552 | AF13: 76.26520547 | AG13: 77.21912972 | AH13: 20.97149823 | AI13: 25.01105714
B14: 2029 | C14: ='Ownership Storage'!C230 -> 234.1745083 | D14: ='Ownership Storage'!Z230 -> 458.9820363 | E14: ='Ownership Storage'!AW230 -> 172.6886887 | F14: ='Ownership Storage'!BT230 -> 338.4121869 | G14: ='Ownership Storage'!CQ230 -> 669.8591832 | H14: ='Ownership Storage'!DN230 -> 1664.200172 | I14: ='Ownership Storage'!EK230 -> 185.6947727 | J14: ='Ownership Storage'!FH230 -> 190.8166421 | K14: ='Ownership Storage'!GE230 -> 917.6234652 | L14: ='Ownership Storage'!HB230 -> 926.6832321 | M14: ='Ownership Storage'!HY230 -> 938.234281 | N14: ='Ownership Storage'!IV230 -> 256.6911384 | O14: ='PPA Summary'!W66*12 -> 304.5057322 | W14: 19.51454236 | X14: 38.24850302 | Y14: 14.39072406 | Z14: 28.20101557 | AA14: 55.8215986 | AB14: 138.6833477 | AC14: 15.4745644 | AD14: 15.90138684 | AE14: 76.4686221 | AF14: 77.22360268 | AG14: 78.18619008 | AH14: 21.3909282 | AI14: 25.37547769
B15: 2030 | C15: ='Ownership Storage'!C253 -> 232.0712537 | D15: ='Ownership Storage'!Z253 -> 454.8596573 | E15: ='Ownership Storage'!AW253 -> 171.1376733 | F15: ='Ownership Storage'!BT253 -> 335.3727143 | G15: ='Ownership Storage'!CQ253 -> 663.8427965 | H15: ='Ownership Storage'!DN253 -> 1649.253043 | I15: ='Ownership Storage'!EK253 -> 185.8999701 | J15: ='Ownership Storage'!FH253 -> 191.307599 | K15: ='Ownership Storage'!GE253 -> 929.201005 | L15: ='Ownership Storage'!HB253 -> 938.3454587 | M15: ='Ownership Storage'!HY253 -> 950.0014262 | N15: ='Ownership Storage'!IV253 -> 261.8249611 | O15: ='PPA Summary'!W67*12 -> 308.9419586 | W15: 19.33927114 | X15: 37.90497144 | Y15: 14.26147277 | Z15: 27.9477262 | AA15: 55.32023304 | AB15: 137.4377536 | AC15: 15.49166417 | AD15: 15.94229991 | AE15: 77.43341709 | AF15: 78.19545489 | AG15: 79.16678552 | AH15: 21.81874676 | AI15: 25.74516321
B16: 2031 | C16: ='Ownership Storage'!C276 -> 230.0419431 | D16: ='Ownership Storage'!Z276 -> 450.8822086 | E16: ='Ownership Storage'!AW276 -> 169.6411868 | F16: ='Ownership Storage'!BT276 -> 332.4401004 | G16: ='Ownership Storage'!CQ276 -> 658.0379276 | H16: ='Ownership Storage'!DN276 -> 1634.831409 | I16: ='Ownership Storage'!EK276 -> 186.0108001 | J16: ='Ownership Storage'!FH276 -> 191.7150487 | K16: ='Ownership Storage'!GE276 -> 947.7746692 | L16: ='Ownership Storage'!HB276 -> 957.0709845 | M16: ='Ownership Storage'!HY276 -> 968.8980902 | N16: ='Ownership Storage'!IV276 -> 267.0614604 | O16: ='PPA Summary'!W68*12 -> 313.4422665 | W16: 19.17016193 | X16: 37.57351738 | Y16: 14.13676557 | Z16: 27.7033417 | AA16: 54.83649397 | AB16: 136.2359508 | AC16: 15.50090001 | AD16: 15.97625406 | AE16: 78.98122244 | AF16: 79.75591538 | AG16: 80.74150752 | AH16: 22.2551217 | AI16: 26.12018887
B17: 2032 | C17: ='Ownership Storage'!C299 -> 228.2005081 | D17: ='Ownership Storage'!Z299 -> 447.2729959 | E17: ='Ownership Storage'!AW299 -> 168.2832465 | F17: ='Ownership Storage'!BT299 -> 329.7789907 | G17: ='Ownership Storage'!CQ299 -> 652.7704792 | H17: ='Ownership Storage'!DN299 -> 1621.744944 | I17: ='Ownership Storage'!EK299 -> 186.2325502 | J17: ='Ownership Storage'!FH299 -> 192.2336713 | K17: ='Ownership Storage'!GE299 -> 966.7197495 | L17: ='Ownership Storage'!HB299 -> 976.1707716 | M17: ='Ownership Storage'!HY299 -> 988.1720172 | N17: ='Ownership Storage'!IV299 -> 272.4026896 | O17: ='PPA Summary'!W69*12 -> 318.0075704 | W17: 19.01670901 | X17: 37.27274966 | Y17: 14.02360388 | Z17: 27.48158256 | AA17: 54.39753993 | AB17: 135.145412 | AC17: 15.51937919 | AD17: 16.01947261 | AE17: 80.55997912 | AF17: 81.3475643 | AG17: 82.3476681 | AH17: 22.70022413 | AI17: 26.50063087
B18: 2033 | C18: ='Ownership Storage'!C322 -> 226.5629589 | D18: ='Ownership Storage'!Z322 -> 444.0633995 | E18: ='Ownership Storage'!AW322 -> 167.0756589 | F18: ='Ownership Storage'!BT322 -> 327.4125222 | G18: ='Ownership Storage'!CQ322 -> 648.0862486 | H18: ='Ownership Storage'!DN322 -> 1610.107428 | I18: ='Ownership Storage'!EK322 -> 186.5969296 | J18: ='Ownership Storage'!FH322 -> 192.8936404 | K18: ='Ownership Storage'!GE322 -> 986.0436738 | L18: ='Ownership Storage'!HB322 -> 995.6523038 | M18: ='Ownership Storage'!HY322 -> 1007.830748 | N18: ='Ownership Storage'!IV322 -> 277.8507434 | O18: ='PPA Summary'!W70*12 -> 322.6387977 | W18: 18.88024658 | X18: 37.00528329 | Y18: 13.92297158 | Z18: 27.28437685 | AA18: 54.00718738 | AB18: 134.175619 | AC18: 15.54974414 | AD18: 16.07447003 | AE18: 82.17030615 | AF18: 82.97102531 | AG18: 83.98589566 | AH18: 23.15422861 | AI18: 26.88656648
B19: 2034 | C19: ='Ownership Storage'!C345 -> 225.1499932 | D19: ='Ownership Storage'!Z345 -> 441.2939868 | E19: ='Ownership Storage'!AW345 -> 166.0336873 | F19: ='Ownership Storage'!BT345 -> 325.3706056 | G19: ='Ownership Storage'!CQ345 -> 644.0444422 | H19: ='Ownership Storage'!DN345 -> 1600.065952 | I19: ='Ownership Storage'!EK345 -> 187.1743972 | J19: ='Ownership Storage'!FH345 -> 193.7618567 | K19: ='Ownership Storage'!GE345 -> 1005.754019 | L19: ='Ownership Storage'!HB345 -> 1015.523214 | M19: ='Ownership Storage'!HY345 -> 1027.881974 | N19: ='Ownership Storage'!IV345 -> 283.4077582 | O19: ='PPA Summary'!W71*12 -> 327.3368885 | W19: 18.76249944 | X19: 36.7744989 | Y19: 13.83614061 | Z19: 27.11421713 | AA19: 53.67037018 | AB19: 133.3388293 | AC19: 15.59786643 | AD19: 16.14682139 | AE19: 83.81283489 | AF19: 84.62693453 | AG19: 85.65683119 | AH19: 23.61731319 | AI19: 27.27807405
B20: 2035 | C20: ='Ownership Storage'!C368 -> 223.9551568 | D20: ='Ownership Storage'!Z368 -> 438.9521074 | E20: ='Ownership Storage'!AW368 -> 165.1525721 | F20: ='Ownership Storage'!BT368 -> 323.6439138 | G20: ='Ownership Storage'!CQ368 -> 640.6265974 | H20: ='Ownership Storage'!DN368 -> 1591.574648 | I20: ='Ownership Storage'!EK368 -> 188.0054542 | J20: ='Ownership Storage'!FH368 -> 194.8768313 | K20: ='Ownership Storage'!GE368 -> 1025.858512 | L20: ='Ownership Storage'!HB368 -> 1035.791289 | M20: ='Ownership Storage'!HY368 -> 1048.333542 | N20: ='Ownership Storage'!IV368 -> 289.0759134 | O20: ='PPA Summary'!W72*12 -> 332.1027964 | W20: 18.66292974 | X20: 36.57934228 | Y20: 13.76271434 | Z20: 26.97032615 | AA20: 53.38554978 | AB20: 132.6312207 | AC20: 15.66712118 | AD20: 16.23973594 | AE20: 85.48820936 | AF20: 86.31594078 | AG20: 87.36112847 | AH20: 24.08965945 | AI20: 27.67523303
B21: 2036 | C21: ='Ownership Storage'!C391 -> 222.9766321 | D21: ='Ownership Storage'!Z391 -> 437.034199 | E21: ='Ownership Storage'!AW391 -> 164.4309728 | F21: ='Ownership Storage'!BT391 -> 322.2298202 | G21: ='Ownership Storage'!CQ391 -> 637.8275148 | H21: ='Ownership Storage'!DN391 -> 1584.620599 | I21: ='Ownership Storage'!EK391 -> 189.1880586 | J21: ='Ownership Storage'!FH391 -> 196.3315325 | K21: ='Ownership Storage'!GE391 -> 1046.364224 | L21: ='Ownership Storage'!HB391 -> 1056.461332 | M21: ='Ownership Storage'!HY391 -> 1069.185875 | N21: ='Ownership Storage'!IV391 -> 294.8574317 | O21: ='PPA Summary'!W73*12 -> 336.937488 | W21: 18.58138601 | X21: 36.41951658 | Y21: 13.70258107 | Z21: 26.85248501 | AA21: 53.1522929 | AB21: 132.0517166 | AC21: 15.76567155 | AD21: 16.36096105 | AE21: 87.19701867 | AF21: 88.03844436 | AG21: 89.09882291 | AH21: 24.57145264 | AI21: 28.078124
B22: 2037 | C22: ='Ownership Storage'!C414 -> 222.1177067 | D22: ='Ownership Storage'!Z414 -> 435.3507051 | E22: ='Ownership Storage'!AW414 -> 163.7975704 | F22: ='Ownership Storage'!BT414 -> 320.9885628 | G22: ='Ownership Storage'!CQ414 -> 635.3705477 | H22: ='Ownership Storage'!DN414 -> 1578.516502 | I22: ='Ownership Storage'!EK414 -> 190.6052304 | J22: ='Ownership Storage'!FH414 -> 198.0152232 | K22: ='Ownership Storage'!GE414 -> 1067.279999 | L22: ='Ownership Storage'!HB414 -> 1077.544548 | M22: ='Ownership Storage'!HY414 -> 1090.454623 | N22: ='Ownership Storage'!IV414 -> 300.7545803 | O22: ='PPA Summary'!W74*12 -> 341.8419438 | W22: 18.50980889 | X22: 36.27922543 | Y22: 13.64979753 | Z22: 26.7490469 | AA22: 52.94754564 | AB22: 131.5430419 | AC22: 15.8837692 | AD22: 16.5012686 | AE22: 88.93999994 | AF22: 89.79537896 | AG22: 90.87121858 | AH22: 25.06288169 | AI22: 28.48682865
B23: 2038 | C23: ='Ownership Storage'!C437 -> 221.3312887 | D23: ='Ownership Storage'!Z437 -> 433.8093258 | E23: ='Ownership Storage'!AW437 -> 163.2176375 | F23: ='Ownership Storage'!BT437 -> 319.8520879 | G23: ='Ownership Storage'!CQ437 -> 633.1209888 | H23: ='Ownership Storage'!DN437 -> 1572.927691 | I23: ='Ownership Storage'!EK437 -> 192.2327133 | J23: ='Ownership Storage'!FH437 -> 199.905048 | K23: ='Ownership Storage'!GE437 -> 1088.614039 | L23: ='Ownership Storage'!HB437 -> 1099.049197 | M23: ='Ownership Storage'!HY437 -> 1112.148111 | N23: ='Ownership Storage'!IV437 -> 306.7696719 | O23: ='PPA Summary'!W75*12 -> 346.8171577 | W23: 18.44427405 | X23: 36.15077715 | Y23: 13.60146979 | Z23: 26.65434066 | AA23: 52.7600824 | AB23: 131.0773076 | AC23: 16.01939278 | AD23: 16.658754 | AE23: 90.7178366 | AF23: 91.58743311 | AG23: 92.67900922 | AH23: 25.56413932 | AI23: 28.90142981
B24: 2039 | C24: ='Ownership Storage'!C460 -> 220.591437 | D24: ='Ownership Storage'!Z460 -> 432.3592166 | E24: ='Ownership Storage'!AW460 -> 162.6720443 | F24: ='Ownership Storage'!BT460 -> 318.7829075 | G24: ='Ownership Storage'!CQ460 -> 631.0046338 | H24: ='Ownership Storage'!DN460 -> 1567.669813 | I24: ='Ownership Storage'!EK460 -> 194.1134522 | J24: ='Ownership Storage'!FH460 -> 202.041844 | K24: ='Ownership Storage'!GE460 -> 1110.374709 | L24: ='Ownership Storage'!HB460 -> 1120.983709 | M24: ='Ownership Storage'!HY460 -> 1134.274829 | N24: ='Ownership Storage'!IV460 -> 312.9050653 | O24: ='PPA Summary'!W76*12 -> 351.8641376 | W24: 18.38261975 | X24: 36.02993472 | Y24: 13.5560037 | Z24: 26.56524229 | AA24: 52.58371948 | AB24: 130.639151 | AC24: 16.17612101 | AD24: 16.83682033 | AE24: 92.53122573 | AF24: 93.41530909 | AG24: 94.52290244 | AH24: 26.07542211 | AI24: 29.32201147
B25: 2040 | C25: ='Ownership Storage'!C483 -> 219.7664816 | D25: ='Ownership Storage'!Z483 -> 430.742304 | E25: ='Ownership Storage'!AW483 -> 162.0636926 | F25: ='Ownership Storage'!BT483 -> 317.5907412 | G25: ='Ownership Storage'!CQ483 -> 628.6448382 | H25: ='Ownership Storage'!DN483 -> 1561.807129 | I25: ='Ownership Storage'!EK483 -> 195.9974832 | J25: ='Ownership Storage'!FH483 -> 204.1888466 | K25: ='Ownership Storage'!GE483 -> 1132.57054 | L25: ='Ownership Storage'!HB483 -> 1143.356679 | M25: ='Ownership Storage'!HY483 -> 1156.84344 | N25: ='Ownership Storage'!IV483 -> 319.1631666 | O25: ='PPA Summary'!W77*12 -> 356.9839057 | W25: 18.31387347 | X25: 35.895192 | Y25: 13.50530772 | Z25: 26.4658951 | AA25: 52.38706985 | AB25: 130.1505941 | AC25: 16.3331236 | AD25: 17.01573722 | AE25: 94.38087837 | AF25: 95.27972326 | AG25: 96.40361999 | AH25: 26.59693055 | AI25: 29.74865881
B27: Levelized Fixed Cost $/kWh | W27: $/MWh (include losses)
B28: 2020 | C28: =C5/C$1 -> 71.80219636 | D28: =D5/D$1 -> 70.36615244 | E28: =E5/E$1 -> 52.94951711 | F28: 51.88168958 | G28: 51.34777581 | H28: 51.02742755 | I28: 57.57480952 | J28: 61.78316125 | K28: 215.3491377 | L28: 54.38322087 | M28: 22.02949032 | N28: ='Ownership Storage'!IV24 -> 17.89897181 | O28: =O5/O$1 -> 16.70741306 | W28: ='Ownership Storage'!$C$26 -> 255.4164411 | X28: ='Ownership Storage'!$Z$26 -> 250.9455696 | Y28: ='Ownership Storage'!$AW$26 -> 196.7219229 | Z28: ='Ownership Storage'!$BT$26 -> 193.3974287 | AA28: ='Ownership Storage'!$CQ$26 -> 191.7351816 | AB28: ='Ownership Storage'!$DN$26 -> 190.7378333 | AC28: ='Ownership Storage'!$EK$26 -> 265.9228504 | AD28: ='Ownership Storage'!$FH$26 -> 302.3523578 | AE28: ='Ownership Storage'!$GE$26 -> 1298.350975 | AF28: ='Ownership Storage'!$HB$26 -> 450.2692218 | AG28: ='Ownership Storage'!$HY$26 -> 279.8069955
B29: 2021 | C29: =C6/C$1 -> 68.9926724 | D29: 67.61281895 | E29: 50.87767329 | F29: 49.85162842 | G29: 49.33860598 | H29: 49.03079252 | I29: 54.2293954 | J29: 57.00682424 | K29: 215.881726 | L29: 54.51627027 | M29: 22.08315673 | N29: ='Ownership Storage'!IV47 -> 18.25695125 | O29: =O6/O$1 -> 16.95107625
B30: 2022 | C30: =C7/C$1 -> 66.52505484 | D30: 65.19455374 | E30: 49.05796352 | F30: 48.06861655 | G30: 47.57394306 | H30: 47.27713897 | I30: 51.23168812 | J30: 52.87323413 | K30: 216.4350955 | L30: 54.65452596 | M30: 22.13891431 | N30: ='Ownership Storage'!IV70 -> 18.62209027 | O30: =O7/O$1 -> 17.19826448
B31: 2023 | C31: =C8/C$1 -> 64.41036213 | D31: 63.12215489 | E31: 47.4985132 | F31: 46.54061551 | G31: 46.06166666 | H31: 45.77429735 | I31: 51.23168812 | J31: 49.30458583 | K31: 217.0096344 | L31: 54.79808505 | M31: 22.19680195 | N31: ='Ownership Storage'!IV93 -> 18.99453208 | O31: =O8/O$1 -> 17.44902815
B32: 2024 | C32: =C9/C$1 -> 62.85753327 | D32: 61.6003826 | E32: 46.35340146 | F32: 45.41859712 | G32: 44.95119495 | H32: 44.67075364 | I32: 46.89623491 | J32: 48.55026912 | K32: 217.6057389 | L32: 54.94704662 | M32: 22.25685936 | N32: ='Ownership Storage'!IV116 -> 19.37442272 | O32: =O9/O$1 -> 17.7034184
B33: 2025 | C33: =C10/C$1 -> 61.53242897 | D33: 60.30178039 | E33: 45.37622198 | F33: 44.46112431 | G33: 44.00357548 | H33: 43.72904618 | I33: 46.89623491 | J33: 47.86978339 | K33: 218.2238129 | L33: 55.10151173 | M33: 22.31912701 | N33: ='Ownership Storage'!IV139 -> 19.76191117 | O33: =O10/O$1 -> 17.96148705
B34: 2026 | C34: =C11/C$1 -> 60.61475228 | D34: 59.40245723 | E34: 44.69949424 | F34: 43.79804408 | G34: 43.347319 | H34: 43.07688395 | I34: 46.67712601 | J34: 47.73059806 | K34: 220.961226 | L34: 55.79096097 | M34: 22.59743493 | N34: ='Ownership Storage'!IV162 -> 20.1571494 | O34: =O11/O$1 -> 18.22328668
B35: 2027 | C35: =C12/C$1 -> 59.80579105 | D35: 58.60967523 | E35: 44.10293719 | F35: 43.21351774 | G35: 42.76880801 | H35: 42.50198217 | I35: 46.50088894 | J35: 47.63341411 | K35: 223.7369702 | L35: 56.49004152 | M35: 22.87961873 | N35: ='Ownership Storage'!IV185 -> 20.56029238 | O35: =O12/O$1 -> 18.4888706 | W35: ='Ownership Storage'!$C$187 -> 229.2933336 | X35: ='Ownership Storage'!$Z$187 -> 225.5694362 | Y35: ='Ownership Storage'!$AW$187 -> 180.4052456 | Z35: ='Ownership Storage'!$BT$187 -> 177.6361937 | AA35: ='Ownership Storage'!$CQ$187 -> 176.2516678 | AB35: ='Ownership Storage'!$DN$187 -> 175.4209522 | AC35: ='Ownership Storage'!$EK$187 -> 236.6766845 | AD35: ='Ownership Storage'!$FH$187 -> 262.0006011 | AE35: ='Ownership Storage'!$GE$187 -> 1319.15279 | AF35: ='Ownership Storage'!$HB$187 -> 465.6155132 | AG35: ='Ownership Storage'!$HY$187 -> 294.0862124
B36: 2028 | C36: =C13/C$1 -> 59.12537222 | D36: 57.94286477 | E36: 43.60117192 | F36: 42.72187152 | G36: 42.28222131 | H36: 42.01843119 | I36: 46.44093199 | J36: 47.64783179 | K36: 226.5516466 | L36: 57.1989041 | M36: 23.16573892 | N36: ='Ownership Storage'!IV208 -> 20.97149823 | O36: =O13/O$1 -> 18.75829286
B37: 2029 | C37: =C14/C$1 -> 58.54362707 | D37: 57.37275453 | E37: 43.17217217 | F37: 42.30152336 | G37: 41.86619895 | H37: 41.60500431 | I37: 46.42369319 | J37: 47.70416051 | K37: 229.4058663 | L37: 57.91770201 | M37: 23.45585702 | N37: ='Ownership Storage'!IV231 -> 21.3909282 | O37: =O14/O$1 -> 19.03160827
B38: 2030 | C38: =C15/C$1 -> 58.01781343 | D38: 56.85745716 | E38: 42.78441831 | F38: 41.92158929 | G38: 41.49017478 | H38: 41.23132608 | I38: 46.47499252 | J38: 47.82689974 | K38: 232.3002513 | L38: 58.64659117 | M38: 23.75003566 | N38: ='Ownership Storage'!IV254 -> 21.81874676 | O38: =O15/O$1 -> 19.30887241
B39: 2031 | C39: =C16/C$1 -> 57.51048579 | D39: 56.36027607 | E39: 42.4102967 | F39: 41.55501255 | G39: 41.12737048 | H39: 40.87078523 | I39: 46.50270003 | J39: 47.92876217 | K39: 236.9436673 | L39: 59.81693653 | M39: 24.22245226 | N39: ='Ownership Storage'!IV277 -> 22.2551217 | O39: =O16/O$1 -> 19.59014165
B40: 2032 | C40: =C17/C$1 -> 57.05012703 | D40: 55.90912449 | E40: 42.07081163 | F40: 41.22237384 | G40: 40.79815495 | H40: 40.54362361 | I40: 46.55813756 | J40: 48.05841784 | K40: 241.6799374 | L40: 61.01067323 | M40: 24.70430043 | N40: ='Ownership Storage'!IV300 -> 22.70022413 | O40: =O17/O$1 -> 19.87547315
B41: 2033 | C41: =C18/C$1 -> 56.64073973 | D41: 55.50792493 | E41: 41.76891473 | F41: 40.92656527 | G41: 40.50539054 | H41: 40.2526857 | I41: 46.64923241 | J41: 48.22341009 | K41: 246.5109184 | L41: 62.22826898 | M41: 25.1957687 | N41: ='Ownership Storage'!IV323 -> 23.15422861 | O41: =O18/O$1 -> 20.16492486
B42: 2034 | C42: =C19/C$1 -> 56.28749831 | D42: 55.16174834 | E42: 41.50842183 | F42: 40.6713257 | G42: 40.25277764 | H42: 40.0016488 | I42: 46.7935993 | J42: 48.44046418 | K42: 251.4385047 | L42: 63.47020089 | M42: 25.69704936 | N42: ='Ownership Storage'!IV346 -> 23.61731319 | O42: =O19/O$1 -> 20.45855553
B43: 2035 | C43: =C20/C$1 -> 55.98878921 | D43: 54.86901343 | E43: 41.28814302 | F43: 40.45548923 | G43: 40.03916234 | H43: 39.7893662 | I43: 47.00136354 | J43: 48.71920783 | K43: 256.4646281 | L43: 64.73695558 | M43: 26.20833854 | N43: ='Ownership Storage'!IV369 -> 24.08965945 | O43: =O20/O$1 -> 20.75642478 | W43: ='Ownership Storage'!$C$371 -> 228.8750435 | X43: ='Ownership Storage'!$Z$371 -> 225.3888175 | Y43: ='Ownership Storage'!$AW$371 -> 183.1071537 | Z43: ='Ownership Storage'!$BT$371 -> 180.5148318 | AA43: ='Ownership Storage'!$CQ$371 -> 179.2186709 | AB43: ='Ownership Storage'!$DN$371 -> 178.4409743 | AC43: ='Ownership Storage'!$EK$371 -> 253.3690107 | AD43: ='Ownership Storage'!$FH$371 -> 284.3229773 | AE43: ='Ownership Storage'!$GE$371 -> 1452.670813 | AF43: ='Ownership Storage'!$HB$371 -> 507.9202836 | AG43: ='Ownership Storage'!$HY$371 -> 318.0680266
B44: 2036 | C44: =C21/C$1 -> 55.74415803 | D44: 54.62927487 | E44: 41.1077432 | F44: 40.27872752 | G44: 39.86421968 | H44: 39.61551497 | I44: 47.29701464 | J44: 49.08288314 | K44: 261.591056 | L44: 66.02883327 | M44: 26.72964687 | N44: ='Ownership Storage'!IV392 -> 24.57145264 | O44: =O21/O$1 -> 21.058593
B45: 2037 | C45: =C22/C$1 -> 55.52942667 | D45: 54.41883814 | E45: 40.94939259 | F45: 40.12357035 | G45: 39.71065923 | H45: 39.46291256 | I45: 47.6513076 | J45: 49.50380581 | K45: 266.8199998 | L45: 67.34653422 | M45: 27.26136557 | N45: ='Ownership Storage'!IV415 -> 25.06288169 | O45: =O22/O$1 -> 21.36512149
B46: 2038 | C46: =C23/C$1 -> 55.33282216 | D46: 54.22616572 | E46: 40.80440937 | F46: 39.98151099 | G46: 39.5700618 | H46: 39.32319228 | I46: 48.05817833 | J46: 49.97626199 | K46: 272.1535098 | L46: 68.69057483 | M46: 27.80370277 | N46: ='Ownership Storage'!IV438 -> 25.56413932 | O46: =O23/O$1 -> 21.67607236
B47: 2039 | C47: =C24/C$1 -> 55.14785926 | D47: 54.04490208 | E47: 40.66801109 | F47: 39.84786344 | G47: 39.43778961 | H47: 39.19174531 | I47: 48.52836304 | J47: 50.51046099 | K47: 277.5936772 | L47: 70.06148182 | M47: 28.35687073 | N47: ='Ownership Storage'!IV461 -> 26.07542211 | O47: =O24/O$1 -> 21.9915086
B48: 2040 | C48: =C25/C$1 -> 54.94162041 | D48: 53.842788 | E48: 40.51592315 | F48: 39.69884264 | G48: 39.29030239 | H48: 39.04517824 | I48: 48.9993708 | J48: 51.04721166 | K48: 283.1426351 | L48: 71.45979245 | M48: 28.921086 | N48: ='Ownership Storage'!IV484 -> 26.59693055 | O48: =O25/O$1 -> 22.3114941

Sheet PPA Summary
B1: Loaded w/ Integration & Misc Fees
B2: Levelized PPA Prices at Busbar | M2: On-System Wind | P2: Off-System Wind | S2: MT Wind | V2: Off Shore Wind
A3: Year Beginning | B3: =M2 -> On-System Wind | C3: =P2 -> Off-System Wind | D3: =S2 -> MT Wind | E3: =V2 -> Off Shore Wind | F3: =M28 -> On-System Solar | G3: =P28 -> Southern NW Solar | H3: =S28 -> Small Solar | I3: =P55 -> Nuclear | J3: =S55 -> Geothermal | L3: Year | M3: $/MWh PPA | N3: FCF | P3: $/MWh PPA | Q3: FCF | S3: $/MWh PPA | T3: FCF | V3: $/MWh PPA | W3: FCF
A4: =L4 -> 2020 | B4: =(M4+Integration!Y63)*(1+Misc_Rev) -> 38.12057878 | C4: =(P4+Integration!Y86)*(1+Misc_Rev) -> 33.97801214 | D4: =(S4+Integration!Y108)*(1+Misc_Rev) -> 20.12521674 | E4: =(V4+Integration!Y130)*(1+Misc_Rev) -> 89.59381145 | F4: =(M30+Integration!Y174)*(1+Misc_Rev) -> 38.26978829 | G4: =(P30+Integration!Y196)*(1+Misc_Rev) -> 34.35084049 | H4: =(S30+Integration!Y152)*(1+Misc_Rev) -> 49.9607084 | I4: =P57*(1+Misc_Rev) -> 88.38546925 | J4: =S57*(1+Misc_Rev) -> 82.54711215 | L4: 2020 | M4: 33.93850994 | N4: ='Wind PPA Analysis'!A29 -> 0.065 | P4: 29.92588804 | Q4: ='Wind PPA Analysis'!AA29 -> 0.065 | S4: 17.19198901 | T4: ='Wind PPA Analysis'!BA29 -> 0.065 | V4: 84.54703997 | W4: ='Wind PPA Analysis'!CA29 -> 0.07
A5: 2021 | B5: =(M5+Integration!Y64)*(1+Misc_Rev) -> 36.9190628 | C5: =(P5+Integration!Y87)*(1+Misc_Rev) -> 32.68901116 | D5: =(S5+Integration!Y109)*(1+Misc_Rev) -> 19.00719174 | E5: =(V5+Integration!Y131)*(1+Misc_Rev) -> 90.26743607 | F5: =(M31+Integration!Y175)*(1+Misc_Rev) -> 38.23282258 | G5: =(P31+Integration!Y197)*(1+Misc_Rev) -> 34.31434371 | H5: =(S31+Integration!Y153)*(1+Misc_Rev) -> 49.91583477 | I5: 89.84957005 | J5: 83.96754774 | L5: 2021 | M5: 32.77812364 | N5: ='Wind PPA Analysis'!A69 -> 0.06500000019 | P5: 28.680761 | Q5: ='Wind PPA Analysis'!AA69 -> 0.06500000037 | S5: 16.11168633 | T5: ='Wind PPA Analysis'!BA69 -> 0.0650000021 | V5: 85.2021106 | W5: ='Wind PPA Analysis'!CA69 -> 0.07
A6: 2022 | B6: =(M6+Integration!Y65)*(1+Misc_Rev) -> 42.48277258 | C6: =(P6+Integration!Y88)*(1+Misc_Rev) -> 38.3145987 | D6: =(S6+Integration!Y110)*(1+Misc_Rev) -> 24.51114372 | E6: =(V6+Integration!Y132)*(1+Misc_Rev) -> 96.68811695 | F6: =(M32+Integration!Y176)*(1+Misc_Rev) -> 37.07231967 | G6: =(P32+Integration!Y198)*(1+Misc_Rev) -> 32.98202618 | H6: =(S32+Integration!Y154)*(1+Misc_Rev) -> 48.400999 | I6: 111.567562 | J6: 85.4129575 | L6: 2022 | M6: 38.15327259 | N6: ='Wind PPA Analysis'!A109 -> 0.065 | P6: 34.11584671 | Q6: ='Wind PPA Analysis'!AA109 -> 0.065 | S6: 21.43216888 | T6: ='Wind PPA Analysis'!BA109 -> 0.065 | V6: 91.41087411 | W6: ='Wind PPA Analysis'!CA109 -> 0.07
A7: 2023 | B7: =(M7+Integration!Y66)*(1+Misc_Rev) -> 48.97465949 | C7: =(P7+Integration!Y89)*(1+Misc_Rev) -> 44.96406647 | D7: =(S7+Integration!Y111)*(1+Misc_Rev) -> 30.8535778 | E7: =(V7+Integration!Y133)*(1+Misc_Rev) -> 103.3397413 | F7: =(M33+Integration!Y177)*(1+Misc_Rev) -> 37.52767288 | G7: =(P33+Integration!Y199)*(1+Misc_Rev) -> 33.51004845 | H7: =(S33+Integration!Y155)*(1+Misc_Rev) -> 48.99828425 | I7: 113.4179384 | J7: 86.88378973 | L7: 2023 | M7: 44.42677712 | N7: ='Wind PPA Analysis'!A149 -> 0.065 | P7: 40.54198907 | Q7: ='Wind PPA Analysis'!AA149 -> 0.065 | S7: 27.56428741 | T7: ='Wind PPA Analysis'!BA149 -> 0.065 | V7: 97.84280788 | W7: ='Wind PPA Analysis'!CA149 -> 0.07
A8: 2024 | B8: =(M8+Integration!Y67)*(1+Misc_Rev) -> 55.87172613 | C8: =(P8+Integration!Y90)*(1+Misc_Rev) -> 52.04274534 | D8: =(S8+Integration!Y112)*(1+Misc_Rev) -> 37.57760536 | E8: =(V8+Integration!Y134)*(1+Misc_Rev) -> 110.2295292 | F8: =(M34+Integration!Y178)*(1+Misc_Rev) -> 48.1254359 | G8: =(P34+Integration!Y200)*(1+Misc_Rev) -> 43.25734996 | H8: =(S34+Integration!Y156)*(1+Misc_Rev) -> 62.94138761 | I8: 115.296036 | J8: 88.38050095 | L8: 2024 | M8: 51.09152237 | N8: ='Wind PPA Analysis'!A189 -> 0.065 | P8: 47.38264971 | Q8: ='Wind PPA Analysis'!AA189 -> 0.065 | S8: 34.06508199 | T8: ='Wind PPA Analysis'!BA189 -> 0.065 | V8: 104.5045138 | W8: ='Wind PPA Analysis'!CA189 -> 0.07
A9: 2025 | B9: =(M9+Integration!Y68)*(1+Misc_Rev) -> 69.11714836 | C9: =(P9+Integration!Y91)*(1+Misc_Rev) -> 65.48580693 | D9: =(S9+Integration!Y113)*(1+Misc_Rev) -> 50.63350044 | E9: =(V9+Integration!Y135)*(1+Misc_Rev) -> 123.4486575 | F9: =(M35+Integration!Y179)*(1+Misc_Rev) -> 48.87009575 | G9: =(P35+Integration!Y201)*(1+Misc_Rev) -> 43.78634148 | H9: =(S35+Integration!Y157)*(1+Misc_Rev) -> 63.71364158 | I9: 117.2039728 | J9: 89.90355601 | L9: 2025 | M9: 63.90305192 | N9: ='Wind PPA Analysis'!A229 -> 0.065 | P9: 60.38561903 | Q9: ='Wind PPA Analysis'!AA229 -> 0.065 | S9: 46.697248 | T9: ='Wind PPA Analysis'!BA229 -> 0.065 | V9: 117.2951968 | W9: ='Wind PPA Analysis'!CA229 -> 0.07
A10: 2026 | B10: =(M10+Integration!Y69)*(1+Misc_Rev) -> 70.07027944 | C10: =(P10+Integration!Y92)*(1+Misc_Rev) -> 66.5633937 | D10: =(S10+Integration!Y114)*(1+Misc_Rev) -> 51.46414024 | E10: =(V10+Integration!Y136)*(1+Misc_Rev) -> 124.7510374 | F10: =(M36+Integration!Y180)*(1+Misc_Rev) -> 49.97624778 | G10: =(P36+Integration!Y202)*(1+Misc_Rev) -> 44.32115416 | H10: =(S36+Integration!Y158)*(1+Misc_Rev) -> 64.49462323 | I10: 119.1345109 | J10: 91.45342831 | L10: 2026 | M10: 64.81000546 | N10: ='Wind PPA Analysis'!A269 -> 0.065 | P10: 61.41312431 | Q10: ='Wind PPA Analysis'!AA269 -> 0.065 | S10: 47.48928332 | T10: ='Wind PPA Analysis'!BA269 -> 0.065 | V10: 118.5445321 | W10: ='Wind PPA Analysis'!CA269 -> 0.07
A11: 2027 | B11: =(M11+Integration!Y70)*(1+Misc_Rev) -> 70.94245154 | C11: =(P11+Integration!Y93)*(1+Misc_Rev) -> 67.54866042 | D11: =(S11+Integration!Y115)*(1+Misc_Rev) -> 52.22361667 | E11: =(V11+Integration!Y137)*(1+Misc_Rev) -> 126.0650377 | F11: =(M37+Integration!Y181)*(1+Misc_Rev) -> 50.58595019 | G11: =(P37+Integration!Y203)*(1+Misc_Rev) -> 44.86202426 | H11: =(S37+Integration!Y159)*(1+Misc_Rev) -> 65.2846386 | I11: 121.0964826 | J11: 93.03059989 | L11: 2027 | M11: 65.64032792 | N11: ='Wind PPA Analysis'!A309 -> 0.065 | P11: 62.35299383 | Q11: ='Wind PPA Analysis'!AA309 -> 0.065 | S11: 48.21376608 | T11: ='Wind PPA Analysis'!BA309 -> 0.065 | V11: 119.8064624 | W11: ='Wind PPA Analysis'!CA309 -> 0.07
A12: 2028 | B12: =(M12+Integration!Y71)*(1+Misc_Rev) -> 71.65826054 | C12: =(P12+Integration!Y94)*(1+Misc_Rev) -> 68.3553163 | D12: =(S12+Integration!Y116)*(1+Misc_Rev) -> 52.84541392 | E12: =(V12+Integration!Y138)*(1+Misc_Rev) -> 127.3946159 | F12: =(M38+Integration!Y182)*(1+Misc_Rev) -> 51.20432857 | G12: =(P38+Integration!Y204)*(1+Misc_Rev) -> 45.4106084 | H12: =(S38+Integration!Y160)*(1+Misc_Rev) -> 66.08569853 | I12: 123.0892784 | J12: 94.63556164 | L12: 2028 | M12: 66.31608337 | N12: ='Wind PPA Analysis'!A349 -> 0.065 | P12: 63.11674645 | Q12: ='Wind PPA Analysis'!AA349 -> 0.065 | S12: 48.80249206 | T12: ='Wind PPA Analysis'!BA349 -> 0.065 | V12: 121.0811539 | W12: ='Wind PPA Analysis'!CA349 -> 0.07
A13: 2029 | B13: =(M13+Integration!Y72)*(1+Misc_Rev) -> 72.40265247 | C13: =(P13+Integration!Y95)*(1+Misc_Rev) -> 69.19394787 | D13: =(S13+Integration!Y117)*(1+Misc_Rev) -> 53.49185908 | E13: =(V13+Integration!Y139)*(1+Misc_Rev) -> 128.7363596 | F13: =(M39+Integration!Y183)*(1+Misc_Rev) -> 51.82982084 | G13: =(P39+Integration!Y205)*(1+Misc_Rev) -> 45.96549958 | H13: =(S39+Integration!Y161)*(1+Misc_Rev) -> 66.89613775 | I13: 125.1146123 | J13: 96.26881344 | L13: 2029 | M13: 67.02105507 | N13: ='Wind PPA Analysis'!A389 -> 0.065 | P13: 63.91300167 | Q13: ='Wind PPA Analysis'!AA389 -> 0.065 | S13: 49.41627212 | T13: ='Wind PPA Analysis'!BA389 -> 0.065 | V13: 122.368775 | W13: ='Wind PPA Analysis'!CA389 -> 0.07
A14: 2030 | B14: =(M14+Integration!Y73)*(1+Misc_Rev) -> 73.17711339 | C14: =(P14+Integration!Y96)*(1+Misc_Rev) -> 70.06607302 | D14: =(S14+Integration!Y118)*(1+Misc_Rev) -> 54.16412222 | E14: =(V14+Integration!Y140)*(1+Misc_Rev) -> 130.0913279 | F14: =(M40+Integration!Y184)*(1+Misc_Rev) -> 52.46293321 | G14: =(P40+Integration!Y206)*(1+Misc_Rev) -> 46.52715225 | H14: =(S40+Integration!Y162)*(1+Misc_Rev) -> 67.71652508 | I14: 127.1726433 | J14: 97.93086432 | L14: 2030 | M14: 67.75554079 | N14: ='Wind PPA Analysis'!A429 -> 0.065 | P14: 64.74208806 | Q14: ='Wind PPA Analysis'!AA429 -> 0.065 | S14: 50.05535955 | T14: ='Wind PPA Analysis'!BA429 -> 0.065 | V14: 123.6694967 | W14: ='Wind PPA Analysis'!CA429 -> 0.07
A15: 2031 | B15: =(M15+Integration!Y74)*(1+Misc_Rev) -> 73.98565826 | C15: =(P15+Integration!Y97)*(1+Misc_Rev) -> 70.97621115 | D15: =(S15+Integration!Y119)*(1+Misc_Rev) -> 54.86568703 | E15: =(V15+Integration!Y141)*(1+Misc_Rev) -> 131.4598573 | F15: =(M41+Integration!Y185)*(1+Misc_Rev) -> 53.10383699 | G15: =(P41+Integration!Y207)*(1+Misc_Rev) -> 47.0957194 | H15: =(S41+Integration!Y163)*(1+Misc_Rev) -> 68.54706789 | I15: 129.2653972 | J15: 99.62223268 | L15: 2031 | M15: 68.52322595 | N15: ='Wind PPA Analysis'!A469 -> 0.065 | P15: 65.6081797 | Q15: ='Wind PPA Analysis'!AA469 -> 0.065 | S15: 50.72297185 | T15: ='Wind PPA Analysis'!BA469 -> 0.065 | V15: 124.9834923 | W15: ='Wind PPA Analysis'!CA469 -> 0.07
A16: 2032 | B16: =(M16+Integration!Y75)*(1+Misc_Rev) -> 74.84390924 | C16: =(P16+Integration!Y98)*(1+Misc_Rev) -> 71.9426873 | D16: =(S16+Integration!Y120)*(1+Misc_Rev) -> 55.61067906 | E16: =(V16+Integration!Y142)*(1+Misc_Rev) -> 132.8388004 | F16: =(M42+Integration!Y186)*(1+Misc_Rev) -> 53.7510982 | G16: =(P42+Integration!Y208)*(1+Misc_Rev) -> 47.66990929 | H16: =(S42+Integration!Y164)*(1+Misc_Rev) -> 69.3862402 | I16: 131.3926513 | J16: 101.3434464 | L16: 2032 | M16: 69.34354888 | N16: ='Wind PPA Analysis'!A509 -> 0.065 | P16: 66.53333297 | Q16: ='Wind PPA Analysis'!AA509 -> 0.065 | S16: 51.43611083 | T16: ='Wind PPA Analysis'!BA509 -> 0.065 | V16: 126.3109381 | W16: ='Wind PPA Analysis'!CA509 -> 0.07
A17: 2033 | B17: =(M17+Integration!Y76)*(1+Misc_Rev) -> 75.8124785 | C17: =(P17+Integration!Y99)*(1+Misc_Rev) -> 73.03358741 | D17: =(S17+Integration!Y121)*(1+Misc_Rev) -> 56.45158123 | E17: =(V17+Integration!Y143)*(1+Misc_Rev) -> 134.232275 | F17: =(M43+Integration!Y187)*(1+Misc_Rev) -> 54.40663787 | G17: =(P43+Integration!Y209)*(1+Misc_Rev) -> 48.25144965 | H17: =(S43+Integration!Y165)*(1+Misc_Rev) -> 70.23613968 | I17: 133.5548763 | J17: 103.095043 | L17: 2033 | M17: 70.27013274 | N17: ='Wind PPA Analysis'!A549 -> 0.065 | P17: 67.57841039 | Q17: ='Wind PPA Analysis'!AA549 -> 0.065 | S17: 52.24169134 | T17: ='Wind PPA Analysis'!BA549 -> 0.065 | V17: 127.6520126 | W17: ='Wind PPA Analysis'!CA549 -> 0.07
A18: 2034 | B18: =(M18+Integration!Y77)*(1+Misc_Rev) -> 77.13038771 | C18: =(P18+Integration!Y100)*(1+Misc_Rev) -> 74.52057341 | D18: =(S18+Integration!Y122)*(1+Misc_Rev) -> 57.59779961 | E18: =(V18+Integration!Y144)*(1+Misc_Rev) -> 135.6385984 | F18: =(M44+Integration!Y188)*(1+Misc_Rev) -> 55.06969568 | G18: =(P44+Integration!Y210)*(1+Misc_Rev) -> 48.83965498 | H18: =(S44+Integration!Y166)*(1+Misc_Rev) -> 71.09596849 | I18: 135.7524009 | J18: 104.8775701 | L18: 2034 | M18: 71.5369204 | N18: ='Wind PPA Analysis'!A589 -> 0.065 | P18: 69.00897121 | Q18: ='Wind PPA Analysis'!AA589 -> 0.065 | S18: 53.34441531 | T18: ='Wind PPA Analysis'!BA589 -> 0.065 | V18: 129.0068973 | W18: ='Wind PPA Analysis'!CA589 -> 0.07
A19: 2035 | B19: =(M19+Integration!Y78)*(1+Misc_Rev) -> 78.48876894 | C19: =(P19+Integration!Y101)*(1+Misc_Rev) -> 76.05307677 | D19: =(S19+Integration!Y123)*(1+Misc_Rev) -> 58.77910428 | E19: =(V19+Integration!Y145)*(1+Misc_Rev) -> 137.0575972 | F19: =(M45+Integration!Y189)*(1+Misc_Rev) -> 55.74021127 | G19: =(P45+Integration!Y211)*(1+Misc_Rev) -> 49.43446974 | H19: =(S45+Integration!Y167)*(1+Misc_Rev) -> 71.96568505 | I19: 137.985682 | J19: 106.6915849 | L19: 2035 | M19: 72.8452024 | N19: ='Wind PPA Analysis'!A629 -> 0.065 | P19: 70.48591345 | Q19: ='Wind PPA Analysis'!AA629 -> 0.065 | S19: 54.48289162 | T19: ='Wind PPA Analysis'!BA629 -> 0.065 | V19: 130.3757762 | W19: ='Wind PPA Analysis'!CA629 -> 0.07
A20: 2036 | B20: =(M20+Integration!Y79)*(1+Misc_Rev) -> 79.96044083 | C20: =(P20+Integration!Y102)*(1+Misc_Rev) -> 77.71353205 | D20: =(S20+Integration!Y124)*(1+Misc_Rev) -> 60.05903856 | E20: =(V20+Integration!Y146)*(1+Misc_Rev) -> 138.4906696 | F20: =(M46+Integration!Y190)*(1+Misc_Rev) -> 56.41884917 | G20: =(P46+Integration!Y212)*(1+Misc_Rev) -> 50.03649076 | H20: =(S46+Integration!Y168)*(1+Misc_Rev) -> 72.84603098 | I20: 140.2549612 | J20: 108.5376554 | L20: 2036 | M20: 74.26395426 | N20: ='Wind PPA Analysis'!A669 -> 0.065 | P20: 72.08752691 | Q20: ='Wind PPA Analysis'!AA669 -> 0.065 | S20: 55.71746866 | T20: ='Wind PPA Analysis'!BA669 -> 0.065 | V20: 131.758836 | W20: ='Wind PPA Analysis'!CA669 -> 0.07
A21: 2037 | B21: =(M21+Integration!Y80)*(1+Misc_Rev) -> 81.46419357 | C21: =(P21+Integration!Y103)*(1+Misc_Rev) -> 79.41015099 | D21: =(S21+Integration!Y125)*(1+Misc_Rev) -> 61.36684899 | E21: =(V21+Integration!Y147)*(1+Misc_Rev) -> 139.9357334 | F21: =(M47+Integration!Y191)*(1+Misc_Rev) -> 57.10466798 | G21: =(P47+Integration!Y213)*(1+Misc_Rev) -> 50.64486954 | H21: =(S47+Integration!Y169)*(1+Misc_Rev) -> 73.73601379 | I21: 142.5613372 | J21: 110.4163597 | L21: 2037 | M21: 75.71746004 | N21: ='Wind PPA Analysis'!A709 -> 0.065 | P21: 73.72784903 | Q21: ='Wind PPA Analysis'!AA709 -> 0.065 | S21: 56.98188363 | T21: ='Wind PPA Analysis'!BA709 -> 0.065 | V21: 133.1562665 | W21: ='Wind PPA Analysis'!CA709 -> 0.07
A22: 2038 | B22: =(M22+Integration!Y81)*(1+Misc_Rev) -> 82.99884121 | C22: =(P22+Integration!Y104)*(1+Misc_Rev) -> 81.14103738 | D22: =(S22+Integration!Y126)*(1+Misc_Rev) -> 62.70107391 | E22: =(V22+Integration!Y148)*(1+Misc_Rev) -> 141.3959716 | F22: =(M48+Integration!Y192)*(1+Misc_Rev) -> 57.79915743 | G22: =(P48+Integration!Y214)*(1+Misc_Rev) -> 51.26094555 | H22: =(S48+Integration!Y170)*(1+Misc_Rev) -> 74.63726698 | I22: 144.9055547 | J22: 112.3282865 | L22: 2038 | M22: 77.20071081 | N22: ='Wind PPA Analysis'!A749 -> 0.065 | P22: 75.40118289 | Q22: ='Wind PPA Analysis'!AA749 -> 0.065 | S22: 58.27174515 | T22: ='Wind PPA Analysis'!BA749 -> 0.065 | V22: 134.5682599 | W22: ='Wind PPA Analysis'!CA749 -> 0.07
A23: 2039 | B23: =(M23+Integration!Y82)*(1+Misc_Rev) -> 84.56238751 | C23: =(P23+Integration!Y105)*(1+Misc_Rev) -> 82.90463953 | D23: =(S23+Integration!Y127)*(1+Misc_Rev) -> 64.06051724 | E23: =(V23+Integration!Y149)*(1+Misc_Rev) -> 142.8675652 | F23: =(M49+Integration!Y193)*(1+Misc_Rev) -> 58.50057485 | G23: =(P49+Integration!Y215)*(1+Misc_Rev) -> 51.88314914 | H23: =(S49+Integration!Y171)*(1+Misc_Rev) -> 75.54793336 | I23: 147.2881052 | J23: 114.2740355 | L23: 2039 | M23: 78.71697335 | N23: ='Wind PPA Analysis'!A789 -> 0.065 | P23: 77.1112259 | Q23: ='Wind PPA Analysis'!AA789 -> 0.065 | S23: 59.5899033 | T23: ='Wind PPA Analysis'!BA789 -> 0.065 | V23: 135.9950118 | W23: ='Wind PPA Analysis'!CA789 -> 0.07
A24: 2040 | B24: =(M24+Integration!Y83)*(1+Misc_Rev) -> 86.16134378 | C24: =(P24+Integration!Y106)*(1+Misc_Rev) -> 84.70750087 | D24: =(S24+Integration!Y128)*(1+Misc_Rev) -> 65.45022285 | E24: =(V24+Integration!Y150)*(1+Misc_Rev) -> 144.3553532 | F24: =(M50+Integration!Y194)*(1+Misc_Rev) -> 59.21117567 | G24: =(P50+Integration!Y216)*(1+Misc_Rev) -> 52.51350886 | H24: =(S50+Integration!Y172)*(1+Misc_Rev) -> 76.47047401 | I24: 149.7106448 | J24: 116.2542173 | L24: 2040 | M24: 80.26656063 | N24: ='Wind PPA Analysis'!A829 -> 0.065 | P24: 78.85832211 | Q24: ='Wind PPA Analysis'!AA829 -> 0.065 | S24: 60.93662329 | T24: ='Wind PPA Analysis'!BA829 -> 0.065 | V24: 137.4367202 | W24: ='Wind PPA Analysis'!CA829 -> 0.07
M25: =SUM(M4:M24) -> 1334.51896 | P25: =SUM(P4:P24) -> 1272.971622 | S25: =SUM(S4:S24) -> 960.7653397 | V25: =SUM(V4:V24) -> 2497.517174
M28: On-System Solar | P28: Southern NW Solar | S28: Small Solar
L29: Year | M29: $/MWh PPA | N29: FCF | P29: $/MWh PPA | Q29: FCF | S29: $/MWh PPA | T29: FCF
L30: 2020 | M30: 35.99356385 | N30: ='Solar PPA Analysis'!A29 -> 0.06 | P30: 32.30512339 | Q30: ='Solar PPA Analysis'!AC29 -> 0.06 | S30: 47.23169947 | T30: ='Solar PPA Analysis'!BE29 -> 0.06000000001
L31: 2021 | M31: 35.9587334 | N31: ='Solar PPA Analysis'!A70 -> 0.06 | P31: 32.27064959 | Q31: ='Solar PPA Analysis'!AC70 -> 0.06 | S31: 47.18928721 | T31: ='Solar PPA Analysis'!BE70 -> 0.06
L32: 2022 | M32: 34.82955699 | N32: ='Solar PPA Analysis'!A111 -> 0.06 | P32: 30.97555571 | Q32: ='Solar PPA Analysis'!AC111 -> 0.06000000002 | S32: 45.71648661 | T32: ='Solar PPA Analysis'!BE111 -> 0.06
L33: 2023 | M33: 35.26532952 | N33: ='Solar PPA Analysis'!A152 -> 0.06000000001 | P33: 31.48224752 | Q33: ='Solar PPA Analysis'!AC152 -> 0.06 | S33: 46.28931527 | T33: ='Solar PPA Analysis'!BE152 -> 0.06
L34: 2024 | M34: 45.52493454 | N34: ='Solar PPA Analysis'!A193 -> 0.06 | P34: 40.918641 | Q34: ='Solar PPA Analysis'!AC193 -> 0.06 | S34: 59.78886536 | T34: ='Solar PPA Analysis'!BE193 -> 0.06
L35: 2025 | M35: 46.23956871 | N35: ='Solar PPA Analysis'!A234 -> 0.06 | P35: 41.42503866 | Q35: ='Solar PPA Analysis'!AC234 -> 0.06 | S35: 60.5296947 | T35: ='Solar PPA Analysis'!BE234 -> 0.06
L36: 2026 | M36: 47.30516031 | N36: ='Solar PPA Analysis'!A275 -> 0.06 | P36: 41.93779904 | Q36: ='Solar PPA Analysis'!AC275 -> 0.06 | S36: 61.27984694 | T36: ='Solar PPA Analysis'!BE275 -> 0.06
L37: 2027 | M37: 47.89051593 | N37: ='Solar PPA Analysis'!A316 -> 0.06 | P37: 42.45700364 | Q37: ='Solar PPA Analysis'!AC316 -> 0.06 | S37: 62.03944171 | T37: ='Solar PPA Analysis'!BE316 -> 0.06
L38: 2028 | M38: 48.48322506 | N38: ='Solar PPA Analysis'!A357 -> 0.06 | P38: 42.98273504 | Q38: ='Solar PPA Analysis'!AC357 -> 0.06 | S38: 62.80860025 | T38: ='Solar PPA Analysis'!BE357 -> 0.06
L39: 2029 | M39: 49.08338187 | N39: ='Solar PPA Analysis'!A398 -> 0.06 | P39: 43.51507687 | Q39: ='Solar PPA Analysis'!AC398 -> 0.06 | S39: 63.58744537 | T39: ='Solar PPA Analysis'!BE398 -> 0.06
L40: 2030 | M40: 49.69108176 | N40: ='Solar PPA Analysis'!A439 -> 0.06 | P40: 44.05411391 | Q40: ='Solar PPA Analysis'!AC439 -> 0.06 | S40: 64.37610151 | T40: ='Solar PPA Analysis'!BE439 -> 0.06
L41: 2031 | M41: 50.30642139 | N41: ='Solar PPA Analysis'!A480 -> 0.06 | P41: 44.599932 | Q41: ='Solar PPA Analysis'!AC480 -> 0.06 | S41: 65.17469473 | T41: ='Solar PPA Analysis'!BE480 -> 0.06
L42: 2032 | M42: 50.92949868 | N42: ='Solar PPA Analysis'!A521 -> 0.06 | P42: 45.15261814 | Q42: ='Solar PPA Analysis'!AC521 -> 0.06 | S42: 65.98335278 | T42: ='Solar PPA Analysis'!BE521 -> 0.06
L43: 2033 | M43: 51.56041285 | N43: ='Solar PPA Analysis'!A562 -> 0.06 | P43: 45.71226045 | Q43: ='Solar PPA Analysis'!AC562 -> 0.06 | S43: 66.80220505 | T43: ='Solar PPA Analysis'!BE562 -> 0.06
L44: 2034 | M44: 52.1992644 | N44: ='Solar PPA Analysis'!A603 -> 0.06 | P44: 46.27894825 | Q44: ='Solar PPA Analysis'!AC603 -> 0.06 | S44: 67.63138267 | T44: ='Solar PPA Analysis'!BE603 -> 0.06
L45: 2035 | M45: 52.84615517 | N45: ='Solar PPA Analysis'!A644 -> 0.06 | P45: 46.85277198 | Q45: ='Solar PPA Analysis'!AC644 -> 0.06 | S45: 68.47101848 | T45: ='Solar PPA Analysis'!BE644 -> 0.06
L46: 2036 | M46: 53.50118833 | N46: ='Solar PPA Analysis'!A685 -> 0.06 | P46: 47.43382331 | Q46: ='Solar PPA Analysis'!AC685 -> 0.06 | S46: 69.32124708 | T46: ='Solar PPA Analysis'!BE685 -> 0.06
L47: 2037 | M47: 54.16446841 | N47: ='Solar PPA Analysis'!A726 -> 0.06 | P47: 48.02219509 | Q47: ='Solar PPA Analysis'!AC726 -> 0.06 | S47: 70.18220485 | T47: ='Solar PPA Analysis'!BE726 -> 0.06
L48: 2038 | M48: 54.83610131 | N48: ='Solar PPA Analysis'!A767 -> 0.06 | P48: 48.61798141 | Q48: ='Solar PPA Analysis'!AC767 -> 0.06 | S48: 71.05402995 | T48: ='Solar PPA Analysis'!BE767 -> 0.06
L49: 2039 | M49: 55.51619432 | N49: ='Solar PPA Analysis'!A808 -> 0.06 | P49: 49.22127759 | Q49: ='Solar PPA Analysis'!AC808 -> 0.06 | S49: 71.93686238 | T49: ='Solar PPA Analysis'!BE808 -> 0.06
L50: 2040 | M50: 56.20485614 | N50: ='Solar PPA Analysis'!A849 -> 0.06 | P50: 49.83218022 | Q50: ='Solar PPA Analysis'!AC849 -> 0.06 | S50: 72.83084398 | T50: ='Solar PPA Analysis'!BE849 -> 0.06
M51: =SUM(M30:M50) -> 1008.329613 | P51: =SUM(P30:P50) -> 896.0479728 | S51: =SUM(S30:S50) -> 1310.224626
M55: Solar + Storage | P55: Nuclear | S55: Geothermal | V55: Pumped Hydro (16 hr/ 100 MW share) | Y55: Pumped Hydro (12 hr/ 100 MW share) | AB55: Pumped Hydro (8hr/ 100 MW share) | AE55: Pumped Hydro (24 hr/ 100 MW share) | AH55: Pumped Hydro (40 hr/ 100 MW share) | AK55: Pumped Hydro (80 hr/ 100 MW share)
L56: Year | M56: $/MWh PPA | N56: $/kW-mn | O56: FCF | P56: $/MWh PPA | Q56: $/kW-yr | R56: FCF | S56: $/MWh PPA | T56: $/kW-yr | U56: FCF | V56: $/MWh PPA | W56: $/kW-mn | X56: FCF | Y56: $/MWh PPA | Z56: $/kW-mn | AA56: FCF | AB56: $/MWh PPA | AC56: $/kW-mn | AD56: FCF | AE56: $/MWh PPA | AF56: $/kW-mn | AG56: FCF | AH56: $/MWh PPA | AI56: $/kW-mn | AK56: $/MWh PPA | AL56: $/kW-mn
L57: 2020 | M57: =M30 -> 35.99356385 | N57: 12.89628125 | O57: ='Other PPA'!A33 -> 0.065 | P57: 85.61297855 | Q57: 0 | R57: ='Other PPA'!AC33 -> 0.0800070739 | S57: 79.95776005 | T57: 0 | U57: ='Other PPA'!BC33 -> 0.08757587847 | V57: 5 | W57: 22.27655074 | X57: ='Other PPA'!CC33 ->  | Y57: 5 | Z57: =W57/W58*Z58 -> 22.05378523 | AB57: 5 | AC57: =Z57/Z58*AC58 -> 21.83101973 | AE57: 5 | AF57: =AC57/AC58*AF58 -> 22.49931625 | AH57: 5 | AI57: =AF57/AF58*AI58 -> 12.32031879 | AK57: 5 | AL57: =AI57/AI58*AL58 -> 12.32031879
L58: 2021 | M58: =M31 -> 35.9587334 | N58: 10.38952838 | O58: ='Other PPA'!A80 -> 0.065 | P58: 87.03115319 | Q58: =Q57*1.02 -> 0 | R58: ='Other PPA'!AC80 -> 0.07999819565 | S58: 81.33363917 | T58: 0 | U58: ='Other PPA'!BC80 -> 0.08769239743 | V58: 5.1 | W58: 22.601435 | X58: ='Other PPA'!CC80 -> 0.065 | Y58: 5.1 | Z58: 22.37542065 | AB58: 5.1 | AC58: 22.1494063 | AE58: 5.1 | AF58: 22.82744935 | AH58: 5.1 | AI58: 12.5 | AK58: 5.1 | AL58: 12.5
L59: 2022 | M59: 34.82955699 | N59: 9.807384159 | O59: ='Other PPA'!A127 -> 0.065 | P59: 108.0678914 | Q59: =Q58*1.02 -> 0 | R59: ='Other PPA'!AC127 -> 0.07993028638 | S59: 82.73370907 | T59: 0 | U59: ='Other PPA'!BC127 -> 0.08780953106 | V59: 5.202 | W59: 22.9310193 | X59: ='Other PPA'!CC127 -> 0.065 | Y59: 5.202 | Z59: 22.70170911 | AB59: 5.202 | AC59: 22.47239892 | AE59: 5.202 | AF59: 23.16032949 | AH59: 5.202 | AI59: 12.75 | AK59: 5.202 | AL59: 12.75
L60: 2023 | M60: =M33 -> 35.26532952 | N60: 9.257710921 | O60: ='Other PPA'!A174 -> 0.065 | P60: 109.8602249 | Q60: 0 | R60: ='Other PPA'!AC174 -> 0.07996827134 | S60: 84.15840398 | T60: 0 | U60: ='Other PPA'!BC174 -> 0.0879272827 | V60: 5.30604 | W60: 23.26537087 | X60: ='Other PPA'!CC174 -> 0.065 | Y60: 5.30604 | Z60: 23.03271716 | AB60: 5.30604 | AC60: 22.80006345 | AE60: 5.30604 | AF60: 23.49802458 | AH60: 5.30604 | AI60: 13.005 | AK60: 5.30604 | AL60: 13.005
L61: 2024 | M61: 45.52493454 | N61: 10.23878666 | O61: ='Other PPA'!A221 -> 0.065 | P61: 111.67941 | Q61: 0 | R61: ='Other PPA'!AC221 -> 0.08000642982 | S61: 85.6081661 | T61: 0 | U61: ='Other PPA'!BC221 -> 0.08804565573 | V61: 5.4121608 | W61: 23.60455786 | X61: ='Other PPA'!CC221 -> 0.065 | Y61: 5.4121608 | Z61: 23.36851228 | AB61: 5.4121608 | AC61: 23.13246671 | AE61: 5.4121608 | AF61: 23.84060344 | AH61: 5.4121608 | AI61: 13.2651 | AK61: 5.4121608 | AL61: 13.2651
L62: 2025 | M62: 46.23956871 | N62: 9.712568402 | O62: ='Other PPA'!A268 -> 0.065 | P62: 113.5274983 | Q62: 0 | R62: ='Other PPA'!AC268 -> 0.08003350443 | S62: 87.08344571 | T62: 0 | U62: ='Other PPA'!BC268 -> 0.08816465354 | V62: 5.520404016 | W62: 23.9486494 | X62: ='Other PPA'!CC268 -> 0.065 | Y62: 5.520404016 | Z62: 23.70916291 | AB62: 5.520404016 | AC62: 23.46967642 | AE62: 5.520404016 | AF62: 24.1881359 | AH62: 5.520404016 | AI62: 13.530402 | AK62: 5.520404016 | AL62: 13.530402
L63: 2026 | M63: 47.30516031 | N63: 9.091646969 | O63: ='Other PPA'!A315 -> 0.065 | P63: 115.397479 | Q63: 0 | R63: ='Other PPA'!AC315 -> 0.08004827009 | S63: 88.58470134 | T63: 0 | U63: ='Other PPA'!BC315 -> 0.08828427954 | V63: 5.630812096 | W63: 24.29771558 | X63: ='Other PPA'!CC315 -> 0.065 | Y63: 5.630812096 | Z63: 24.05473842 | AB63: 5.630812096 | AC63: 23.81176127 | AE63: 5.630812096 | AF63: 24.54069274 | AH63: 5.630812096 | AI63: 13.80101004 | AK63: 5.630812096 | AL63: 13.80101004
L64: 2027 | M64: 47.89051593 | N64: 8.863053899 | O64: ='Other PPA'!A362 -> 0.065 | P64: 117.2979072 | Q64: 0 | R64: ='Other PPA'!AC362 -> 0.0800220037 | S64: 90.11239993 | T64: 0 | U64: ='Other PPA'!BC362 -> 0.08840453717 | V64: 5.743428338 | W64: 24.65182747 | X64: ='Other PPA'!CC362 -> 0.065 | Y64: 5.743428338 | Z64: 24.40530919 | AB64: 5.743428338 | AC64: 24.15879092 | AE64: 5.743428338 | AF64: 24.89834574 | AH64: 5.743428338 | AI64: 25.88441884 | AK64: 5.743428338 | AL64: 27.11701021
L65: 2028 | M65: 48.48322506 | N65: 8.671462726 | O65: ='Other PPA'!A409 -> 0.065 | P65: 119.2281926 | Q65: 0 | R65: ='Other PPA'!AC409 -> 0.07998134919 | S65: 91.66701697 | T65: 0 | U65: ='Other PPA'!BC409 -> 0.08852542986 | V65: 5.858296905 | W65: 25.01105714 | X65: ='Other PPA'!CC409 -> 0.065 | Y65: 5.858296905 | Z65: 24.76094657 | AB65: 5.858296905 | AC65: 24.510836 | AE65: 5.858296905 | AF65: 25.26116771 | AH65: 5.858296905 | AI65: 26.26161 | AK65: 5.858296905 | AL65: 27.51216286
L66: 2029 | M66: 49.08338187 | N66: 8.497836339 | O66: ='Other PPA'!A456 -> 0.065 | P66: 121.1899955 | Q66: 0 | R66: ='Other PPA'!AC456 -> 0.07992564265 | S66: 93.24903663 | T66: 0 | U66: ='Other PPA'!BC456 -> 0.0886469611 | V66: 5.975462843 | W66: 25.37547769 | X66: ='Other PPA'!CC456 -> 0.065 | Y66: 5.975462843 | Z66: 25.12172291 | AB66: 5.975462843 | AC66: 24.86796813 | AE66: 5.975462843 | AF66: 25.62923246 | AH66: 5.975462843 | AI66: 26.64425157 | AK66: 5.975462843 | AL66: 27.91302546
L67: 2030 | M67: 49.69108176 | N67: 8.338769193 | O67: ='Other PPA'!A503 -> 0.065 | P67: 123.1834698 | Q67: 0 | R67: ='Other PPA'!AC503 -> 0.0799824631 | S67: 94.85895202 | T67: 0 | U67: ='Other PPA'!BC503 -> 0.08876913436 | V67: 6.0949721 | W67: 25.74516321 | X67: ='Other PPA'!CC503 -> 0.065 | Y67: 6.0949721 | Z67: 25.48771158 | AB67: 6.0949721 | AC67: 25.23025995 | AE67: 6.0949721 | AF67: 26.00261485 | AH67: 6.0949721 | AI67: 27.03242137 | AK67: 6.0949721 | AL67: 28.31967954
L68: 2031 | M68: 50.30642139 | N68: 8.168192103 | O68: ='Other PPA'!A550 -> 0.065 | P68: 125.2105778 | Q68: 0 | R68: ='Other PPA'!AC550 -> 0.08002892491 | S68: 96.49726524 | T68: 0 | U68: ='Other PPA'!BC550 -> 0.08889195316 | V68: 6.216871542 | W68: 26.12018887 | X68: ='Other PPA'!CC550 -> 0.065 | Y68: 6.216871542 | Z68: 25.85898698 | AB68: 6.216871542 | AC68: 25.5977851 | AE68: 6.216871542 | AF68: 26.38139076 | AH68: 6.216871542 | AI68: 27.42619832 | AK68: 6.216871542 | AL68: 28.73220776
L69: 2032 | M69: 50.92949868 | N69: 8.000540363 | O69: ='Other PPA'!A597 -> 0.065 | P69: 127.2711039 | Q69: 0 | R69: ='Other PPA'!AC597 -> 0.08003765124 | S69: 98.16448762 | T69: 0 | U69: ='Other PPA'!BC597 -> 0.08901542103 | V69: 6.341208973 | W69: 26.50063087 | X69: ='Other PPA'!CC597 -> 0.065 | Y69: 6.341208973 | Z69: 26.23562456 | AB69: 6.341208973 | AC69: 25.97061825 | AE69: 6.341208973 | AF69: 26.76563718 | AH69: 6.341208973 | AI69: 27.82566241 | AK69: 6.341208973 | AL69: 29.15069396
L70: 2033 | M70: 51.56041285 | N70: 7.837997806 | O70: ='Other PPA'!A644 -> 0.065 | P70: 129.3655039 | Q70: 0 | R70: ='Other PPA'!AC644 -> 0.0800334977 | S70: 99.86113988 | T70: 0 | U70: ='Other PPA'!BC644 -> 0.08913954151 | V70: 6.468033152 | W70: 26.88656648 | X70: ='Other PPA'!CC644 -> 0.065 | Y70: 6.468033152 | Z70: 26.61770081 | AB70: 6.468033152 | AC70: 26.34883515 | AE70: 6.468033152 | AF70: 27.15543214 | AH70: 6.468033152 | AI70: 28.2308948 | AK70: 6.468033152 | AL70: 29.57522312
L71: 2034 | M71: 52.1992644 | N71: 7.685484793 | O71: ='Other PPA'!A691 -> 0.065 | P71: 131.4940961 | Q71: 0 | R71: ='Other PPA'!AC691 -> 0.08001574994 | S71: 101.5877523 | T71: 0 | U71: ='Other PPA'!BC691 -> 0.08926431818 | V71: 6.597393815 | W71: 27.27807405 | X71: ='Other PPA'!CC691 -> 0.065 | Y71: 6.597393815 | Z71: 27.00529331 | AB71: 6.597393815 | AC71: 26.73251256 | AE71: 6.597393815 | AF71: 27.55085479 | AH71: 6.597393815 | AI71: 28.64197775 | AK71: 6.597393815 | AL71: 30.00588145
L72: 2035 | M72: 52.84615517 | N72: 7.545807631 | O72: ='Other PPA'!A738 -> 0.065 | P72: 133.6573232 | Q72: 0 | R72: ='Other PPA'!AC738 -> 0.07998367464 | S72: 103.3448648 | T72: 0 | U72: ='Other PPA'!BC738 -> 0.08938975463 | V72: 6.729341692 | W72: 27.67523303 | X72: ='Other PPA'!CC738 -> 0.065 | Y72: 6.729341692 | Z72: 27.3984807 | AB72: 6.729341692 | AC72: 27.12172837 | AE72: 6.729341692 | AF72: 27.95198536 | AH72: 6.729341692 | AI72: 29.05899469 | AK72: 6.729341692 | AL72: 30.44275634
L73: 2036 | M73: 53.50118833 | N73: 7.425829952 | O73: ='Other PPA'!A785 -> 0.065 | P73: 135.8554193 | Q73: 0 | R73: ='Other PPA'!AC785 -> 0.08002886054 | S73: 105.1330275 | T73: 0 | U73: ='Other PPA'!BC785 -> 0.08951585446 | V73: 6.863928525 | W73: 28.078124 | X73: ='Other PPA'!CC785 -> 0.065 | Y73: 6.863928525 | Z73: 27.79734276 | AB73: 6.863928525 | AC73: 27.51656152 | AE73: 6.863928525 | AF73: 28.35890524 | AH73: 6.863928525 | AI73: 29.4820302 | AK73: 6.863928525 | AL73: 30.8859364
L74: 2037 | M74: 54.16446841 | N74: 7.317240268 | O74: ='Other PPA'!A832 -> 0.065 | P74: 138.0894485 | Q74: 0 | R74: ='Other PPA'!AC832 -> 0.08006268975 | S74: 106.9528002 | T74: 0 | U74: ='Other PPA'!BC832 -> 0.0896426213 | V74: 7.001207096 | W74: 28.48682865 | X74: ='Other PPA'!CC832 -> 0.065 | Y74: 7.001207096 | Z74: 28.20196036 | AB74: 7.001207096 | AC74: 27.91709208 | AE74: 7.001207096 | AF74: 28.77169694 | AH74: 7.001207096 | AI74: 29.91117008 | AK74: 7.001207096 | AL74: 31.33551151
L75: 2038 | M75: 54.83610131 | N75: 7.21827338 | O75: ='Other PPA'!A879 -> 0.065 | P75: 140.3601322 | Q75: 0 | R75: ='Other PPA'!AC879 -> 0.08008455679 | S75: 108.8047534 | T75: 0 | U75: ='Other PPA'!BC879 -> 0.08977005881 | V75: 7.141231238 | W75: 28.90142981 | X75: ='Other PPA'!CC879 -> 0.065 | Y75: 7.141231238 | Z75: 28.61241551 | AB75: 7.141231238 | AC75: 28.32340121 | AE75: 7.141231238 | AF75: 29.1904441 | AH75: 7.141231238 | AI75: 30.3465013 | AK75: 7.141231238 | AL75: 31.79157279
L76: 2039 | M76: 55.51619432 | N76: 7.131909078 | O76: ='Other PPA'!A926 -> 0.065 | P76: 142.6679464 | Q76: 0 | R76: ='Other PPA'!AC926 -> 0.08009380664 | S76: 110.6894678 | T76: 0 | U76: ='Other PPA'!BC926 -> 0.08989817066 | V76: 7.284055863 | W76: 29.32201147 | X76: ='Other PPA'!CC926 -> 0.065 | Y76: 7.284055863 | Z76: 29.02879135 | AB76: 7.284055863 | AC76: 28.73557124 | AE76: 7.284055863 | AF76: 29.61523158 | AH76: 7.284055863 | AI76: 30.78811204 | AK76: 7.284055863 | AL76: 32.25421262
L77: 2040 | M77: 56.20485614 | N77: 7.040444875 | O77: ='Other PPA'!A973 -> 0.06499999993 | P77: 145.0144954 | Q77: 0 | R77: ='Other PPA'!AC973 -> 0.0800660437 | S77: 112.6075349 | T77: 0 | U77: ='Other PPA'!BC973 -> 0.09002696054 | V77: 7.42973698 | W77: 29.74865881 | X77: ='Other PPA'!CC973 -> 0.065 | Y77: 7.42973698 | Z77: 29.45117222 | AB77: 7.42973698 | AC77: 29.15368563 | AE77: 7.42973698 | AF77: 30.04614539 | AH77: 7.42973698 | AI77: 31.23609175 | AK77: 7.42973698 | AL77: 32.72352469
M78: =SUM(M57:M77) -> 1008.329613 | N78: =SUM(N57:N77) -> 181.1367492 | P78: =SUM(P57:P77) -> 2561.062247 | Q78: =SUM(Q57:Q77) -> 0 | S78: =SUM(S57:S77) -> 2002.990325 | T78: =SUM(T57:T77) -> 0 | V78: =SUM(V57:V77) -> 128.916586 | W78: =SUM(W57:W77) -> 542.7065703 | Y78: =SUM(Y57:Y77) -> 128.916586 | Z78: =SUM(Z57:Z77) -> 537.2795046 | AB78: =SUM(AB57:AB77) -> 128.916586 | AC78: =SUM(AC57:AC77) -> 531.8524389 | AE78: =SUM(AE57:AE77) -> 128.916586 | AF78: =SUM(AF57:AF77) -> 548.133636 | AH78: =SUM(AH57:AH77) -> 128.916586 | AI78: =SUM(AI57:AI77) -> 489.9421659 | AK78: =SUM(AK57:AK77) -> 128.916586 | AL78: =SUM(AL57:AL77) -> 508.9312295

Sheet NG Summary
E2: 2020 | H2: 2027 | K2: 2035
C3: Short Description | D3: Long Description | E3: $/MWh | F3: Fixed Cost $/kW-yr | G3: Variable Cost $/MWh | H3: $/MWh | I3: Fixed Cost $/kW-yr | J3: Variable Cost $/MWh | K3: $/MWh | L3: Fixed Cost $/kW-yr | M3: Variable Cost $/MWh
C4: ='Resource Options'!B7 -> Advanced Large Frame CT | D4: ='Resource Options'!C7 -> GE - 7F.06 Simple Cycle | E4: ='NG Gen'!$C$34 -> 48.36967711 | F4: ='NG Gen'!$C$35 -> 117.9265847 | G4: ='NG Gen'!$C$36 -> 33.92001472 | H4: ='NG Gen'!$Z$34 -> 54.59392639 | I4: ='NG Gen'!$AW$35 -> 132.2107738 | J4: ='NG Gen'!$AW$36 -> 48.82338491 | K4: ='NG Gen'!$CQ$34 -> 85.71195967 | L4: ='NG Gen'!$CQ$35 -> 150.4152272 | M4: ='NG Gen'!$CQ$36 -> 67.28143141
C5: ='Resource Options'!B8 -> Advanced Small Frame CT | D5: ='Resource Options'!C8 -> GE- 7E.03 Simple Cycle | E5: ='NG Gen'!$C$69 -> 61.65808295 | F5: ='NG Gen'!$C$70 -> 163.0657364 | G5: ='NG Gen'!$C$71 -> 41.67747515 | H5: ='NG Gen'!$Z$69 -> 70.01412607 | I5: ='NG Gen'!$AW$70 -> 182.6931251 | J5: ='NG Gen'!$AW$71 -> 60.62552286 | K5: ='NG Gen'!$CQ$69 -> 108.8420041 | L5: ='NG Gen'!$CQ$70 -> 207.7363919 | M5: ='NG Gen'!$CQ$71 -> 83.38785624
C6: ='Resource Options'!B9 -> Frame/Aero Hybrid CT | D6: ='Resource Options'!C9 -> GE-LMS100PB Wet Intercooler DLN | E6: ='NG Gen'!$C$104 -> 53.65147897 | F6: ='NG Gen'!$C$105 -> 159.3351935 | G6: ='NG Gen'!$C$106 -> 34.12797832 | H6: ='NG Gen'!$Z$104 -> 60.55007465 | I6: ='NG Gen'!$AW$105 -> 178.1419894 | J6: ='NG Gen'!$AW$106 -> 49.42270703 | K6: ='NG Gen'!$CQ$104 -> 92.57726103 | L6: ='NG Gen'!$CQ$105 -> 202.1329033 | M6: ='NG Gen'!$CQ$106 -> 67.80971419
C7: ='Resource Options'!B10 -> Large Reciprocating Engine Facility | D7: ='Resource Options'!C10 -> 10X Wartsila 18V50SG-B | E7: ='NG Gen'!$C$139 -> 52.40438434 | F7: ='NG Gen'!$C$140 -> 164.8735758 | G7: ='NG Gen'!$C$141 -> 32.20226017 | H7: ='NG Gen'!$Z$139 -> 58.97791558 | I7: ='NG Gen'!$AW$140 -> 184.3957327 | J7: ='NG Gen'!$AW$141 -> 46.56510389 | K7: ='NG Gen'!$CQ$139 -> 89.48658027 | L7: ='NG Gen'!$CQ$140 -> 209.339049 | M7: ='NG Gen'!$CQ$141 -> 63.83605719
C8: ='Resource Options'!B11 -> Small Reciprocating Engine Facility (Option 2) | D8: ='Resource Options'!C11 -> Jenbacher 920 | E8: ='NG Gen'!$C$174 -> 54.45879286 | F8: ='NG Gen'!$C$175 -> 183.1138325 | G8: ='NG Gen'!$C$176 -> 32.02167178 | H8: ='NG Gen'!$Z$174 -> 60.9577067 | I8: ='NG Gen'!$AW$175 -> 204.8553498 | J8: ='NG Gen'!$AW$176 -> 45.89034896 | K8: ='NG Gen'!$CQ$174 -> 91.10423107 | L8: ='NG Gen'!$CQ$175 -> 232.6885966 | M8: ='NG Gen'!$CQ$176 -> 62.59266456
C9: ='Resource Options'!B12 -> Modern Small Frame CT | D9: ='Resource Options'!C12 -> Siemens- SGT-800-50 | E9: ='NG Gen'!$C$209 -> 58.24019573 | F9: ='NG Gen'!$C$210 -> 171.5277114 | G9: ='NG Gen'!$C$211 -> 37.22273367 | H9: ='NG Gen'!$Z$209 -> 65.87389036 | I9: ='NG Gen'!$AW$210 -> 191.8682147 | J9: ='NG Gen'!$AW$211 -> 54.21845116 | K9: ='NG Gen'!$CQ$209 -> 101.320739 | L9: ='NG Gen'!$CQ$210 -> 217.8201452 | M9: ='NG Gen'!$CQ$211 -> 74.63101873
C10: ='Resource Options'!B13 -> Aero CT option 1 | D10: ='Resource Options'!C13 -> PW- FT8 Swift Pac | E10: ='NG Gen'!$C$244 -> 62.28956182 | F10: ='NG Gen'!$C$245 -> 193.2263753 | G10: ='NG Gen'!$C$246 -> 38.61334076 | H10: ='NG Gen'!$Z$244 -> 70.31236471 | I10: ='NG Gen'!$AW$245 -> 216.0883728 | J10: ='NG Gen'!$AW$246 -> 56.28199466 | K10: ='NG Gen'!$CQ$244 -> 107.5543755 | L10: ='NG Gen'!$CQ$245 -> 245.2757593 | M10: ='NG Gen'!$CQ$246 -> 77.50049139
C11: ='Resource Options'!B14 -> Aero CT option 2 | D11: ='Resource Options'!C14 -> GE- LM6000- PF Sprint | E11: ='NG Gen'!$C$279 -> 58.75314306 | F11: ='NG Gen'!$C$280 -> 194.5455661 | G11: ='NG Gen'!$C$281 -> 34.91528023 | H11: ='NG Gen'!$Z$279 -> 66.08182633 | I11: ='NG Gen'!$AW$280 -> 217.395912 | J11: ='NG Gen'!$AW$281 -> 50.7943851 | K11: ='NG Gen'!$CQ$279 -> 100.0827386 | L11: ='NG Gen'!$CQ$280 -> 246.57495 | M11: ='NG Gen'!$CQ$281 -> 69.86966335
C12: ='Resource Options'!B15 -> 1 on 1 Advanced CCCT option 1 | D12: ='Resource Options'!C15 -> GE - 7F.06 One on One | E12: ='NG Gen'!$C$314 -> 47.31880483 | F12: ='NG Gen'!$C$315 -> 164.0083273 | G12: ='NG Gen'!$C$316 -> 27.22270043 | H12: ='NG Gen'!$Z$314 -> 52.8496258 | I12: ='NG Gen'!$AW$315 -> 183.6689615 | J12: ='NG Gen'!$AW$316 -> 38.87077494 | K12: ='NG Gen'!$CQ$314 -> 78.50309421 | L12: ='NG Gen'!$CQ$315 -> 208.8880599 | M12: ='NG Gen'!$CQ$316 -> 52.90783127
C13: ='Resource Options'!B16 -> 1 on 1 Advanced CCCT option 2 | D13: ='Resource Options'!C16 -> Siemens- SGT6-5000F CCCT (Flex Plant) | E13: ='NG Gen'!$C$349 -> 46.25484623 | F13: ='NG Gen'!$C$350 -> 150.9023675 | G13: ='NG Gen'!$C$351 -> 27.76462819 | H13: ='NG Gen'!$Z$349 -> 51.80618308 | I13: ='NG Gen'!$AW$350 -> 168.9639661 | J13: ='NG Gen'!$AW$351 -> 39.67494998 | K13: ='NG Gen'!$CQ$349 -> 77.56484597 | L13: ='NG Gen'!$CQ$350 -> 192.1045633 | M13: ='NG Gen'!$CQ$351 -> 54.02608165
C14: ='Resource Options'!B17 -> 1 on 1 Advanced CCCT option 3 | D14: ='Resource Options'!C17 -> MHI- 501 F 1 on 1 | E14: ='NG Gen'!$C$384 -> 46.64955242 | F14: ='NG Gen'!$C$385 -> 157.1279073 | G14: ='NG Gen'!$C$386 -> 27.39651276 | H14: ='NG Gen'!$Z$384 -> 52.20464661 | I14: ='NG Gen'!$AW$385 -> 175.8658623 | J14: ='NG Gen'!$AW$386 -> 39.23039202 | K14: ='NG Gen'!$CQ$384 -> 77.97448992 | L14: ='NG Gen'!$CQ$385 -> 199.8703501 | M14: ='NG Gen'!$CQ$386 -> 53.48417598
C15: ='Resource Options'!B18 -> 1 on 1 modern CCCT | D15: ='Resource Options'!C18 -> GE - 7F.04 One on One | E15: ='NG Gen'!$C$419 -> 47.60091 | F15: ='NG Gen'!$C$420 -> 171.4291624 | G15: ='NG Gen'!$C$421 -> 26.59552324 | H15: ='NG Gen'!$Z$419 -> 53.16387569 | I15: ='NG Gen'!$AW$420 -> 191.7669817 | J15: ='NG Gen'!$AW$421 -> 38.24517972 | K15: ='NG Gen'!$CQ$419 -> 78.95691222 | L15: ='NG Gen'!$CQ$420 -> 217.823856 | M15: ='NG Gen'!$CQ$421 -> 52.26673724
C16: ='Resource Options'!B19 -> 3 x 2 small CCCT | D16: ='Resource Options'!C19 -> Siemens- SGT-800 3 on 2 | E16: ='NG Gen'!$C$454 -> 57.45916345 | F16: ='NG Gen'!$C$455 -> 241.2026862 | G16: ='NG Gen'!$C$456 -> 27.90435702 | H16: ='NG Gen'!$Z$454 -> 63.60858467 | I16: ='NG Gen'!$AW$455 -> 269.7576223 | J16: ='NG Gen'!$AW$456 -> 39.98399002 | K16: ='NG Gen'!$CQ$454 -> 92.07726004 | L16: ='NG Gen'!$CQ$455 -> 306.4135915 | M16: ='NG Gen'!$CQ$456 -> 54.53209615
C17: ='Resource Options'!B20 -> 2 x 1 small CCCT | D17: ='Resource Options'!C20 -> Siemens- SGT-800 2 on 1 | E17: ='NG Gen'!$C$489 -> 58.82552528 | F17: ='NG Gen'!$C$490 -> 252.2425735 | G17: ='NG Gen'!$C$491 -> 27.91799042 | H17: ='NG Gen'!$Z$489 -> 65.05303449 | I17: ='NG Gen'!$AW$490 -> 282.2906644 | J17: ='NG Gen'!$AW$491 -> 40.00422084 | K17: ='NG Gen'!$CQ$489 -> 93.88123975 | L17: ='NG Gen'!$CQ$490 -> 320.9066391 | M17: ='NG Gen'!$CQ$491 -> 54.56022823
C22: Green = Recip
C23: Blue = Gas Combustion Turbine
C24: Red = CCCT

Sheet Upgrade Summary
D2: 2020 | G2: 2027 | J2: 2035
C3: Short Description | D3: $/MWh | E3: Fixed Cost $/kW-yr | F3: Variable Cost $/MWh | G3: $/MWh | H3: Fixed Cost $/kW-yr | I3: Variable Cost $/MWh | J3: $/MWh | K3: Fixed Cost $/kW-yr | L3: Variable Cost $/MWh
C5: ='Resource Options'!$B$45 -> Supplemental Compression- two unit operation | D5: =Upgrades!C37 -> 48.39034897 | E5: =Upgrades!C38 -> 95.01284696 | F5: =Upgrades!C39 -> 36.5137431 | G5: =Upgrades!C303 -> 66.3625013 | H5: =Upgrades!C304 -> 105.5690582 | I5: =Upgrades!C305 -> 53.16636902 | J5: =Upgrades!C607 -> 88.05376871 | K5: =Upgrades!C608 -> 119.0858324 | L5: =Upgrades!C609 -> 73.16803966
C6: ='Resource Options'!$B$46 -> Rathdrum CT 2055 Uprates two unit operation | D6: =Upgrades!Z37 -> 43.07415089 | E6: =Upgrades!Z38 -> 90.29481054 | F6: =Upgrades!Z39 -> 31.78729958 | G6: =Upgrades!Z303 -> 61.60010727 | H6: =Upgrades!Z304 -> 100.144144 | I6: =Upgrades!Z305 -> 49.08208927 | J6: =Upgrades!Z607 -> 76.74481339 | K6: =Upgrades!Z608 -> 112.7227509 | L6: =Upgrades!Z609 -> 62.65446953
C7: ='Resource Options'!$B$47 -> Kettle Falls Turbine Generator Upgrade | D7: =Upgrades!AW37 -> 45.54262355 | E7: =Upgrades!AW38 -> 167.5025091 | F7: =Upgrades!AW39 -> 22.59707435 | G7: =Upgrades!AW265 -> 52.12056666 | H7: =Upgrades!AW266 -> 183.0462483 | I7: =Upgrades!AW267 -> 27.04573812 | J7: =Upgrades!AW607 -> 76.74270058 | K7: =Upgrades!AW608 -> 209.1077383 | L7: =Upgrades!AW609 -> 48.09780492
C8: ='Resource Options'!$B$48 -> Rathdrum CT: Inlet Evaporation 2 unit operation | D8: =Upgrades!BT37 -> 45.62049698 | E8: =Upgrades!BT38 -> 32.60408806 | F8: =Upgrades!BT39 -> 41.54498597 | G8: =Upgrades!BT303 -> 65.81480555 | H8: =Upgrades!BT304 -> 36.25665098 | I8: =Upgrades!BT305 -> 61.28272417 | J8: =Upgrades!BT607 -> 90.05951946 | K8: =Upgrades!BT608 -> 40.93905364 | L8: =Upgrades!BT609 -> 84.94213776
C9: ='Resource Options'!$B$49 -> Post Falls Redevelopment | D9: =Upgrades!CQ37 -> 45.26792889 | E9: =Upgrades!CQ38 -> 223.0577196 | F9: =Upgrades!CQ39 -> 0 | G9: =Upgrades!CQ303 -> 51.99862112 | H9: =Upgrades!CQ304 -> 256.2232056 | I9: =Upgrades!CQ305 -> 0 | J9: =Upgrades!CQ607 -> 60.92467223 | K9: =Upgrades!CQ608 -> 300.2063224 | L9: =Upgrades!CQ609 -> 0
C10: ='Resource Options'!$B$50 -> Long Lake 2nd Powerhouse | D10: =Upgrades!DN37 -> 83.5117083 | E10: =Upgrades!DN38 -> 248.731272 | F10: =Upgrades!DN39 -> 0 | G10: =Upgrades!DN303 -> 95.9287024 | H10: =Upgrades!DN304 -> 285.7140472 | I10: =Upgrades!DN305 -> 0 | J10: =Upgrades!DN607 -> 112.3957641 | K10: =Upgrades!DN608 -> 334.7595437 | L10: =Upgrades!DN609 -> 0
C11: ='Resource Options'!$B$51 -> Monroe St/Upper Falls 2nd Powerhouse | D11: =Upgrades!EK37 -> 91.58317919 | E11: =Upgrades!EK38 -> 271.7283917 | F11: =Upgrades!EK39 -> 0 | G11: =Upgrades!EK265 -> 103.1375346 | H11: =Upgrades!EK266 -> 306.0103029 | I11: =Upgrades!EK267 -> 0 | J11: =Upgrades!EK607 -> 123.2589012 | K11: =Upgrades!EK608 -> 365.710639 | L11: =Upgrades!EK609 -> 0
C12: ='Resource Options'!$B$52 -> Cabinet Gorge 2nd Powerhouse | D12: =Upgrades!FH37 -> 196.0870061 | E12: =Upgrades!FH38 -> 288.5773251 | F12: =Upgrades!FH39 -> 0 | G12: =Upgrades!FH303 -> 225.2423335 | H12: =Upgrades!FH304 -> 331.4846373 | I12: =Upgrades!FH305 -> 0 | J12: =Upgrades!FH607 -> 263.907293 | K12: =Upgrades!FH608 -> 388.387085 | L12: =Upgrades!FH609 -> 0
C13: ='Resource Options'!B$53 -> Biomass | D13: =Upgrades!GE37 -> 117.3072756 | E13: =Upgrades!GE38 -> 347.717631 | F13: =Upgrades!GE39 -> 37.91968861 | G13: =Upgrades!GE303 -> 137.4114904 | H13: =Upgrades!GE304 -> 399.4182592 | I13: =Upgrades!GE305 -> 46.22010706 | J13: =Upgrades!GE607 -> 184.3880541 | K13: =Upgrades!GE608 -> 467.9821503 | L13: =Upgrades!GE609 -> 77.54281436
C16: Green = Wood
C17: Blue = Hydro
C18: Red = Natural Gas

Sheet Wind PPA Analysis
A1: Wind Analysis
B2: 2018 | C2: 2019 | D2: 2020 | E2: 2021 | F2: 2022 | G2: 2023 | H2: 2024 | I2: 2025 | J2: 2026 | K2: 2027 | L2: 2028 | M2: 2029 | N2: 2030 | O2: 2031 | P2: 2032 | Q2: 2033 | R2: 2034 | S2: 2035 | T2: 2036 | U2: 2037 | V2: 2038 | W2: 2039 | X2: 2040 | Y2: 2041 | Z2: 2042 | AA2: 2043 | AB2: 2044 | AC2: 2045 | AD2: 2046 | AE2: 2047 | AF2: 2048 | AG2: 2049 | AH2: 2050 | AI2: 2051 | AJ2: 2052 | AK2: 2053 | AL2: 2054 | AM2: 2055 | AN2: 2056 | AO2: 2057 | AP2: 2058 | AQ2: 2059 | AR2: 2060 | AS2: 2061 | AT2: 2062
A3: PTC Value | B3: 24 | C3: =B3*1.02 -> 24.48 | D3: =C3*1.02 -> 24.9696 | E3: 25.468992 | F3: 25.97837184 | G3: 26.49793928 | H3: 27.02789806 | I3: 27.56845602 | J3: 28.11982514 | K3: 28.68222165 | L3: 29.25586608 | M3: 29.8409834 | N3: 30.43780307 | O3: 31.04655913 | P3: 31.66749031 | Q3: 32.30084012 | R3: 32.94685692 | S3: 33.60579406 | T3: 34.27790994 | U3: 34.96346814 | V3: 35.6627375 | W3: 36.37599225 | X3: =W3*1.02 -> 37.1035121 | Y3: 37.84558234 | Z3: 38.60249399 | AA3: 39.37454387 | AB3: 40.16203474 | AC3: 40.96527544 | AD3: 41.78458095 | AE3: 42.62027257 | AF3: 43.47267802 | AG3: 44.34213158 | AH3: 45.22897421 | AI3: 46.13355369 | AJ3: 47.05622477 | AK3: 47.99734926 | AL3: 48.95729625 | AM3: 49.93644217 | AN3: 50.93517102 | AO3: 51.95387444 | AP3: 52.99295193 | AQ3: 54.05281097 | AR3: 55.13386718 | AS3: 56.23654453 | AT3: 57.36127542
A4: PTC % of Value | D4: 1 | E4: 1 | F4: 0.8 | G4: 0.6 | H4: 0.4 | I4: 0
C5: 5yr MACRES | D5: 0.2 | E5: 0.32 | F5: 0.192 | G5: 0.1152 | H5: 0.1152 | I5: 0.0576
A6: Discount Rate | B6: 0.08
A7: Fed Tax Rate | B7: 0.21
A8: Debt Rate | B8: 0.05
A9: Property Tax | B9: 0.01
A10: Tax Equity Return | B10: 0.07 | D10: =D14/8760 -> 37.444
C11: 0 | D11: 1 | E11: 2 | F11: 3 | G11: 4 | H11: 5 | I11: 6 | J11: 7 | K11: 8 | L11: 9 | M11: 10 | N11: 11 | O11: 12 | P11: 13 | Q11: 14 | R11: 15 | S11: 16 | T11: 17 | U11: 18 | V11: 19 | W11: 20 | X11: Future PV | AC11: 0 | AD11: 1 | AE11: 2 | AF11: 3 | AG11: 4 | AH11: 5 | AI11: 6 | AJ11: 7 | AK11: 8 | AL11: 9 | AM11: 10 | AN11: 11 | AO11: 12 | AP11: 13 | AQ11: 14 | AR11: 15 | AS11: 16 | AT11: 17 | AU11: 18 | AV11: 19 | AW11: 20 | AX11: Future PV | BC11: 0 | BD11: 1 | BE11: 2 | BF11: 3 | BG11: 4 | BH11: 5 | BI11: 6 | BJ11: 7 | BK11: 8 | BL11: 9 | BM11: 10 | BN11: 11 | BO11: 12 | BP11: 13 | BQ11: 14 | BR11: 15 | BS11: 16 | BT11: 17 | BU11: 18 | BV11: 19 | BW11: 20 | BX11: Future PV | CC11: 0 | CD11: 1 | CE11: 2 | CF11: 3 | CG11: 4 | CH11: 5 | CI11: 6 | CJ11: 7 | CK11: 8 | CL11: 9 | CM11: 10 | CN11: 11 | CO11: 12 | CP11: 13 | CQ11: 14 | CR11: 15 | CS11: 16 | CT11: 17 | CU11: 18 | CV11: 19 | CW11: 20 | CX11: Future PV
B12: 2020 On-System Wind | AB12: 2020 Off-System Wind | BB12: 2020 Mt Wind | CB12: 2020 Off Shore Wind
B13: Year | D13: 2020 | E13: =D13+1 -> 2021 | F13: =E13+1 -> 2022 | G13: 2023 | H13: 2024 | I13: 2025 | J13: 2026 | K13: 2027 | L13: 2028 | M13: 2029 | N13: 2030 | O13: 2031 | P13: 2032 | Q13: 2033 | R13: 2034 | S13: 2035 | T13: 2036 | U13: 2037 | V13: 2038 | W13: 2039 | AB13: Year | AD13: 2020 | AE13: =AD13+1 -> 2021 | AF13: =AE13+1 -> 2022 | AG13: 2023 | AH13: 2024 | AI13: 2025 | AJ13: 2026 | AK13: 2027 | AL13: 2028 | AM13: 2029 | AN13: 2030 | AO13: 2031 | AP13: 2032 | AQ13: 2033 | AR13: 2034 | AS13: 2035 | AT13: 2036 | AU13: 2037 | AV13: 2038 | AW13: 2039 | BB13: Year | BD13: 2020 | BE13: =BD13+1 -> 2021 | BF13: =BE13+1 -> 2022 | BG13: 2023 | BH13: 2024 | BI13: 2025 | BJ13: 2026 | BK13: 2027 | BL13: 2028 | BM13: 2029 | BN13: 2030 | BO13: 2031 | BP13: 2032 | BQ13: 2033 | BR13: 2034 | BS13: 2035 | BT13: 2036 | BU13: 2037 | BV13: 2038 | BW13: 2039 | CB13: Year | CD13: 2020 | CE13: =CD13+1 -> 2021 | CF13: =CE13+1 -> 2022 | CG13: 2023 | CH13: 2024 | CI13: 2025 | CJ13: 2026 | CK13: 2027 | CL13: 2028 | CM13: 2029 | CN13: 2030 | CO13: 2031 | CP13: 2032 | CQ13: 2033 | CR13: 2034 | CS13: 2035 | CT13: 2036 | CU13: 2037 | CV13: 2038 | CW13: 2039
B14: MWh | D14: =('Resource Options'!$V$22/100*'Resource Options'!$J$22*8760)*(1+'Resource Options'!$X$22)^($D13-$D$13) -> 328009.44 | E14: ='Resource Options'!$V$23/100*'Resource Options'!$J$22*8760 -> 328009.44 | F14: ='Resource Options'!$V$23/100*'Resource Options'!$J$22*8760 -> 328009.44 | G14: ='Resource Options'!$V$23/100*'Resource Options'!$J$22*8760 -> 328009.44 | H14: ='Resource Options'!$V$23/100*'Resource Options'!$J$22*8760 -> 328009.44 | I14: ='Resource Options'!$V$23/100*'Resource Options'!$J$22*8760 -> 328009.44 | J14: ='Resource Options'!$V$23/100*'Resource Options'!$J$22*8760 -> 328009.44 | K14: ='Resource Options'!$V$23/100*'Resource Options'!$J$22*8760 -> 328009.44 | L14: ='Resource Options'!$V$23/100*'Resource Options'!$J$22*8760 -> 328009.44 | M14: ='Resource Options'!$V$23/100*'Resource Options'!$J$22*8760 -> 328009.44 | N14: ='Resource Options'!$V$23/100*'Resource Options'!$J$22*8760 -> 328009.44 | O14: ='Resource Options'!$V$23/100*'Resource Options'!$J$22*8760 -> 328009.44 | P14: ='Resource Options'!$V$23/100*'Resource Options'!$J$22*8760 -> 328009.44 | Q14: ='Resource Options'!$V$23/100*'Resource Options'!$J$22*8760 -> 328009.44 | R14: ='Resource Options'!$V$23/100*'Resource Options'!$J$22*8760 -> 328009.44 | S14: ='Resource Options'!$V$23/100*'Resource Options'!$J$22*8760 -> 328009.44 | T14: ='Resource Options'!$V$23/100*'Resource Options'!$J$22*8760 -> 328009.44 | U14: ='Resource Options'!$V$23/100*'Resource Options'!$J$22*8760 -> 328009.44 | V14: ='Resource Options'!$V$23/100*'Resource Options'!$J$22*8760 -> 328009.44 | W14: ='Resource Options'!$V$23/100*'Resource Options'!$J$22*8760 -> 328009.44 | AB14: MWh | AD14: =('Resource Options'!$V$23/100*'Resource Options'!$J$23*8760)*(1+'Resource Options'!$X$23)^($AD13-$AD$13) -> 328009.44 | AE14: =('Resource Options'!$V$23/100*'Resource Options'!$J$23*8760)*(1+'Resource Options'!$X$23)^($AD13-$AD$13) -> 328009.44 | AF14: =('Resource Options'!$V$23/100*'Resource Options'!$J$23*8760)*(1+'Resource Options'!$X$23)^($AD13-$AD$13) -> 328009.44 | AG14: =('Resource Options'!$V$23/100*'Resource Options'!$J$23*8760)*(1+'Resource Options'!$X$23)^($AD13-$AD$13) -> 328009.44 | AH14: =('Resource Options'!$V$23/100*'Resource Options'!$J$23*8760)*(1+'Resource Options'!$X$23)^($AD13-$AD$13) -> 328009.44 | AI14: =('Resource Options'!$V$23/100*'Resource Options'!$J$23*8760)*(1+'Resource Options'!$X$23)^($AD13-$AD$13) -> 328009.44 | AJ14: =('Resource Options'!$V$23/100*'Resource Options'!$J$23*8760)*(1+'Resource Options'!$X$23)^($AD13-$AD$13) -> 328009.44 | AK14: =('Resource Options'!$V$23/100*'Resource Options'!$J$23*8760)*(1+'Resource Options'!$X$23)^($AD13-$AD$13) -> 328009.44 | AL14: =('Resource Options'!$V$23/100*'Resource Options'!$J$23*8760)*(1+'Resource Options'!$X$23)^($AD13-$AD$13) -> 328009.44 | AM14: =('Resource Options'!$V$23/100*'Resource Options'!$J$23*8760)*(1+'Resource Options'!$X$23)^($AD13-$AD$13) -> 328009.44 | AN14: =('Resource Options'!$V$23/100*'Resource Options'!$J$23*8760)*(1+'Resource Options'!$X$23)^($AD13-$AD$13) -> 328009.44 | AO14: =('Resource Options'!$V$23/100*'Resource Options'!$J$23*8760)*(1+'Resource Options'!$X$23)^($AD13-$AD$13) -> 328009.44 | AP14: =('Resource Options'!$V$23/100*'Resource Options'!$J$23*8760)*(1+'Resource Options'!$X$23)^($AD13-$AD$13) -> 328009.44 | AQ14: =('Resource Options'!$V$23/100*'Resource Options'!$J$23*8760)*(1+'Resource Options'!$X$23)^($AD13-$AD$13) -> 328009.44 | AR14: =('Resource Options'!$V$23/100*'Resource Options'!$J$23*8760)*(1+'Resource Options'!$X$23)^($AD13-$AD$13) -> 328009.44 | AS14: =('Resource Options'!$V$23/100*'Resource Options'!$J$23*8760)*(1+'Resource Options'!$X$23)^($AD13-$AD$13) -> 328009.44 | AT14: =('Resource Options'!$V$23/100*'Resource Options'!$J$23*8760)*(1+'Resource Options'!$X$23)^($AD13-$AD$13) -> 328009.44 | AU14: =('Resource Options'!$V$23/100*'Resource Options'!$J$23*8760)*(1+'Resource Options'!$X$23)^($AD13-$AD$13) -> 328009.44 | AV14: =('Resource Options'!$V$23/100*'Resource Options'!$J$23*8760)*(1+'Resource Options'!$X$23)^($AD13-$AD$13) -> 328009.44 | AW14: =('Resource Options'!$V$23/100*'Resource Options'!$J$23*8760)*(1+'Resource Options'!$X$23)^($AD13-$AD$13) -> 328009.44 | BB14: MWh | BD14: =('Resource Options'!$V$24/100*'Resource Options'!$J$24*8760)*(1+'Resource Options'!$X$24)^($AD13-$AD$13) -> 425525.76 | BE14: =('Resource Options'!$V$24/100*'Resource Options'!$J$24*8760)*(1+'Resource Options'!$X$24)^($AD13-$AD$13) -> 425525.76 | BF14: =('Resource Options'!$V$24/100*'Resource Options'!$J$24*8760)*(1+'Resource Options'!$X$24)^($AD13-$AD$13) -> 425525.76 | BG14: =('Resource Options'!$V$24/100*'Resource Options'!$J$24*8760)*(1+'Resource Options'!$X$24)^($AD13-$AD$13) -> 425525.76 | BH14: =('Resource Options'!$V$24/100*'Resource Options'!$J$24*8760)*(1+'Resource Options'!$X$24)^($AD13-$AD$13) -> 425525.76 | BI14: =('Resource Options'!$V$24/100*'Resource Options'!$J$24*8760)*(1+'Resource Options'!$X$24)^($AD13-$AD$13) -> 425525.76 | BJ14: =('Resource Options'!$V$24/100*'Resource Options'!$J$24*8760)*(1+'Resource Options'!$X$24)^($AD13-$AD$13) -> 425525.76 | BK14: =('Resource Options'!$V$24/100*'Resource Options'!$J$24*8760)*(1+'Resource Options'!$X$24)^($AD13-$AD$13) -> 425525.76 | BL14: =('Resource Options'!$V$24/100*'Resource Options'!$J$24*8760)*(1+'Resource Options'!$X$24)^($AD13-$AD$13) -> 425525.76 | BM14: =('Resource Options'!$V$24/100*'Resource Options'!$J$24*8760)*(1+'Resource Options'!$X$24)^($AD13-$AD$13) -> 425525.76 | BN14: =('Resource Options'!$V$24/100*'Resource Options'!$J$24*8760)*(1+'Resource Options'!$X$24)^($AD13-$AD$13) -> 425525.76 | BO14: =('Resource Options'!$V$24/100*'Resource Options'!$J$24*8760)*(1+'Resource Options'!$X$24)^($AD13-$AD$13) -> 425525.76 | BP14: =('Resource Options'!$V$24/100*'Resource Options'!$J$24*8760)*(1+'Resource Options'!$X$24)^($AD13-$AD$13) -> 425525.76 | BQ14: =('Resource Options'!$V$24/100*'Resource Options'!$J$24*8760)*(1+'Resource Options'!$X$24)^($AD13-$AD$13) -> 425525.76 | BR14: =('Resource Options'!$V$24/100*'Resource Options'!$J$24*8760)*(1+'Resource Options'!$X$24)^($AD13-$AD$13) -> 425525.76 | BS14: =('Resource Options'!$V$24/100*'Resource Options'!$J$24*8760)*(1+'Resource Options'!$X$24)^($AD13-$AD$13) -> 425525.76 | BT14: =('Resource Options'!$V$24/100*'Resource Options'!$J$24*8760)*(1+'Resource Options'!$X$24)^($AD13-$AD$13) -> 425525.76 | BU14: =('Resource Options'!$V$24/100*'Resource Options'!$J$24*8760)*(1+'Resource Options'!$X$24)^($AD13-$AD$13) -> 425525.76 | BV14: =('Resource Options'!$V$24/100*'Resource Options'!$J$24*8760)*(1+'Resource Options'!$X$24)^($AD13-$AD$13) -> 425525.76 | BW14: =('Resource Options'!$V$24/100*'Resource Options'!$J$24*8760)*(1+'Resource Options'!$X$24)^($AD13-$AD$13) -> 425525.76 | CB14: MWh | CD14: =('Resource Options'!$V$25/100*'Resource Options'!$J$25*8760)*(1+'Resource Options'!$X$25)^($AD13-$AD$13) -> 438000 | CE14: =('Resource Options'!$V$25/100*'Resource Options'!$J$25*8760)*(1+'Resource Options'!$X$25)^($AD13-$AD$13) -> 438000 | CF14: =('Resource Options'!$V$25/100*'Resource Options'!$J$25*8760)*(1+'Resource Options'!$X$25)^($AD13-$AD$13) -> 438000 | CG14: =('Resource Options'!$V$25/100*'Resource Options'!$J$25*8760)*(1+'Resource Options'!$X$25)^($AD13-$AD$13) -> 438000 | CH14: =('Resource Options'!$V$25/100*'Resource Options'!$J$25*8760)*(1+'Resource Options'!$X$25)^($AD13-$AD$13) -> 438000 | CI14: =('Resource Options'!$V$25/100*'Resource Options'!$J$25*8760)*(1+'Resource Options'!$X$25)^($AD13-$AD$13) -> 438000 | CJ14: =('Resource Options'!$V$25/100*'Resource Options'!$J$25*8760)*(1+'Resource Options'!$X$25)^($AD13-$AD$13) -> 438000 | CK14: =('Resource Options'!$V$25/100*'Resource Options'!$J$25*8760)*(1+'Resource Options'!$X$25)^($AD13-$AD$13) -> 438000 | CL14: =('Resource Options'!$V$25/100*'Resource Options'!$J$25*8760)*(1+'Resource Options'!$X$25)^($AD13-$AD$13) -> 438000 | CM14: =('Resource Options'!$V$25/100*'Resource Options'!$J$25*8760)*(1+'Resource Options'!$X$25)^($AD13-$AD$13) -> 438000 | CN14: =('Resource Options'!$V$25/100*'Resource Options'!$J$25*8760)*(1+'Resource Options'!$X$25)^($AD13-$AD$13) -> 438000 | CO14: =('Resource Options'!$V$25/100*'Resource Options'!$J$25*8760)*(1+'Resource Options'!$X$25)^($AD13-$AD$13) -> 438000 | CP14: =('Resource Options'!$V$25/100*'Resource Options'!$J$25*8760)*(1+'Resource Options'!$X$25)^($AD13-$AD$13) -> 438000 | CQ14: =('Resource Options'!$V$25/100*'Resource Options'!$J$25*8760)*(1+'Resource Options'!$X$25)^($AD13-$AD$13) -> 438000 | CR14: =('Resource Options'!$V$25/100*'Resource Options'!$J$25*8760)*(1+'Resource Options'!$X$25)^($AD13-$AD$13) -> 438000 | CS14: =('Resource Options'!$V$25/100*'Resource Options'!$J$25*8760)*(1+'Resource Options'!$X$25)^($AD13-$AD$13) -> 438000 | CT14: =('Resource Options'!$V$25/100*'Resource Options'!$J$25*8760)*(1+'Resource Options'!$X$25)^($AD13-$AD$13) -> 438000 | CU14: =('Resource Options'!$V$25/100*'Resource Options'!$J$25*8760)*(1+'Resource Options'!$X$25)^($AD13-$AD$13) -> 438000 | CV14: =('Resource Options'!$V$25/100*'Resource Options'!$J$25*8760)*(1+'Resource Options'!$X$25)^($AD13-$AD$13) -> 438000 | CW14: =('Resource Options'!$V$25/100*'Resource Options'!$J$25*8760)*(1+'Resource Options'!$X$25)^($AD13-$AD$13) -> 438000
B15: PPA Rate ($/MWh) | D15: ='PPA Summary'!M4 -> 33.93850994 | E15: =D15 -> 33.93850994 | F15: =E15 -> 33.93850994 | G15: 33.93850994 | H15: 33.93850994 | I15: 33.93850994 | J15: 33.93850994 | K15: 33.93850994 | L15: 33.93850994 | M15: 33.93850994 | N15: 33.93850994 | O15: 33.93850994 | P15: 33.93850994 | Q15: 33.93850994 | R15: 33.93850994 | S15: 33.93850994 | T15: 33.93850994 | U15: 33.93850994 | V15: 33.93850994 | W15: 33.93850994 | AB15: PPA Rate ($/MWh) | AD15: ='PPA Summary'!P4 -> 29.92588804 | AE15: =AD15 -> 29.92588804 | AF15: =AE15 -> 29.92588804 | AG15: 29.92588804 | AH15: 29.92588804 | AI15: 29.92588804 | AJ15: 29.92588804 | AK15: 29.92588804 | AL15: 29.92588804 | AM15: 29.92588804 | AN15: 29.92588804 | AO15: 29.92588804 | AP15: 29.92588804 | AQ15: 29.92588804 | AR15: 29.92588804 | AS15: 29.92588804 | AT15: 29.92588804 | AU15: 29.92588804 | AV15: 29.92588804 | AW15: 29.92588804 | BB15: PPA Rate ($/MWh) | BD15: ='PPA Summary'!$S$4 -> 17.19198901 | BE15: =BD15 -> 17.19198901 | BF15: =BE15 -> 17.19198901 | BG15: 17.19198901 | BH15: 17.19198901 | BI15: 17.19198901 | BJ15: 17.19198901 | BK15: 17.19198901 | BL15: 17.19198901 | BM15: 17.19198901 | BN15: 17.19198901 | BO15: 17.19198901 | BP15: 17.19198901 | BQ15: 17.19198901 | BR15: 17.19198901 | BS15: 17.19198901 | BT15: 17.19198901 | BU15: 17.19198901 | BV15: 17.19198901 | BW15: 17.19198901 | CB15: PPA Rate ($/MWh) | CD15: ='PPA Summary'!V4 -> 84.54703997 | CE15: =CD15 -> 84.54703997 | CF15: =CE15 -> 84.54703997 | CG15: 84.54703997 | CH15: 84.54703997 | CI15: 84.54703997 | CJ15: 84.54703997 | CK15: 84.54703997 | CL15: 84.54703997 | CM15: 84.54703997 | CN15: 84.54703997 | CO15: 84.54703997 | CP15: 84.54703997 | CQ15: 84.54703997 | CR15: 84.54703997 | CS15: 84.54703997 | CT15: 84.54703997 | CU15: 84.54703997 | CV15: 84.54703997 | CW15: 84.54703997
B16: Revenue | D16: =D15*D14 -> 11132151.64 | E16: =E15*E14 -> 11132151.64 | F16: 11132151.64 | G16: 11132151.64 | H16: 11132151.64 | I16: 11132151.64 | J16: 11132151.64 | K16: 11132151.64 | L16: 11132151.64 | M16: 11132151.64 | N16: 11132151.64 | O16: 11132151.64 | P16: 11132151.64 | Q16: 11132151.64 | R16: 11132151.64 | S16: 11132151.64 | T16: 11132151.64 | U16: 11132151.64 | V16: 11132151.64 | W16: 11132151.64 | AB16: Revenue | AD16: =AD15*AD14 -> 9815973.778 | AE16: =AE15*AE14 -> 9815973.778 | AF16: =AF15*AF14 -> 9815973.778 | AG16: =AG15*AG14 -> 9815973.778 | AH16: =AH15*AH14 -> 9815973.778 | AI16: =AI15*AI14 -> 9815973.778 | AJ16: =AJ15*AJ14 -> 9815973.778 | AK16: =AK15*AK14 -> 9815973.778 | AL16: =AL15*AL14 -> 9815973.778 | AM16: =AM15*AM14 -> 9815973.778 | AN16: =AN15*AN14 -> 9815973.778 | AO16: =AO15*AO14 -> 9815973.778 | AP16: =AP15*AP14 -> 9815973.778 | AQ16: =AQ15*AQ14 -> 9815973.778 | AR16: =AR15*AR14 -> 9815973.778 | AS16: =AS15*AS14 -> 9815973.778 | AT16: =AT15*AT14 -> 9815973.778 | AU16: =AU15*AU14 -> 9815973.778 | AV16: =AV15*AV14 -> 9815973.778 | AW16: =AW15*AW14 -> 9815973.778 | BB16: Revenue | BD16: =BD15*BD14 -> 7315634.189 | BE16: =BE15*BE14 -> 7315634.189 | BF16: =BF15*BF14 -> 7315634.189 | BG16: =BG15*BG14 -> 7315634.189 | BH16: =BH15*BH14 -> 7315634.189 | BI16: =BI15*BI14 -> 7315634.189 | BJ16: =BJ15*BJ14 -> 7315634.189 | BK16: =BK15*BK14 -> 7315634.189 | BL16: =BL15*BL14 -> 7315634.189 | BM16: =BM15*BM14 -> 7315634.189 | BN16: =BN15*BN14 -> 7315634.189 | BO16: =BO15*BO14 -> 7315634.189 | BP16: =BP15*BP14 -> 7315634.189 | BQ16: =BQ15*BQ14 -> 7315634.189 | BR16: =BR15*BR14 -> 7315634.189 | BS16: =BS15*BS14 -> 7315634.189 | BT16: =BT15*BT14 -> 7315634.189 | BU16: =BU15*BU14 -> 7315634.189 | BV16: =BV15*BV14 -> 7315634.189 | BW16: =BW15*BW14 -> 7315634.189 | CB16: Revenue | CD16: =CD15*CD14 -> 37031603.51 | CE16: =CE15*CE14 -> 37031603.51 | CF16: =CF15*CF14 -> 37031603.51 | CG16: =CG15*CG14 -> 37031603.51 | CH16: =CH15*CH14 -> 37031603.51 | CI16: =CI15*CI14 -> 37031603.51 | CJ16: =CJ15*CJ14 -> 37031603.51 | CK16: =CK15*CK14 -> 37031603.51 | CL16: =CL15*CL14 -> 37031603.51 | CM16: =CM15*CM14 -> 37031603.51 | CN16: =CN15*CN14 -> 37031603.51 | CO16: =CO15*CO14 -> 37031603.51 | CP16: =CP15*CP14 -> 37031603.51 | CQ16: =CQ15*CQ14 -> 37031603.51 | CR16: =CR15*CR14 -> 37031603.51 | CS16: =CS15*CS14 -> 37031603.51 | CT16: =CT15*CT14 -> 37031603.51 | CU16: =CU15*CU14 -> 37031603.51 | CV16: =CV15*CV14 -> 37031603.51 | CW16: =CW15*CW14 -> 37031603.51
B18: Fixed O&M | D18: =HLOOKUP(D13,'Fixed O&M'!$C$4:$AU$49,ROW('Fixed O&M'!$B$20)-ROW('Fixed O&M'!$B$4)+1,FALSE)*'Resource Options'!$J$22*1000 -> 3685096.8 | E18: =HLOOKUP(E13,'Fixed O&M'!$C$4:$AU$49,ROW('Fixed O&M'!$B$20)-ROW('Fixed O&M'!$B$4)+1,FALSE)*'Resource Options'!$J$22*1000 -> 3758798.736 | F18: =HLOOKUP(F13,'Fixed O&M'!$C$4:$AU$49,ROW('Fixed O&M'!$B$20)-ROW('Fixed O&M'!$B$4)+1,FALSE)*'Resource Options'!$J$22*1000 -> 3833974.711 | G18: =HLOOKUP(G13,'Fixed O&M'!$C$4:$AU$49,ROW('Fixed O&M'!$B$20)-ROW('Fixed O&M'!$B$4)+1,FALSE)*'Resource Options'!$J$22*1000 -> 3910654.205 | H18: =HLOOKUP(H13,'Fixed O&M'!$C$4:$AU$49,ROW('Fixed O&M'!$B$20)-ROW('Fixed O&M'!$B$4)+1,FALSE)*'Resource Options'!$J$22*1000 -> 3988867.289 | I18: =HLOOKUP(I13,'Fixed O&M'!$C$4:$AU$49,ROW('Fixed O&M'!$B$20)-ROW('Fixed O&M'!$B$4)+1,FALSE)*'Resource Options'!$J$22*1000 -> 4068644.635 | J18: =HLOOKUP(J13,'Fixed O&M'!$C$4:$AU$49,ROW('Fixed O&M'!$B$20)-ROW('Fixed O&M'!$B$4)+1,FALSE)*'Resource Options'!$J$22*1000 -> 4150017.528 | K18: =HLOOKUP(K13,'Fixed O&M'!$C$4:$AU$49,ROW('Fixed O&M'!$B$20)-ROW('Fixed O&M'!$B$4)+1,FALSE)*'Resource Options'!$J$22*1000 -> 4233017.878 | L18: =HLOOKUP(L13,'Fixed O&M'!$C$4:$AU$49,ROW('Fixed O&M'!$B$20)-ROW('Fixed O&M'!$B$4)+1,FALSE)*'Resource Options'!$J$22*1000 -> 4317678.236 | M18: =HLOOKUP(M13,'Fixed O&M'!$C$4:$AU$49,ROW('Fixed O&M'!$B$20)-ROW('Fixed O&M'!$B$4)+1,FALSE)*'Resource Options'!$J$22*1000 -> 4404031.8 | N18: =HLOOKUP(N13,'Fixed O&M'!$C$4:$AU$49,ROW('Fixed O&M'!$B$20)-ROW('Fixed O&M'!$B$4)+1,FALSE)*'Resource Options'!$J$22*1000 -> 4492112.436 | O18: =HLOOKUP(O13,'Fixed O&M'!$C$4:$AU$49,ROW('Fixed O&M'!$B$20)-ROW('Fixed O&M'!$B$4)+1,FALSE)*'Resource Options'!$J$22*1000 -> 4581954.685 | P18: =HLOOKUP(P13,'Fixed O&M'!$C$4:$AU$49,ROW('Fixed O&M'!$B$20)-ROW('Fixed O&M'!$B$4)+1,FALSE)*'Resource Options'!$J$22*1000 -> 4673593.779 | Q18: =HLOOKUP(Q13,'Fixed O&M'!$C$4:$AU$49,ROW('Fixed O&M'!$B$20)-ROW('Fixed O&M'!$B$4)+1,FALSE)*'Resource Options'!$J$22*1000 -> 4767065.654 | R18: =HLOOKUP(R13,'Fixed O&M'!$C$4:$AU$49,ROW('Fixed O&M'!$B$20)-ROW('Fixed O&M'!$B$4)+1,FALSE)*'Resource Options'!$J$22*1000 -> 4862406.967 | S18: =HLOOKUP(S13,'Fixed O&M'!$C$4:$AU$49,ROW('Fixed O&M'!$B$20)-ROW('Fixed O&M'!$B$4)+1,FALSE)*'Resource Options'!$J$22*1000 -> 4959655.107 | T18: =HLOOKUP(T13,'Fixed O&M'!$C$4:$AU$49,ROW('Fixed O&M'!$B$20)-ROW('Fixed O&M'!$B$4)+1,FALSE)*'Resource Options'!$J$22*1000 -> 5058848.209 | U18: =HLOOKUP(U13,'Fixed O&M'!$C$4:$AU$49,ROW('Fixed O&M'!$B$20)-ROW('Fixed O&M'!$B$4)+1,FALSE)*'Resource Options'!$J$22*1000 -> 5160025.173 | V18: =HLOOKUP(V13,'Fixed O&M'!$C$4:$AU$49,ROW('Fixed O&M'!$B$20)-ROW('Fixed O&M'!$B$4)+1,FALSE)*'Resource Options'!$J$22*1000 -> 5263225.677 | W18: =HLOOKUP(W13,'Fixed O&M'!$C$4:$AU$49,ROW('Fixed O&M'!$B$20)-ROW('Fixed O&M'!$B$4)+1,FALSE)*'Resource Options'!$J$22*1000 -> 5368490.19 | AB18: Fixed O&M | AD18: =HLOOKUP(AD13,'Fixed O&M'!$C$4:$AU$49,ROW('Fixed O&M'!$B$21)-ROW('Fixed O&M'!$B$4)+1,FALSE)*'Resource Options'!$J$22*1000 -> 3685096.8 | AE18: =HLOOKUP(AE13,'Fixed O&M'!$C$4:$AU$49,ROW('Fixed O&M'!$B$21)-ROW('Fixed O&M'!$B$4)+1,FALSE)*'Resource Options'!$J$22*1000 -> 3758798.736 | AF18: =HLOOKUP(AF13,'Fixed O&M'!$C$4:$AU$49,ROW('Fixed O&M'!$B$21)-ROW('Fixed O&M'!$B$4)+1,FALSE)*'Resource Options'!$J$22*1000 -> 3833974.711 | AG18: =HLOOKUP(AG13,'Fixed O&M'!$C$4:$AU$49,ROW('Fixed O&M'!$B$21)-ROW('Fixed O&M'!$B$4)+1,FALSE)*'Resource Options'!$J$22*1000 -> 3910654.205 | AH18: =HLOOKUP(AH13,'Fixed O&M'!$C$4:$AU$49,ROW('Fixed O&M'!$B$21)-ROW('Fixed O&M'!$B$4)+1,FALSE)*'Resource Options'!$J$22*1000 -> 3988867.289 | AI18: =HLOOKUP(AI13,'Fixed O&M'!$C$4:$AU$49,ROW('Fixed O&M'!$B$21)-ROW('Fixed O&M'!$B$4)+1,FALSE)*'Resource Options'!$J$22*1000 -> 4068644.635 | AJ18: =HLOOKUP(AJ13,'Fixed O&M'!$C$4:$AU$49,ROW('Fixed O&M'!$B$21)-ROW('Fixed O&M'!$B$4)+1,FALSE)*'Resource Options'!$J$22*1000 -> 4150017.528 | AK18: =HLOOKUP(AK13,'Fixed O&M'!$C$4:$AU$49,ROW('Fixed O&M'!$B$21)-ROW('Fixed O&M'!$B$4)+1,FALSE)*'Resource Options'!$J$22*1000 -> 4233017.878 | AL18: =HLOOKUP(AL13,'Fixed O&M'!$C$4:$AU$49,ROW('Fixed O&M'!$B$21)-ROW('Fixed O&M'!$B$4)+1,FALSE)*'Resource Options'!$J$22*1000 -> 4317678.236 | AM18: =HLOOKUP(AM13,'Fixed O&M'!$C$4:$AU$49,ROW('Fixed O&M'!$B$21)-ROW('Fixed O&M'!$B$4)+1,FALSE)*'Resource Options'!$J$22*1000 -> 4404031.8 | AN18: =HLOOKUP(AN13,'Fixed O&M'!$C$4:$AU$49,ROW('Fixed O&M'!$B$21)-ROW('Fixed O&M'!$B$4)+1,FALSE)*'Resource Options'!$J$22*1000 -> 4492112.436 | AO18: =HLOOKUP(AO13,'Fixed O&M'!$C$4:$AU$49,ROW('Fixed O&M'!$B$21)-ROW('Fixed O&M'!$B$4)+1,FALSE)*'Resource Options'!$J$22*1000 -> 4581954.685 | AP18: =HLOOKUP(AP13,'Fixed O&M'!$C$4:$AU$49,ROW('Fixed O&M'!$B$21)-ROW('Fixed O&M'!$B$4)+1,FALSE)*'Resource Options'!$J$22*1000 -> 4673593.779 | AQ18: =HLOOKUP(AQ13,'Fixed O&M'!$C$4:$AU$49,ROW('Fixed O&M'!$B$21)-ROW('Fixed O&M'!$B$4)+1,FALSE)*'Resource Options'!$J$22*1000 -> 4767065.654 | AR18: =HLOOKUP(AR13,'Fixed O&M'!$C$4:$AU$49,ROW('Fixed O&M'!$B$21)-ROW('Fixed O&M'!$B$4)+1,FALSE)*'Resource Options'!$J$22*1000 -> 4862406.967 | AS18: =HLOOKUP(AS13,'Fixed O&M'!$C$4:$AU$49,ROW('Fixed O&M'!$B$21)-ROW('Fixed O&M'!$B$4)+1,FALSE)*'Resource Options'!$J$22*1000 -> 4959655.107 | AT18: =HLOOKUP(AT13,'Fixed O&M'!$C$4:$AU$49,ROW('Fixed O&M'!$B$21)-ROW('Fixed O&M'!$B$4)+1,FALSE)*'Resource Options'!$J$22*1000 -> 5058848.209 | AU18: =HLOOKUP(AU13,'Fixed O&M'!$C$4:$AU$49,ROW('Fixed O&M'!$B$21)-ROW('Fixed O&M'!$B$4)+1,FALSE)*'Resource Options'!$J$22*1000 -> 5160025.173 | AV18: =HLOOKUP(AV13,'Fixed O&M'!$C$4:$AU$49,ROW('Fixed O&M'!$B$21)-ROW('Fixed O&M'!$B$4)+1,FALSE)*'Resource Options'!$J$22*1000 -> 5263225.677 | AW18: =HLOOKUP(AW13,'Fixed O&M'!$C$4:$AU$49,ROW('Fixed O&M'!$B$21)-ROW('Fixed O&M'!$B$4)+1,FALSE)*'Resource Options'!$J$22*1000 -> 5368490.19 | BB18: Fixed O&M | BD18: =HLOOKUP(BD13,'Fixed O&M'!$C$4:$AU$49,ROW('Fixed O&M'!$B$22)-ROW('Fixed O&M'!$B$4)+1,FALSE)*'Resource Options'!$J$22*1000 -> 3685096.8 | BE18: =HLOOKUP(BE13,'Fixed O&M'!$C$4:$AU$49,ROW('Fixed O&M'!$B$22)-ROW('Fixed O&M'!$B$4)+1,FALSE)*'Resource Options'!$J$22*1000 -> 3758798.736 | BF18: =HLOOKUP(BF13,'Fixed O&M'!$C$4:$AU$49,ROW('Fixed O&M'!$B$22)-ROW('Fixed O&M'!$B$4)+1,FALSE)*'Resource Options'!$J$22*1000 -> 3833974.711 | BG18: =HLOOKUP(BG13,'Fixed O&M'!$C$4:$AU$49,ROW('Fixed O&M'!$B$22)-ROW('Fixed O&M'!$B$4)+1,FALSE)*'Resource Options'!$J$22*1000 -> 3910654.205 | BH18: =HLOOKUP(BH13,'Fixed O&M'!$C$4:$AU$49,ROW('Fixed O&M'!$B$22)-ROW('Fixed O&M'!$B$4)+1,FALSE)*'Resource Options'!$J$22*1000 -> 3988867.289 | BI18: =HLOOKUP(BI13,'Fixed O&M'!$C$4:$AU$49,ROW('Fixed O&M'!$B$22)-ROW('Fixed O&M'!$B$4)+1,FALSE)*'Resource Options'!$J$22*1000 -> 4068644.635 | BJ18: =HLOOKUP(BJ13,'Fixed O&M'!$C$4:$AU$49,ROW('Fixed O&M'!$B$22)-ROW('Fixed O&M'!$B$4)+1,FALSE)*'Resource Options'!$J$22*1000 -> 4150017.528 | BK18: =HLOOKUP(BK13,'Fixed O&M'!$C$4:$AU$49,ROW('Fixed O&M'!$B$22)-ROW('Fixed O&M'!$B$4)+1,FALSE)*'Resource Options'!$J$22*1000 -> 4233017.878 | BL18: =HLOOKUP(BL13,'Fixed O&M'!$C$4:$AU$49,ROW('Fixed O&M'!$B$22)-ROW('Fixed O&M'!$B$4)+1,FALSE)*'Resource Options'!$J$22*1000 -> 4317678.236 | BM18: =HLOOKUP(BM13,'Fixed O&M'!$C$4:$AU$49,ROW('Fixed O&M'!$B$22)-ROW('Fixed O&M'!$B$4)+1,FALSE)*'Resource Options'!$J$22*1000 -> 4404031.8 | BN18: =HLOOKUP(BN13,'Fixed O&M'!$C$4:$AU$49,ROW('Fixed O&M'!$B$22)-ROW('Fixed O&M'!$B$4)+1,FALSE)*'Resource Options'!$J$22*1000 -> 4492112.436 | BO18: =HLOOKUP(BO13,'Fixed O&M'!$C$4:$AU$49,ROW('Fixed O&M'!$B$22)-ROW('Fixed O&M'!$B$4)+1,FALSE)*'Resource Options'!$J$22*1000 -> 4581954.685 | BP18: =HLOOKUP(BP13,'Fixed O&M'!$C$4:$AU$49,ROW('Fixed O&M'!$B$22)-ROW('Fixed O&M'!$B$4)+1,FALSE)*'Resource Options'!$J$22*1000 -> 4673593.779 | BQ18: =HLOOKUP(BQ13,'Fixed O&M'!$C$4:$AU$49,ROW('Fixed O&M'!$B$22)-ROW('Fixed O&M'!$B$4)+1,FALSE)*'Resource Options'!$J$22*1000 -> 4767065.654 | BR18: =HLOOKUP(BR13,'Fixed O&M'!$C$4:$AU$49,ROW('Fixed O&M'!$B$22)-ROW('Fixed O&M'!$B$4)+1,FALSE)*'Resource Options'!$J$22*1000 -> 4862406.967 | BS18: =HLOOKUP(BS13,'Fixed O&M'!$C$4:$AU$49,ROW('Fixed O&M'!$B$22)-ROW('Fixed O&M'!$B$4)+1,FALSE)*'Resource Options'!$J$22*1000 -> 4959655.107 | BT18: =HLOOKUP(BT13,'Fixed O&M'!$C$4:$AU$49,ROW('Fixed O&M'!$B$22)-ROW('Fixed O&M'!$B$4)+1,FALSE)*'Resource Options'!$J$22*1000 -> 5058848.209 | BU18: =HLOOKUP(BU13,'Fixed O&M'!$C$4:$AU$49,ROW('Fixed O&M'!$B$22)-ROW('Fixed O&M'!$B$4)+1,FALSE)*'Resource Options'!$J$22*1000 -> 5160025.173 | BV18: =HLOOKUP(BV13,'Fixed O&M'!$C$4:$AU$49,ROW('Fixed O&M'!$B$22)-ROW('Fixed O&M'!$B$4)+1,FALSE)*'Resource Options'!$J$22*1000 -> 5263225.677 | BW18: =HLOOKUP(BW13,'Fixed O&M'!$C$4:$AU$49,ROW('Fixed O&M'!$B$22)-ROW('Fixed O&M'!$B$4)+1,FALSE)*'Resource Options'!$J$22*1000 -> 5368490.19 | CB18: Fixed O&M | CD18: =HLOOKUP(CD13,'Fixed O&M'!$C$4:$AU$49,ROW('Fixed O&M'!$B$23)-ROW('Fixed O&M'!$B$4)+1,FALSE)*'Resource Options'!$J$25*1000 -> 9363600 | CE18: =HLOOKUP(CE13,'Fixed O&M'!$C$4:$AU$49,ROW('Fixed O&M'!$B$23)-ROW('Fixed O&M'!$B$4)+1,FALSE)*'Resource Options'!$J$25*1000 -> 9550872 | CF18: =HLOOKUP(CF13,'Fixed O&M'!$C$4:$AU$49,ROW('Fixed O&M'!$B$23)-ROW('Fixed O&M'!$B$4)+1,FALSE)*'Resource Options'!$J$25*1000 -> 9741889.44 | CG18: =HLOOKUP(CG13,'Fixed O&M'!$C$4:$AU$49,ROW('Fixed O&M'!$B$23)-ROW('Fixed O&M'!$B$4)+1,FALSE)*'Resource Options'!$J$25*1000 -> 9936727.229 | CH18: =HLOOKUP(CH13,'Fixed O&M'!$C$4:$AU$49,ROW('Fixed O&M'!$B$23)-ROW('Fixed O&M'!$B$4)+1,FALSE)*'Resource Options'!$J$25*1000 -> 10135461.77 | CI18: =HLOOKUP(CI13,'Fixed O&M'!$C$4:$AU$49,ROW('Fixed O&M'!$B$23)-ROW('Fixed O&M'!$B$4)+1,FALSE)*'Resource Options'!$J$25*1000 -> 10338171.01 | CJ18: =HLOOKUP(CJ13,'Fixed O&M'!$C$4:$AU$49,ROW('Fixed O&M'!$B$23)-ROW('Fixed O&M'!$B$4)+1,FALSE)*'Resource Options'!$J$25*1000 -> 10544934.43 | CK18: =HLOOKUP(CK13,'Fixed O&M'!$C$4:$AU$49,ROW('Fixed O&M'!$B$23)-ROW('Fixed O&M'!$B$4)+1,FALSE)*'Resource Options'!$J$25*1000 -> 10755833.12 | CL18: =HLOOKUP(CL13,'Fixed O&M'!$C$4:$AU$49,ROW('Fixed O&M'!$B$23)-ROW('Fixed O&M'!$B$4)+1,FALSE)*'Resource Options'!$J$25*1000 -> 10970949.78 | CM18: =HLOOKUP(CM13,'Fixed O&M'!$C$4:$AU$49,ROW('Fixed O&M'!$B$23)-ROW('Fixed O&M'!$B$4)+1,FALSE)*'Resource Options'!$J$25*1000 -> 11190368.78 | CN18: =HLOOKUP(CN13,'Fixed O&M'!$C$4:$AU$49,ROW('Fixed O&M'!$B$23)-ROW('Fixed O&M'!$B$4)+1,FALSE)*'Resource Options'!$J$25*1000 -> 11414176.15 | CO18: =HLOOKUP(CO13,'Fixed O&M'!$C$4:$AU$49,ROW('Fixed O&M'!$B$23)-ROW('Fixed O&M'!$B$4)+1,FALSE)*'Resource Options'!$J$25*1000 -> 11642459.67 | CP18: =HLOOKUP(CP13,'Fixed O&M'!$C$4:$AU$49,ROW('Fixed O&M'!$B$23)-ROW('Fixed O&M'!$B$4)+1,FALSE)*'Resource Options'!$J$25*1000 -> 11875308.87 | CQ18: =HLOOKUP(CQ13,'Fixed O&M'!$C$4:$AU$49,ROW('Fixed O&M'!$B$23)-ROW('Fixed O&M'!$B$4)+1,FALSE)*'Resource Options'!$J$25*1000 -> 12112815.04 | CR18: =HLOOKUP(CR13,'Fixed O&M'!$C$4:$AU$49,ROW('Fixed O&M'!$B$23)-ROW('Fixed O&M'!$B$4)+1,FALSE)*'Resource Options'!$J$25*1000 -> 12355071.35 | CS18: =HLOOKUP(CS13,'Fixed O&M'!$C$4:$AU$49,ROW('Fixed O&M'!$B$23)-ROW('Fixed O&M'!$B$4)+1,FALSE)*'Resource Options'!$J$25*1000 -> 12602172.77 | CT18: =HLOOKUP(CT13,'Fixed O&M'!$C$4:$AU$49,ROW('Fixed O&M'!$B$23)-ROW('Fixed O&M'!$B$4)+1,FALSE)*'Resource Options'!$J$25*1000 -> 12854216.23 | CU18: =HLOOKUP(CU13,'Fixed O&M'!$C$4:$AU$49,ROW('Fixed O&M'!$B$23)-ROW('Fixed O&M'!$B$4)+1,FALSE)*'Resource Options'!$J$25*1000 -> 13111300.55 | CV18: =HLOOKUP(CV13,'Fixed O&M'!$C$4:$AU$49,ROW('Fixed O&M'!$B$23)-ROW('Fixed O&M'!$B$4)+1,FALSE)*'Resource Options'!$J$25*1000 -> 13373526.56 | CW18: =HLOOKUP(CW13,'Fixed O&M'!$C$4:$AU$49,ROW('Fixed O&M'!$B$23)-ROW('Fixed O&M'!$B$4)+1,FALSE)*'Resource Options'!$J$25*1000 -> 13640997.1
B19: Variable O&M | D19: =HLOOKUP(D13,'Variable O&M'!$B$4:$AT$49,ROW('Variable O&M'!$A$20)-ROW('Variable O&M'!$A$4)+1,FALSE)*D14 -> 0 | E19: =HLOOKUP(E13,'Variable O&M'!$B$4:$AT$49,ROW('Variable O&M'!$A$20)-ROW('Variable O&M'!$A$4)+1,FALSE)*E14 -> 0 | F19: =HLOOKUP(F13,'Variable O&M'!$B$4:$AT$49,ROW('Variable O&M'!$A$20)-ROW('Variable O&M'!$A$4)+1,FALSE)*F14 -> 0 | G19: =HLOOKUP(G13,'Variable O&M'!$B$4:$AT$49,ROW('Variable O&M'!$A$20)-ROW('Variable O&M'!$A$4)+1,FALSE)*G14 -> 0 | H19: =HLOOKUP(H13,'Variable O&M'!$B$4:$AT$49,ROW('Variable O&M'!$A$20)-ROW('Variable O&M'!$A$4)+1,FALSE)*H14 -> 0 | I19: =HLOOKUP(I13,'Variable O&M'!$B$4:$AT$49,ROW('Variable O&M'!$A$20)-ROW('Variable O&M'!$A$4)+1,FALSE)*I14 -> 0 | J19: =HLOOKUP(J13,'Variable O&M'!$B$4:$AT$49,ROW('Variable O&M'!$A$20)-ROW('Variable O&M'!$A$4)+1,FALSE)*J14 -> 0 | K19: =HLOOKUP(K13,'Variable O&M'!$B$4:$AT$49,ROW('Variable O&M'!$A$20)-ROW('Variable O&M'!$A$4)+1,FALSE)*K14 -> 0 | L19: =HLOOKUP(L13,'Variable O&M'!$B$4:$AT$49,ROW('Variable O&M'!$A$20)-ROW('Variable O&M'!$A$4)+1,FALSE)*L14 -> 0 | M19: =HLOOKUP(M13,'Variable O&M'!$B$4:$AT$49,ROW('Variable O&M'!$A$20)-ROW('Variable O&M'!$A$4)+1,FALSE)*M14 -> 0 | N19: =HLOOKUP(N13,'Variable O&M'!$B$4:$AT$49,ROW('Variable O&M'!$A$20)-ROW('Variable O&M'!$A$4)+1,FALSE)*N14 -> 0 | O19: =HLOOKUP(O13,'Variable O&M'!$B$4:$AT$49,ROW('Variable O&M'!$A$20)-ROW('Variable O&M'!$A$4)+1,FALSE)*O14 -> 0 | P19: =HLOOKUP(P13,'Variable O&M'!$B$4:$AT$49,ROW('Variable O&M'!$A$20)-ROW('Variable O&M'!$A$4)+1,FALSE)*P14 -> 0 | Q19: =HLOOKUP(Q13,'Variable O&M'!$B$4:$AT$49,ROW('Variable O&M'!$A$20)-ROW('Variable O&M'!$A$4)+1,FALSE)*Q14 -> 0 | R19: =HLOOKUP(R13,'Variable O&M'!$B$4:$AT$49,ROW('Variable O&M'!$A$20)-ROW('Variable O&M'!$A$4)+1,FALSE)*R14 -> 0 | S19: =HLOOKUP(S13,'Variable O&M'!$B$4:$AT$49,ROW('Variable O&M'!$A$20)-ROW('Variable O&M'!$A$4)+1,FALSE)*S14 -> 0 | T19: =HLOOKUP(T13,'Variable O&M'!$B$4:$AT$49,ROW('Variable O&M'!$A$20)-ROW('Variable O&M'!$A$4)+1,FALSE)*T14 -> 0 | U19: =HLOOKUP(U13,'Variable O&M'!$B$4:$AT$49,ROW('Variable O&M'!$A$20)-ROW('Variable O&M'!$A$4)+1,FALSE)*U14 -> 0 | V19: =HLOOKUP(V13,'Variable O&M'!$B$4:$AT$49,ROW('Variable O&M'!$A$20)-ROW('Variable O&M'!$A$4)+1,FALSE)*V14 -> 0 | W19: =HLOOKUP(W13,'Variable O&M'!$B$4:$AT$49,ROW('Variable O&M'!$A$20)-ROW('Variable O&M'!$A$4)+1,FALSE)*W14 -> 0 | AB19: Variable O&M | AD19: =HLOOKUP(AD13,'Variable O&M'!$B$4:$AT$49,ROW('Variable O&M'!$A$21)-ROW('Variable O&M'!$A$4)+1,FALSE)*AD14 -> 0 | AE19: =HLOOKUP(AE13,'Variable O&M'!$B$4:$AT$49,ROW('Variable O&M'!$A$21)-ROW('Variable O&M'!$A$4)+1,FALSE)*AE14 -> 0 | AF19: =HLOOKUP(AF13,'Variable O&M'!$B$4:$AT$49,ROW('Variable O&M'!$A$21)-ROW('Variable O&M'!$A$4)+1,FALSE)*AF14 -> 0 | AG19: =HLOOKUP(AG13,'Variable O&M'!$B$4:$AT$49,ROW('Variable O&M'!$A$21)-ROW('Variable O&M'!$A$4)+1,FALSE)*AG14 -> 0 | AH19: =HLOOKUP(AH13,'Variable O&M'!$B$4:$AT$49,ROW('Variable O&M'!$A$21)-ROW('Variable O&M'!$A$4)+1,FALSE)*AH14 -> 0 | AI19: =HLOOKUP(AI13,'Variable O&M'!$B$4:$AT$49,ROW('Variable O&M'!$A$21)-ROW('Variable O&M'!$A$4)+1,FALSE)*AI14 -> 0 | AJ19: =HLOOKUP(AJ13,'Variable O&M'!$B$4:$AT$49,ROW('Variable O&M'!$A$21)-ROW('Variable O&M'!$A$4)+1,FALSE)*AJ14 -> 0 | AK19: =HLOOKUP(AK13,'Variable O&M'!$B$4:$AT$49,ROW('Variable O&M'!$A$21)-ROW('Variable O&M'!$A$4)+1,FALSE)*AK14 -> 0 | AL19: =HLOOKUP(AL13,'Variable O&M'!$B$4:$AT$49,ROW('Variable O&M'!$A$21)-ROW('Variable O&M'!$A$4)+1,FALSE)*AL14 -> 0 | AM19: =HLOOKUP(AM13,'Variable O&M'!$B$4:$AT$49,ROW('Variable O&M'!$A$21)-ROW('Variable O&M'!$A$4)+1,FALSE)*AM14 -> 0 | AN19: =HLOOKUP(AN13,'Variable O&M'!$B$4:$AT$49,ROW('Variable O&M'!$A$21)-ROW('Variable O&M'!$A$4)+1,FALSE)*AN14 -> 0 | AO19: =HLOOKUP(AO13,'Variable O&M'!$B$4:$AT$49,ROW('Variable O&M'!$A$21)-ROW('Variable O&M'!$A$4)+1,FALSE)*AO14 -> 0 | AP19: =HLOOKUP(AP13,'Variable O&M'!$B$4:$AT$49,ROW('Variable O&M'!$A$21)-ROW('Variable O&M'!$A$4)+1,FALSE)*AP14 -> 0 | AQ19: =HLOOKUP(AQ13,'Variable O&M'!$B$4:$AT$49,ROW('Variable O&M'!$A$21)-ROW('Variable O&M'!$A$4)+1,FALSE)*AQ14 -> 0 | AR19: =HLOOKUP(AR13,'Variable O&M'!$B$4:$AT$49,ROW('Variable O&M'!$A$21)-ROW('Variable O&M'!$A$4)+1,FALSE)*AR14 -> 0 | AS19: =HLOOKUP(AS13,'Variable O&M'!$B$4:$AT$49,ROW('Variable O&M'!$A$21)-ROW('Variable O&M'!$A$4)+1,FALSE)*AS14 -> 0 | AT19: =HLOOKUP(AT13,'Variable O&M'!$B$4:$AT$49,ROW('Variable O&M'!$A$21)-ROW('Variable O&M'!$A$4)+1,FALSE)*AT14 -> 0 | AU19: =HLOOKUP(AU13,'Variable O&M'!$B$4:$AT$49,ROW('Variable O&M'!$A$21)-ROW('Variable O&M'!$A$4)+1,FALSE)*AU14 -> 0 | AV19: =HLOOKUP(AV13,'Variable O&M'!$B$4:$AT$49,ROW('Variable O&M'!$A$21)-ROW('Variable O&M'!$A$4)+1,FALSE)*AV14 -> 0 | AW19: =HLOOKUP(AW13,'Variable O&M'!$B$4:$AT$49,ROW('Variable O&M'!$A$21)-ROW('Variable O&M'!$A$4)+1,FALSE)*AW14 -> 0 | BB19: Variable O&M | BD19: =HLOOKUP(BD13,'Variable O&M'!$B$4:$AT$49,ROW('Variable O&M'!$A$22)-ROW('Variable O&M'!$A$4)+1,FALSE)*BD14 -> 63828.864 | BE19: =HLOOKUP(BE13,'Variable O&M'!$B$4:$AT$49,ROW('Variable O&M'!$A$22)-ROW('Variable O&M'!$A$4)+1,FALSE)*BE14 -> 63828.864 | BF19: =HLOOKUP(BF13,'Variable O&M'!$B$4:$AT$49,ROW('Variable O&M'!$A$22)-ROW('Variable O&M'!$A$4)+1,FALSE)*BF14 -> 63828.864 | BG19: =HLOOKUP(BG13,'Variable O&M'!$B$4:$AT$49,ROW('Variable O&M'!$A$22)-ROW('Variable O&M'!$A$4)+1,FALSE)*BG14 -> 63828.864 | BH19: =HLOOKUP(BH13,'Variable O&M'!$B$4:$AT$49,ROW('Variable O&M'!$A$22)-ROW('Variable O&M'!$A$4)+1,FALSE)*BH14 -> 63828.864 | BI19: =HLOOKUP(BI13,'Variable O&M'!$B$4:$AT$49,ROW('Variable O&M'!$A$22)-ROW('Variable O&M'!$A$4)+1,FALSE)*BI14 -> 63828.864 | BJ19: =HLOOKUP(BJ13,'Variable O&M'!$B$4:$AT$49,ROW('Variable O&M'!$A$22)-ROW('Variable O&M'!$A$4)+1,FALSE)*BJ14 -> 63828.864 | BK19: =HLOOKUP(BK13,'Variable O&M'!$B$4:$AT$49,ROW('Variable O&M'!$A$22)-ROW('Variable O&M'!$A$4)+1,FALSE)*BK14 -> 63828.864 | BL19: =HLOOKUP(BL13,'Variable O&M'!$B$4:$AT$49,ROW('Variable O&M'!$A$22)-ROW('Variable O&M'!$A$4)+1,FALSE)*BL14 -> 63828.864 | BM19: =HLOOKUP(BM13,'Variable O&M'!$B$4:$AT$49,ROW('Variable O&M'!$A$22)-ROW('Variable O&M'!$A$4)+1,FALSE)*BM14 -> 63828.864 | BN19: =HLOOKUP(BN13,'Variable O&M'!$B$4:$AT$49,ROW('Variable O&M'!$A$22)-ROW('Variable O&M'!$A$4)+1,FALSE)*BN14 -> 63828.864 | BO19: =HLOOKUP(BO13,'Variable O&M'!$B$4:$AT$49,ROW('Variable O&M'!$A$22)-ROW('Variable O&M'!$A$4)+1,FALSE)*BO14 -> 63828.864 | BP19: =HLOOKUP(BP13,'Variable O&M'!$B$4:$AT$49,ROW('Variable O&M'!$A$22)-ROW('Variable O&M'!$A$4)+1,FALSE)*BP14 -> 63828.864 | BQ19: =HLOOKUP(BQ13,'Variable O&M'!$B$4:$AT$49,ROW('Variable O&M'!$A$22)-ROW('Variable O&M'!$A$4)+1,FALSE)*BQ14 -> 63828.864 | BR19: =HLOOKUP(BR13,'Variable O&M'!$B$4:$AT$49,ROW('Variable O&M'!$A$22)-ROW('Variable O&M'!$A$4)+1,FALSE)*BR14 -> 63828.864 | BS19: =HLOOKUP(BS13,'Variable O&M'!$B$4:$AT$49,ROW('Variable O&M'!$A$22)-ROW('Variable O&M'!$A$4)+1,FALSE)*BS14 -> 63828.864 | BT19: =HLOOKUP(BT13,'Variable O&M'!$B$4:$AT$49,ROW('Variable O&M'!$A$22)-ROW('Variable O&M'!$A$4)+1,FALSE)*BT14 -> 63828.864 | BU19: =HLOOKUP(BU13,'Variable O&M'!$B$4:$AT$49,ROW('Variable O&M'!$A$22)-ROW('Variable O&M'!$A$4)+1,FALSE)*BU14 -> 63828.864 | BV19: =HLOOKUP(BV13,'Variable O&M'!$B$4:$AT$49,ROW('Variable O&M'!$A$22)-ROW('Variable O&M'!$A$4)+1,FALSE)*BV14 -> 63828.864 | BW19: =HLOOKUP(BW13,'Variable O&M'!$B$4:$AT$49,ROW('Variable O&M'!$A$22)-ROW('Variable O&M'!$A$4)+1,FALSE)*BW14 -> 63828.864 | CB19: Variable O&M | CD19: =HLOOKUP(CD13,'Variable O&M'!$B$4:$AT$49,ROW('Variable O&M'!$A$23)-ROW('Variable O&M'!$A$4)+1,FALSE)*CD14 -> 0 | CE19: =HLOOKUP(CE13,'Variable O&M'!$B$4:$AT$49,ROW('Variable O&M'!$A$23)-ROW('Variable O&M'!$A$4)+1,FALSE)*CE14 -> 0 | CF19: =HLOOKUP(CF13,'Variable O&M'!$B$4:$AT$49,ROW('Variable O&M'!$A$23)-ROW('Variable O&M'!$A$4)+1,FALSE)*CF14 -> 0 | CG19: =HLOOKUP(CG13,'Variable O&M'!$B$4:$AT$49,ROW('Variable O&M'!$A$23)-ROW('Variable O&M'!$A$4)+1,FALSE)*CG14 -> 0 | CH19: =HLOOKUP(CH13,'Variable O&M'!$B$4:$AT$49,ROW('Variable O&M'!$A$23)-ROW('Variable O&M'!$A$4)+1,FALSE)*CH14 -> 0 | CI19: =HLOOKUP(CI13,'Variable O&M'!$B$4:$AT$49,ROW('Variable O&M'!$A$23)-ROW('Variable O&M'!$A$4)+1,FALSE)*CI14 -> 0 | CJ19: =HLOOKUP(CJ13,'Variable O&M'!$B$4:$AT$49,ROW('Variable O&M'!$A$23)-ROW('Variable O&M'!$A$4)+1,FALSE)*CJ14 -> 0 | CK19: =HLOOKUP(CK13,'Variable O&M'!$B$4:$AT$49,ROW('Variable O&M'!$A$23)-ROW('Variable O&M'!$A$4)+1,FALSE)*CK14 -> 0 | CL19: =HLOOKUP(CL13,'Variable O&M'!$B$4:$AT$49,ROW('Variable O&M'!$A$23)-ROW('Variable O&M'!$A$4)+1,FALSE)*CL14 -> 0 | CM19: =HLOOKUP(CM13,'Variable O&M'!$B$4:$AT$49,ROW('Variable O&M'!$A$23)-ROW('Variable O&M'!$A$4)+1,FALSE)*CM14 -> 0 | CN19: =HLOOKUP(CN13,'Variable O&M'!$B$4:$AT$49,ROW('Variable O&M'!$A$23)-ROW('Variable O&M'!$A$4)+1,FALSE)*CN14 -> 0 | CO19: =HLOOKUP(CO13,'Variable O&M'!$B$4:$AT$49,ROW('Variable O&M'!$A$23)-ROW('Variable O&M'!$A$4)+1,FALSE)*CO14 -> 0 | CP19: =HLOOKUP(CP13,'Variable O&M'!$B$4:$AT$49,ROW('Variable O&M'!$A$23)-ROW('Variable O&M'!$A$4)+1,FALSE)*CP14 -> 0 | CQ19: =HLOOKUP(CQ13,'Variable O&M'!$B$4:$AT$49,ROW('Variable O&M'!$A$23)-ROW('Variable O&M'!$A$4)+1,FALSE)*CQ14 -> 0 | CR19: =HLOOKUP(CR13,'Variable O&M'!$B$4:$AT$49,ROW('Variable O&M'!$A$23)-ROW('Variable O&M'!$A$4)+1,FALSE)*CR14 -> 0 | CS19: =HLOOKUP(CS13,'Variable O&M'!$B$4:$AT$49,ROW('Variable O&M'!$A$23)-ROW('Variable O&M'!$A$4)+1,FALSE)*CS14 -> 0 | CT19: =HLOOKUP(CT13,'Variable O&M'!$B$4:$AT$49,ROW('Variable O&M'!$A$23)-ROW('Variable O&M'!$A$4)+1,FALSE)*CT14 -> 0 | CU19: =HLOOKUP(CU13,'Variable O&M'!$B$4:$AT$49,ROW('Variable O&M'!$A$23)-ROW('Variable O&M'!$A$4)+1,FALSE)*CU14 -> 0 | CV19: =HLOOKUP(CV13,'Variable O&M'!$B$4:$AT$49,ROW('Variable O&M'!$A$23)-ROW('Variable O&M'!$A$4)+1,FALSE)*CV14 -> 0 | CW19: =HLOOKUP(CW13,'Variable O&M'!$B$4:$AT$49,ROW('Variable O&M'!$A$23)-ROW('Variable O&M'!$A$4)+1,FALSE)*CW14 -> 0
B20: Property Tax | D20: =C42*$B$9 -> 1690811.289 | E20: =D42*$B$9 -> 1596600.096 | F20: 1507638.305 | G20: 1423633.422 | H20: 1344309.251 | I20: 1269404.985 | J20: 1198674.349 | K20: 1131884.789 | L20: 1068816.712 | M20: 1009262.758 | N20: 953027.1216 | O20: 899924.9078 | P20: 849781.5239 | Q20: 802432.1053 | R20: 757720.9736 | S20: 715501.1247 | T20: 675633.7455 | U20: 637987.7575 | V20: 602439.3859 | W20: 568871.7525 | AB20: Property Tax | AD20: =AC42*$B$9 -> 1572847.711 | AE20: =AD42*$B$9 -> 1485209.391 | AF20: 1402454.237 | AG20: 1324310.16 | AH20: 1250520.234 | AI20: 1180841.846 | AJ20: 1115045.906 | AK20: 1052916.083 | AL20: 994248.1043 | AM20: 938849.0772 | AN20: 886536.8573 | AO20: 837139.4491 | AP20: 790494.4409 | AQ20: 746448.4701 | AR20: 704856.7196 | AS20: 665582.4416 | AT20: 628496.5074 | AU20: 593476.9837 | AV20: 560408.7311 | AW20: 529183.0256 | BB20: Property Tax | BD20: =BC42*$B$9 -> 1572847.711 | BE20: =BD42*$B$9 -> 1485209.391 | BF20: 1402454.237 | BG20: 1324310.16 | BH20: 1250520.234 | BI20: 1180841.846 | BJ20: 1115045.906 | BK20: 1052916.083 | BL20: 994248.1043 | BM20: 938849.0772 | BN20: 886536.8573 | BO20: 837139.4491 | BP20: 790494.4409 | BQ20: 746448.4701 | BR20: 704856.7196 | BS20: 665582.4416 | BT20: 628496.5074 | BU20: 593476.9837 | BV20: 560408.7311 | BW20: 529183.0256 | CB20: Property Tax | CD20: =CC42*$B$9 -> 3939359.591 | CE20: =CD42*$B$9 -> 3719860.365 | CF20: 3512591.532 | CG20: 3316871.618 | CH20: 3132057.123 | CI20: 2957540.404 | CJ20: 2792747.672 | CK20: 2637137.112 | CL20: 2490197.098 | CM20: 2351444.511 | CN20: 2220423.152 | CO20: 2096702.24 | CP20: 1979874.997 | CQ20: 1869557.313 | CR20: 1765386.477 | CS20: 1667019.99 | CT20: 1574134.436 | CU20: 1486424.421 | CV20: 1403601.566 | CW20: 1325393.56
B21: Total Operating Costs | D21: =SUM(D18:D20) -> 5375908.089 | E21: =SUM(E18:E20) -> 5355398.832 | F21: 5341613.015 | G21: 5334287.627 | H21: 5333176.54 | I21: 5338049.62 | J21: 5348691.876 | K21: 5364902.667 | L21: 5386494.948 | M21: 5413294.558 | N21: 5445139.558 | O21: 5481879.593 | P21: 5523375.303 | Q21: 5569497.76 | R21: 5620127.941 | S21: 5675156.231 | T21: 5734481.954 | U21: 5798012.931 | V21: 5865665.062 | W21: 5937361.943 | AB21: Total Operating Costs | AD21: =SUM(AD18:AD20) -> 5257944.511 | AE21: =SUM(AE18:AE20) -> 5244008.127 | AF21: =SUM(AF18:AF20) -> 5236428.948 | AG21: =SUM(AG18:AG20) -> 5234964.365 | AH21: =SUM(AH18:AH20) -> 5239387.523 | AI21: =SUM(AI18:AI20) -> 5249486.481 | AJ21: =SUM(AJ18:AJ20) -> 5265063.433 | AK21: =SUM(AK18:AK20) -> 5285933.961 | AL21: =SUM(AL18:AL20) -> 5311926.34 | AM21: =SUM(AM18:AM20) -> 5342880.878 | AN21: =SUM(AN18:AN20) -> 5378649.294 | AO21: =SUM(AO18:AO20) -> 5419094.134 | AP21: =SUM(AP18:AP20) -> 5464088.22 | AQ21: =SUM(AQ18:AQ20) -> 5513514.124 | AR21: =SUM(AR18:AR20) -> 5567263.687 | AS21: =SUM(AS18:AS20) -> 5625237.548 | AT21: =SUM(AT18:AT20) -> 5687344.716 | AU21: =SUM(AU18:AU20) -> 5753502.157 | AV21: =SUM(AV18:AV20) -> 5823634.408 | AW21: =SUM(AW18:AW20) -> 5897673.216 | BB21: Total Operating Costs | BD21: =SUM(BD18:BD20) -> 5321773.375 | BE21: =SUM(BE18:BE20) -> 5307836.991 | BF21: =SUM(BF18:BF20) -> 5300257.812 | BG21: =SUM(BG18:BG20) -> 5298793.229 | BH21: =SUM(BH18:BH20) -> 5303216.387 | BI21: =SUM(BI18:BI20) -> 5313315.345 | BJ21: =SUM(BJ18:BJ20) -> 5328892.297 | BK21: =SUM(BK18:BK20) -> 5349762.825 | BL21: =SUM(BL18:BL20) -> 5375755.204 | BM21: =SUM(BM18:BM20) -> 5406709.742 | BN21: =SUM(BN18:BN20) -> 5442478.158 | BO21: =SUM(BO18:BO20) -> 5482922.998 | BP21: =SUM(BP18:BP20) -> 5527917.084 | BQ21: =SUM(BQ18:BQ20) -> 5577342.988 | BR21: =SUM(BR18:BR20) -> 5631092.551 | BS21: =SUM(BS18:BS20) -> 5689066.412 | BT21: =SUM(BT18:BT20) -> 5751173.58 | BU21: =SUM(BU18:BU20) -> 5817331.021 | BV21: =SUM(BV18:BV20) -> 5887463.272 | BW21: =SUM(BW18:BW20) -> 5961502.08 | CB21: Total Operating Costs | CD21: =SUM(CD18:CD20) -> 13302959.59 | CE21: =SUM(CE18:CE20) -> 13270732.37 | CF21: =SUM(CF18:CF20) -> 13254480.97 | CG21: =SUM(CG18:CG20) -> 13253598.85 | CH21: =SUM(CH18:CH20) -> 13267518.9 | CI21: =SUM(CI18:CI20) -> 13295711.41 | CJ21: =SUM(CJ18:CJ20) -> 13337682.1 | CK21: =SUM(CK18:CK20) -> 13392970.23 | CL21: =SUM(CL18:CL20) -> 13461146.88 | CM21: =SUM(CM18:CM20) -> 13541813.29 | CN21: =SUM(CN18:CN20) -> 13634599.3 | CO21: =SUM(CO18:CO20) -> 13739161.91 | CP21: =SUM(CP18:CP20) -> 13855183.87 | CQ21: =SUM(CQ18:CQ20) -> 13982372.36 | CR21: =SUM(CR18:CR20) -> 14120457.82 | CS21: =SUM(CS18:CS20) -> 14269192.76 | CT21: =SUM(CT18:CT20) -> 14428350.66 | CU21: =SUM(CU18:CU20) -> 14597724.97 | CV21: =SUM(CV18:CV20) -> 14777128.13 | CW21: =SUM(CW18:CW20) -> 14966390.66
B23: EBITDA | D23: =D16-D21 -> 5756243.55 | E23: =E16-E21 -> 5776752.807 | F23: 5790538.623 | G23: 5797864.012 | H23: 5798975.099 | I23: 5794102.019 | J23: 5783459.763 | K23: 5767248.972 | L23: 5745656.691 | M23: 5718857.081 | N23: 5687012.081 | O23: 5650272.046 | P23: 5608776.336 | Q23: 5562653.879 | R23: 5512023.698 | S23: 5456995.407 | T23: 5397669.684 | U23: 5334138.708 | V23: 5266486.576 | W23: 5194789.696 | AB23: EBITDA | AD23: =AD16-AD21 -> 4558029.267 | AE23: =AE16-AE21 -> 4571965.65 | AF23: 4579544.83 | AG23: 4581009.413 | AH23: 4576586.255 | AI23: 4566487.296 | AJ23: 4550910.344 | AK23: 4530039.816 | AL23: 4504047.438 | AM23: 4473092.9 | AN23: 4437324.484 | AO23: 4396879.643 | AP23: 4351885.558 | AQ23: 4302459.653 | AR23: 4248710.09 | AS23: 4190736.229 | AT23: 4128629.061 | AU23: 4062471.621 | AV23: 3992339.37 | AW23: 3918300.562 | BB23: EBITDA | BD23: =BD16-BD21 -> 1993860.814 | BE23: =BE16-BE21 -> 2007797.197 | BF23: 2015376.377 | BG23: 2016840.96 | BH23: 2012417.802 | BI23: 2002318.843 | BJ23: 1986741.892 | BK23: 1965871.364 | BL23: 1939878.985 | BM23: 1908924.447 | BN23: 1873156.031 | BO23: 1832711.191 | BP23: 1787717.105 | BQ23: 1738291.2 | BR23: 1684541.638 | BS23: 1626567.776 | BT23: 1564460.608 | BU23: 1498303.168 | BV23: 1428170.917 | BW23: 1354132.109 | CB23: EBITDA | CD23: =CD16-CD21 -> 23728643.92 | CE23: =CE16-CE21 -> 23760871.14 | CF23: 23777122.54 | CG23: 23778004.66 | CH23: 23764084.61 | CI23: 23735892.1 | CJ23: 23693921.41 | CK23: 23638633.28 | CL23: 23570456.63 | CM23: 23489790.22 | CN23: 23397004.2 | CO23: 23292441.59 | CP23: 23176419.64 | CQ23: 23049231.15 | CR23: 22911145.69 | CS23: 22762410.75 | CT23: 22603252.84 | CU23: 22433878.53 | CV23: 22254475.38 | CW23: 22065212.85
B24: Before Tax Earnings | D24: =D23-D43-D33 -> -31343364.64 | E24: =E23-E25-E43 -> -56683278.24 | F24: -35194189.33 | G24: -22371856.26 | H24: -22544576.66 | I24: -12987684.83 | J24: -3440108.336 | K24: -3640790.489 | L24: -3850543.558 | M24: -4069267.174 | N24: 5687012.081 | O24: 5650272.046 | P24: 5608776.336 | Q24: 5562653.879 | R24: 5512023.698 | S24: 5456995.407 | T24: 5397669.684 | U24: 5334138.708 | V24: 5266486.576 | W24: 5194789.696 | AB24: Before Tax Earnings | AD24: =AD23-AD43-AD33 -> -32040233.72 | AE24: =AE23-AE25-AE43 -> -57888065.4 | AF24: -36405183.12 | AG24: -23588710.86 | AH24: -23766965.5 | AI24: -14215299.55 | AJ24: -4672657.754 | AK24: -4877999.644 | AL24: -5092152.812 | AM24: -5315031.355 | AN24: 4437324.484 | AO24: 4396879.643 | AP24: 4351885.558 | AQ24: 4302459.653 | AR24: 4248710.09 | AS24: 4190736.229 | AT24: 4128629.061 | AU24: 4062471.621 | AV24: 3992339.37 | AW24: 3918300.562 | BB24: Before Tax Earnings | BD24: =BD23-BD43-BD33 -> -33817242.66 | BE24: =BE23-BE25-BE43 -> -62935876.23 | BF24: -41502666.79 | BG24: -28736860.84 | BH24: -28966795.11 | BI24: -19467842.38 | BJ24: -9978968.074 | BK24: -10239152.8 | BL24: -10509245.66 | BM24: -10789182.69 | BN24: 1873156.031 | BO24: 1832711.191 | BP24: 1787717.105 | BQ24: 1738291.2 | BR24: 1684541.638 | BS24: 1626567.776 | BT24: 1564460.608 | BU24: 1498303.168 | BV24: 1428170.917 | BW24: 1354132.109 | CB24: Before Tax Earnings | CD24: =CD23-CD43-CD33 -> -65341632.44 | CE24: =CE23-CE25-CE43 -> -113454054.3 | CF24: -63237108.47 | CG24: -33209515.23 | CH24: -33455557.23 | CI24: -11029802.89 | CJ24: 11377437.99 | CK24: 11075820.2 | CL24: 10756387.29 | CM24: 10419439.49 | CN24: 23397004.2 | CO24: 23292441.59 | CP24: 23176419.64 | CQ24: 23049231.15 | CR24: 22911145.69 | CS24: 22762410.75 | CT24: 22603252.84 | CU24: 22433878.53 | CV24: 22254475.38 | CW24: 22065212.85
B25: PTC | D25: =D14*HLOOKUP(D13,$B$2:$W$3,2,FALSE)*HLOOKUP($D13,$B$2:$W$4,3,FALSE) -> 8190264.513 | E25: =E14*HLOOKUP(E13,$B$2:$W$3,2,FALSE)*HLOOKUP($D13,$B$2:$W$4,3,FALSE) -> 8354069.803 | F25: 8521151.199 | G25: 8691574.223 | H25: 8865405.708 | I25: 9042713.822 | J25: 9223568.098 | K25: 9408039.46 | L25: 9596200.25 | M25: 9788124.255 | N25: =N14*N7 -> 0 | O25: 0 | P25: 0 | Q25: 0 | R25: 0 | S25: 0 | T25: 0 | U25: 0 | V25: 0 | W25: 0 | AB25: PTC | AD25: =AD14*HLOOKUP(AD13,$B$2:$W$3,2,FALSE)*HLOOKUP($D13,$B$2:$W$4,3,FALSE) -> 8190264.513 | AE25: =AE14*HLOOKUP(AE13,$B$2:$W$3,2,FALSE)*HLOOKUP($D13,$B$2:$W$4,3,FALSE) -> 8354069.803 | AF25: 8521151.199 | AG25: 8691574.223 | AH25: 8865405.708 | AI25: 9042713.822 | AJ25: 9223568.098 | AK25: 9408039.46 | AL25: 9596200.25 | AM25: 9788124.255 | AN25: =AN14*AN7 -> 0 | AO25: 0 | AP25: 0 | AQ25: 0 | AR25: 0 | AS25: 0 | AT25: 0 | AU25: 0 | AV25: 0 | AW25: 0 | BB25: PTC | BD25: =BD14*HLOOKUP(BD13,$B$2:$W$3,2,FALSE)*HLOOKUP($D13,$B$2:$W$4,3,FALSE) -> 10625208.02 | BE25: =BE14*HLOOKUP(BE13,$B$2:$W$3,2,FALSE)*HLOOKUP($D13,$B$2:$W$4,3,FALSE) -> 10837712.18 | BF25: 11054466.42 | BG25: 11275555.75 | BH25: 11501066.86 | BI25: 11731088.2 | BJ25: 11965709.97 | BK25: 12205024.16 | BL25: 12449124.65 | BM25: 12698107.14 | BN25: =BN14*BN7 -> 0 | BO25: 0 | BP25: 0 | BQ25: 0 | BR25: 0 | BS25: 0 | BT25: 0 | BU25: 0 | BV25: 0 | BW25: 0 | CB25: PTC | CD25: =CD14*HLOOKUP(CD13,$B$2:$W$3,2,FALSE)*HLOOKUP($D13,$B$2:$W$4,3,FALSE) -> 10936684.8 | CE25: =CE14*HLOOKUP(CE13,$B$2:$W$3,2,FALSE)*HLOOKUP($D13,$B$2:$W$4,3,FALSE) -> 11155418.5 | CF25: 11378526.87 | CG25: 11606097.4 | CH25: 11838219.35 | CI25: 12074983.74 | CJ25: 12316483.41 | CK25: 12562813.08 | CL25: 12814069.34 | CM25: 13070350.73 | CN25: =CN14*CN7 -> 0 | CO25: 0 | CP25: 0 | CQ25: 0 | CR25: 0 | CS25: 0 | CT25: 0 | CU25: 0 | CV25: 0 | CW25: 0
B26: Federal Tax | D26: =D24*$B$7-D25 -> -14772371.09 | E26: =E24*$B$7-E25 -> -20257558.23 | F26: -15911930.96 | G26: -13389664.04 | H26: -13599766.81 | I26: -11770127.64 | J26: -9945990.849 | K26: -10172605.46 | L26: -10404814.4 | M26: -10642670.36 | N26: 1194272.537 | O26: 1186557.13 | P26: 1177843.031 | Q26: 1168157.315 | R26: 1157524.977 | S26: 1145969.036 | T26: 1133510.634 | U26: 1120169.129 | V26: 1105962.181 | W26: 1090905.836 | AB26: Federal Tax | AD26: =AD24*$B$7-AD25 -> -14918713.59 | AE26: =AE24*$B$7-AE25 -> -20510563.54 | AF26: =AF24*$B$7-AF25 -> -16166239.65 | AG26: =AG24*$B$7-AG25 -> -13645203.5 | AH26: =AH24*$B$7-AH25 -> -13856468.46 | AI26: =AI24*$B$7-AI25 -> -12027926.73 | AJ26: =AJ24*$B$7-AJ25 -> -10204826.23 | AK26: =AK24*$B$7-AK25 -> -10432419.39 | AL26: =AL24*$B$7-AL25 -> -10665552.34 | AM26: =AM24*$B$7-AM25 -> -10904280.84 | AN26: =AN24*$B$7-AN25 -> 931838.1416 | AO26: =AO24*$B$7-AO25 -> 923344.7251 | AP26: =AP24*$B$7-AP25 -> 913895.9672 | AQ26: =AQ24*$B$7-AQ25 -> 903516.5272 | AR26: =AR24*$B$7-AR25 -> 892229.119 | AS26: =AS24*$B$7-AS25 -> 880054.6081 | AT26: =AT24*$B$7-AT25 -> 867012.1029 | AU26: =AU24*$B$7-AU25 -> 853119.0404 | AV26: =AV24*$B$7-AV25 -> 838391.2677 | AW26: =AW24*$B$7-AW25 -> 822843.118 | BB26: Federal Tax | BD26: =BD24*$B$7-BD25 -> -17726828.98 | BE26: =BE24*$B$7-BE25 -> -24054246.19 | BF26: =BF24*$B$7-BF25 -> -19770026.45 | BG26: =BG24*$B$7-BG25 -> -17310296.53 | BH26: =BH24*$B$7-BH25 -> -17584093.84 | BI26: =BI24*$B$7-BI25 -> -15819335.1 | BJ26: =BJ24*$B$7-BJ25 -> -14061293.26 | BK26: =BK24*$B$7-BK25 -> -14355246.25 | BL26: =BL24*$B$7-BL25 -> -14656066.24 | BM26: =BM24*$B$7-BM25 -> -14963835.51 | BN26: =BN24*$B$7-BN25 -> 393362.7665 | BO26: =BO24*$B$7-BO25 -> 384869.35 | BP26: =BP24*$B$7-BP25 -> 375420.5921 | BQ26: =BQ24*$B$7-BQ25 -> 365041.1521 | BR26: =BR24*$B$7-BR25 -> 353753.7439 | BS26: =BS24*$B$7-BS25 -> 341579.233 | BT26: =BT24*$B$7-BT25 -> 328536.7278 | BU26: =BU24*$B$7-BU25 -> 314643.6653 | BV26: =BV24*$B$7-BV25 -> 299915.8926 | BW26: =BW24*$B$7-BW25 -> 284367.7429 | CB26: Federal Tax | CD26: =CD24*$B$7-CD25 -> -24658427.61 | CE26: =CE24*$B$7-CE25 -> -34980769.89 | CF26: =CF24*$B$7-CF25 -> -24658319.65 | CG26: =CG24*$B$7-CG25 -> -18580095.6 | CH26: =CH24*$B$7-CH25 -> -18863886.37 | CI26: =CI24*$B$7-CI25 -> -14391242.34 | CJ26: =CJ24*$B$7-CJ25 -> -9927221.434 | CK26: =CK24*$B$7-CK25 -> -10236890.84 | CL26: =CL24*$B$7-CL25 -> -10555228.01 | CM26: =CM24*$B$7-CM25 -> -10882268.44 | CN26: =CN24*$B$7-CN25 -> 4913370.883 | CO26: =CO24*$B$7-CO25 -> 4891412.735 | CP26: =CP24*$B$7-CP25 -> 4867048.125 | CQ26: =CQ24*$B$7-CQ25 -> 4840338.542 | CR26: =CR24*$B$7-CR25 -> 4811340.594 | CS26: =CS24*$B$7-CS25 -> 4780106.257 | CT26: =CT24*$B$7-CT25 -> 4746683.097 | CU26: =CU24*$B$7-CU25 -> 4711114.492 | CV26: =CV24*$B$7-CV25 -> 4673439.829 | CW26: =CW24*$B$7-CW25 -> 4633694.699
A29: =IRR(C29:X29,0.1) -> 0.065 | B29: Free Cash Flow | C29: =-('Capital Costs'!$D$190*1000000*(1+AFUDC!$Y$21)) -> -169081128.9 | D29: =D23-D26 -> 20528614.64 | E29: =E23-E26 -> 26034311.04 | F29: 21702469.58 | G29: 19187528.05 | H29: 19398741.9 | I29: 17564229.65 | J29: 15729450.61 | K29: 15939854.43 | L29: 16150471.09 | M29: 16361527.44 | N29: 4492739.544 | O29: 4463714.916 | P29: 4430933.306 | Q29: 4394496.565 | R29: 4354498.721 | S29: 4311026.372 | T29: 4264159.051 | U29: 4213969.58 | V29: 4160524.395 | W29: 4103883.86 | X29: =C29*-0.3 -> 50724338.67 | AA29: =IRR(AC29:AX29,0.1) -> 0.065 | AB29: Free Cash Flow | AC29: =-HLOOKUP(AD13,'Capital Costs'!$B$174:$X$218,ROW('Capital Costs'!$A$191)-ROW('Capital Costs'!$A$174)+1,FALSE)*1000000*(1+AFUDC!$Y$22) -> -157284771.1 | AD29: =AD23-AD26 -> 19476742.86 | AE29: =AE23-AE26 -> 25082529.19 | AF29: 20745784.48 | AG29: 18226212.92 | AH29: 18433054.72 | AI29: 16594414.02 | AJ29: 14755736.57 | AK29: 14962459.2 | AL29: 15169599.78 | AM29: 15377373.74 | AN29: 3505486.342 | AO29: 3473534.918 | AP29: 3437989.591 | AQ29: 3398943.126 | AR29: 3356480.971 | AS29: 3310681.621 | AT29: 3261616.958 | AU29: 3209352.58 | AV29: 3153948.102 | AW29: 3095457.444 | AX29: =AC29*-0.3 -> 47185431.32 | BA29: =IRR(BC29:BX29,0.1) -> 0.065 | BB29: Free Cash Flow | BC29: =-HLOOKUP(BD13,'Capital Costs'!$B$174:$X$218,ROW('Capital Costs'!$A$192)-ROW('Capital Costs'!$A$174)+1,FALSE)*1000000*(1+AFUDC!$Y$23) -> -157284771.1 | BD29: =BD23-BD26 -> 19720689.79 | BE29: =BE23-BE26 -> 26062043.38 | BF29: 21785402.82 | BG29: 19327137.49 | BH29: 19596511.64 | BI29: 17821653.95 | BJ29: 16048035.15 | BK29: 16321117.62 | BL29: 16595945.22 | BM29: 16872759.95 | BN29: 1479793.265 | BO29: 1447841.841 | BP29: 1412296.513 | BQ29: 1373250.048 | BR29: 1330787.894 | BS29: 1284988.543 | BT29: 1235923.881 | BU29: 1183659.503 | BV29: 1128255.025 | BW29: 1069764.366 | BX29: =BC29*-0.3 -> 47185431.32 | CA29: =IRR(CC29:CX29,0.1) -> 0.07 | CB29: Free Cash Flow | CC29: =-HLOOKUP(CD13,'Capital Costs'!$B$174:$X$218,ROW('Capital Costs'!$A$193)-ROW('Capital Costs'!$A$174)+1,FALSE)*1000000*(1+AFUDC!$Y$24) -> -393935959.1 | CD29: =CD23-CD26 -> 48387071.53 | CE29: =CE23-CE26 -> 58741641.03 | CF29: 48435442.18 | CG29: 42358100.26 | CH29: 42627970.98 | CI29: 38127134.44 | CJ29: 33621142.84 | CK29: 33875524.12 | CL29: 34125684.64 | CM29: 34372058.66 | CN29: 18483633.32 | CO29: 18401028.86 | CP29: 18309371.52 | CQ29: 18208892.61 | CR29: 18099805.09 | CS29: 17982304.49 | CT29: 17856569.75 | CU29: 17722764.04 | CV29: 17581035.55 | CW29: 17431518.15 | CX29: =CC29*-0.3 -> 118180787.7
A30: =IRR(C30:X30,0.1) -> 0.09431972208 | B30: ROE | C30: =-C49 -> -11588408.5 | D30: =D29-D33-D35-D44-D25 -> -32399.27526 | E30: =E29-E33-E35-E44-E25 -> 1048647.391 | F30: 1094625.279 | G30: 1136201.171 | H30: 1173583.541 | I30: 1206968.512 | J30: 1236540.528 | K30: 1262472.989 | L30: 1284928.853 | M30: 1304061.201 | N30: -776602.4417 | O30: -805627.0693 | P30: -838408.6801 | Q30: -874845.4211 | R30: -914843.2644 | S30: -958315.6138 | T30: -1005182.935 | U30: -1055372.406 | V30: -1108817.59 | W30: -1165458.126 | X30: =X29 -> 50724338.67 | AA30: =IRR(AC30:AX30,0.1) -> 0.09155890318 | AB30: ROE | AC30: =-AC49 -> -9818954.83 | AD30: =AD29-AD33-AD35-AD44-AD25 -> -279686.3215 | AE30: =AE29-AE33-AE35-AE44-AE25 -> 901450.2677 | AF30: =AF29-AF33-AF35-AF44-AF25 -> 942524.9128 | AG30: =AG29-AG33-AG35-AG44-AG25 -> 979470.7681 | AH30: =AH29-AH33-AH35-AH44-AH25 -> 1012481.085 | AI30: =AI29-AI33-AI35-AI44-AI25 -> 1041737.612 | AJ30: =AJ29-AJ33-AJ35-AJ44-AJ25 -> 1067411.218 | AK30: =AK29-AK33-AK35-AK44-AK25 -> 1089662.487 | AL30: =AL29-AL33-AL35-AL44-AL25 -> 1108642.273 | AM30: =AM29-AM33-AM35-AM44-AM25 -> 1124492.23 | AN30: =AN29-AN33-AN35-AN44-AN25 -> -959270.9124 | AO30: =AO29-AO33-AO35-AO44-AO25 -> -991222.3364 | AP30: =AP29-AP33-AP35-AP44-AP25 -> -1026767.664 | AQ30: =AQ29-AQ33-AQ35-AQ44-AQ25 -> -1065814.129 | AR30: =AR29-AR33-AR35-AR44-AR25 -> -1108276.283 | AS30: =AS29-AS33-AS35-AS44-AS25 -> -1154075.634 | AT30: =AT29-AT33-AT35-AT44-AT25 -> -1203140.296 | AU30: =AU29-AU33-AU35-AU44-AU25 -> -1255404.674 | AV30: =AV29-AV33-AV35-AV44-AV25 -> -1310809.152 | AW30: =AW29-AW33-AW35-AW44-AW25 -> -1369299.811 | AX30: =AX29 -> 47185431.32 | BA30: =IRR(BC30:BX30,0.1) -> 0.08062150245 | BB30: ROE | BC30: =-BC49 -> -7040744.804 | BD30: =BD29-BD33-BD35-BD44-BD25 -> -1207408.588 | BE30: =BE29-BE33-BE35-BE44-BE25 -> 660596.3965 | BF30: =BF29-BF33-BF35-BF44-BF25 -> 712102.3395 | BG30: =BG29-BG33-BG35-BG44-BG25 -> 759688.1188 | BH30: =BH29-BH33-BH35-BH44-BH25 -> 803551.1584 | BI30: =BI29-BI33-BI35-BI44-BI25 -> 843877.4619 | BJ30: =BJ29-BJ33-BJ35-BJ44-BJ25 -> 880842.2404 | BK30: =BK29-BK33-BK35-BK44-BK25 -> 914610.5052 | BL30: =BL29-BL33-BL35-BL44-BL25 -> 945337.6274 | BM30: =BM29-BM33-BM35-BM44-BM25 -> 973169.8662 | BN30: =BN29-BN33-BN35-BN44-BN25 -> -1721689.682 | BO30: =BO29-BO33-BO35-BO44-BO25 -> -1753641.106 | BP30: =BP29-BP33-BP35-BP44-BP25 -> -1789186.434 | BQ30: =BQ29-BQ33-BQ35-BQ44-BQ25 -> -1828232.898 | BR30: =BR29-BR33-BR35-BR44-BR25 -> -1870695.053 | BS30: =BS29-BS33-BS35-BS44-BS25 -> -1916494.403 | BT30: =BT29-BT33-BT35-BT44-BT25 -> -1965559.066 | BU30: =BU29-BU33-BU35-BU44-BU25 -> -2017823.444 | BV30: =BV29-BV33-BV35-BV44-BV25 -> -2073227.922 | BW30: =BW29-BW33-BW35-BW44-BW25 -> -2131718.581 | BX30: =BX29 -> 47185431.32 | CA30: =IRR(CC30:CX30,0.1) -> 0.1325236185 | CB30: ROE | CC30: =-CC49 -> -36293239.55 | CD30: =CD29-CD33-CD35-CD44-CD25 -> 4402250.292 | CE30: =CE29-CE33-CE35-CE44-CE25 -> 4610899.931 | CF30: =CF29-CF33-CF35-CF44-CF25 -> 4670591.29 | CG30: =CG29-CG33-CG35-CG44-CG25 -> 4719077.981 | CH30: =CH29-CH33-CH35-CH44-CH25 -> 4756826.751 | CI30: =CI29-CI33-CI35-CI44-CI25 -> 4784275.184 | CJ30: =CJ29-CJ33-CJ35-CJ44-CJ25 -> 4801833.272 | CK30: =CK29-CK33-CK35-CK44-CK25 -> 4809884.881 | CL30: =CL29-CL33-CL35-CL44-CL25 -> 4808789.143 | CM30: =CM29-CM33-CM35-CM44-CM25 -> 4798881.772 | CN30: =CN29-CN33-CN35-CN44-CN25 -> 1980807.166 | CO30: =CO29-CO33-CO35-CO44-CO25 -> 1898202.703 | CP30: =CP29-CP33-CP35-CP44-CP25 -> 1806545.362 | CQ30: =CQ29-CQ33-CQ35-CQ44-CQ25 -> 1706066.453 | CR30: =CR29-CR33-CR35-CR44-CR25 -> 1596978.935 | CS30: =CS29-CS33-CS35-CS44-CS25 -> 1479478.333 | CT30: =CT29-CT33-CT35-CT44-CT25 -> 1353743.59 | CU30: =CU29-CU33-CU35-CU44-CU25 -> 1219937.886 | CV30: =CV29-CV33-CV35-CV44-CV25 -> 1078209.393 | CW30: =CW29-CW33-CW35-CW44-CW25 -> 928691.9975 | CX30: =CX29 -> 118180787.7
B33: Interest | D33: =C36*$B$8 -> 3283382.41 | E33: 3184084.431 | F33: 3079821.553 | G33: 2970345.531 | H33: 2855395.709 | I33: 2734698.395 | J33: 2607966.215 | K33: 2474897.427 | L33: 2335175.199 | M33: 2188466.86 | N33: 2034423.103 | O33: 1872677.159 | P33: 1702843.918 | Q33: 1524519.014 | R33: 1337277.866 | S33: 1140674.66 | T33: 934241.2935 | U33: 717486.2589 | V33: 489893.4726 | W33: 250921.0469 | AB33: Interest | AD33: =AC36*$B$8 -> 2782037.202 | AE33: 2697901.199 | AF33: 2609558.396 | AG33: 2516798.453 | AH33: 2419400.513 | AI33: 2317132.676 | AJ33: 2209751.447 | AK33: 2097001.157 | AL33: 1978613.352 | AM33: 1854306.157 | AN33: 1723783.602 | AO33: 1586734.92 | AP33: 1442833.803 | AQ33: 1291737.63 | AR33: 1133086.649 | AS33: 966503.1187 | AT33: 791590.4119 | AU33: 607932.0698 | AV33: 415090.8105 | AW33: 212607.4883 | BB33: Interest | BD33: =BC36*$B$8 -> 1994877.695 | BE33: 1934547.432 | BF33: 1871200.656 | BG33: 1804686.542 | BH33: 1734846.721 | BI33: 1661514.91 | BJ33: 1584516.508 | BK33: 1503668.186 | BL33: 1418777.448 | BM33: 1329642.173 | BN33: 1236050.135 | BO33: 1137778.494 | BP33: 1034593.272 | BQ33: 926248.7878 | BR33: 812487.0798 | BS33: 693037.2865 | BT33: 567615.0035 | BU33: 435921.6063 | BV33: 297643.5393 | BW33: 152451.5689 | CB33: Interest | CD33: =CC36*$B$8 -> 10283084.54 | CE33: 9972097.459 | CF33: 9645561.025 | CG33: 9302697.768 | CH33: 8942691.349 | CI33: 8564684.608 | CJ33: 8167777.531 | CK33: 7751025.099 | CL33: 7313435.047 | CM33: 6853965.491 | CN33: 6371522.458 | CO33: 5864957.273 | CP33: 5333063.829 | CQ33: 4774575.713 | CR33: 4188163.19 | CS33: 3572430.042 | CT33: 2925910.236 | CU33: 2247064.44 | CV33: 1534276.355 | CW33: 785848.8646
B34: Mortgage Payment | D34: =-PMT($B$8,20,$C48) -> 5269341.986 | E34: =-PMT($B$8,20,$C48) -> 5269341.986 | F34: 5269341.986 | G34: 5269341.986 | H34: 5269341.986 | I34: 5269341.986 | J34: 5269341.986 | K34: 5269341.986 | L34: 5269341.986 | M34: 5269341.986 | N34: 5269341.986 | O34: 5269341.986 | P34: 5269341.986 | Q34: 5269341.986 | R34: 5269341.986 | S34: 5269341.986 | T34: 5269341.986 | U34: 5269341.986 | V34: 5269341.986 | W34: 5269341.986 | AB34: Mortgage Payment | AD34: =-PMT($B$8,20,$AC48) -> 4464757.255 | AE34: =-PMT($B$8,20,$AC48) -> 4464757.255 | AF34: 4464757.255 | AG34: 4464757.255 | AH34: 4464757.255 | AI34: 4464757.255 | AJ34: 4464757.255 | AK34: 4464757.255 | AL34: 4464757.255 | AM34: 4464757.255 | AN34: 4464757.255 | AO34: 4464757.255 | AP34: 4464757.255 | AQ34: 4464757.255 | AR34: 4464757.255 | AS34: 4464757.255 | AT34: 4464757.255 | AU34: 4464757.255 | AV34: 4464757.255 | AW34: 4464757.255 | BB34: Mortgage Payment | BD34: =-PMT($B$8,20,$BC48) -> 3201482.947 | BE34: =-PMT($B$8,20,$BC48) -> 3201482.947 | BF34: 3201482.947 | BG34: 3201482.947 | BH34: 3201482.947 | BI34: 3201482.947 | BJ34: 3201482.947 | BK34: 3201482.947 | BL34: 3201482.947 | BM34: 3201482.947 | BN34: 3201482.947 | BO34: 3201482.947 | BP34: 3201482.947 | BQ34: 3201482.947 | BR34: 3201482.947 | BS34: 3201482.947 | BT34: 3201482.947 | BU34: 3201482.947 | BV34: 3201482.947 | BW34: 3201482.947 | CB34: Mortgage Payment | CD34: =-PMT($B$8,20,$CC48) -> 16502826.16 | CE34: =-PMT($B$8,20,$CC48) -> 16502826.16 | CF34: 16502826.16 | CG34: 16502826.16 | CH34: 16502826.16 | CI34: 16502826.16 | CJ34: 16502826.16 | CK34: 16502826.16 | CL34: 16502826.16 | CM34: 16502826.16 | CN34: 16502826.16 | CO34: 16502826.16 | CP34: 16502826.16 | CQ34: 16502826.16 | CR34: 16502826.16 | CS34: 16502826.16 | CT34: 16502826.16 | CU34: 16502826.16 | CV34: 16502826.16 | CW34: 16502826.16
B35: Sinking Fund | D35: =D34-D33 -> 1985959.576 | E35: =E34-E33 -> 2085257.555 | F35: =F34-F33 -> 2189520.433 | G35: 2298996.454 | H35: 2413946.277 | I35: 2534643.591 | J35: 2661375.77 | K35: 2794444.559 | L35: 2934166.787 | M35: 3080875.126 | N35: 3234918.882 | O35: 3396664.827 | P35: 3566498.068 | Q35: 3744822.971 | R35: 3932064.12 | S35: 4128667.326 | T35: 4335100.692 | U35: 4551855.727 | V35: 4779448.513 | W35: 5018420.939 | AB35: Sinking Fund | AD35: =AD34-AD33 -> 1682720.053 | AE35: =AE34-AE33 -> 1766856.056 | AF35: =AF34-AF33 -> 1855198.858 | AG35: =AG34-AG33 -> 1947958.801 | AH35: =AH34-AH33 -> 2045356.741 | AI35: =AI34-AI33 -> 2147624.578 | AJ35: =AJ34-AJ33 -> 2255005.807 | AK35: =AK34-AK33 -> 2367756.098 | AL35: =AL34-AL33 -> 2486143.902 | AM35: =AM34-AM33 -> 2610451.098 | AN35: =AN34-AN33 -> 2740973.652 | AO35: =AO34-AO33 -> 2878022.335 | AP35: =AP34-AP33 -> 3021923.452 | AQ35: =AQ34-AQ33 -> 3173019.624 | AR35: =AR34-AR33 -> 3331670.606 | AS35: =AS34-AS33 -> 3498254.136 | AT35: =AT34-AT33 -> 3673166.843 | AU35: =AU34-AU33 -> 3856825.185 | AV35: =AV34-AV33 -> 4049666.444 | AW35: =AW34-AW33 -> 4252149.766 | BB35: Sinking Fund | BD35: =BD34-BD33 -> 1206605.252 | BE35: =BE34-BE33 -> 1266935.515 | BF35: =BF34-BF33 -> 1330282.291 | BG35: =BG34-BG33 -> 1396796.405 | BH35: =BH34-BH33 -> 1466636.225 | BI35: =BI34-BI33 -> 1539968.037 | BJ35: =BJ34-BJ33 -> 1616966.438 | BK35: =BK34-BK33 -> 1697814.76 | BL35: =BL34-BL33 -> 1782705.498 | BM35: =BM34-BM33 -> 1871840.773 | BN35: =BN34-BN33 -> 1965432.812 | BO35: =BO34-BO33 -> 2063704.453 | BP35: =BP34-BP33 -> 2166889.675 | BQ35: =BQ34-BQ33 -> 2275234.159 | BR35: =BR34-BR33 -> 2388995.867 | BS35: =BS34-BS33 -> 2508445.66 | BT35: =BT34-BT33 -> 2633867.943 | BU35: =BU34-BU33 -> 2765561.34 | BV35: =BV34-BV33 -> 2903839.407 | BW35: =BW34-BW33 -> 3049031.378 | CB35: Sinking Fund | CD35: =CD34-CD33 -> 6219741.616 | CE35: =CE34-CE33 -> 6530728.697 | CF35: =CF34-CF33 -> 6857265.132 | CG35: =CG34-CG33 -> 7200128.388 | CH35: =CH34-CH33 -> 7560134.807 | CI35: =CI34-CI33 -> 7938141.548 | CJ35: =CJ34-CJ33 -> 8335048.625 | CK35: =CK34-CK33 -> 8751801.057 | CL35: =CL34-CL33 -> 9189391.109 | CM35: =CM34-CM33 -> 9648860.665 | CN35: =CN34-CN33 -> 10131303.7 | CO35: =CO34-CO33 -> 10637868.88 | CP35: =CP34-CP33 -> 11169762.33 | CQ35: =CQ34-CQ33 -> 11728250.44 | CR35: =CR34-CR33 -> 12314662.97 | CS35: =CS34-CS33 -> 12930396.11 | CT35: =CT34-CT33 -> 13576915.92 | CU35: =CU34-CU33 -> 14255761.72 | CV35: =CV34-CV33 -> 14968549.8 | CW35: =CW34-CW33 -> 15716977.29
B36: Mortgage Balance | C36: =C48 -> 65667648.19 | D36: =C36-D35 -> 63681688.62 | E36: =D36-E35 -> 61596431.06 | F36: =E36-F35 -> 59406910.63 | G36: 57107914.17 | H36: 54693967.9 | I36: 52159324.31 | J36: 49497948.54 | K36: 46703503.98 | L36: 43769337.19 | M36: 40688462.06 | N36: 37453543.18 | O36: 34056878.36 | P36: 30490380.29 | Q36: 26745557.32 | R36: 22813493.2 | S36: 18684825.87 | T36: 14349725.18 | U36: 9797869.452 | V36: 5018420.939 | W36: 0 | AB36: Mortgage Balance | AC36: =AC48 -> 55640744.04 | AD36: =AC36-AD35 -> 53958023.98 | AE36: =AD36-AE35 -> 52191167.93 | AF36: =AE36-AF35 -> 50335969.07 | AG36: =AF36-AG35 -> 48388010.27 | AH36: =AG36-AH35 -> 46342653.53 | AI36: =AH36-AI35 -> 44195028.95 | AJ36: =AI36-AJ35 -> 41940023.14 | AK36: =AJ36-AK35 -> 39572267.04 | AL36: =AK36-AL35 -> 37086123.14 | AM36: =AL36-AM35 -> 34475672.04 | AN36: =AM36-AN35 -> 31734698.39 | AO36: =AN36-AO35 -> 28856676.06 | AP36: =AO36-AP35 -> 25834752.6 | AQ36: =AP36-AQ35 -> 22661732.98 | AR36: =AQ36-AR35 -> 19330062.37 | AS36: =AR36-AS35 -> 15831808.24 | AT36: =AS36-AT35 -> 12158641.4 | AU36: =AT36-AU35 -> 8301816.211 | AV36: =AU36-AV35 -> 4252149.766 | AW36: =AV36-AW35 -> -1.11758709e-08 | BB36: Mortgage Balance | BC36: =BC48 -> 39897553.89 | BD36: =BC36-BD35 -> 38690948.64 | BE36: =BD36-BE35 -> 37424013.12 | BF36: =BE36-BF35 -> 36093730.83 | BG36: =BF36-BG35 -> 34696934.43 | BH36: =BG36-BH35 -> 33230298.2 | BI36: =BH36-BI35 -> 31690330.17 | BJ36: =BI36-BJ35 -> 30073363.73 | BK36: =BJ36-BK35 -> 28375548.97 | BL36: =BK36-BL35 -> 26592843.47 | BM36: =BL36-BM35 -> 24721002.69 | BN36: =BM36-BN35 -> 22755569.88 | BO36: =BN36-BO35 -> 20691865.43 | BP36: =BO36-BP35 -> 18524975.76 | BQ36: =BP36-BQ35 -> 16249741.6 | BR36: =BQ36-BR35 -> 13860745.73 | BS36: =BR36-BS35 -> 11352300.07 | BT36: =BS36-BT35 -> 8718432.126 | BU36: =BT36-BU35 -> 5952870.785 | BV36: =BU36-BV35 -> 3049031.378 | BW36: =BV36-BW35 -> -7.916241884e-09 | CB36: Mortgage Balance | CC36: =CC48 -> 205661690.8 | CD36: =CC36-CD35 -> 199441949.2 | CE36: =CD36-CE35 -> 192911220.5 | CF36: =CE36-CF35 -> 186053955.4 | CG36: =CF36-CG35 -> 178853827 | CH36: =CG36-CH35 -> 171293692.2 | CI36: =CH36-CI35 -> 163355550.6 | CJ36: =CI36-CJ35 -> 155020502 | CK36: =CJ36-CK35 -> 146268700.9 | CL36: =CK36-CL35 -> 137079309.8 | CM36: =CL36-CM35 -> 127430449.2 | CN36: =CM36-CN35 -> 117299145.5 | CO36: =CN36-CO35 -> 106661276.6 | CP36: =CO36-CP35 -> 95491514.25 | CQ36: =CP36-CQ35 -> 83763263.81 | CR36: =CQ36-CR35 -> 71448600.84 | CS36: =CR36-CS35 -> 58518204.73 | CT36: =CS36-CT35 -> 44941288.81 | CU36: =CT36-CU35 -> 30685527.09 | CV36: =CU36-CV35 -> 15716977.29 | CW36: =CV36-CW35 -> 5.960464478e-08
B39: Book Depr | D39: =-$C29/20 -> 8454056.445 | E39: =-$C29/20 -> 8454056.445 | F39: 8454056.445 | G39: 8454056.445 | H39: 8454056.445 | I39: 8454056.445 | J39: 8454056.445 | K39: 8454056.445 | L39: 8454056.445 | M39: 8454056.445 | N39: 8454056.445 | O39: 8454056.445 | P39: 8454056.445 | Q39: 8454056.445 | R39: 8454056.445 | S39: 8454056.445 | T39: 8454056.445 | U39: 8454056.445 | V39: 8454056.445 | W39: 8454056.445 | AB39: Book Depr | AD39: =-$AC29/20 -> 7864238.554 | AE39: =-$AC29/20 -> 7864238.554 | AF39: 7864238.554 | AG39: 7864238.554 | AH39: 7864238.554 | AI39: 7864238.554 | AJ39: 7864238.554 | AK39: 7864238.554 | AL39: 7864238.554 | AM39: 7864238.554 | AN39: 7864238.554 | AO39: 7864238.554 | AP39: 7864238.554 | AQ39: 7864238.554 | AR39: 7864238.554 | AS39: 7864238.554 | AT39: 7864238.554 | AU39: 7864238.554 | AV39: 7864238.554 | AW39: 7864238.554 | BB39: Book Depr | BD39: =-$BC29/20 -> 7864238.554 | BE39: =-$BC29/20 -> 7864238.554 | BF39: 7864238.554 | BG39: 7864238.554 | BH39: 7864238.554 | BI39: 7864238.554 | BJ39: 7864238.554 | BK39: 7864238.554 | BL39: 7864238.554 | BM39: 7864238.554 | BN39: 7864238.554 | BO39: 7864238.554 | BP39: 7864238.554 | BQ39: 7864238.554 | BR39: 7864238.554 | BS39: 7864238.554 | BT39: 7864238.554 | BU39: 7864238.554 | BV39: 7864238.554 | BW39: 7864238.554 | CB39: Book Depr | CD39: =-$CC29/20 -> 19696797.95 | CE39: =-$CC29/20 -> 19696797.95 | CF39: 19696797.95 | CG39: 19696797.95 | CH39: 19696797.95 | CI39: 19696797.95 | CJ39: 19696797.95 | CK39: 19696797.95 | CL39: 19696797.95 | CM39: 19696797.95 | CN39: 19696797.95 | CO39: 19696797.95 | CP39: 19696797.95 | CQ39: 19696797.95 | CR39: 19696797.95 | CS39: 19696797.95 | CT39: 19696797.95 | CU39: 19696797.95 | CV39: 19696797.95 | CW39: 19696797.95
B40: Accum Depreciation | D40: =SUM($D39:D39) -> 8454056.445 | E40: =SUM($D39:E39) -> 16908112.89 | F40: =SUM($D39:F39) -> 25362169.34 | G40: =SUM($D39:G39) -> 33816225.78 | H40: =SUM($D39:H39) -> 42270282.23 | I40: =SUM($D39:I39) -> 50724338.67 | J40: =SUM($D39:J39) -> 59178395.12 | K40: =SUM($D39:K39) -> 67632451.56 | L40: =SUM($D39:L39) -> 76086508.01 | M40: =SUM($D39:M39) -> 84540564.45 | N40: =SUM($D39:N39) -> 92994620.9 | O40: =SUM($D39:O39) -> 101448677.3 | P40: =SUM($D39:P39) -> 109902733.8 | Q40: =SUM($D39:Q39) -> 118356790.2 | R40: =SUM($D39:R39) -> 126810846.7 | S40: =SUM($D39:S39) -> 135264903.1 | T40: =SUM($D39:T39) -> 143718959.6 | U40: =SUM($D39:U39) -> 152173016 | V40: =SUM($D39:V39) -> 160627072.5 | W40: =SUM($D39:W39) -> 169081128.9 | AB40: Accum Depreciation | AD40: =SUM($AD39:AD39) -> 7864238.554 | AE40: =SUM($AD39:AE39) -> 15728477.11 | AF40: =SUM($AD39:AF39) -> 23592715.66 | AG40: =SUM($AD39:AG39) -> 31456954.21 | AH40: =SUM($AD39:AH39) -> 39321192.77 | AI40: =SUM($AD39:AI39) -> 47185431.32 | AJ40: =SUM($AD39:AJ39) -> 55049669.88 | AK40: =SUM($AD39:AK39) -> 62913908.43 | AL40: =SUM($AD39:AL39) -> 70778146.98 | AM40: =SUM($AD39:AM39) -> 78642385.54 | AN40: =SUM($AD39:AN39) -> 86506624.09 | AO40: =SUM($AD39:AO39) -> 94370862.64 | AP40: =SUM($AD39:AP39) -> 102235101.2 | AQ40: =SUM($AD39:AQ39) -> 110099339.8 | AR40: =SUM($AD39:AR39) -> 117963578.3 | AS40: =SUM($AD39:AS39) -> 125827816.9 | AT40: =SUM($AD39:AT39) -> 133692055.4 | AU40: =SUM($AD39:AU39) -> 141556294 | AV40: =SUM($AD39:AV39) -> 149420532.5 | AW40: =SUM($AD39:AW39) -> 157284771.1 | BB40: Accum Depreciation | BD40: =SUM($BD39:BD39) -> 7864238.554 | BE40: =SUM($BD39:BE39) -> 15728477.11 | BF40: =SUM($BD39:BF39) -> 23592715.66 | BG40: =SUM($BD39:BG39) -> 31456954.21 | BH40: =SUM($BD39:BH39) -> 39321192.77 | BI40: =SUM($BD39:BI39) -> 47185431.32 | BJ40: =SUM($BD39:BJ39) -> 55049669.88 | BK40: =SUM($BD39:BK39) -> 62913908.43 | BL40: =SUM($BD39:BL39) -> 70778146.98 | BM40: =SUM($BD39:BM39) -> 78642385.54 | BN40: =SUM($BD39:BN39) -> 86506624.09 | BO40: =SUM($BD39:BO39) -> 94370862.64 | BP40: =SUM($BD39:BP39) -> 102235101.2 | BQ40: =SUM($BD39:BQ39) -> 110099339.8 | BR40: =SUM($BD39:BR39) -> 117963578.3 | BS40: =SUM($BD39:BS39) -> 125827816.9 | BT40: =SUM($BD39:BT39) -> 133692055.4 | BU40: =SUM($BD39:BU39) -> 141556294 | BV40: =SUM($BD39:BV39) -> 149420532.5 | BW40: =SUM($BD39:BW39) -> 157284771.1 | CB40: Accum Depreciation | CD40: =SUM($CD39:CD39) -> 19696797.95 | CE40: =SUM($CD39:CE39) -> 39393595.91 | CF40: =SUM($CD39:CF39) -> 59090393.86 | CG40: =SUM($CD39:CG39) -> 78787191.82 | CH40: =SUM($CD39:CH39) -> 98483989.77 | CI40: =SUM($CD39:CI39) -> 118180787.7 | CJ40: =SUM($CD39:CJ39) -> 137877585.7 | CK40: =SUM($CD39:CK39) -> 157574383.6 | CL40: =SUM($CD39:CL39) -> 177271181.6 | CM40: =SUM($CD39:CM39) -> 196967979.5 | CN40: =SUM($CD39:CN39) -> 216664777.5 | CO40: =SUM($CD39:CO39) -> 236361575.5 | CP40: =SUM($CD39:CP39) -> 256058373.4 | CQ40: =SUM($CD39:CQ39) -> 275755171.4 | CR40: =SUM($CD39:CR39) -> 295451969.3 | CS40: =SUM($CD39:CS39) -> 315148767.3 | CT40: =SUM($CD39:CT39) -> 334845565.2 | CU40: =SUM($CD39:CU39) -> 354542363.2 | CV40: =SUM($CD39:CV39) -> 374239161.1 | CW40: =SUM($CD39:CW39) -> 393935959.1
B41: End Year Book Value | D41: =-$C29-D40 -> 160627072.5 | E41: 152173016 | F41: 143718959.6 | G41: 135264903.1 | H41: 126810846.7 | I41: 118356790.2 | J41: 109902733.8 | K41: 101448677.3 | L41: 92994620.9 | M41: 84540564.45 | N41: 76086508.01 | O41: 67632451.56 | P41: 59178395.12 | Q41: 50724338.67 | R41: 42270282.23 | S41: 33816225.78 | T41: 25362169.34 | U41: 16908112.89 | V41: 8454056.445 | W41: 0 | AB41: End Year Book Value | AD41: =-$AC29-AD40 -> 149420532.5 | AE41: =-$AC29-AE40 -> 141556294 | AF41: 133692055.4 | AG41: 125827816.9 | AH41: 117963578.3 | AI41: 110099339.8 | AJ41: 102235101.2 | AK41: 94370862.64 | AL41: 86506624.09 | AM41: 78642385.54 | AN41: 70778146.98 | AO41: 62913908.43 | AP41: 55049669.88 | AQ41: 47185431.32 | AR41: 39321192.77 | AS41: 31456954.21 | AT41: 23592715.66 | AU41: 15728477.11 | AV41: 7864238.554 | AW41: 0 | BB41: End Year Book Value | BD41: =-$BC29-BD40 -> 149420532.5 | BE41: =-$BC29-BE40 -> 141556294 | BF41: 133692055.4 | BG41: 125827816.9 | BH41: 117963578.3 | BI41: 110099339.8 | BJ41: 102235101.2 | BK41: 94370862.64 | BL41: 86506624.09 | BM41: 78642385.54 | BN41: 70778146.98 | BO41: 62913908.43 | BP41: 55049669.88 | BQ41: 47185431.32 | BR41: 39321192.77 | BS41: 31456954.21 | BT41: 23592715.66 | BU41: 15728477.11 | BV41: 7864238.554 | BW41: 0 | CB41: End Year Book Value | CD41: =-$CC29-CD40 -> 374239161.1 | CE41: =-$CC29-CE40 -> 354542363.2 | CF41: =-$CC29-CF40 -> 334845565.2 | CG41: =-$CC29-CG40 -> 315148767.3 | CH41: =-$CC29-CH40 -> 295451969.3 | CI41: =-$CC29-CI40 -> 275755171.4 | CJ41: =-$CC29-CJ40 -> 256058373.4 | CK41: =-$CC29-CK40 -> 236361575.5 | CL41: =-$CC29-CL40 -> 216664777.5 | CM41: =-$CC29-CM40 -> 196967979.5 | CN41: =-$CC29-CN40 -> 177271181.6 | CO41: =-$CC29-CO40 -> 157574383.6 | CP41: =-$CC29-CP40 -> 137877585.7 | CQ41: =-$CC29-CQ40 -> 118180787.7 | CR41: =-$CC29-CR40 -> 98483989.77 | CS41: =-$CC29-CS40 -> 78787191.82 | CT41: =-$CC29-CT40 -> 59090393.86 | CU41: =-$CC29-CU40 -> 39393595.91 | CV41: =-$CC29-CV40 -> 19696797.95 | CW41: =-$CC29-CW40 -> 0
B42: Prop. Tax Value | C42: =-C29 -> 169081128.9 | D42: =C42/(($C42/$X42)^(1/21)) -> 159660009.6 | E42: =D42/(($C42/$X42)^(1/21)) -> 150763830.5 | F42: 142363342.2 | G42: 134430925.1 | H42: 126940498.5 | I42: 119867434.9 | J42: 113188478.9 | K42: 106881671.2 | L42: 100926275.8 | M42: 95302712.16 | N42: 89992490.78 | O42: 84978152.39 | P42: 80243210.53 | Q42: 75772097.36 | R42: 71550112.47 | S42: 67563374.55 | T42: 63798775.75 | U42: 60243938.59 | V42: 56887175.25 | W42: 53717449.15 | X42: =X29 -> 50724338.67 | AB42: Prop. Tax Value | AC42: =-AC29 -> 157284771.1 | AD42: =AC42/(($AC42/$AX42)^(1/21)) -> 148520939.1 | AE42: =AD42/(($AC42/$AX42)^(1/21)) -> 140245423.7 | AF42: 132431016 | AG42: 125052023.4 | AH42: 118084184.6 | AI42: 111504590.6 | AJ42: 105291608.3 | AK42: 99424810.43 | AL42: 93884907.72 | AM42: 88653685.73 | AN42: 83713944.91 | AO42: 79049444.09 | AP42: 74644847.01 | AQ42: 70485671.96 | AR42: 66558244.16 | AS42: 62849650.74 | AT42: 59347698.37 | AU42: 56040873.11 | AV42: 52918302.56 | AW42: 49969720.14 | AX42: =AX29 -> 47185431.32 | BB42: Prop. Tax Value | BC42: =-BC29 -> 157284771.1 | BD42: =BC42/(($BC42/$BX42)^(1/21)) -> 148520939.1 | BE42: =BD42/(($BC42/$BX42)^(1/21)) -> 140245423.7 | BF42: 132431016 | BG42: 125052023.4 | BH42: 118084184.6 | BI42: 111504590.6 | BJ42: 105291608.3 | BK42: 99424810.43 | BL42: 93884907.72 | BM42: 88653685.73 | BN42: 83713944.91 | BO42: 79049444.09 | BP42: 74644847.01 | BQ42: 70485671.96 | BR42: 66558244.16 | BS42: 62849650.74 | BT42: 59347698.37 | BU42: 56040873.11 | BV42: 52918302.56 | BW42: 49969720.14 | BX42: =BX29 -> 47185431.32 | CB42: Prop. Tax Value | CC42: =-CC29 -> 393935959.1 | CD42: =CC42/(($CC42/$CX42)^(1/21)) -> 371986036.5 | CE42: =CD42/(($CC42/$CX42)^(1/21)) -> 351259153.2 | CF42: 331687161.8 | CG42: 313205712.3 | CH42: 295754040.4 | CI42: 279274767.2 | CJ42: 263713711.2 | CK42: 249019709.8 | CL42: 235144451.1 | CM42: 222042315.2 | CN42: 209670224 | CO42: 197987499.7 | CP42: 186955731.3 | CQ42: 176538647.7 | CR42: 166701999 | CS42: 157413443.6 | CT42: 148642442.1 | CU42: 140360156.6 | CV42: 132539356 | CW42: 125154326.7 | CX42: =CX29 -> 118180787.7
B43: Tax Dep | D43: =$C$29*-D$5 -> 33816225.78 | E43: =$C$29*-E$5 -> 54105961.25 | F43: 32463576.75 | G43: 19478146.05 | H43: 19478146.05 | I43: 9739073.025 | AB43: Tax Dep | AD43: =$C$29*-D$5 -> 33816225.78 | AE43: =$C$29*-E$5 -> 54105961.25 | AF43: 32463576.75 | AG43: 19478146.05 | AH43: 19478146.05 | AI43: 9739073.025 | BB43: Tax Dep | BD43: =$C$29*-D$5 -> 33816225.78 | BE43: =$C$29*-E$5 -> 54105961.25 | BF43: 32463576.75 | BG43: 19478146.05 | BH43: 19478146.05 | BI43: 9739073.025 | CB43: Tax Dep | CD43: =$CC$29*-D$5 -> 78787191.82 | CE43: =$CC$29*-E$5 -> 126059506.9 | CF43: 75635704.15 | CG43: 45381422.49 | CH43: 45381422.49 | CI43: 22690711.24
B44: After Tax Dep. Value | D44: =D43*$B$7 -> 7101407.414 | E44: =E43*$B$7 -> 11362251.86 | F44: 6817351.117 | G44: 4090410.67 | H44: 4090410.67 | I44: 2045205.335 | AB44: After Tax Dep. Value | AD44: =AD43*$B$7 -> 7101407.414 | AE44: =AE43*$B$7 -> 11362251.86 | AF44: =AF43*$B$7 -> 6817351.117 | AG44: =AG43*$B$7 -> 4090410.67 | AH44: =AH43*$B$7 -> 4090410.67 | AI44: =AI43*$B$7 -> 2045205.335 | BB44: After Tax Dep. Value | BD44: =BD43*$B$7 -> 7101407.414 | BE44: =BE43*$B$7 -> 11362251.86 | BF44: =BF43*$B$7 -> 6817351.117 | BG44: =BG43*$B$7 -> 4090410.67 | BH44: =BH43*$B$7 -> 4090410.67 | BI44: =BI43*$B$7 -> 2045205.335 | CB44: After Tax Dep. Value | CD44: =CD43*$B$7 -> 16545310.28 | CE44: =CE43*$B$7 -> 26472496.45 | CF44: =CF43*$B$7 -> 15883497.87 | CG44: =CG43*$B$7 -> 9530098.722 | CH44: =CH43*$B$7 -> 9530098.722 | CI44: =CI43*$B$7 -> 4765049.361
B46: Dep. Tax Equity | C46: =NPV($B$10,D44:I44) -> 29525817.08 | D46: =C46/C50 -> 0.1746251475 | AB46: Dep. Tax Equity | AC46: =NPV($B$10,AD44:AI44) -> 29525817.08 | AD46: =AC46/AC50 -> 0.1877220336 | BB46: Dep. Tax Equity | BC46: =NPV($B$10,BD44:BI44) -> 29525817.08 | BD46: =BC46/BC50 -> 0.1877220336 | CB46: Dep. Tax Equity | CC46: =NPV($B$10,CD44:CI44) -> 68791124.98 | CD46: =CC46/CC50 -> 0.1746251475
B47: PTC Tax Equity | C47: =NPV($B$10,D25:W25) -> 62299255.12 | D47: =C47/C50 -> 0.3684577666 | AB47: PTC Tax Equity | AC47: =NPV($B$10,AD25:AW25) -> 62299255.12 | AD47: =AC47/AC50 -> 0.3960920991 | BB47: PTC Tax Equity | BC47: =NPV($B$10,BD25:BW25) -> 80820655.3 | BD47: =BC47/BC50 -> 0.5138492096 | CB47: PTC Tax Equity | CC47: =NPV($B$10,CD25:CW25) -> 83189903.75 | CD47: =CC47/CC50 -> 0.2111762124
A48: 0.85 | B48: Debt | C48: =(C50-C46-C47)*$A48 -> 65667648.19 | D48: =C48/C50 -> 0.388379523 | AA48: 0.85 | AB48: Debt | AC48: =(AC50-AC46-AC47)*$A48 -> 55640744.04 | AD48: =AC48/AC50 -> 0.3537579872 | BA48: 0.85 | BB48: Debt | BC48: =(BC50-BC46-BC47)*$A48 -> 39897553.89 | BD48: =BC48/BC50 -> 0.2536644433 | CA48: 0.85 | CB48: Debt | CC48: =(CC50-CC46-CC47)*$A48 -> 205661690.8 | CD48: =CC48/CC50 -> 0.5220688441
A49: 0.15 | B49: Equity | C49: =(C50-C46-C47)*$A49 -> 11588408.5 | D49: =C49/C50 -> 0.06853756288 | AA49: 0.15 | AB49: Equity | AC49: =(AC50-AC46-AC47)*$A49 -> 9818954.83 | AD49: =AC49/AC50 -> 0.0624278801 | BA49: 0.15 | BB49: Equity | BC49: =(BC50-BC46-BC47)*$A49 -> 7040744.804 | BD49: =BC49/BC50 -> 0.04476431352 | CA49: 0.15 | CB49: Equity | CC49: =(CC50-CC46-CC47)*$A49 -> 36293239.55 | CD49: =CC49/CC50 -> 0.09212979601
B50: Total | C50: =-C29 -> 169081128.9 | AB50: Total | AC50: =-AC29 -> 157284771.1 | BB50: Total | BC50: =-BC29 -> 157284771.1 | CB50: Total | CC50: =-CC29 -> 393935959.1
B51: Check | C51: =SUM(C46:C49)-C50 -> 0 | AB51: Check | AC51: =SUM(AC46:AC49)-AC50 -> 0 | BB51: Check | BC51: =SUM(BC46:BC49)-BC50 -> 0 | CB51: Check | CC51: =SUM(CC46:CC49)-CC50 -> 0
B52: 2021 On-System Wind | AB52: 2021 Off-System Wind | BB52: 2021 Mt Wind | CB52: 2021 Off Shore Wind
B53: Year | D53: 2021 | E53: =D53+1 -> 2022 | F53: =E53+1 -> 2023 | G53: 2024 | H53: 2025 | I53: 2026 | J53: 2027 | K53: 2028 | L53: 2029 | M53: 2030 | N53: 2031 | O53: 2032 | P53: 2033 | Q53: 2034 | R53: 2035 | S53: 2036 | T53: 2037 | U53: 2038 | V53: 2039 | W53: 2040 | AB53: Year | AD53: 2021 | AE53: =AD53+1 -> 2022 | AF53: =AE53+1 -> 2023 | AG53: 2024 | AH53: 2025 | AI53: 2026 | AJ53: 2027 | AK53: 2028 | AL53: 2029 | AM53: 2030 | AN53: 2031 | AO53: 2032 | AP53: 2033 | AQ53: 2034 | AR53: 2035 | AS53: 2036 | AT53: 2037 | AU53: 2038 | AV53: 2039 | AW53: 2040 | BB53: Year | BD53: 2021 | BE53: =BD53+1 -> 2022 | BF53: =BE53+1 -> 2023 | BG53: 2024 | BH53: 2025 | BI53: 2026 | BJ53: 2027 | BK53: 2028 | BL53: 2029 | BM53: 2030 | BN53: 2031 | BO53: 2032 | BP53: 2033 | BQ53: 2034 | BR53: 2035 | BS53: 2036 | BT53: 2037 | BU53: 2038 | BV53: 2039 | BW53: 2040 | CB53: Year | CD53: 2021 | CE53: =CD53+1 -> 2022 | CF53: =CE53+1 -> 2023 | CG53: 2024 | CH53: 2025 | CI53: 2026 | CJ53: 2027 | CK53: 2028 | CL53: 2029 | CM53: 2030 | CN53: 2031 | CO53: 2032 | CP53: 2033 | CQ53: 2034 | CR53: 2035 | CS53: 2036 | CT53: 2037 | CU53: 2038 | CV53: 2039 | CW53: 2040
B54: MWh | D54: =('Resource Options'!$V$22/100*'Resource Options'!$J$22*8760)*(1+'Resource Options'!$X$22)^($D53-$D$13) -> 328993.4683 | E54: =('Resource Options'!$V$22/100*'Resource Options'!$J$22*8760)*(1+'Resource Options'!$X$22)^($D53-$D$13) -> 328993.4683 | F54: =('Resource Options'!$V$22/100*'Resource Options'!$J$22*8760)*(1+'Resource Options'!$X$22)^($D53-$D$13) -> 328993.4683 | G54: =('Resource Options'!$V$22/100*'Resource Options'!$J$22*8760)*(1+'Resource Options'!$X$22)^($D53-$D$13) -> 328993.4683 | H54: =('Resource Options'!$V$22/100*'Resource Options'!$J$22*8760)*(1+'Resource Options'!$X$22)^($D53-$D$13) -> 328993.4683 | I54: =('Resource Options'!$V$22/100*'Resource Options'!$J$22*8760)*(1+'Resource Options'!$X$22)^($D53-$D$13) -> 328993.4683 | J54: =('Resource Options'!$V$22/100*'Resource Options'!$J$22*8760)*(1+'Resource Options'!$X$22)^($D53-$D$13) -> 328993.4683 | K54: =('Resource Options'!$V$22/100*'Resource Options'!$J$22*8760)*(1+'Resource Options'!$X$22)^($D53-$D$13) -> 328993.4683 | L54: =('Resource Options'!$V$22/100*'Resource Options'!$J$22*8760)*(1+'Resource Options'!$X$22)^($D53-$D$13) -> 328993.4683 | M54: =('Resource Options'!$V$22/100*'Resource Options'!$J$22*8760)*(1+'Resource Options'!$X$22)^($D53-$D$13) -> 328993.4683 | N54: =('Resource Options'!$V$22/100*'Resource Options'!$J$22*8760)*(1+'Resource Options'!$X$22)^($D53-$D$13) -> 328993.4683 | O54: =('Resource Options'!$V$22/100*'Resource Options'!$J$22*8760)*(1+'Resource Options'!$X$22)^($D53-$D$13) -> 328993.4683 | P54: =('Resource Options'!$V$22/100*'Resource Options'!$J$22*8760)*(1+'Resource Options'!$X$22)^($D53-$D$13) -> 328993.4683 | Q54: =('Resource Options'!$V$22/100*'Resource Options'!$J$22*8760)*(1+'Resource Options'!$X$22)^($D53-$D$13) -> 328993.4683 | R54: =('Resource Options'!$V$22/100*'Resource Options'!$J$22*8760)*(1+'Resource Options'!$X$22)^($D53-$D$13) -> 328993.4683 | S54: =('Resource Options'!$V$22/100*'Resource Options'!$J$22*8760)*(1+'Resource Options'!$X$22)^($D53-$D$13) -> 328993.4683 | T54: =('Resource Options'!$V$22/100*'Resource Options'!$J$22*8760)*(1+'Resource Options'!$X$22)^($D53-$D$13) -> 328993.4683 | U54: =('Resource Options'!$V$22/100*'Resource Options'!$J$22*8760)*(1+'Resource Options'!$X$22)^($D53-$D$13) -> 328993.4683 | V54: =('Resource Options'!$V$22/100*'Resource Options'!$J$22*8760)*(1+'Resource Options'!$X$22)^($D53-$D$13) -> 328993.4683 | W54: =('Resource Options'!$V$22/100*'Resource Options'!$J$22*8760)*(1+'Resource Options'!$X$22)^($D53-$D$13) -> 328993.4683 | AB54: MWh | AD54: =('Resource Options'!$V$23/100*'Resource Options'!$J$23*8760)*(1+'Resource Options'!$X$23)^($AD53-$AD$13) -> 328993.4683 | AE54: =('Resource Options'!$V$23/100*'Resource Options'!$J$23*8760)*(1+'Resource Options'!$X$23)^($AD53-$AD$13) -> 328993.4683 | AF54: =('Resource Options'!$V$23/100*'Resource Options'!$J$23*8760)*(1+'Resource Options'!$X$23)^($AD53-$AD$13) -> 328993.4683 | AG54: =('Resource Options'!$V$23/100*'Resource Options'!$J$23*8760)*(1+'Resource Options'!$X$23)^($AD53-$AD$13) -> 328993.4683 | AH54: =('Resource Options'!$V$23/100*'Resource Options'!$J$23*8760)*(1+'Resource Options'!$X$23)^($AD53-$AD$13) -> 328993.4683 | AI54: =('Resource Options'!$V$23/100*'Resource Options'!$J$23*8760)*(1+'Resource Options'!$X$23)^($AD53-$AD$13) -> 328993.4683 | AJ54: =('Resource Options'!$V$23/100*'Resource Options'!$J$23*8760)*(1+'Resource Options'!$X$23)^($AD53-$AD$13) -> 328993.4683 | AK54: =('Resource Options'!$V$23/100*'Resource Options'!$J$23*8760)*(1+'Resource Options'!$X$23)^($AD53-$AD$13) -> 328993.4683 | AL54: =('Resource Options'!$V$23/100*'Resource Options'!$J$23*8760)*(1+'Resource Options'!$X$23)^($AD53-$AD$13) -> 328993.4683 | AM54: =('Resource Options'!$V$23/100*'Resource Options'!$J$23*8760)*(1+'Resource Options'!$X$23)^($AD53-$AD$13) -> 328993.4683 | AN54: =('Resource Options'!$V$23/100*'Resource Options'!$J$23*8760)*(1+'Resource Options'!$X$23)^($AD53-$AD$13) -> 328993.4683 | AO54: =('Resource Options'!$V$23/100*'Resource Options'!$J$23*8760)*(1+'Resource Options'!$X$23)^($AD53-$AD$13) -> 328993.4683 | AP54: =('Resource Options'!$V$23/100*'Resource Options'!$J$23*8760)*(1+'Resource Options'!$X$23)^($AD53-$AD$13) -> 328993.4683 | AQ54: =('Resource Options'!$V$23/100*'Resource Options'!$J$23*8760)*(1+'Resource Options'!$X$23)^($AD53-$AD$13) -> 328993.4683 | AR54: =('Resource Options'!$V$23/100*'Resource Options'!$J$23*8760)*(1+'Resource Options'!$X$23)^($AD53-$AD$13) -> 328993.4683 | AS54: =('Resource Options'!$V$23/100*'Resource Options'!$J$23*8760)*(1+'Resource Options'!$X$23)^($AD53-$AD$13) -> 328993.4683 | AT54: =('Resource Options'!$V$23/100*'Resource Options'!$J$23*8760)*(1+'Resource Options'!$X$23)^($AD53-$AD$13) -> 328993.4683 | AU54: =('Resource Options'!$V$23/100*'Resource Options'!$J$23*8760)*(1+'Resource Options'!$X$23)^($AD53-$AD$13) -> 328993.4683 | AV54: =('Resource Options'!$V$23/100*'Resource Options'!$J$23*8760)*(1+'Resource Options'!$X$23)^($AD53-$AD$13) -> 328993.4683 | AW54: =('Resource Options'!$V$23/100*'Resource Options'!$J$23*8760)*(1+'Resource Options'!$X$23)^($AD53-$AD$13) -> 328993.4683 | BB54: MWh | BD54: =('Resource Options'!$V$24/100*'Resource Options'!$J$24*8760)*(1+'Resource Options'!$X$24)^($AD53-$AD$13) -> 426802.3373 | BE54: =('Resource Options'!$V$24/100*'Resource Options'!$J$24*8760)*(1+'Resource Options'!$X$24)^($AD53-$AD$13) -> 426802.3373 | BF54: =('Resource Options'!$V$24/100*'Resource Options'!$J$24*8760)*(1+'Resource Options'!$X$24)^($AD53-$AD$13) -> 426802.3373 | BG54: =('Resource Options'!$V$24/100*'Resource Options'!$J$24*8760)*(1+'Resource Options'!$X$24)^($AD53-$AD$13) -> 426802.3373 | BH54: =('Resource Options'!$V$24/100*'Resource Options'!$J$24*8760)*(1+'Resource Options'!$X$24)^($AD53-$AD$13) -> 426802.3373 | BI54: =('Resource Options'!$V$24/100*'Resource Options'!$J$24*8760)*(1+'Resource Options'!$X$24)^($AD53-$AD$13) -> 426802.3373 | BJ54: =('Resource Options'!$V$24/100*'Resource Options'!$J$24*8760)*(1+'Resource Options'!$X$24)^($AD53-$AD$13) -> 426802.3373 | BK54: =('Resource Options'!$V$24/100*'Resource Options'!$J$24*8760)*(1+'Resource Options'!$X$24)^($AD53-$AD$13) -> 426802.3373 | BL54: =('Resource Options'!$V$24/100*'Resource Options'!$J$24*8760)*(1+'Resource Options'!$X$24)^($AD53-$AD$13) -> 426802.3373 | BM54: =('Resource Options'!$V$24/100*'Resource Options'!$J$24*8760)*(1+'Resource Options'!$X$24)^($AD53-$AD$13) -> 426802.3373 | BN54: =('Resource Options'!$V$24/100*'Resource Options'!$J$24*8760)*(1+'Resource Options'!$X$24)^($AD53-$AD$13) -> 426802.3373 | BO54: =('Resource Options'!$V$24/100*'Resource Options'!$J$24*8760)*(1+'Resource Options'!$X$24)^($AD53-$AD$13) -> 426802.3373 | BP54: =('Resource Options'!$V$24/100*'Resource Options'!$J$24*8760)*(1+'Resource Options'!$X$24)^($AD53-$AD$13) -> 426802.3373 | BQ54: =('Resource Options'!$V$24/100*'Resource Options'!$J$24*8760)*(1+'Resource Options'!$X$24)^($AD53-$AD$13) -> 426802.3373 | BR54: =('Resource Options'!$V$24/100*'Resource Options'!$J$24*8760)*(1+'Resource Options'!$X$24)^($AD53-$AD$13) -> 426802.3373 | BS54: =('Resource Options'!$V$24/100*'Resource Options'!$J$24*8760)*(1+'Resource Options'!$X$24)^($AD53-$AD$13) -> 426802.3373 | BT54: =('Resource Options'!$V$24/100*'Resource Options'!$J$24*8760)*(1+'Resource Options'!$X$24)^($AD53-$AD$13) -> 426802.3373 | BU54: =('Resource Options'!$V$24/100*'Resource Options'!$J$24*8760)*(1+'Resource Options'!$X$24)^($AD53-$AD$13) -> 426802.3373 | BV54: =('Resource Options'!$V$24/100*'Resource Options'!$J$24*8760)*(1+'Resource Options'!$X$24)^($AD53-$AD$13) -> 426802.3373 | BW54: =('Resource Options'!$V$24/100*'Resource Options'!$J$24*8760)*(1+'Resource Options'!$X$24)^($AD53-$AD$13) -> 426802.3373 | CB54: MWh | CD54: =('Resource Options'!$V$25/100*'Resource Options'!$J$25*8760)*(1+'Resource Options'!$X$25)^($AD53-$AD$13) -> 439314 | CE54: =('Resource Options'!$V$25/100*'Resource Options'!$J$25*8760)*(1+'Resource Options'!$X$25)^($AD53-$AD$13) -> 439314 | CF54: =('Resource Options'!$V$25/100*'Resource Options'!$J$25*8760)*(1+'Resource Options'!$X$25)^($AD53-$AD$13) -> 439314 | CG54: =('Resource Options'!$V$25/100*'Resource Options'!$J$25*8760)*(1+'Resource Options'!$X$25)^($AD53-$AD$13) -> 439314 | CH54: =('Resource Options'!$V$25/100*'Resource Options'!$J$25*8760)*(1+'Resource Options'!$X$25)^($AD53-$AD$13) -> 439314 | CI54: =('Resource Options'!$V$25/100*'Resource Options'!$J$25*8760)*(1+'Resource Options'!$X$25)^($AD53-$AD$13) -> 439314 | CJ54: =('Resource Options'!$V$25/100*'Resource Options'!$J$25*8760)*(1+'Resource Options'!$X$25)^($AD53-$AD$13) -> 439314 | CK54: =('Resource Options'!$V$25/100*'Resource Options'!$J$25*8760)*(1+'Resource Options'!$X$25)^($AD53-$AD$13) -> 439314 | CL54: =('Resource Options'!$V$25/100*'Resource Options'!$J$25*8760)*(1+'Resource Options'!$X$25)^($AD53-$AD$13) -> 439314 | CM54: =('Resource Options'!$V$25/100*'Resource Options'!$J$25*8760)*(1+'Resource Options'!$X$25)^($AD53-$AD$13) -> 439314 | CN54: =('Resource Options'!$V$25/100*'Resource Options'!$J$25*8760)*(1+'Resource Options'!$X$25)^($AD53-$AD$13) -> 439314 | CO54: =('Resource Options'!$V$25/100*'Resource Options'!$J$25*8760)*(1+'Resource Options'!$X$25)^($AD53-$AD$13) -> 439314 | CP54: =('Resource Options'!$V$25/100*'Resource Options'!$J$25*8760)*(1+'Resource Options'!$X$25)^($AD53-$AD$13) -> 439314 | CQ54: =('Resource Options'!$V$25/100*'Resource Options'!$J$25*8760)*(1+'Resource Options'!$X$25)^($AD53-$AD$13) -> 439314 | CR54: =('Resource Options'!$V$25/100*'Resource Options'!$J$25*8760)*(1+'Resource Options'!$X$25)^($AD53-$AD$13) -> 439314 | CS54: =('Resource Options'!$V$25/100*'Resource Options'!$J$25*8760)*(1+'Resource Options'!$X$25)^($AD53-$AD$13) -> 439314 | CT54: =('Resource Options'!$V$25/100*'Resource Options'!$J$25*8760)*(1+'Resource Options'!$X$25)^($AD53-$AD$13) -> 439314 | CU54: =('Resource Options'!$V$25/100*'Resource Options'!$J$25*8760)*(1+'Resource Options'!$X$25)^($AD53-$AD$13) -> 439314 | CV54: =('Resource Options'!$V$25/100*'Resource Options'!$J$25*8760)*(1+'Resource Options'!$X$25)^($AD53-$AD$13) -> 439314 | CW54: =('Resource Options'!$V$25/100*'Resource Options'!$J$25*8760)*(1+'Resource Options'!$X$25)^($AD53-$AD$13) -> 439314
B55: PPA Rate ($/MWh) | D55: ='PPA Summary'!M5 -> 32.77812364 | E55: =D55 -> 32.77812364 | F55: =E55 -> 32.77812364 | G55: 32.77812364 | H55: 32.77812364 | I55: 32.77812364 | J55: 32.77812364 | K55: 32.77812364 | L55: 32.77812364 | M55: 32.77812364 | N55: 32.77812364 | O55: 32.77812364 | P55: 32.77812364 | Q55: 32.77812364 | R55: 32.77812364 | S55: 32.77812364 | T55: 32.77812364 | U55: 32.77812364 | V55: 32.77812364 | W55: 32.77812364 | AB55: PPA Rate ($/MWh) | AD55: ='PPA Summary'!P5 -> 28.680761 | AE55: =AD55 -> 28.680761 | AF55: =AE55 -> 28.680761 | AG55: 28.680761 | AH55: 28.680761 | AI55: 28.680761 | AJ55: 28.680761 | AK55: 28.680761 | AL55: 28.680761 | AM55: 28.680761 | AN55: 28.680761 | AO55: 28.680761 | AP55: 28.680761 | AQ55: 28.680761 | AR55: 28.680761 | AS55: 28.680761 | AT55: 28.680761 | AU55: 28.680761 | AV55: 28.680761 | AW55: 28.680761 | BB55: PPA Rate ($/MWh) | BD55: ='PPA Summary'!$S$5 -> 16.11168633 | BE55: =BD55 -> 16.11168633 | BF55: =BE55 -> 16.11168633 | BG55: 16.11168633 | BH55: 16.11168633 | BI55: 16.11168633 | BJ55: 16.11168633 | BK55: 16.11168633 | BL55: 16.11168633 | BM55: 16.11168633 | BN55: 16.11168633 | BO55: 16.11168633 | BP55: 16.11168633 | BQ55: 16.11168633 | BR55: 16.11168633 | BS55: 16.11168633 | BT55: 16.11168633 | BU55: 16.11168633 | BV55: 16.11168633 | BW55: 16.11168633 | CB55: PPA Rate ($/MWh) | CD55: ='PPA Summary'!V5 -> 85.2021106 | CE55: =CD55 -> 85.2021106 | CF55: =CE55 -> 85.2021106 | CG55: 85.2021106 | CH55: 85.2021106 | CI55: 85.2021106 | CJ55: 85.2021106 | CK55: 85.2021106 | CL55: 85.2021106 | CM55: 85.2021106 | CN55: 85.2021106 | CO55: 85.2021106 | CP55: 85.2021106 | CQ55: 85.2021106 | CR55: 85.2021106 | CS55: 85.2021106 | CT55: 85.2021106 | CU55: 85.2021106 | CV55: 85.2021106 | CW55: 85.2021106
B56: Revenue | D56: =D55*D54 -> 10783788.58 | E56: =E55*E54 -> 10783788.58 | F56: =F55*F54 -> 10783788.58 | G56: =G55*G54 -> 10783788.58 | H56: =H55*H54 -> 10783788.58 | I56: =I55*I54 -> 10783788.58 | J56: =J55*J54 -> 10783788.58 | K56: =K55*K54 -> 10783788.58 | L56: =L55*L54 -> 10783788.58 | M56: =M55*M54 -> 10783788.58 | N56: =N55*N54 -> 10783788.58 | O56: =O55*O54 -> 10783788.58 | P56: =P55*P54 -> 10783788.58 | Q56: =Q55*Q54 -> 10783788.58 | R56: =R55*R54 -> 10783788.58 | S56: =S55*S54 -> 10783788.58 | T56: =T55*T54 -> 10783788.58 | U56: =U55*U54 -> 10783788.58 | V56: =V55*V54 -> 10783788.58 | W56: =W55*W54 -> 10783788.58 | AB56: Revenue | AD56: =AD55*AD54 -> 9435783.034 | AE56: =AE55*AE54 -> 9435783.034 | AF56: =AF55*AF54 -> 9435783.034 | AG56: =AG55*AG54 -> 9435783.034 | AH56: =AH55*AH54 -> 9435783.034 | AI56: =AI55*AI54 -> 9435783.034 | AJ56: =AJ55*AJ54 -> 9435783.034 | AK56: =AK55*AK54 -> 9435783.034 | AL56: =AL55*AL54 -> 9435783.034 | AM56: =AM55*AM54 -> 9435783.034 | AN56: =AN55*AN54 -> 9435783.034 | AO56: =AO55*AO54 -> 9435783.034 | AP56: =AP55*AP54 -> 9435783.034 | AQ56: =AQ55*AQ54 -> 9435783.034 | AR56: =AR55*AR54 -> 9435783.034 | AS56: =AS55*AS54 -> 9435783.034 | AT56: =AT55*AT54 -> 9435783.034 | AU56: =AU55*AU54 -> 9435783.034 | AV56: =AV55*AV54 -> 9435783.034 | AW56: =AW55*AW54 -> 9435783.034 | BB56: Revenue | BD56: =BD55*BD54 -> 6876505.384 | BE56: =BE55*BE54 -> 6876505.384 | BF56: =BF55*BF54 -> 6876505.384 | BG56: =BG55*BG54 -> 6876505.384 | BH56: =BH55*BH54 -> 6876505.384 | BI56: =BI55*BI54 -> 6876505.384 | BJ56: =BJ55*BJ54 -> 6876505.384 | BK56: =BK55*BK54 -> 6876505.384 | BL56: =BL55*BL54 -> 6876505.384 | BM56: =BM55*BM54 -> 6876505.384 | BN56: =BN55*BN54 -> 6876505.384 | BO56: =BO55*BO54 -> 6876505.384 | BP56: =BP55*BP54 -> 6876505.384 | BQ56: =BQ55*BQ54 -> 6876505.384 | BR56: =BR55*BR54 -> 6876505.384 | BS56: =BS55*BS54 -> 6876505.384 | BT56: =BT55*BT54 -> 6876505.384 | BU56: =BU55*BU54 -> 6876505.384 | BV56: =BV55*BV54 -> 6876505.384 | BW56: =BW55*BW54 -> 6876505.384 | CB56: Revenue | CD56: =CD55*CD54 -> 37430480.02 | CE56: =CE55*CE54 -> 37430480.02 | CF56: =CF55*CF54 -> 37430480.02 | CG56: =CG55*CG54 -> 37430480.02 | CH56: =CH55*CH54 -> 37430480.02 | CI56: =CI55*CI54 -> 37430480.02 | CJ56: =CJ55*CJ54 -> 37430480.02 | CK56: =CK55*CK54 -> 37430480.02 | CL56: =CL55*CL54 -> 37430480.02 | CM56: =CM55*CM54 -> 37430480.02 | CN56: =CN55*CN54 -> 37430480.02 | CO56: =CO55*CO54 -> 37430480.02 | CP56: =CP55*CP54 -> 37430480.02 | CQ56: =CQ55*CQ54 -> 37430480.02 | CR56: =CR55*CR54 -> 37430480.02 | CS56: =CS55*CS54 -> 37430480.02 | CT56: =CT55*CT54 -> 37430480.02 | CU56: =CU55*CU54 -> 37430480.02 | CV56: =CV55*CV54 -> 37430480.02 | CW56: =CW55*CW54 -> 37430480.02
B58: Fixed O&M | D58: =HLOOKUP(D53,'Fixed O&M'!$C$4:$AU$49,ROW('Fixed O&M'!$B$20)-ROW('Fixed O&M'!$B$4)+1,FALSE)*'Resource Options'!$J$22*1000 -> 3758798.736 | E58: =HLOOKUP(E53,'Fixed O&M'!$C$4:$AU$49,ROW('Fixed O&M'!$B$20)-ROW('Fixed O&M'!$B$4)+1,FALSE)*'Resource Options'!$J$22*1000 -> 3833974.711 | F58: =HLOOKUP(F53,'Fixed O&M'!$C$4:$AU$49,ROW('Fixed O&M'!$B$20)-ROW('Fixed O&M'!$B$4)+1,FALSE)*'Resource Options'!$J$22*1000 -> 3910654.205 | G58: =HLOOKUP(G53,'Fixed O&M'!$C$4:$AU$49,ROW('Fixed O&M'!$B$20)-ROW('Fixed O&M'!$B$4)+1,FALSE)*'Resource Options'!$J$22*1000 -> 3988867.289 | H58: =HLOOKUP(H53,'Fixed O&M'!$C$4:$AU$49,ROW('Fixed O&M'!$B$20)-ROW('Fixed O&M'!$B$4)+1,FALSE)*'Resource Options'!$J$22*1000 -> 4068644.635 | I58: =HLOOKUP(I53,'Fixed O&M'!$C$4:$AU$49,ROW('Fixed O&M'!$B$20)-ROW('Fixed O&M'!$B$4)+1,FALSE)*'Resource Options'!$J$22*1000 -> 4150017.528 | J58: =HLOOKUP(J53,'Fixed O&M'!$C$4:$AU$49,ROW('Fixed O&M'!$B$20)-ROW('Fixed O&M'!$B$4)+1,FALSE)*'Resource Options'!$J$22*1000 -> 4233017.878 | K58: =HLOOKUP(K53,'Fixed O&M'!$C$4:$AU$49,ROW('Fixed O&M'!$B$20)-ROW('Fixed O&M'!$B$4)+1,FALSE)*'Resource Options'!$J$22*1000 -> 4317678.236 | L58: =HLOOKUP(L53,'Fixed O&M'!$C$4:$AU$49,ROW('Fixed O&M'!$B$20)-ROW('Fixed O&M'!$B$4)+1,FALSE)*'Resource Options'!$J$22*1000 -> 4404031.8 | M58: =HLOOKUP(M53,'Fixed O&M'!$C$4:$AU$49,ROW('Fixed O&M'!$B$20)-ROW('Fixed O&M'!$B$4)+1,FALSE)*'Resource Options'!$J$22*1000 -> 4492112.436 | N58: =HLOOKUP(N53,'Fixed O&M'!$C$4:$AU$49,ROW('Fixed O&M'!$B$20)-ROW('Fixed O&M'!$B$4)+1,FALSE)*'Resource Options'!$J$22*1000 -> 4581954.685 | O58: =HLOOKUP(O53,'Fixed O&M'!$C$4:$AU$49,ROW('Fixed O&M'!$B$20)-ROW('Fixed O&M'!$B$4)+1,FALSE)*'Resource Options'!$J$22*1000 -> 4673593.779 | P58: =HLOOKUP(P53,'Fixed O&M'!$C$4:$AU$49,ROW('Fixed O&M'!$B$20)-ROW('Fixed O&M'!$B$4)+1,FALSE)*'Resource Options'!$J$22*1000 -> 4767065.654 | Q58: =HLOOKUP(Q53,'Fixed O&M'!$C$4:$AU$49,ROW('Fixed O&M'!$B$20)-ROW('Fixed O&M'!$B$4)+1,FALSE)*'Resource Options'!$J$22*1000 -> 4862406.967 | R58: =HLOOKUP(R53,'Fixed O&M'!$C$4:$AU$49,ROW('Fixed O&M'!$B$20)-ROW('Fixed O&M'!$B$4)+1,FALSE)*'Resource Options'!$J$22*1000 -> 4959655.107 | S58: =HLOOKUP(S53,'Fixed O&M'!$C$4:$AU$49,ROW('Fixed O&M'!$B$20)-ROW('Fixed O&M'!$B$4)+1,FALSE)*'Resource Options'!$J$22*1000 -> 5058848.209 | T58: =HLOOKUP(T53,'Fixed O&M'!$C$4:$AU$49,ROW('Fixed O&M'!$B$20)-ROW('Fixed O&M'!$B$4)+1,FALSE)*'Resource Options'!$J$22*1000 -> 5160025.173 | U58: =HLOOKUP(U53,'Fixed O&M'!$C$4:$AU$49,ROW('Fixed O&M'!$B$20)-ROW('Fixed O&M'!$B$4)+1,FALSE)*'Resource Options'!$J$22*1000 -> 5263225.677 | V58: =HLOOKUP(V53,'Fixed O&M'!$C$4:$AU$49,ROW('Fixed O&M'!$B$20)-ROW('Fixed O&M'!$B$4)+1,FALSE)*'Resource Options'!$J$22*1000 -> 5368490.19 | W58: =HLOOKUP(W53,'Fixed O&M'!$C$4:$AU$49,ROW('Fixed O&M'!$B$20)-ROW('Fixed O&M'!$B$4)+1,FALSE)*'Resource Options'!$J$22*1000 -> 5475859.994 | AB58: Fixed O&M | AD58: =HLOOKUP(AD53,'Fixed O&M'!$C$4:$AU$49,ROW('Fixed O&M'!$B$21)-ROW('Fixed O&M'!$B$4)+1,FALSE)*'Resource Options'!$J$22*1000 -> 3758798.736 | AE58: =HLOOKUP(AE53,'Fixed O&M'!$C$4:$AU$49,ROW('Fixed O&M'!$B$21)-ROW('Fixed O&M'!$B$4)+1,FALSE)*'Resource Options'!$J$22*1000 -> 3833974.711 | AF58: =HLOOKUP(AF53,'Fixed O&M'!$C$4:$AU$49,ROW('Fixed O&M'!$B$21)-ROW('Fixed O&M'!$B$4)+1,FALSE)*'Resource Options'!$J$22*1000 -> 3910654.205 | AG58: =HLOOKUP(AG53,'Fixed O&M'!$C$4:$AU$49,ROW('Fixed O&M'!$B$21)-ROW('Fixed O&M'!$B$4)+1,FALSE)*'Resource Options'!$J$22*1000 -> 3988867.289 | AH58: =HLOOKUP(AH53,'Fixed O&M'!$C$4:$AU$49,ROW('Fixed O&M'!$B$21)-ROW('Fixed O&M'!$B$4)+1,FALSE)*'Resource Options'!$J$22*1000 -> 4068644.635 | AI58: =HLOOKUP(AI53,'Fixed O&M'!$C$4:$AU$49,ROW('Fixed O&M'!$B$21)-ROW('Fixed O&M'!$B$4)+1,FALSE)*'Resource Options'!$J$22*1000 -> 4150017.528 | AJ58: =HLOOKUP(AJ53,'Fixed O&M'!$C$4:$AU$49,ROW('Fixed O&M'!$B$21)-ROW('Fixed O&M'!$B$4)+1,FALSE)*'Resource Options'!$J$22*1000 -> 4233017.878 | AK58: =HLOOKUP(AK53,'Fixed O&M'!$C$4:$AU$49,ROW('Fixed O&M'!$B$21)-ROW('Fixed O&M'!$B$4)+1,FALSE)*'Resource Options'!$J$22*1000 -> 4317678.236 | AL58: =HLOOKUP(AL53,'Fixed O&M'!$C$4:$AU$49,ROW('Fixed O&M'!$B$21)-ROW('Fixed O&M'!$B$4)+1,FALSE)*'Resource Options'!$J$22*1000 -> 4404031.8 | AM58: =HLOOKUP(AM53,'Fixed O&M'!$C$4:$AU$49,ROW('Fixed O&M'!$B$21)-ROW('Fixed O&M'!$B$4)+1,FALSE)*'Resource Options'!$J$22*1000 -> 4492112.436 | AN58: =HLOOKUP(AN53,'Fixed O&M'!$C$4:$AU$49,ROW('Fixed O&M'!$B$21)-ROW('Fixed O&M'!$B$4)+1,FALSE)*'Resource Options'!$J$22*1000 -> 4581954.685 | AO58: =HLOOKUP(AO53,'Fixed O&M'!$C$4:$AU$49,ROW('Fixed O&M'!$B$21)-ROW('Fixed O&M'!$B$4)+1,FALSE)*'Resource Options'!$J$22*1000 -> 4673593.779 | AP58: =HLOOKUP(AP53,'Fixed O&M'!$C$4:$AU$49,ROW('Fixed O&M'!$B$21)-ROW('Fixed O&M'!$B$4)+1,FALSE)*'Resource Options'!$J$22*1000 -> 4767065.654 | AQ58: =HLOOKUP(AQ53,'Fixed O&M'!$C$4:$AU$49,ROW('Fixed O&M'!$B$21)-ROW('Fixed O&M'!$B$4)+1,FALSE)*'Resource Options'!$J$22*1000 -> 4862406.967 | AR58: =HLOOKUP(AR53,'Fixed O&M'!$C$4:$AU$49,ROW('Fixed O&M'!$B$21)-ROW('Fixed O&M'!$B$4)+1,FALSE)*'Resource Options'!$J$22*1000 -> 4959655.107 | AS58: =HLOOKUP(AS53,'Fixed O&M'!$C$4:$AU$49,ROW('Fixed O&M'!$B$21)-ROW('Fixed O&M'!$B$4)+1,FALSE)*'Resource Options'!$J$22*1000 -> 5058848.209 | AT58: =HLOOKUP(AT53,'Fixed O&M'!$C$4:$AU$49,ROW('Fixed O&M'!$B$21)-ROW('Fixed O&M'!$B$4)+1,FALSE)*'Resource Options'!$J$22*1000 -> 5160025.173 | AU58: =HLOOKUP(AU53,'Fixed O&M'!$C$4:$AU$49,ROW('Fixed O&M'!$B$21)-ROW('Fixed O&M'!$B$4)+1,FALSE)*'Resource Options'!$J$22*1000 -> 5263225.677 | AV58: =HLOOKUP(AV53,'Fixed O&M'!$C$4:$AU$49,ROW('Fixed O&M'!$B$21)-ROW('Fixed O&M'!$B$4)+1,FALSE)*'Resource Options'!$J$22*1000 -> 5368490.19 | AW58: =HLOOKUP(AW53,'Fixed O&M'!$C$4:$AU$49,ROW('Fixed O&M'!$B$21)-ROW('Fixed O&M'!$B$4)+1,FALSE)*'Resource Options'!$J$22*1000 -> 5475859.994 | BB58: Fixed O&M | BD58: =HLOOKUP(BD53,'Fixed O&M'!$C$4:$AU$49,ROW('Fixed O&M'!$B$22)-ROW('Fixed O&M'!$B$4)+1,FALSE)*'Resource Options'!$J$22*1000 -> 3758798.736 | BE58: =HLOOKUP(BE53,'Fixed O&M'!$C$4:$AU$49,ROW('Fixed O&M'!$B$22)-ROW('Fixed O&M'!$B$4)+1,FALSE)*'Resource Options'!$J$22*1000 -> 3833974.711 | BF58: =HLOOKUP(BF53,'Fixed O&M'!$C$4:$AU$49,ROW('Fixed O&M'!$B$22)-ROW('Fixed O&M'!$B$4)+1,FALSE)*'Resource Options'!$J$22*1000 -> 3910654.205 | BG58: =HLOOKUP(BG53,'Fixed O&M'!$C$4:$AU$49,ROW('Fixed O&M'!$B$22)-ROW('Fixed O&M'!$B$4)+1,FALSE)*'Resource Options'!$J$22*1000 -> 3988867.289 | BH58: =HLOOKUP(BH53,'Fixed O&M'!$C$4:$AU$49,ROW('Fixed O&M'!$B$22)-ROW('Fixed O&M'!$B$4)+1,FALSE)*'Resource Options'!$J$22*1000 -> 4068644.635 | BI58: =HLOOKUP(BI53,'Fixed O&M'!$C$4:$AU$49,ROW('Fixed O&M'!$B$22)-ROW('Fixed O&M'!$B$4)+1,FALSE)*'Resource Options'!$J$22*1000 -> 4150017.528 | BJ58: =HLOOKUP(BJ53,'Fixed O&M'!$C$4:$AU$49,ROW('Fixed O&M'!$B$22)-ROW('Fixed O&M'!$B$4)+1,FALSE)*'Resource Options'!$J$22*1000 -> 4233017.878 | BK58: =HLOOKUP(BK53,'Fixed O&M'!$C$4:$AU$49,ROW('Fixed O&M'!$B$22)-ROW('Fixed O&M'!$B$4)+1,FALSE)*'Resource Options'!$J$22*1000 -> 4317678.236 | BL58: =HLOOKUP(BL53,'Fixed O&M'!$C$4:$AU$49,ROW('Fixed O&M'!$B$22)-ROW('Fixed O&M'!$B$4)+1,FALSE)*'Resource Options'!$J$22*1000 -> 4404031.8 | BM58: =HLOOKUP(BM53,'Fixed O&M'!$C$4:$AU$49,ROW('Fixed O&M'!$B$22)-ROW('Fixed O&M'!$B$4)+1,FALSE)*'Resource Options'!$J$22*1000 -> 4492112.436 | BN58: =HLOOKUP(BN53,'Fixed O&M'!$C$4:$AU$49,ROW('Fixed O&M'!$B$22)-ROW('Fixed O&M'!$B$4)+1,FALSE)*'Resource Options'!$J$22*1000 -> 4581954.685 | BO58: =HLOOKUP(BO53,'Fixed O&M'!$C$4:$AU$49,ROW('Fixed O&M'!$B$22)-ROW('Fixed O&M'!$B$4)+1,FALSE)*'Resource Options'!$J$22*1000 -> 4673593.779 | BP58: =HLOOKUP(BP53,'Fixed O&M'!$C$4:$AU$49,ROW('Fixed O&M'!$B$22)-ROW('Fixed O&M'!$B$4)+1,FALSE)*'Resource Options'!$J$22*1000 -> 4767065.654 | BQ58: =HLOOKUP(BQ53,'Fixed O&M'!$C$4:$AU$49,ROW('Fixed O&M'!$B$22)-ROW('Fixed O&M'!$B$4)+1,FALSE)*'Resource Options'!$J$22*1000 -> 4862406.967 | BR58: =HLOOKUP(BR53,'Fixed O&M'!$C$4:$AU$49,ROW('Fixed O&M'!$B$22)-ROW('Fixed O&M'!$B$4)+1,FALSE)*'Resource Options'!$J$22*1000 -> 4959655.107 | BS58: =HLOOKUP(BS53,'Fixed O&M'!$C$4:$AU$49,ROW('Fixed O&M'!$B$22)-ROW('Fixed O&M'!$B$4)+1,FALSE)*'Resource Options'!$J$22*1000 -> 5058848.209 | BT58: =HLOOKUP(BT53,'Fixed O&M'!$C$4:$AU$49,ROW('Fixed O&M'!$B$22)-ROW('Fixed O&M'!$B$4)+1,FALSE)*'Resource Options'!$J$22*1000 -> 5160025.173 | BU58: =HLOOKUP(BU53,'Fixed O&M'!$C$4:$AU$49,ROW('Fixed O&M'!$B$22)-ROW('Fixed O&M'!$B$4)+1,FALSE)*'Resource Options'!$J$22*1000 -> 5263225.677 | BV58: =HLOOKUP(BV53,'Fixed O&M'!$C$4:$AU$49,ROW('Fixed O&M'!$B$22)-ROW('Fixed O&M'!$B$4)+1,FALSE)*'Resource Options'!$J$22*1000 -> 5368490.19 | BW58: =HLOOKUP(BW53,'Fixed O&M'!$C$4:$AU$49,ROW('Fixed O&M'!$B$22)-ROW('Fixed O&M'!$B$4)+1,FALSE)*'Resource Options'!$J$22*1000 -> 5475859.994 | CB58: Fixed O&M | CD58: =HLOOKUP(CD53,'Fixed O&M'!$C$4:$AU$49,ROW('Fixed O&M'!$B$23)-ROW('Fixed O&M'!$B$4)+1,FALSE)*'Resource Options'!$J$25*1000 -> 9550872 | CE58: =HLOOKUP(CE53,'Fixed O&M'!$C$4:$AU$49,ROW('Fixed O&M'!$B$23)-ROW('Fixed O&M'!$B$4)+1,FALSE)*'Resource Options'!$J$25*1000 -> 9741889.44 | CF58: =HLOOKUP(CF53,'Fixed O&M'!$C$4:$AU$49,ROW('Fixed O&M'!$B$23)-ROW('Fixed O&M'!$B$4)+1,FALSE)*'Resource Options'!$J$25*1000 -> 9936727.229 | CG58: =HLOOKUP(CG53,'Fixed O&M'!$C$4:$AU$49,ROW('Fixed O&M'!$B$23)-ROW('Fixed O&M'!$B$4)+1,FALSE)*'Resource Options'!$J$25*1000 -> 10135461.77 | CH58: =HLOOKUP(CH53,'Fixed O&M'!$C$4:$AU$49,ROW('Fixed O&M'!$B$23)-ROW('Fixed O&M'!$B$4)+1,FALSE)*'Resource Options'!$J$25*1000 -> 10338171.01 | CI58: =HLOOKUP(CI53,'Fixed O&M'!$C$4:$AU$49,ROW('Fixed O&M'!$B$23)-ROW('Fixed O&M'!$B$4)+1,FALSE)*'Resource Options'!$J$25*1000 -> 10544934.43 | CJ58: =HLOOKUP(CJ53,'Fixed O&M'!$C$4:$AU$49,ROW('Fixed O&M'!$B$23)-ROW('Fixed O&M'!$B$4)+1,FALSE)*'Resource Options'!$J$25*1000 -> 10755833.12 | CK58: =HLOOKUP(CK53,'Fixed O&M'!$C$4:$AU$49,ROW('Fixed O&M'!$B$23)-ROW('Fixed O&M'!$B$4)+1,FALSE)*'Resource Options'!$J$25*1000 -> 10970949.78 | CL58: =HLOOKUP(CL53,'Fixed O&M'!$C$4:$AU$49,ROW('Fixed O&M'!$B$23)-ROW('Fixed O&M'!$B$4)+1,FALSE)*'Resource Options'!$J$25*1000 -> 11190368.78 | CM58: =HLOOKUP(CM53,'Fixed O&M'!$C$4:$AU$49,ROW('Fixed O&M'!$B$23)-ROW('Fixed O&M'!$B$4)+1,FALSE)*'Resource Options'!$J$25*1000 -> 11414176.15 | CN58: =HLOOKUP(CN53,'Fixed O&M'!$C$4:$AU$49,ROW('Fixed O&M'!$B$23)-ROW('Fixed O&M'!$B$4)+1,FALSE)*'Resource Options'!$J$25*1000 -> 11642459.67 | CO58: =HLOOKUP(CO53,'Fixed O&M'!$C$4:$AU$49,ROW('Fixed O&M'!$B$23)-ROW('Fixed O&M'!$B$4)+1,FALSE)*'Resource Options'!$J$25*1000 -> 11875308.87 | CP58: =HLOOKUP(CP53,'Fixed O&M'!$C$4:$AU$49,ROW('Fixed O&M'!$B$23)-ROW('Fixed O&M'!$B$4)+1,FALSE)*'Resource Options'!$J$25*1000 -> 12112815.04 | CQ58: =HLOOKUP(CQ53,'Fixed O&M'!$C$4:$AU$49,ROW('Fixed O&M'!$B$23)-ROW('Fixed O&M'!$B$4)+1,FALSE)*'Resource Options'!$J$25*1000 -> 12355071.35 | CR58: =HLOOKUP(CR53,'Fixed O&M'!$C$4:$AU$49,ROW('Fixed O&M'!$B$23)-ROW('Fixed O&M'!$B$4)+1,FALSE)*'Resource Options'!$J$25*1000 -> 12602172.77 | CS58: =HLOOKUP(CS53,'Fixed O&M'!$C$4:$AU$49,ROW('Fixed O&M'!$B$23)-ROW('Fixed O&M'!$B$4)+1,FALSE)*'Resource Options'!$J$25*1000 -> 12854216.23 | CT58: =HLOOKUP(CT53,'Fixed O&M'!$C$4:$AU$49,ROW('Fixed O&M'!$B$23)-ROW('Fixed O&M'!$B$4)+1,FALSE)*'Resource Options'!$J$25*1000 -> 13111300.55 | CU58: =HLOOKUP(CU53,'Fixed O&M'!$C$4:$AU$49,ROW('Fixed O&M'!$B$23)-ROW('Fixed O&M'!$B$4)+1,FALSE)*'Resource Options'!$J$25*1000 -> 13373526.56 | CV58: =HLOOKUP(CV53,'Fixed O&M'!$C$4:$AU$49,ROW('Fixed O&M'!$B$23)-ROW('Fixed O&M'!$B$4)+1,FALSE)*'Resource Options'!$J$25*1000 -> 13640997.1 | CW58: =HLOOKUP(CW53,'Fixed O&M'!$C$4:$AU$49,ROW('Fixed O&M'!$B$23)-ROW('Fixed O&M'!$B$4)+1,FALSE)*'Resource Options'!$J$25*1000 -> 13913817.04
B59: Variable O&M | D59: =HLOOKUP(D53,'Variable O&M'!$B$4:$AT$49,ROW('Variable O&M'!$A$20)-ROW('Variable O&M'!$A$4)+1,FALSE)*D54 -> 0 | E59: =HLOOKUP(E53,'Variable O&M'!$B$4:$AT$49,ROW('Variable O&M'!$A$20)-ROW('Variable O&M'!$A$4)+1,FALSE)*E54 -> 0 | F59: =HLOOKUP(F53,'Variable O&M'!$B$4:$AT$49,ROW('Variable O&M'!$A$20)-ROW('Variable O&M'!$A$4)+1,FALSE)*F54 -> 0 | G59: =HLOOKUP(G53,'Variable O&M'!$B$4:$AT$49,ROW('Variable O&M'!$A$20)-ROW('Variable O&M'!$A$4)+1,FALSE)*G54 -> 0 | H59: =HLOOKUP(H53,'Variable O&M'!$B$4:$AT$49,ROW('Variable O&M'!$A$20)-ROW('Variable O&M'!$A$4)+1,FALSE)*H54 -> 0 | I59: =HLOOKUP(I53,'Variable O&M'!$B$4:$AT$49,ROW('Variable O&M'!$A$20)-ROW('Variable O&M'!$A$4)+1,FALSE)*I54 -> 0 | J59: =HLOOKUP(J53,'Variable O&M'!$B$4:$AT$49,ROW('Variable O&M'!$A$20)-ROW('Variable O&M'!$A$4)+1,FALSE)*J54 -> 0 | K59: =HLOOKUP(K53,'Variable O&M'!$B$4:$AT$49,ROW('Variable O&M'!$A$20)-ROW('Variable O&M'!$A$4)+1,FALSE)*K54 -> 0 | L59: =HLOOKUP(L53,'Variable O&M'!$B$4:$AT$49,ROW('Variable O&M'!$A$20)-ROW('Variable O&M'!$A$4)+1,FALSE)*L54 -> 0 | M59: =HLOOKUP(M53,'Variable O&M'!$B$4:$AT$49,ROW('Variable O&M'!$A$20)-ROW('Variable O&M'!$A$4)+1,FALSE)*M54 -> 0 | N59: =HLOOKUP(N53,'Variable O&M'!$B$4:$AT$49,ROW('Variable O&M'!$A$20)-ROW('Variable O&M'!$A$4)+1,FALSE)*N54 -> 0 | O59: =HLOOKUP(O53,'Variable O&M'!$B$4:$AT$49,ROW('Variable O&M'!$A$20)-ROW('Variable O&M'!$A$4)+1,FALSE)*O54 -> 0 | P59: =HLOOKUP(P53,'Variable O&M'!$B$4:$AT$49,ROW('Variable O&M'!$A$20)-ROW('Variable O&M'!$A$4)+1,FALSE)*P54 -> 0 | Q59: =HLOOKUP(Q53,'Variable O&M'!$B$4:$AT$49,ROW('Variable O&M'!$A$20)-ROW('Variable O&M'!$A$4)+1,FALSE)*Q54 -> 0 | R59: =HLOOKUP(R53,'Variable O&M'!$B$4:$AT$49,ROW('Variable O&M'!$A$20)-ROW('Variable O&M'!$A$4)+1,FALSE)*R54 -> 0 | S59: =HLOOKUP(S53,'Variable O&M'!$B$4:$AT$49,ROW('Variable O&M'!$A$20)-ROW('Variable O&M'!$A$4)+1,FALSE)*S54 -> 0 | T59: =HLOOKUP(T53,'Variable O&M'!$B$4:$AT$49,ROW('Variable O&M'!$A$20)-ROW('Variable O&M'!$A$4)+1,FALSE)*T54 -> 0 | U59: =HLOOKUP(U53,'Variable O&M'!$B$4:$AT$49,ROW('Variable O&M'!$A$20)-ROW('Variable O&M'!$A$4)+1,FALSE)*U54 -> 0 | V59: =HLOOKUP(V53,'Variable O&M'!$B$4:$AT$49,ROW('Variable O&M'!$A$20)-ROW('Variable O&M'!$A$4)+1,FALSE)*V54 -> 0 | W59: =HLOOKUP(W53,'Variable O&M'!$B$4:$AT$49,ROW('Variable O&M'!$A$20)-ROW('Variable O&M'!$A$4)+1,FALSE)*W54 -> 0 | AB59: Variable O&M | AD59: =HLOOKUP(AD53,'Variable O&M'!$B$4:$AT$49,ROW('Variable O&M'!$A$21)-ROW('Variable O&M'!$A$4)+1,FALSE)*AD54 -> 0 | AE59: =HLOOKUP(AE53,'Variable O&M'!$B$4:$AT$49,ROW('Variable O&M'!$A$21)-ROW('Variable O&M'!$A$4)+1,FALSE)*AE54 -> 0 | AF59: =HLOOKUP(AF53,'Variable O&M'!$B$4:$AT$49,ROW('Variable O&M'!$A$21)-ROW('Variable O&M'!$A$4)+1,FALSE)*AF54 -> 0 | AG59: =HLOOKUP(AG53,'Variable O&M'!$B$4:$AT$49,ROW('Variable O&M'!$A$21)-ROW('Variable O&M'!$A$4)+1,FALSE)*AG54 -> 0 | AH59: =HLOOKUP(AH53,'Variable O&M'!$B$4:$AT$49,ROW('Variable O&M'!$A$21)-ROW('Variable O&M'!$A$4)+1,FALSE)*AH54 -> 0 | AI59: =HLOOKUP(AI53,'Variable O&M'!$B$4:$AT$49,ROW('Variable O&M'!$A$21)-ROW('Variable O&M'!$A$4)+1,FALSE)*AI54 -> 0 | AJ59: =HLOOKUP(AJ53,'Variable O&M'!$B$4:$AT$49,ROW('Variable O&M'!$A$21)-ROW('Variable O&M'!$A$4)+1,FALSE)*AJ54 -> 0 | AK59: =HLOOKUP(AK53,'Variable O&M'!$B$4:$AT$49,ROW('Variable O&M'!$A$21)-ROW('Variable O&M'!$A$4)+1,FALSE)*AK54 -> 0 | AL59: =HLOOKUP(AL53,'Variable O&M'!$B$4:$AT$49,ROW('Variable O&M'!$A$21)-ROW('Variable O&M'!$A$4)+1,FALSE)*AL54 -> 0 | AM59: =HLOOKUP(AM53,'Variable O&M'!$B$4:$AT$49,ROW('Variable O&M'!$A$21)-ROW('Variable O&M'!$A$4)+1,FALSE)*AM54 -> 0 | AN59: =HLOOKUP(AN53,'Variable O&M'!$B$4:$AT$49,ROW('Variable O&M'!$A$21)-ROW('Variable O&M'!$A$4)+1,FALSE)*AN54 -> 0 | AO59: =HLOOKUP(AO53,'Variable O&M'!$B$4:$AT$49,ROW('Variable O&M'!$A$21)-ROW('Variable O&M'!$A$4)+1,FALSE)*AO54 -> 0 | AP59: =HLOOKUP(AP53,'Variable O&M'!$B$4:$AT$49,ROW('Variable O&M'!$A$21)-ROW('Variable O&M'!$A$4)+1,FALSE)*AP54 -> 0 | AQ59: =HLOOKUP(AQ53,'Variable O&M'!$B$4:$AT$49,ROW('Variable O&M'!$A$21)-ROW('Variable O&M'!$A$4)+1,FALSE)*AQ54 -> 0 | AR59: =HLOOKUP(AR53,'Variable O&M'!$B$4:$AT$49,ROW('Variable O&M'!$A$21)-ROW('Variable O&M'!$A$4)+1,FALSE)*AR54 -> 0 | AS59: =HLOOKUP(AS53,'Variable O&M'!$B$4:$AT$49,ROW('Variable O&M'!$A$21)-ROW('Variable O&M'!$A$4)+1,FALSE)*AS54 -> 0 | AT59: =HLOOKUP(AT53,'Variable O&M'!$B$4:$AT$49,ROW('Variable O&M'!$A$21)-ROW('Variable O&M'!$A$4)+1,FALSE)*AT54 -> 0 | AU59: =HLOOKUP(AU53,'Variable O&M'!$B$4:$AT$49,ROW('Variable O&M'!$A$21)-ROW('Variable O&M'!$A$4)+1,FALSE)*AU54 -> 0 | AV59: =HLOOKUP(AV53,'Variable O&M'!$B$4:$AT$49,ROW('Variable O&M'!$A$21)-ROW('Variable O&M'!$A$4)+1,FALSE)*AV54 -> 0 | AW59: =HLOOKUP(AW53,'Variable O&M'!$B$4:$AT$49,ROW('Variable O&M'!$A$21)-ROW('Variable O&M'!$A$4)+1,FALSE)*AW54 -> 0 | BB59: Variable O&M | BD59: =HLOOKUP(BD53,'Variable O&M'!$B$4:$AT$49,ROW('Variable O&M'!$A$22)-ROW('Variable O&M'!$A$4)+1,FALSE)*BD54 -> 64020.35059 | BE59: =HLOOKUP(BE53,'Variable O&M'!$B$4:$AT$49,ROW('Variable O&M'!$A$22)-ROW('Variable O&M'!$A$4)+1,FALSE)*BE54 -> 64020.35059 | BF59: =HLOOKUP(BF53,'Variable O&M'!$B$4:$AT$49,ROW('Variable O&M'!$A$22)-ROW('Variable O&M'!$A$4)+1,FALSE)*BF54 -> 64020.35059 | BG59: =HLOOKUP(BG53,'Variable O&M'!$B$4:$AT$49,ROW('Variable O&M'!$A$22)-ROW('Variable O&M'!$A$4)+1,FALSE)*BG54 -> 64020.35059 | BH59: =HLOOKUP(BH53,'Variable O&M'!$B$4:$AT$49,ROW('Variable O&M'!$A$22)-ROW('Variable O&M'!$A$4)+1,FALSE)*BH54 -> 64020.35059 | BI59: =HLOOKUP(BI53,'Variable O&M'!$B$4:$AT$49,ROW('Variable O&M'!$A$22)-ROW('Variable O&M'!$A$4)+1,FALSE)*BI54 -> 64020.35059 | BJ59: =HLOOKUP(BJ53,'Variable O&M'!$B$4:$AT$49,ROW('Variable O&M'!$A$22)-ROW('Variable O&M'!$A$4)+1,FALSE)*BJ54 -> 64020.35059 | BK59: =HLOOKUP(BK53,'Variable O&M'!$B$4:$AT$49,ROW('Variable O&M'!$A$22)-ROW('Variable O&M'!$A$4)+1,FALSE)*BK54 -> 64020.35059 | BL59: =HLOOKUP(BL53,'Variable O&M'!$B$4:$AT$49,ROW('Variable O&M'!$A$22)-ROW('Variable O&M'!$A$4)+1,FALSE)*BL54 -> 64020.35059 | BM59: =HLOOKUP(BM53,'Variable O&M'!$B$4:$AT$49,ROW('Variable O&M'!$A$22)-ROW('Variable O&M'!$A$4)+1,FALSE)*BM54 -> 64020.35059 | BN59: =HLOOKUP(BN53,'Variable O&M'!$B$4:$AT$49,ROW('Variable O&M'!$A$22)-ROW('Variable O&M'!$A$4)+1,FALSE)*BN54 -> 64020.35059 | BO59: =HLOOKUP(BO53,'Variable O&M'!$B$4:$AT$49,ROW('Variable O&M'!$A$22)-ROW('Variable O&M'!$A$4)+1,FALSE)*BO54 -> 64020.35059 | BP59: =HLOOKUP(BP53,'Variable O&M'!$B$4:$AT$49,ROW('Variable O&M'!$A$22)-ROW('Variable O&M'!$A$4)+1,FALSE)*BP54 -> 64020.35059 | BQ59: =HLOOKUP(BQ53,'Variable O&M'!$B$4:$AT$49,ROW('Variable O&M'!$A$22)-ROW('Variable O&M'!$A$4)+1,FALSE)*BQ54 -> 64020.35059 | BR59: =HLOOKUP(BR53,'Variable O&M'!$B$4:$AT$49,ROW('Variable O&M'!$A$22)-ROW('Variable O&M'!$A$4)+1,FALSE)*BR54 -> 64020.35059 | BS59: =HLOOKUP(BS53,'Variable O&M'!$B$4:$AT$49,ROW('Variable O&M'!$A$22)-ROW('Variable O&M'!$A$4)+1,FALSE)*BS54 -> 64020.35059 | BT59: =HLOOKUP(BT53,'Variable O&M'!$B$4:$AT$49,ROW('Variable O&M'!$A$22)-ROW('Variable O&M'!$A$4)+1,FALSE)*BT54 -> 64020.35059 | BU59: =HLOOKUP(BU53,'Variable O&M'!$B$4:$AT$49,ROW('Variable O&M'!$A$22)-ROW('Variable O&M'!$A$4)+1,FALSE)*BU54 -> 64020.35059 | BV59: =HLOOKUP(BV53,'Variable O&M'!$B$4:$AT$49,ROW('Variable O&M'!$A$22)-ROW('Variable O&M'!$A$4)+1,FALSE)*BV54 -> 64020.35059 | BW59: =HLOOKUP(BW53,'Variable O&M'!$B$4:$AT$49,ROW('Variable O&M'!$A$22)-ROW('Variable O&M'!$A$4)+1,FALSE)*BW54 -> 64020.35059 | CB59: Variable O&M | CD59: =HLOOKUP(CD53,'Variable O&M'!$B$4:$AT$49,ROW('Variable O&M'!$A$23)-ROW('Variable O&M'!$A$4)+1,FALSE)*CD54 -> 0 | CE59: =HLOOKUP(CE53,'Variable O&M'!$B$4:$AT$49,ROW('Variable O&M'!$A$23)-ROW('Variable O&M'!$A$4)+1,FALSE)*CE54 -> 0 | CF59: =HLOOKUP(CF53,'Variable O&M'!$B$4:$AT$49,ROW('Variable O&M'!$A$23)-ROW('Variable O&M'!$A$4)+1,FALSE)*CF54 -> 0 | CG59: =HLOOKUP(CG53,'Variable O&M'!$B$4:$AT$49,ROW('Variable O&M'!$A$23)-ROW('Variable O&M'!$A$4)+1,FALSE)*CG54 -> 0 | CH59: =HLOOKUP(CH53,'Variable O&M'!$B$4:$AT$49,ROW('Variable O&M'!$A$23)-ROW('Variable O&M'!$A$4)+1,FALSE)*CH54 -> 0 | CI59: =HLOOKUP(CI53,'Variable O&M'!$B$4:$AT$49,ROW('Variable O&M'!$A$23)-ROW('Variable O&M'!$A$4)+1,FALSE)*CI54 -> 0 | CJ59: =HLOOKUP(CJ53,'Variable O&M'!$B$4:$AT$49,ROW('Variable O&M'!$A$23)-ROW('Variable O&M'!$A$4)+1,FALSE)*CJ54 -> 0 | CK59: =HLOOKUP(CK53,'Variable O&M'!$B$4:$AT$49,ROW('Variable O&M'!$A$23)-ROW('Variable O&M'!$A$4)+1,FALSE)*CK54 -> 0 | CL59: =HLOOKUP(CL53,'Variable O&M'!$B$4:$AT$49,ROW('Variable O&M'!$A$23)-ROW('Variable O&M'!$A$4)+1,FALSE)*CL54 -> 0 | CM59: =HLOOKUP(CM53,'Variable O&M'!$B$4:$AT$49,ROW('Variable O&M'!$A$23)-ROW('Variable O&M'!$A$4)+1,FALSE)*CM54 -> 0 | CN59: =HLOOKUP(CN53,'Variable O&M'!$B$4:$AT$49,ROW('Variable O&M'!$A$23)-ROW('Variable O&M'!$A$4)+1,FALSE)*CN54 -> 0 | CO59: =HLOOKUP(CO53,'Variable O&M'!$B$4:$AT$49,ROW('Variable O&M'!$A$23)-ROW('Variable O&M'!$A$4)+1,FALSE)*CO54 -> 0 | CP59: =HLOOKUP(CP53,'Variable O&M'!$B$4:$AT$49,ROW('Variable O&M'!$A$23)-ROW('Variable O&M'!$A$4)+1,FALSE)*CP54 -> 0 | CQ59: =HLOOKUP(CQ53,'Variable O&M'!$B$4:$AT$49,ROW('Variable O&M'!$A$23)-ROW('Variable O&M'!$A$4)+1,FALSE)*CQ54 -> 0 | CR59: =HLOOKUP(CR53,'Variable O&M'!$B$4:$AT$49,ROW('Variable O&M'!$A$23)-ROW('Variable O&M'!$A$4)+1,FALSE)*CR54 -> 0 | CS59: =HLOOKUP(CS53,'Variable O&M'!$B$4:$AT$49,ROW('Variable O&M'!$A$23)-ROW('Variable O&M'!$A$4)+1,FALSE)*CS54 -> 0 | CT59: =HLOOKUP(CT53,'Variable O&M'!$B$4:$AT$49,ROW('Variable O&M'!$A$23)-ROW('Variable O&M'!$A$4)+1,FALSE)*CT54 -> 0 | CU59: =HLOOKUP(CU53,'Variable O&M'!$B$4:$AT$49,ROW('Variable O&M'!$A$23)-ROW('Variable O&M'!$A$4)+1,FALSE)*CU54 -> 0 | CV59: =HLOOKUP(CV53,'Variable O&M'!$B$4:$AT$49,ROW('Variable O&M'!$A$23)-ROW('Variable O&M'!$A$4)+1,FALSE)*CV54 -> 0 | CW59: =HLOOKUP(CW53,'Variable O&M'!$B$4:$AT$49,ROW('Variable O&M'!$A$23)-ROW('Variable O&M'!$A$4)+1,FALSE)*CW54 -> 0
B60: Property Tax | D60: =C82*$B$9 -> 1665061.484 | E60: =D82*$B$9 -> 1572285.058 | F60: 1484678.089 | G60: 1401952.539 | H60: 1323836.416 | I60: 1250072.886 | J60: 1180419.425 | K60: 1114647.021 | L60: 1052539.425 | M60: 993892.433 | N60: 938513.2237 | O60: 886219.7174 | P60: 836839.9802 | Q60: 790211.6582 | R60: 746181.4439 | S60: 704604.572 | T60: 665344.3435 | U60: 628271.6761 | V60: 593264.6799 | W60: 560208.2567 | AB60: Property Tax | AD60: =AC82*$B$9 -> 1548894.404 | AE60: =AD82*$B$9 -> 1462590.751 | AF60: 1381095.897 | AG60: 1304141.896 | AH60: 1231475.736 | AI60: 1162858.499 | AJ60: 1098064.582 | AK60: 1036880.95 | AL60: 979106.4414 | AM60: 924551.1005 | AN60: 873035.557 | AO60: 824390.4348 | AP60: 778455.7955 | AQ60: 735080.6123 | AR60: 694122.2734 | AS60: 655446.1135 | AT60: 618924.9707 | AU60: 584438.7684 | AV60: 551874.1208 | AW60: 521123.9597 | BB60: Property Tax | BD60: =BC82*$B$9 -> 1548894.404 | BE60: =BD82*$B$9 -> 1462590.751 | BF60: 1381095.897 | BG60: 1304141.896 | BH60: 1231475.736 | BI60: 1162858.499 | BJ60: 1098064.582 | BK60: 1036880.95 | BL60: 979106.4414 | BM60: 924551.1005 | BN60: 873035.557 | BO60: 824390.4348 | BP60: 778455.7955 | BQ60: 735080.6123 | BR60: 694122.2734 | BS60: 655446.1135 | BT60: 618924.9707 | BU60: 584438.7684 | BV60: 551874.1208 | BW60: 521123.9597 | CB60: Property Tax | CD60: =CC82*$B$9 -> 3977965.315 | CE60: =CD82*$B$9 -> 3756314.997 | CF60: 3547014.929 | CG60: 3349376.959 | CH60: 3162751.283 | CI60: 2986524.3 | CJ60: 2820116.599 | CK60: 2662981.056 | CL60: 2514601.03 | CM60: 2374488.668 | CN60: 2242183.299 | CO60: 2117249.922 | CP60: 1999277.772 | CQ60: 1887878.975 | CR60: 1782687.264 | CS60: 1683356.786 | CT60: 1589560.954 | CU60: 1500991.38 | CV60: 1417356.861 | CW60: 1338382.417
B61: Total Operating Costs | D61: =SUM(D58:D60) -> 5423860.22 | E61: =SUM(E58:E60) -> 5406259.768 | F61: =SUM(F58:F60) -> 5395332.294 | G61: =SUM(G58:G60) -> 5390819.828 | H61: =SUM(H58:H60) -> 5392481.051 | I61: =SUM(I58:I60) -> 5400090.414 | J61: =SUM(J58:J60) -> 5413437.303 | K61: =SUM(K58:K60) -> 5432325.257 | L61: =SUM(L58:L60) -> 5456571.225 | M61: =SUM(M58:M60) -> 5486004.869 | N61: =SUM(N58:N60) -> 5520467.909 | O61: =SUM(O58:O60) -> 5559813.496 | P61: =SUM(P58:P60) -> 5603905.635 | Q61: =SUM(Q58:Q60) -> 5652618.626 | R61: =SUM(R58:R60) -> 5705836.551 | S61: =SUM(S58:S60) -> 5763452.781 | T61: =SUM(T58:T60) -> 5825369.517 | U61: =SUM(U58:U60) -> 5891497.353 | V61: =SUM(V58:V60) -> 5961754.87 | W61: =SUM(W58:W60) -> 6036068.251 | AB61: Total Operating Costs | AD61: =SUM(AD58:AD60) -> 5307693.14 | AE61: =SUM(AE58:AE60) -> 5296565.462 | AF61: =SUM(AF58:AF60) -> 5291750.102 | AG61: =SUM(AG58:AG60) -> 5293009.185 | AH61: =SUM(AH58:AH60) -> 5300120.371 | AI61: =SUM(AI58:AI60) -> 5312876.026 | AJ61: =SUM(AJ58:AJ60) -> 5331082.46 | AK61: =SUM(AK58:AK60) -> 5354559.186 | AL61: =SUM(AL58:AL60) -> 5383138.242 | AM61: =SUM(AM58:AM60) -> 5416663.537 | AN61: =SUM(AN58:AN60) -> 5454990.242 | AO61: =SUM(AO58:AO60) -> 5497984.214 | AP61: =SUM(AP58:AP60) -> 5545521.45 | AQ61: =SUM(AQ58:AQ60) -> 5597487.58 | AR61: =SUM(AR58:AR60) -> 5653777.38 | AS61: =SUM(AS58:AS60) -> 5714294.322 | AT61: =SUM(AT58:AT60) -> 5778950.144 | AU61: =SUM(AU58:AU60) -> 5847664.445 | AV61: =SUM(AV58:AV60) -> 5920364.311 | AW61: =SUM(AW58:AW60) -> 5996983.954 | BB61: Total Operating Costs | BD61: =SUM(BD58:BD60) -> 5371713.491 | BE61: =SUM(BE58:BE60) -> 5360585.813 | BF61: =SUM(BF58:BF60) -> 5355770.452 | BG61: =SUM(BG58:BG60) -> 5357029.536 | BH61: =SUM(BH58:BH60) -> 5364140.721 | BI61: =SUM(BI58:BI60) -> 5376896.377 | BJ61: =SUM(BJ58:BJ60) -> 5395102.81 | BK61: =SUM(BK58:BK60) -> 5418579.536 | BL61: =SUM(BL58:BL60) -> 5447158.592 | BM61: =SUM(BM58:BM60) -> 5480683.887 | BN61: =SUM(BN58:BN60) -> 5519010.593 | BO61: =SUM(BO58:BO60) -> 5562004.564 | BP61: =SUM(BP58:BP60) -> 5609541.8 | BQ61: =SUM(BQ58:BQ60) -> 5661507.93 | BR61: =SUM(BR58:BR60) -> 5717797.731 | BS61: =SUM(BS58:BS60) -> 5778314.673 | BT61: =SUM(BT58:BT60) -> 5842970.494 | BU61: =SUM(BU58:BU60) -> 5911684.796 | BV61: =SUM(BV58:BV60) -> 5984384.661 | BW61: =SUM(BW58:BW60) -> 6061004.304 | CB61: Total Operating Costs | CD61: =SUM(CD58:CD60) -> 13528837.31 | CE61: =SUM(CE58:CE60) -> 13498204.44 | CF61: =SUM(CF58:CF60) -> 13483742.16 | CG61: =SUM(CG58:CG60) -> 13484838.73 | CH61: =SUM(CH58:CH60) -> 13500922.29 | CI61: =SUM(CI58:CI60) -> 13531458.73 | CJ61: =SUM(CJ58:CJ60) -> 13575949.72 | CK61: =SUM(CK58:CK60) -> 13633930.84 | CL61: =SUM(CL58:CL60) -> 13704969.81 | CM61: =SUM(CM58:CM60) -> 13788664.82 | CN61: =SUM(CN58:CN60) -> 13884642.97 | CO61: =SUM(CO58:CO60) -> 13992558.79 | CP61: =SUM(CP58:CP60) -> 14112092.82 | CQ61: =SUM(CQ58:CQ60) -> 14242950.32 | CR61: =SUM(CR58:CR60) -> 14384860.04 | CS61: =SUM(CS58:CS60) -> 14537573.01 | CT61: =SUM(CT58:CT60) -> 14700861.51 | CU61: =SUM(CU58:CU60) -> 14874517.94 | CV61: =SUM(CV58:CV60) -> 15058353.96 | CW61: =SUM(CW58:CW60) -> 15252199.45
B63: EBITDA | D63: =D56-D61 -> 5359928.363 | E63: =E56-E61 -> 5377528.814 | F63: 5388456.289 | G63: 5392968.755 | H63: 5391307.532 | I63: 5383698.169 | J63: 5370351.28 | K63: 5351463.326 | L63: 5327217.358 | M63: 5297783.713 | N63: 5263320.674 | O63: 5223975.087 | P63: 5179882.948 | Q63: 5131169.957 | R63: 5077952.032 | S63: 5020335.802 | T63: 4958419.066 | U63: 4892291.23 | V63: 4822033.713 | W63: 4747720.332 | AB63: EBITDA | AD63: =AD56-AD61 -> 4128089.894 | AE63: =AE56-AE61 -> 4139217.572 | AF63: 4144032.932 | AG63: 4142773.849 | AH63: 4135662.663 | AI63: 4122907.008 | AJ63: 4104700.574 | AK63: 4081223.848 | AL63: 4052644.792 | AM63: 4019119.497 | AN63: 3980792.792 | AO63: 3937798.821 | AP63: 3890261.584 | AQ63: 3838295.454 | AR63: 3782005.654 | AS63: 3721488.712 | AT63: 3656832.89 | AU63: 3588118.589 | AV63: 3515418.723 | AW63: 3438799.081 | BB63: EBITDA | BD63: =BD56-BD61 -> 1504791.893 | BE63: =BE56-BE61 -> 1515919.571 | BF63: 1520734.932 | BG63: 1519475.848 | BH63: 1512364.662 | BI63: 1499609.007 | BJ63: 1481402.573 | BK63: 1457925.847 | BL63: 1429346.791 | BM63: 1395821.496 | BN63: 1357494.791 | BO63: 1314500.82 | BP63: 1266963.583 | BQ63: 1214997.453 | BR63: 1158707.653 | BS63: 1098190.711 | BT63: 1033534.889 | BU63: 964820.5882 | BV63: 892120.7223 | BW63: 815501.0796 | CB63: EBITDA | CD63: =CD56-CD61 -> 23901642.7 | CE63: =CE56-CE61 -> 23932275.58 | CF63: 23946737.86 | CG63: 23945641.28 | CH63: 23929557.73 | CI63: 23899021.29 | CJ63: 23854530.3 | CK63: 23796549.18 | CL63: 23725510.21 | CM63: 23641815.2 | CN63: 23545837.04 | CO63: 23437921.23 | CP63: 23318387.2 | CQ63: 23187529.7 | CR63: 23045619.98 | CS63: 22892907 | CT63: 22729618.51 | CU63: 22555962.07 | CV63: 22372126.06 | CW63: 22178280.56
B64: Before Tax Earnings | D64: =D63-D83-D73 -> -31073301.07 | E64: =E63-E65-E83 -> -56451153.34 | F64: -35298373.16 | G64: -22680541.47 | H64: -22860042.73 | I64: -13458294.78 | J64: -4065912.299 | K64: -4273525.525 | L64: -4490271.269 | M64: -4716054.686 | N64: 5263320.674 | O64: 5223975.087 | P64: 5179882.948 | Q64: 5131169.957 | R64: 5077952.032 | S64: 5020335.802 | T64: 4958419.066 | U64: 4892291.23 | V64: 4822033.713 | W64: 4747720.332 | AB64: Before Tax Earnings | AD64: =AD63-AD83-AD73 -> -32307315.15 | AE64: =AE63-AE65-AE83 -> -58513458.33 | AF64: -37037192.76 | AG64: -24227374.13 | AH64: -24412325.35 | AI64: -14867404.82 | AJ64: -5331563.004 | AK64: -5543765.002 | AL64: -5764843.835 | AM64: -5994718.903 | AN64: 3980792.792 | AO64: 3937798.821 | AP64: 3890261.584 | AQ64: 3838295.454 | AR64: 3782005.654 | AS64: 3721488.712 | AT64: 3656832.89 | AU64: 3588118.589 | AV64: 3515418.723 | AW64: 3438799.081 | BB64: Before Tax Earnings | BD64: =BD63-BD83-BD73 -> -34125301.74 | BE64: =BE63-BE65-BE83 -> -63677671.5 | BF64: -42252224.23 | BG64: -29494240.27 | BH64: -29732062.85 | BI64: -20241071.11 | BJ64: -10760236.66 | BK64: -11028546.17 | BL64: -11306854.67 | BM64: -11595104 | BN64: 1357494.791 | BO64: 1314500.82 | BP64: 1266963.583 | BQ64: 1214997.453 | BR64: 1158707.653 | BS64: 1098190.711 | BT64: 1033534.889 | BU64: 964820.5882 | BV64: 892120.7223 | BW64: 815501.0796 | CB64: Before Tax Earnings | CD64: =CD63-CD83-CD73 -> -65251177.72 | CE64: =CE63-CE65-CE83 -> -113539893.8 | CF64: -63329881.98 | CG64: -33309515.21 | CH64: -33563073.45 | CI64: -11145122.82 | CJ64: 11254028.78 | CK64: 10944037.63 | CL64: 10615948.43 | CM64: 10270062.18 | CN64: 23545837.04 | CO64: 23437921.23 | CP64: 23318387.2 | CQ64: 23187529.7 | CR64: 23045619.98 | CS64: 22892907 | CT64: 22729618.51 | CU64: 22555962.07 | CV64: 22372126.06 | CW64: 22178280.56
B65: PTC | D65: =D54*HLOOKUP(D53,$B$2:$W$3,2,FALSE)*HLOOKUP($D53,$B$2:$W$4,3,FALSE) -> 8379132.013 | E65: =E54*HLOOKUP(E53,$B$2:$W$3,2,FALSE)*HLOOKUP($D53,$B$2:$W$4,3,FALSE) -> 8546714.653 | F65: 8717648.946 | G65: 8892001.925 | H65: 9069841.963 | I65: 9251238.803 | J65: 9436263.579 | K65: 9624988.85 | L65: 9817488.627 | M65: 10013838.4 | N65: =N54*N48 -> 0 | O65: 0 | P65: 0 | Q65: 0 | R65: 0 | S65: 0 | T65: 0 | U65: 0 | V65: 0 | W65: 0 | AB65: PTC | AD65: =AD54*HLOOKUP(AD53,$B$2:$W$3,2,FALSE)*HLOOKUP($D53,$B$2:$W$4,3,FALSE) -> 8379132.013 | AE65: =AE54*HLOOKUP(AE53,$B$2:$W$3,2,FALSE)*HLOOKUP($D53,$B$2:$W$4,3,FALSE) -> 8546714.653 | AF65: 8717648.946 | AG65: 8892001.925 | AH65: 9069841.963 | AI65: 9251238.803 | AJ65: 9436263.579 | AK65: 9624988.85 | AL65: 9817488.627 | AM65: 10013838.4 | AN65: =AN54*AN48 -> 0 | AO65: 0 | AP65: 0 | AQ65: 0 | AR65: 0 | AS65: 0 | AT65: 0 | AU65: 0 | AV65: 0 | AW65: 0 | BB65: PTC | BD65: =BD54*HLOOKUP(BD53,$B$2:$W$3,2,FALSE)*HLOOKUP($D53,$B$2:$W$4,3,FALSE) -> 10870225.31 | BE65: =BE54*HLOOKUP(BE53,$B$2:$W$3,2,FALSE)*HLOOKUP($D53,$B$2:$W$4,3,FALSE) -> 11087629.82 | BF65: 11309382.42 | BG65: 11535570.06 | BH65: 11766281.47 | BI65: 12001607.1 | BJ65: 12241639.24 | BK65: 12486472.02 | BL65: 12736201.46 | BM65: 12990925.49 | BN65: =BN54*BN48 -> 0 | BO65: 0 | BP65: 0 | BQ65: 0 | BR65: 0 | BS65: 0 | BT65: 0 | BU65: 0 | BV65: 0 | BW65: 0 | CB65: PTC | CD65: =CD54*HLOOKUP(CD53,$B$2:$W$3,2,FALSE)*HLOOKUP($D53,$B$2:$W$4,3,FALSE) -> 11188884.75 | CE65: =CE54*HLOOKUP(CE53,$B$2:$W$3,2,FALSE)*HLOOKUP($D53,$B$2:$W$4,3,FALSE) -> 11412662.45 | CF65: 11640915.7 | CG65: 11873734.01 | CH65: 12111208.69 | CI65: 12353432.86 | CJ65: 12600501.52 | CK65: 12852511.55 | CL65: 13109561.78 | CM65: 13371753.02 | CN65: =CN54*CN48 -> 0 | CO65: 0 | CP65: 0 | CQ65: 0 | CR65: 0 | CS65: 0 | CT65: 0 | CU65: 0 | CV65: 0 | CW65: 0
B66: Federal Tax | D66: =D64*$B$7-D65 -> -14904525.24 | E66: =E64*$B$7-E65 -> -20401456.85 | F66: =F64*$B$7-F65 -> -16130307.31 | G66: =G64*$B$7-G65 -> -13654915.63 | H66: =H64*$B$7-H65 -> -13870450.94 | I66: =I64*$B$7-I65 -> -12077480.71 | J66: =J64*$B$7-J65 -> -10290105.16 | K66: =K64*$B$7-K65 -> -10522429.21 | L66: =L64*$B$7-L65 -> -10760445.59 | M66: =M64*$B$7-M65 -> -11004209.88 | N66: =N64*$B$7-N65 -> 1105297.342 | O66: =O64*$B$7-O65 -> 1097034.768 | P66: =P64*$B$7-P65 -> 1087775.419 | Q66: =Q64*$B$7-Q65 -> 1077545.691 | R66: =R64*$B$7-R65 -> 1066369.927 | S66: =S64*$B$7-S65 -> 1054270.518 | T66: =T64*$B$7-T65 -> 1041268.004 | U66: =U64*$B$7-U65 -> 1027381.158 | V66: =V64*$B$7-V65 -> 1012627.08 | W66: =W64*$B$7-W65 -> 997021.2698 | AB66: Federal Tax | AD66: =AD64*$B$7-AD65 -> -15163668.19 | AE66: =AE64*$B$7-AE65 -> -20834540.9 | AF66: =AF64*$B$7-AF65 -> -16495459.43 | AG66: =AG64*$B$7-AG65 -> -13979750.49 | AH66: =AH64*$B$7-AH65 -> -14196430.29 | AI66: =AI64*$B$7-AI65 -> -12373393.81 | AJ66: =AJ64*$B$7-AJ65 -> -10555891.81 | AK66: =AK64*$B$7-AK65 -> -10789179.5 | AL66: =AL64*$B$7-AL65 -> -11028105.83 | AM66: =AM64*$B$7-AM65 -> -11272729.37 | AN66: =AN64*$B$7-AN65 -> 835966.4863 | AO66: =AO64*$B$7-AO65 -> 826937.7523 | AP66: =AP64*$B$7-AP65 -> 816954.9327 | AQ66: =AQ64*$B$7-AQ65 -> 806042.0454 | AR66: =AR64*$B$7-AR65 -> 794221.1873 | AS66: =AS64*$B$7-AS65 -> 781512.6295 | AT66: =AT64*$B$7-AT65 -> 767934.907 | AU66: =AU64*$B$7-AU65 -> 753504.9037 | AV66: =AV64*$B$7-AV65 -> 738237.9319 | AW66: =AW64*$B$7-AW65 -> 722147.8069 | BB66: Federal Tax | BD66: =BD64*$B$7-BD65 -> -18036538.68 | BE66: =BE64*$B$7-BE65 -> -24459940.83 | BF66: =BF64*$B$7-BF65 -> -20182349.51 | BG66: =BG64*$B$7-BG65 -> -17729360.52 | BH66: =BH64*$B$7-BH65 -> -18010014.67 | BI66: =BI64*$B$7-BI65 -> -16252232.03 | BJ66: =BJ64*$B$7-BJ65 -> -14501288.94 | BK66: =BK64*$B$7-BK65 -> -14802466.72 | BL66: =BL64*$B$7-BL65 -> -15110640.94 | BM66: =BM64*$B$7-BM65 -> -15425897.33 | BN66: =BN64*$B$7-BN65 -> 285073.9061 | BO66: =BO64*$B$7-BO65 -> 276045.1721 | BP66: =BP64*$B$7-BP65 -> 266062.3525 | BQ66: =BQ64*$B$7-BQ65 -> 255149.4652 | BR66: =BR64*$B$7-BR65 -> 243328.6071 | BS66: =BS64*$B$7-BS65 -> 230620.0493 | BT66: =BT64*$B$7-BT65 -> 217042.3268 | BU66: =BU64*$B$7-BU65 -> 202612.3235 | BV66: =BV64*$B$7-BV65 -> 187345.3517 | BW66: =BW64*$B$7-BW65 -> 171255.2267 | CB66: Federal Tax | CD66: =CD64*$B$7-CD65 -> -24891632.07 | CE66: =CE64*$B$7-CE65 -> -35256040.14 | CF66: =CF64*$B$7-CF65 -> -24940190.91 | CG66: =CG64*$B$7-CG65 -> -18868732.2 | CH66: =CH64*$B$7-CH65 -> -19159454.11 | CI66: =CI64*$B$7-CI65 -> -14693908.66 | CJ66: =CJ64*$B$7-CJ65 -> -10237155.48 | CK66: =CK64*$B$7-CK65 -> -10554263.65 | CL66: =CL64*$B$7-CL65 -> -10880212.61 | CM66: =CM64*$B$7-CM65 -> -11215039.96 | CN66: =CN64*$B$7-CN65 -> 4944625.779 | CO66: =CO64*$B$7-CO65 -> 4921963.458 | CP66: =CP64*$B$7-CP65 -> 4896861.312 | CQ66: =CQ64*$B$7-CQ65 -> 4869381.236 | CR66: =CR64*$B$7-CR65 -> 4839580.196 | CS66: =CS64*$B$7-CS65 -> 4807510.471 | CT66: =CT64*$B$7-CT65 -> 4773219.887 | CU66: =CU64*$B$7-CU65 -> 4736752.035 | CV66: =CV64*$B$7-CV65 -> 4698146.473 | CW66: =CW64*$B$7-CW65 -> 4657438.918
A69: =IRR(C69:X69,0.1) -> 0.06500000019 | B69: Free Cash Flow | C69: =-HLOOKUP(D53,'Capital Costs'!$B$174:$X$218,ROW('Capital Costs'!$A$190)-ROW('Capital Costs'!$A$174)+1,FALSE)*1000000*(1+AFUDC!$Y$21) -> -166506148.4 | D69: =D63-D66 -> 20264453.6 | E69: =E63-E66 -> 25778985.67 | F69: 21518763.6 | G69: 19047884.39 | H69: 19261758.47 | I69: 17461178.88 | J69: 15660456.44 | K69: 15873892.54 | L69: 16087662.95 | M69: 16301993.6 | N69: 4158023.332 | O69: 4126940.318 | P69: 4092107.529 | Q69: 4053624.266 | R69: 4011582.105 | S69: 3966065.283 | T69: 3917151.062 | U69: 3864910.072 | V69: 3809406.633 | W69: 3750699.062 | X69: =C69*-0.3 -> 49951844.53 | AA69: =IRR(AC69:AX69,0.1) -> 0.06500000037 | AB69: Free Cash Flow | AC69: =-HLOOKUP(AD53,'Capital Costs'!$B$174:$X$218,ROW('Capital Costs'!$A$191)-ROW('Capital Costs'!$A$174)+1,FALSE)*1000000*(1+AFUDC!$Y$22) -> -154889440.4 | AD69: =AD63-AD66 -> 19291758.09 | AE69: =AE63-AE66 -> 24973758.47 | AF69: 20639492.36 | AG69: 18122524.34 | AH69: 18332092.95 | AI69: 16496300.82 | AJ69: 14660592.38 | AK69: 14870403.35 | AL69: 15080750.63 | AM69: 15291848.87 | AN69: 3144826.306 | AO69: 3110861.068 | AP69: 3073306.652 | AQ69: 3032253.409 | AR69: 2987784.467 | AS69: 2939976.082 | AT69: 2888897.983 | AU69: 2834613.685 | AV69: 2777180.791 | AW69: 2716651.274 | AX69: =AC69*-0.3 -> 46466832.12 | BA69: =IRR(BC69:BX69,0.1) -> 0.0650000021 | BB69: Free Cash Flow | BC69: =-HLOOKUP(BD53,'Capital Costs'!$B$174:$X$218,ROW('Capital Costs'!$A$192)-ROW('Capital Costs'!$A$174)+1,FALSE)*1000000*(1+AFUDC!$Y$23) -> -154889440.4 | BD69: =BD63-BD66 -> 19541330.57 | BE69: =BE63-BE66 -> 25975860.41 | BF69: 21703084.44 | BG69: 19248836.37 | BH69: 19522379.33 | BI69: 17751841.04 | BJ69: 15982691.51 | BK69: 16260392.57 | BL69: 16539987.73 | BM69: 16821718.83 | BN69: 1072420.885 | BO69: 1038455.647 | BP69: 1000901.231 | BQ69: 959847.9882 | BR69: 915379.0459 | BS69: 867570.6615 | BT69: 816492.5626 | BU69: 762208.2647 | BV69: 704775.3706 | BW69: 644245.8529 | BX69: =BC69*-0.3 -> 46466832.12 | CA69: =IRR(CC69:CX69,0.1) -> 0.07 | CB69: Free Cash Flow | CC69: =-HLOOKUP(CD53,'Capital Costs'!$B$174:$X$218,ROW('Capital Costs'!$A$193)-ROW('Capital Costs'!$A$174)+1,FALSE)*1000000*(1+AFUDC!$Y$24) -> -397796531.5 | CD69: =CD63-CD66 -> 48793274.77 | CE69: =CE63-CE66 -> 59188315.72 | CF69: 48886928.77 | CG69: 42814373.49 | CH69: 43089011.84 | CI69: 38592929.94 | CJ69: 34091685.78 | CK69: 34350812.83 | CL69: 34605722.82 | CM69: 34856855.16 | CN69: 18601211.27 | CO69: 18515957.77 | CP69: 18421525.89 | CQ69: 18318148.46 | CR69: 18206039.78 | CS69: 18085396.53 | CT69: 17956398.62 | CU69: 17819210.04 | CV69: 17673979.59 | CW69: 17520841.64 | CX69: =CC69*-0.3 -> 119338959.4
A70: =IRR(C70:X70,0.1) -> 0.09342096398 | B70: ROE | C70: =-C89 -> -11054116.76 | D70: =D69-D73-D75-D84-D65 -> -134331.9053 | E70: =E69-E73-E75-E84-E65 -> 1016662.581 | F70: =F69-F73-F75-F84-F65 -> 1061191.488 | G70: =G69-G73-G75-G84-G65 -> 1101370.462 | H70: =H69-H73-H75-H84-H65 -> 1137404.504 | I70: =I69-I73-I75-I84-I65 -> 1169486.443 | J70: =J69-J73-J75-J84-J65 -> 1197797.603 | K70: =K69-K73-K75-K84-K65 -> 1222508.427 | L70: =L69-L73-L75-L84-L65 -> 1243779.066 | M70: =M69-M73-M75-M84-M65 -> 1261759.939 | N70: =N69-N73-N75-N84-N65 -> -868371.9266 | O70: =O69-O73-O75-O84-O65 -> -899454.9406 | P70: =P69-P73-P75-P84-P65 -> -934287.7299 | Q70: =Q69-Q73-Q75-Q84-Q65 -> -972770.9928 | R70: =R69-R73-R75-R84-R65 -> -1014813.154 | S70: =S69-S73-S75-S84-S65 -> -1060329.976 | T70: =T69-T73-T75-T84-T65 -> -1109244.197 | U70: =U69-U73-U75-U84-U65 -> -1161485.187 | V70: =V69-V73-V75-V84-V65 -> -1216988.626 | W70: =W69-W73-W75-W84-W65 -> -1275696.197 | X70: =X69 -> 49951844.53 | AA70: =IRR(AC70:AX70,0.1) -> 0.09021694379 | AB70: ROE | AC70: =-AC89 -> -9244162.105 | AD70: =AD69-AD73-AD75-AD84-AD65 -> -392175.7463 | AE70: =AE69-AE73-AE75-AE84-AE65 -> 861397.5512 | AF70: =AF69-AF73-AF75-AF84-AF65 -> 901097.8874 | AG70: =AG69-AG73-AG75-AG84-AG65 -> 936717.3369 | AH70: =AH69-AH73-AH75-AH84-AH65 -> 968445.9085 | AI70: =AI69-AI73-AI75-AI84-AI65 -> 996462.2767 | AJ70: =AJ69-AJ73-AJ75-AJ84-AJ65 -> 1020934.397 | AK70: =AK69-AK73-AK75-AK84-AK65 -> 1042020.091 | AL70: =AL69-AL73-AL75-AL84-AL65 -> 1059867.59 | AM70: =AM69-AM73-AM75-AM84-AM65 -> 1074616.059 | AN70: =AN69-AN73-AN75-AN84-AN65 -> -1058568.102 | AO70: =AO69-AO73-AO75-AO84-AO65 -> -1092533.34 | AP70: =AP69-AP73-AP75-AP84-AP65 -> -1130087.756 | AQ70: =AQ69-AQ73-AQ75-AQ84-AQ65 -> -1171140.999 | AR70: =AR69-AR73-AR75-AR84-AR65 -> -1215609.941 | AS70: =AS69-AS73-AS75-AS84-AS65 -> -1263418.326 | AT70: =AT69-AT73-AT75-AT84-AT65 -> -1314496.425 | AU70: =AU69-AU73-AU75-AU84-AU65 -> -1368780.723 | AV70: =AV69-AV73-AV75-AV84-AV65 -> -1426213.617 | AW70: =AW69-AW73-AW75-AW84-AW65 -> -1486743.134 | AX70: =AX69 -> 46466832.12 | BA70: =IRR(BC70:BX70,0.1) -> 0.07810868752 | BB70: ROE | BC70: =-BC89 -> -6401886.556 | BD70: =BD69-BD73-BD75-BD84-BD65 -> -1341291.149 | BE70: =BE69-BE73-BE75-BE84-BE65 -> 614989.729 | BF70: =BF69-BF73-BF75-BF84-BF65 -> 665361.9089 | BG70: =BG69-BG73-BG75-BG84-BG65 -> 711866.6389 | BH70: =BH69-BH73-BH75-BH84-BH65 -> 754698.1968 | BI70: =BI69-BI73-BI75-BI84-BI65 -> 794039.6109 | BJ70: =BJ69-BJ73-BJ75-BJ84-BJ65 -> 830063.2784 | BK70: =BK69-BK73-BK75-BK84-BK65 -> 862931.5496 | BL70: =BL69-BL73-BL75-BL84-BL65 -> 892797.2779 | BM70: =BM69-BM73-BM75-BM84-BM65 -> 919804.3409 | BN70: =BN69-BN73-BN75-BN84-BN65 -> -1838568.109 | BO70: =BO69-BO73-BO75-BO84-BO65 -> -1872533.347 | BP70: =BP69-BP73-BP75-BP84-BP65 -> -1910087.764 | BQ70: =BQ69-BQ73-BQ75-BQ84-BQ65 -> -1951141.006 | BR70: =BR69-BR73-BR75-BR84-BR65 -> -1995609.949 | BS70: =BS69-BS73-BS75-BS84-BS65 -> -2043418.333 | BT70: =BT69-BT73-BT75-BT84-BT65 -> -2094496.432 | BU70: =BU69-BU73-BU75-BU84-BU65 -> -2148780.73 | BV70: =BV69-BV73-BV75-BV84-BV65 -> -2206213.624 | BW70: =BW69-BW73-BW75-BW84-BW65 -> -2266743.142 | BX70: =BX69 -> 46466832.12 | CA70: =IRR(CC70:CX70,0.1) -> 0.1325944227 | CB70: ROE | CC70: =-CC89 -> -36584571.54 | CD70: =CD69-CD73-CD75-CD84-CD65 -> 4423782.604 | CE70: =CE69-CE73-CE75-CE84-CE65 -> 4667859.685 | CF70: =CF69-CF73-CF75-CF84-CF65 -> 4727218.068 | CG70: =CG69-CG73-CG75-CG84-CG65 -> 4775243.619 | CH70: =CH69-CH73-CH75-CH84-CH65 -> 4812407.29 | CI70: =CI69-CI73-CI75-CI84-CI65 -> 4839150.582 | CJ70: =CJ69-CJ73-CJ75-CJ84-CJ65 -> 4855887.119 | CK70: =CK69-CK73-CK75-CK84-CK65 -> 4863004.141 | CL70: =CL69-CL73-CL75-CL84-CL65 -> 4860863.904 | CM70: =CM69-CM73-CM75-CM84-CM65 -> 4849805.003 | CN70: =CN69-CN73-CN75-CN84-CN65 -> 1965914.128 | CO70: =CO69-CO73-CO75-CO84-CO65 -> 1880660.633 | CP70: =CP69-CP73-CP75-CP84-CP65 -> 1786228.75 | CQ70: =CQ69-CQ73-CQ75-CQ84-CQ65 -> 1682851.323 | CR70: =CR69-CR73-CR75-CR84-CR65 -> 1570742.647 | CS70: =CS69-CS73-CS75-CS84-CS65 -> 1450099.395 | CT70: =CT69-CT73-CT75-CT84-CT65 -> 1321101.486 | CU70: =CU69-CU73-CU75-CU84-CU65 -> 1183912.9 | CV70: =CV69-CV73-CV75-CV84-CV65 -> 1038682.451 | CW70: =CW69-CW73-CW75-CW84-CW65 -> 885544.5073 | CX70: =CX69 -> 119338959.4
B73: Interest | D73: =C76*$B$8 -> 3131999.749 | E73: 3037279.974 | F73: 2937824.209 | G73: 2833395.657 | H73: 2723745.677 | I73: 2608613.198 | J73: 2487724.095 | K73: 2360790.536 | L73: 2227510.3 | M73: 2087566.052 | N73: 1940624.592 | O73: 1786336.059 | P73: 1624333.099 | Q73: 1454229.991 | R73: 1275621.727 | S73: 1088083.051 | T73: 891167.4401 | U73: 684406.0492 | V73: 467306.5887 | W73: 239352.1552 | AB73: Interest | AD73: =AC76*$B$8 -> 2619179.263 | AE73: 2539968.506 | AF73: 2456797.211 | AG73: 2369467.351 | AH73: 2277770.998 | AI73: 2181489.828 | AJ73: 2080394.599 | AK73: 1974244.608 | AL73: 1862787.118 | AM73: 1745756.754 | AN73: 1622874.871 | AO73: 1493848.894 | AP73: 1358371.619 | AQ73: 1216120.479 | AR73: 1066756.783 | AS73: 909924.9013 | AT73: 745251.426 | AU73: 572344.2769 | AV73: 390791.7704 | AW73: 200161.6385 | BB73: Interest | BD73: =BC76*$B$8 -> 1813867.858 | BE73: 1759011.801 | BF73: 1701412.941 | BG73: 1640934.138 | BH73: 1577431.396 | BI73: 1510753.516 | BJ73: 1440741.742 | BK73: 1367229.379 | BL73: 1290041.398 | BM73: 1208994.019 | BN73: 1123894.27 | BO73: 1034539.534 | BP73: 940717.0606 | BQ73: 842203.4639 | BR73: 738764.1873 | BS73: 630152.947 | BT73: 516111.1446 | BU73: 396367.2521 | BV73: 270636.165 | BW73: 138618.5235 | CB73: Interest | CD73: =CC76*$B$8 -> 10365628.6 | CE73: 10052145.18 | CF73: 9722987.577 | CG73: 9377372.099 | CH73: 9014475.847 | CI73: 8633434.783 | CJ73: 8233341.665 | CK73: 7813243.891 | CL73: 7372141.229 | CM73: 6908983.433 | CN73: 6422667.748 | CO73: 5912036.279 | CP73: 5375873.236 | CQ73: 4812902.041 | CR73: 4221782.286 | CS73: 3601106.543 | CT73: 2949397.014 | CU73: 2265102.007 | CV73: 1546592.251 | CW73: 792157.0065
B74: Mortgage Payment | D74: =-PMT($B$8,20,$C88) -> 5026395.259 | E74: =-PMT($B$8,20,$C88) -> 5026395.259 | F74: 5026395.259 | G74: 5026395.259 | H74: 5026395.259 | I74: 5026395.259 | J74: 5026395.259 | K74: 5026395.259 | L74: 5026395.259 | M74: 5026395.259 | N74: 5026395.259 | O74: 5026395.259 | P74: 5026395.259 | Q74: 5026395.259 | R74: 5026395.259 | S74: 5026395.259 | T74: 5026395.259 | U74: 5026395.259 | V74: 5026395.259 | W74: 5026395.259 | AB74: Mortgage Payment | AD74: =-PMT($B$8,20,$AC88) -> 4203394.408 | AE74: =-PMT($B$8,20,$AC88) -> 4203394.408 | AF74: 4203394.408 | AG74: 4203394.408 | AH74: 4203394.408 | AI74: 4203394.408 | AJ74: 4203394.408 | AK74: 4203394.408 | AL74: 4203394.408 | AM74: 4203394.408 | AN74: 4203394.408 | AO74: 4203394.408 | AP74: 4203394.408 | AQ74: 4203394.408 | AR74: 4203394.408 | AS74: 4203394.408 | AT74: 4203394.408 | AU74: 4203394.408 | AV74: 4203394.408 | AW74: 4203394.408 | BB74: Mortgage Payment | BD74: =-PMT($B$8,20,$BC88) -> 2910988.994 | BE74: =-PMT($B$8,20,$BC88) -> 2910988.994 | BF74: 2910988.994 | BG74: 2910988.994 | BH74: 2910988.994 | BI74: 2910988.994 | BJ74: 2910988.994 | BK74: 2910988.994 | BL74: 2910988.994 | BM74: 2910988.994 | BN74: 2910988.994 | BO74: 2910988.994 | BP74: 2910988.994 | BQ74: 2910988.994 | BR74: 2910988.994 | BS74: 2910988.994 | BT74: 2910988.994 | BU74: 2910988.994 | BV74: 2910988.994 | BW74: 2910988.994 | CB74: Mortgage Payment | CD74: =-PMT($B$8,20,$CC88) -> 16635297.14 | CE74: =-PMT($B$8,20,$CC88) -> 16635297.14 | CF74: 16635297.14 | CG74: 16635297.14 | CH74: 16635297.14 | CI74: 16635297.14 | CJ74: 16635297.14 | CK74: 16635297.14 | CL74: 16635297.14 | CM74: 16635297.14 | CN74: 16635297.14 | CO74: 16635297.14 | CP74: 16635297.14 | CQ74: 16635297.14 | CR74: 16635297.14 | CS74: 16635297.14 | CT74: 16635297.14 | CU74: 16635297.14 | CV74: 16635297.14 | CW74: 16635297.14
B75: Sinking Fund | D75: =D74-D73 -> 1894395.51 | E75: =E74-E73 -> 1989115.285 | F75: =F74-F73 -> 2088571.05 | G75: =G74-G73 -> 2192999.602 | H75: =H74-H73 -> 2302649.582 | I75: =I74-I73 -> 2417782.061 | J75: =J74-J73 -> 2538671.164 | K75: =K74-K73 -> 2665604.723 | L75: =L74-L73 -> 2798884.959 | M75: =M74-M73 -> 2938829.207 | N75: =N74-N73 -> 3085770.667 | O75: =O74-O73 -> 3240059.2 | P75: =P74-P73 -> 3402062.16 | Q75: =Q74-Q73 -> 3572165.268 | R75: =R74-R73 -> 3750773.532 | S75: =S74-S73 -> 3938312.208 | T75: =T74-T73 -> 4135227.819 | U75: =U74-U73 -> 4341989.21 | V75: =V74-V73 -> 4559088.67 | W75: =W74-W73 -> 4787043.104 | AB75: Sinking Fund | AD75: =AD74-AD73 -> 1584215.145 | AE75: =AE74-AE73 -> 1663425.902 | AF75: =AF74-AF73 -> 1746597.197 | AG75: =AG74-AG73 -> 1833927.057 | AH75: =AH74-AH73 -> 1925623.41 | AI75: =AI74-AI73 -> 2021904.58 | AJ75: =AJ74-AJ73 -> 2122999.809 | AK75: =AK74-AK73 -> 2229149.8 | AL75: =AL74-AL73 -> 2340607.29 | AM75: =AM74-AM73 -> 2457637.654 | AN75: =AN74-AN73 -> 2580519.537 | AO75: =AO74-AO73 -> 2709545.514 | AP75: =AP74-AP73 -> 2845022.789 | AQ75: =AQ74-AQ73 -> 2987273.929 | AR75: =AR74-AR73 -> 3136637.625 | AS75: =AS74-AS73 -> 3293469.507 | AT75: =AT74-AT73 -> 3458142.982 | AU75: =AU74-AU73 -> 3631050.131 | AV75: =AV74-AV73 -> 3812602.638 | AW75: =AW74-AW73 -> 4003232.769 | BB75: Sinking Fund | BD75: =BD74-BD73 -> 1097121.137 | BE75: =BE74-BE73 -> 1151977.194 | BF75: =BF74-BF73 -> 1209576.053 | BG75: =BG74-BG73 -> 1270054.856 | BH75: =BH74-BH73 -> 1333557.599 | BI75: =BI74-BI73 -> 1400235.479 | BJ75: =BJ74-BJ73 -> 1470247.253 | BK75: =BK74-BK73 -> 1543759.615 | BL75: =BL74-BL73 -> 1620947.596 | BM75: =BM74-BM73 -> 1701994.976 | BN75: =BN74-BN73 -> 1787094.725 | BO75: =BO74-BO73 -> 1876449.461 | BP75: =BP74-BP73 -> 1970271.934 | BQ75: =BQ74-BQ73 -> 2068785.531 | BR75: =BR74-BR73 -> 2172224.807 | BS75: =BS74-BS73 -> 2280836.047 | BT75: =BT74-BT73 -> 2394877.85 | BU75: =BU74-BU73 -> 2514621.742 | BV75: =BV74-BV73 -> 2640352.829 | BW75: =BW74-BW73 -> 2772370.471 | CB75: Sinking Fund | CD75: =CD74-CD73 -> 6269668.536 | CE75: =CE74-CE73 -> 6583151.962 | CF75: =CF74-CF73 -> 6912309.56 | CG75: =CG74-CG73 -> 7257925.039 | CH75: =CH74-CH73 -> 7620821.29 | CI75: =CI74-CI73 -> 8001862.355 | CJ75: =CJ74-CJ73 -> 8401955.473 | CK75: =CK74-CK73 -> 8822053.246 | CL75: =CL74-CL73 -> 9263155.909 | CM75: =CM74-CM73 -> 9726313.704 | CN75: =CN74-CN73 -> 10212629.39 | CO75: =CO74-CO73 -> 10723260.86 | CP75: =CP74-CP73 -> 11259423.9 | CQ75: =CQ74-CQ73 -> 11822395.1 | CR75: =CR74-CR73 -> 12413514.85 | CS75: =CS74-CS73 -> 13034190.59 | CT75: =CT74-CT73 -> 13685900.12 | CU75: =CU74-CU73 -> 14370195.13 | CV75: =CV74-CV73 -> 15088704.89 | CW75: =CW74-CW73 -> 15843140.13
B76: Mortgage Balance | C76: =C88 -> 62639994.98 | D76: =C76-D75 -> 60745599.47 | E76: =D76-E75 -> 58756484.19 | F76: =E76-F75 -> 56667913.14 | G76: =F76-G75 -> 54474913.54 | H76: =G76-H75 -> 52172263.95 | I76: =H76-I75 -> 49754481.89 | J76: =I76-J75 -> 47215810.73 | K76: =J76-K75 -> 44550206.01 | L76: =K76-L75 -> 41751321.05 | M76: =L76-M75 -> 38812491.84 | N76: =M76-N75 -> 35726721.17 | O76: =N76-O75 -> 32486661.97 | P76: =O76-P75 -> 29084599.81 | Q76: =P76-Q75 -> 25512434.54 | R76: =Q76-R75 -> 21761661.01 | S76: =R76-S75 -> 17823348.8 | T76: =S76-T75 -> 13688120.98 | U76: =T76-U75 -> 9346131.774 | V76: =U76-V75 -> 4787043.104 | W76: =V76-W75 -> 4.004687071e-08 | AB76: Mortgage Balance | AC76: =AC88 -> 52383585.26 | AD76: =AC76-AD75 -> 50799370.12 | AE76: =AD76-AE75 -> 49135944.22 | AF76: =AE76-AF75 -> 47389347.02 | AG76: =AF76-AG75 -> 45555419.96 | AH76: =AG76-AH75 -> 43629796.55 | AI76: =AH76-AI75 -> 41607891.97 | AJ76: =AI76-AJ75 -> 39484892.16 | AK76: =AJ76-AK75 -> 37255742.36 | AL76: =AK76-AL75 -> 34915135.08 | AM76: =AL76-AM75 -> 32457497.42 | AN76: =AM76-AN75 -> 29876977.88 | AO76: =AN76-AO75 -> 27167432.37 | AP76: =AO76-AP75 -> 24322409.58 | AQ76: =AP76-AQ75 -> 21335135.65 | AR76: =AQ76-AR75 -> 18198498.03 | AS76: =AR76-AS75 -> 14905028.52 | AT76: =AS76-AT75 -> 11446885.54 | AU76: =AT76-AU75 -> 7815835.407 | AV76: =AU76-AV75 -> 4003232.769 | AW76: =AV76-AW75 -> 6.519258022e-09 | BB76: Mortgage Balance | BC76: =BC88 -> 36277357.15 | BD76: =BC76-BD75 -> 35180236.02 | BE76: =BD76-BE75 -> 34028258.82 | BF76: =BE76-BF75 -> 32818682.77 | BG76: =BF76-BG75 -> 31548627.91 | BH76: =BG76-BH75 -> 30215070.32 | BI76: =BH76-BI75 -> 28814834.84 | BJ76: =BI76-BJ75 -> 27344587.58 | BK76: =BJ76-BK75 -> 25800827.97 | BL76: =BK76-BL75 -> 24179880.37 | BM76: =BL76-BM75 -> 22477885.4 | BN76: =BM76-BN75 -> 20690790.67 | BO76: =BN76-BO75 -> 18814341.21 | BP76: =BO76-BP75 -> 16844069.28 | BQ76: =BP76-BQ75 -> 14775283.75 | BR76: =BQ76-BR75 -> 12603058.94 | BS76: =BR76-BS75 -> 10322222.89 | BT76: =BS76-BT75 -> 7927345.043 | BU76: =BT76-BU75 -> 5412723.3 | BV76: =BU76-BV75 -> 2772370.471 | BW76: =BV76-BW75 -> 4.190951586e-09 | CB76: Mortgage Balance | CC76: =CC88 -> 207312572 | CD76: =CC76-CD75 -> 201042903.5 | CE76: =CD76-CE75 -> 194459751.5 | CF76: =CE76-CF75 -> 187547442 | CG76: =CF76-CG75 -> 180289516.9 | CH76: =CG76-CH75 -> 172668695.7 | CI76: =CH76-CI75 -> 164666833.3 | CJ76: =CI76-CJ75 -> 156264877.8 | CK76: =CJ76-CK75 -> 147442824.6 | CL76: =CK76-CL75 -> 138179668.7 | CM76: =CL76-CM75 -> 128453355 | CN76: =CM76-CN75 -> 118240725.6 | CO76: =CN76-CO75 -> 107517464.7 | CP76: =CO76-CP75 -> 96258040.81 | CQ76: =CP76-CQ75 -> 84435645.72 | CR76: =CQ76-CR75 -> 72022130.87 | CS76: =CR76-CS75 -> 58987940.27 | CT76: =CS76-CT75 -> 45302040.15 | CU76: =CT76-CU75 -> 30931845.02 | CV76: =CU76-CV75 -> 15843140.13 | CW76: =CV76-CW75 -> 7.264316082e-08
B79: Book Depr | D79: =-$C69/20 -> 8325307.421 | E79: =-$C69/20 -> 8325307.421 | F79: 8325307.421 | G79: 8325307.421 | H79: 8325307.421 | I79: 8325307.421 | J79: 8325307.421 | K79: 8325307.421 | L79: 8325307.421 | M79: 8325307.421 | N79: 8325307.421 | O79: 8325307.421 | P79: 8325307.421 | Q79: 8325307.421 | R79: 8325307.421 | S79: 8325307.421 | T79: 8325307.421 | U79: 8325307.421 | V79: 8325307.421 | W79: 8325307.421 | AB79: Book Depr | AD79: =-$AC69/20 -> 7744472.02 | AE79: =-$AC69/20 -> 7744472.02 | AF79: 7744472.02 | AG79: 7744472.02 | AH79: 7744472.02 | AI79: 7744472.02 | AJ79: 7744472.02 | AK79: 7744472.02 | AL79: 7744472.02 | AM79: 7744472.02 | AN79: 7744472.02 | AO79: 7744472.02 | AP79: 7744472.02 | AQ79: 7744472.02 | AR79: 7744472.02 | AS79: 7744472.02 | AT79: 7744472.02 | AU79: 7744472.02 | AV79: 7744472.02 | AW79: 7744472.02 | BB79: Book Depr | BD79: =-$BC69/20 -> 7744472.02 | BE79: =-$BC69/20 -> 7744472.02 | BF79: 7744472.02 | BG79: 7744472.02 | BH79: 7744472.02 | BI79: 7744472.02 | BJ79: 7744472.02 | BK79: 7744472.02 | BL79: 7744472.02 | BM79: 7744472.02 | BN79: 7744472.02 | BO79: 7744472.02 | BP79: 7744472.02 | BQ79: 7744472.02 | BR79: 7744472.02 | BS79: 7744472.02 | BT79: 7744472.02 | BU79: 7744472.02 | BV79: 7744472.02 | BW79: 7744472.02 | CB79: Book Depr | CD79: =-$CC69/20 -> 19889826.57 | CE79: =-$CC69/20 -> 19889826.57 | CF79: 19889826.57 | CG79: 19889826.57 | CH79: 19889826.57 | CI79: 19889826.57 | CJ79: 19889826.57 | CK79: 19889826.57 | CL79: 19889826.57 | CM79: 19889826.57 | CN79: 19889826.57 | CO79: 19889826.57 | CP79: 19889826.57 | CQ79: 19889826.57 | CR79: 19889826.57 | CS79: 19889826.57 | CT79: 19889826.57 | CU79: 19889826.57 | CV79: 19889826.57 | CW79: 19889826.57
B80: Accum Depreciation | D80: =SUM($D79:D79) -> 8325307.421 | E80: =SUM($D79:E79) -> 16650614.84 | F80: =SUM($D79:F79) -> 24975922.26 | G80: =SUM($D79:G79) -> 33301229.69 | H80: =SUM($D79:H79) -> 41626537.11 | I80: =SUM($D79:I79) -> 49951844.53 | J80: =SUM($D79:J79) -> 58277151.95 | K80: =SUM($D79:K79) -> 66602459.37 | L80: =SUM($D79:L79) -> 74927766.79 | M80: =SUM($D79:M79) -> 83253074.21 | N80: =SUM($D79:N79) -> 91578381.64 | O80: =SUM($D79:O79) -> 99903689.06 | P80: =SUM($D79:P79) -> 108228996.5 | Q80: =SUM($D79:Q79) -> 116554303.9 | R80: =SUM($D79:R79) -> 124879611.3 | S80: =SUM($D79:S79) -> 133204918.7 | T80: =SUM($D79:T79) -> 141530226.2 | U80: =SUM($D79:U79) -> 149855533.6 | V80: =SUM($D79:V79) -> 158180841 | W80: =SUM($D79:W79) -> 166506148.4 | AB80: Accum Depreciation | AD80: =SUM($AD79:AD79) -> 7744472.02 | AE80: =SUM($AD79:AE79) -> 15488944.04 | AF80: =SUM($AD79:AF79) -> 23233416.06 | AG80: =SUM($AD79:AG79) -> 30977888.08 | AH80: =SUM($AD79:AH79) -> 38722360.1 | AI80: =SUM($AD79:AI79) -> 46466832.12 | AJ80: =SUM($AD79:AJ79) -> 54211304.14 | AK80: =SUM($AD79:AK79) -> 61955776.16 | AL80: =SUM($AD79:AL79) -> 69700248.18 | AM80: =SUM($AD79:AM79) -> 77444720.2 | AN80: =SUM($AD79:AN79) -> 85189192.22 | AO80: =SUM($AD79:AO79) -> 92933664.24 | AP80: =SUM($AD79:AP79) -> 100678136.3 | AQ80: =SUM($AD79:AQ79) -> 108422608.3 | AR80: =SUM($AD79:AR79) -> 116167080.3 | AS80: =SUM($AD79:AS79) -> 123911552.3 | AT80: =SUM($AD79:AT79) -> 131656024.3 | AU80: =SUM($AD79:AU79) -> 139400496.4 | AV80: =SUM($AD79:AV79) -> 147144968.4 | AW80: =SUM($AD79:AW79) -> 154889440.4 | BB80: Accum Depreciation | BD80: =SUM($BD79:BD79) -> 7744472.02 | BE80: =SUM($BD79:BE79) -> 15488944.04 | BF80: =SUM($BD79:BF79) -> 23233416.06 | BG80: =SUM($BD79:BG79) -> 30977888.08 | BH80: =SUM($BD79:BH79) -> 38722360.1 | BI80: =SUM($BD79:BI79) -> 46466832.12 | BJ80: =SUM($BD79:BJ79) -> 54211304.14 | BK80: =SUM($BD79:BK79) -> 61955776.16 | BL80: =SUM($BD79:BL79) -> 69700248.18 | BM80: =SUM($BD79:BM79) -> 77444720.2 | BN80: =SUM($BD79:BN79) -> 85189192.22 | BO80: =SUM($BD79:BO79) -> 92933664.24 | BP80: =SUM($BD79:BP79) -> 100678136.3 | BQ80: =SUM($BD79:BQ79) -> 108422608.3 | BR80: =SUM($BD79:BR79) -> 116167080.3 | BS80: =SUM($BD79:BS79) -> 123911552.3 | BT80: =SUM($BD79:BT79) -> 131656024.3 | BU80: =SUM($BD79:BU79) -> 139400496.4 | BV80: =SUM($BD79:BV79) -> 147144968.4 | BW80: =SUM($BD79:BW79) -> 154889440.4 | CB80: Accum Depreciation | CD80: =SUM($CD79:CD79) -> 19889826.57 | CE80: =SUM($CD79:CE79) -> 39779653.15 | CF80: =SUM($CD79:CF79) -> 59669479.72 | CG80: =SUM($CD79:CG79) -> 79559306.3 | CH80: =SUM($CD79:CH79) -> 99449132.87 | CI80: =SUM($CD79:CI79) -> 119338959.4 | CJ80: =SUM($CD79:CJ79) -> 139228786 | CK80: =SUM($CD79:CK79) -> 159118612.6 | CL80: =SUM($CD79:CL79) -> 179008439.2 | CM80: =SUM($CD79:CM79) -> 198898265.7 | CN80: =SUM($CD79:CN79) -> 218788092.3 | CO80: =SUM($CD79:CO79) -> 238677918.9 | CP80: =SUM($CD79:CP79) -> 258567745.5 | CQ80: =SUM($CD79:CQ79) -> 278457572 | CR80: =SUM($CD79:CR79) -> 298347398.6 | CS80: =SUM($CD79:CS79) -> 318237225.2 | CT80: =SUM($CD79:CT79) -> 338127051.8 | CU80: =SUM($CD79:CU79) -> 358016878.3 | CV80: =SUM($CD79:CV79) -> 377906704.9 | CW80: =SUM($CD79:CW79) -> 397796531.5
B81: End Year Book Value | D81: =-$C69-D80 -> 158180841 | E81: 149855533.6 | F81: 141530226.2 | G81: 133204918.7 | H81: 124879611.3 | I81: 116554303.9 | J81: 108228996.5 | K81: 99903689.06 | L81: 91578381.64 | M81: 83253074.21 | N81: 74927766.79 | O81: 66602459.37 | P81: 58277151.95 | Q81: 49951844.53 | R81: 41626537.11 | S81: 33301229.69 | T81: 24975922.26 | U81: 16650614.84 | V81: 8325307.421 | W81: 0 | AB81: End Year Book Value | AD81: =-$AC69-AD80 -> 147144968.4 | AE81: =-$AC69-AE80 -> 139400496.4 | AF81: =-$AC69-AF80 -> 131656024.3 | AG81: =-$AC69-AG80 -> 123911552.3 | AH81: =-$AC69-AH80 -> 116167080.3 | AI81: =-$AC69-AI80 -> 108422608.3 | AJ81: =-$AC69-AJ80 -> 100678136.3 | AK81: =-$AC69-AK80 -> 92933664.24 | AL81: =-$AC69-AL80 -> 85189192.22 | AM81: =-$AC69-AM80 -> 77444720.2 | AN81: =-$AC69-AN80 -> 69700248.18 | AO81: =-$AC69-AO80 -> 61955776.16 | AP81: =-$AC69-AP80 -> 54211304.14 | AQ81: =-$AC69-AQ80 -> 46466832.12 | AR81: =-$AC69-AR80 -> 38722360.1 | AS81: =-$AC69-AS80 -> 30977888.08 | AT81: =-$AC69-AT80 -> 23233416.06 | AU81: =-$AC69-AU80 -> 15488944.04 | AV81: =-$AC69-AV80 -> 7744472.02 | AW81: =-$AC69-AW80 -> 0 | BB81: End Year Book Value | BD81: =-$BC69-BD80 -> 147144968.4 | BE81: =-$BC69-BE80 -> 139400496.4 | BF81: =-$BC69-BF80 -> 131656024.3 | BG81: =-$BC69-BG80 -> 123911552.3 | BH81: =-$BC69-BH80 -> 116167080.3 | BI81: =-$BC69-BI80 -> 108422608.3 | BJ81: =-$BC69-BJ80 -> 100678136.3 | BK81: =-$BC69-BK80 -> 92933664.24 | BL81: =-$BC69-BL80 -> 85189192.22 | BM81: =-$BC69-BM80 -> 77444720.2 | BN81: =-$BC69-BN80 -> 69700248.18 | BO81: =-$BC69-BO80 -> 61955776.16 | BP81: =-$BC69-BP80 -> 54211304.14 | BQ81: =-$BC69-BQ80 -> 46466832.12 | BR81: =-$BC69-BR80 -> 38722360.1 | BS81: =-$BC69-BS80 -> 30977888.08 | BT81: =-$BC69-BT80 -> 23233416.06 | BU81: =-$BC69-BU80 -> 15488944.04 | BV81: =-$BC69-BV80 -> 7744472.02 | BW81: =-$BC69-BW80 -> 0 | CB81: End Year Book Value | CD81: =-$CC69-CD80 -> 377906704.9 | CE81: =-$CC69-CE80 -> 358016878.3 | CF81: =-$CC69-CF80 -> 338127051.8 | CG81: =-$CC69-CG80 -> 318237225.2 | CH81: =-$CC69-CH80 -> 298347398.6 | CI81: =-$CC69-CI80 -> 278457572 | CJ81: =-$CC69-CJ80 -> 258567745.5 | CK81: =-$CC69-CK80 -> 238677918.9 | CL81: =-$CC69-CL80 -> 218788092.3 | CM81: =-$CC69-CM80 -> 198898265.7 | CN81: =-$CC69-CN80 -> 179008439.2 | CO81: =-$CC69-CO80 -> 159118612.6 | CP81: =-$CC69-CP80 -> 139228786 | CQ81: =-$CC69-CQ80 -> 119338959.4 | CR81: =-$CC69-CR80 -> 99449132.87 | CS81: =-$CC69-CS80 -> 79559306.3 | CT81: =-$CC69-CT80 -> 59669479.72 | CU81: =-$CC69-CU80 -> 39779653.15 | CV81: =-$CC69-CV80 -> 19889826.57 | CW81: =-$CC69-CW80 -> 0
B82: Prop. Tax Value | C82: =-C69 -> 166506148.4 | D82: =C82/(($C82/$X82)^(1/21)) -> 157228505.8 | E82: =D82/(($C82/$X82)^(1/21)) -> 148467808.9 | F82: 140195253.9 | G82: 132383641.6 | H82: 125007288.6 | I82: 118041942.5 | J82: 111464702.1 | K82: 105253942.5 | L82: 99389243.3 | M82: 93851322.37 | N82: 88621971.74 | O82: 83683998.02 | P82: 79021165.82 | Q82: 74618144.39 | R82: 70460457.2 | S82: 66534434.35 | T82: 62827167.61 | U82: 59326467.99 | V82: 56020825.67 | W82: 52899372.15 | X82: =X69 -> 49951844.53 | AB82: Prop. Tax Value | AC82: =-AC69 -> 154889440.4 | AD82: =AC82/(($AC82/$AX82)^(1/21)) -> 146259075.1 | AE82: =AD82/(($AC82/$AX82)^(1/21)) -> 138109589.7 | AF82: 130414189.6 | AG82: 123147573.6 | AH82: 116285849.9 | AI82: 109806458.2 | AJ82: 103688095 | AK82: 97910644.14 | AL82: 92455110.05 | AM82: 87303555.7 | AN82: 82439043.48 | AO82: 77845579.55 | AP82: 73508061.23 | AQ82: 69412227.34 | AR82: 65544611.35 | AS82: 61892497.07 | AT82: 58443876.84 | AU82: 55187412.08 | AV82: 52112395.97 | AW82: 49208718.28 | AX82: =AX69 -> 46466832.12 | BB82: Prop. Tax Value | BC82: =-BC69 -> 154889440.4 | BD82: =BC82/(($BC82/$BX82)^(1/21)) -> 146259075.1 | BE82: =BD82/(($BC82/$BX82)^(1/21)) -> 138109589.7 | BF82: 130414189.6 | BG82: 123147573.6 | BH82: 116285849.9 | BI82: 109806458.2 | BJ82: 103688095 | BK82: 97910644.14 | BL82: 92455110.05 | BM82: 87303555.7 | BN82: 82439043.48 | BO82: 77845579.55 | BP82: 73508061.23 | BQ82: 69412227.34 | BR82: 65544611.35 | BS82: 61892497.07 | BT82: 58443876.84 | BU82: 55187412.08 | BV82: 52112395.97 | BW82: 49208718.28 | BX82: =BX69 -> 46466832.12 | CB82: Prop. Tax Value | CC82: =-CC69 -> 397796531.5 | CD82: =CC82/(($CC82/$CX82)^(1/21)) -> 375631499.7 | CE82: =CD82/(($CC82/$CX82)^(1/21)) -> 354701492.9 | CF82: 334937695.9 | CG82: 316275128.3 | CH82: 298652430 | CI82: 282011659.9 | CJ82: 266298105.6 | CK82: 251460103 | CL82: 237448866.8 | CM82: 224218329.9 | CN82: 211724992.2 | CO82: 199927777.2 | CP82: 188787897.5 | CQ82: 178268726.4 | CR82: 168335678.6 | CS82: 158956095.4 | CT82: 150099138 | CU82: 141735686.1 | CV82: 133838241.7 | CW82: 126380839.1 | CX82: =CX69 -> 119338959.4
B83: Tax Dep | D83: =$C$69*-D$5 -> 33301229.69 | E83: =$C$69*-E$5 -> 53281967.5 | F83: 31969180.5 | G83: 19181508.3 | H83: 19181508.3 | I83: 9590754.149 | AB83: Tax Dep | AD83: =$C$29*-D$5 -> 33816225.78 | AE83: =$C$29*-E$5 -> 54105961.25 | AF83: =$C$29*-F$5 -> 32463576.75 | AG83: =$C$29*-G$5 -> 19478146.05 | AH83: =$C$29*-H$5 -> 19478146.05 | AI83: =$C$29*-I$5 -> 9739073.025 | BB83: Tax Dep | BD83: =$C$29*-D$5 -> 33816225.78 | BE83: =$C$29*-E$5 -> 54105961.25 | BF83: =$C$29*-F$5 -> 32463576.75 | BG83: =$C$29*-G$5 -> 19478146.05 | BH83: =$C$29*-H$5 -> 19478146.05 | BI83: =$C$29*-I$5 -> 9739073.025 | CB83: Tax Dep | CD83: =$CC$29*-D$5 -> 78787191.82 | CE83: =$CC$29*-E$5 -> 126059506.9 | CF83: =$CC$29*-F$5 -> 75635704.15 | CG83: =$CC$29*-G$5 -> 45381422.49 | CH83: =$CC$29*-H$5 -> 45381422.49 | CI83: =$CC$29*-I$5 -> 22690711.24
B84: After Tax Dep. Value | D84: =D83*$B$7 -> 6993258.234 | E84: =E83*$B$7 -> 11189213.17 | F84: =F83*$B$7 -> 6713527.905 | G84: =G83*$B$7 -> 4028116.743 | H84: =H83*$B$7 -> 4028116.743 | I84: =I83*$B$7 -> 2014058.371 | AB84: After Tax Dep. Value | AD84: =AD83*$B$7 -> 7101407.414 | AE84: =AE83*$B$7 -> 11362251.86 | AF84: =AF83*$B$7 -> 6817351.117 | AG84: =AG83*$B$7 -> 4090410.67 | AH84: =AH83*$B$7 -> 4090410.67 | AI84: =AI83*$B$7 -> 2045205.335 | BB84: After Tax Dep. Value | BD84: =BD83*$B$7 -> 7101407.414 | BE84: =BE83*$B$7 -> 11362251.86 | BF84: =BF83*$B$7 -> 6817351.117 | BG84: =BG83*$B$7 -> 4090410.67 | BH84: =BH83*$B$7 -> 4090410.67 | BI84: =BI83*$B$7 -> 2045205.335 | CB84: After Tax Dep. Value | CD84: =CD83*$B$7 -> 16545310.28 | CE84: =CE83*$B$7 -> 26472496.45 | CF84: =CF83*$B$7 -> 15883497.87 | CG84: =CG83*$B$7 -> 9530098.722 | CH84: =CH83*$B$7 -> 9530098.722 | CI84: =CI83*$B$7 -> 4765049.361
B86: Dep. Tax Equity | C86: =NPV($B$10,D84:I84) -> 29076160.74 | D86: =C86/C90 -> 0.1746251475 | AB86: Dep. Tax Equity | AC86: =NPV($B$10,AD84:AI84) -> 29525817.08 | AD86: =AC86/AC90 -> 0.190625113 | BB86: Dep. Tax Equity | BC86: =NPV($B$10,BD84:BI84) -> 29525817.08 | BD86: =BC86/BC90 -> 0.190625113 | CB86: Dep. Tax Equity | CC86: =NPV($B$10,CD84:CI84) -> 68791124.98 | CD86: =CC86/CC90 -> 0.1729304293
B87: PTC Tax Equity | C87: =NPV($B$10,D65:W65) -> 63735875.95 | D87: =C87/C90 -> 0.3827839185 | AB87: PTC Tax Equity | AC87: =NPV($B$10,AD65:AW65) -> 63735875.95 | AD87: =AC87/AC90 -> 0.4114927124 | BB87: PTC Tax Equity | BC87: =NPV($B$10,BD65:BW65) -> 82684379.61 | BD87: =BC87/BC90 -> 0.5338283836 | CB87: PTC Tax Equity | CC87: =NPV($B$10,CD65:CW65) -> 85108262.93 | CD87: =CC87/CC90 -> 0.2139492333
A88: 0.85 | B88: Debt | C88: =(C90-C86-C87)*$A88 -> 62639994.98 | D88: =C88/C90 -> 0.3762022939 | AA88: 0.85 | AB88: Debt | AC88: =(AC90-AC86-AC87)*$A88 -> 52383585.26 | AD88: =AC88/AC90 -> 0.3381998484 | BA88: 0.85 | BB88: Debt | BC88: =(BC90-BC86-BC87)*$A88 -> 36277357.15 | BD88: =BC88/BC90 -> 0.2342145279 | CA88: 0.85 | CB88: Debt | CC88: =(CC90-CC86-CC87)*$A88 -> 207312572 | CD88: =CC88/CC90 -> 0.5211522867
A89: 0.15 | B89: Equity | C89: =(C90-C86-C87)*$A89 -> 11054116.76 | D89: =C89/C90 -> 0.0663886401 | AA89: 0.15 | AB89: Equity | AC89: =(AC90-AC86-AC87)*$A89 -> 9244162.105 | AD89: =AC89/AC90 -> 0.05968232619 | BA89: 0.15 | BB89: Equity | BC89: =(BC90-BC86-BC87)*$A89 -> 6401886.556 | BD89: =BC89/BC90 -> 0.0413319755 | CA89: 0.15 | CB89: Equity | CC89: =(CC90-CC86-CC87)*$A89 -> 36584571.54 | CD89: =CC89/CC90 -> 0.0919680506
B90: Total | C90: =-C69 -> 166506148.4 | AB90: Total | AC90: =-AC69 -> 154889440.4 | BB90: Total | BC90: =-BC69 -> 154889440.4 | CB90: Total | CC90: =-CC69 -> 397796531.5
B91: Check | C91: =SUM(C86:C89)-C90 -> 0 | AB91: Check | AC91: =SUM(AC86:AC89)-AC90 -> 0 | BB91: Check | BC91: =SUM(BC86:BC89)-BC90 -> 0 | CB91: Check | CC91: =SUM(CC86:CC89)-CC90 -> 0
B92: 2022 On-System Wind | AB92: 2022 Off-System Wind | BB92: 2022 Mt Wind | CB92: 2022 Off Shore Wind
B93: Year | D93: 2022 | E93: =D93+1 -> 2023 | F93: =E93+1 -> 2024 | G93: 2025 | H93: 2026 | I93: 2027 | J93: 2028 | K93: 2029 | L93: 2030 | M93: 2031 | N93: 2032 | O93: 2033 | P93: 2034 | Q93: 2035 | R93: 2036 | S93: 2037 | T93: 2038 | U93: 2039 | V93: 2040 | W93: 2041 | AB93: Year | AD93: 2022 | AE93: =AD93+1 -> 2023 | AF93: =AE93+1 -> 2024 | AG93: 2025 | AH93: 2026 | AI93: 2027 | AJ93: 2028 | AK93: 2029 | AL93: 2030 | AM93: 2031 | AN93: 2032 | AO93: 2033 | AP93: 2034 | AQ93: 2035 | AR93: 2036 | AS93: 2037 | AT93: 2038 | AU93: 2039 | AV93: 2040 | AW93: 2041 | BB93: Year | BD93: 2022 | BE93: =BD93+1 -> 2023 | BF93: =BE93+1 -> 2024 | BG93: 2025 | BH93: 2026 | BI93: 2027 | BJ93: 2028 | BK93: 2029 | BL93: 2030 | BM93: 2031 | BN93: 2032 | BO93: 2033 | BP93: 2034 | BQ93: 2035 | BR93: 2036 | BS93: 2037 | BT93: 2038 | BU93: 2039 | BV93: 2040 | BW93: 2041 | CB93: Year | CD93: 2022 | CE93: =CD93+1 -> 2023 | CF93: =CE93+1 -> 2024 | CG93: 2025 | CH93: 2026 | CI93: 2027 | CJ93: 2028 | CK93: 2029 | CL93: 2030 | CM93: 2031 | CN93: 2032 | CO93: 2033 | CP93: 2034 | CQ93: 2035 | CR93: 2036 | CS93: 2037 | CT93: 2038 | CU93: 2039 | CV93: 2040 | CW93: 2041
B94: MWh | D94: =('Resource Options'!$V$22/100*'Resource Options'!$J$22*8760)*(1+'Resource Options'!$X$22)^($D93-$D$13) -> 329980.4487 | E94: =('Resource Options'!$V$22/100*'Resource Options'!$J$22*8760)*(1+'Resource Options'!$X$22)^($D93-$D$13) -> 329980.4487 | F94: =('Resource Options'!$V$22/100*'Resource Options'!$J$22*8760)*(1+'Resource Options'!$X$22)^($D93-$D$13) -> 329980.4487 | G94: =('Resource Options'!$V$22/100*'Resource Options'!$J$22*8760)*(1+'Resource Options'!$X$22)^($D93-$D$13) -> 329980.4487 | H94: =('Resource Options'!$V$22/100*'Resource Options'!$J$22*8760)*(1+'Resource Options'!$X$22)^($D93-$D$13) -> 329980.4487 | I94: =('Resource Options'!$V$22/100*'Resource Options'!$J$22*8760)*(1+'Resource Options'!$X$22)^($D93-$D$13) -> 329980.4487 | J94: =('Resource Options'!$V$22/100*'Resource Options'!$J$22*8760)*(1+'Resource Options'!$X$22)^($D93-$D$13) -> 329980.4487 | K94: =('Resource Options'!$V$22/100*'Resource Options'!$J$22*8760)*(1+'Resource Options'!$X$22)^($D93-$D$13) -> 329980.4487 | L94: =('Resource Options'!$V$22/100*'Resource Options'!$J$22*8760)*(1+'Resource Options'!$X$22)^($D93-$D$13) -> 329980.4487 | M94: =('Resource Options'!$V$22/100*'Resource Options'!$J$22*8760)*(1+'Resource Options'!$X$22)^($D93-$D$13) -> 329980.4487 | N94: =('Resource Options'!$V$22/100*'Resource Options'!$J$22*8760)*(1+'Resource Options'!$X$22)^($D93-$D$13) -> 329980.4487 | O94: =('Resource Options'!$V$22/100*'Resource Options'!$J$22*8760)*(1+'Resource Options'!$X$22)^($D93-$D$13) -> 329980.4487 | P94: =('Resource Options'!$V$22/100*'Resource Options'!$J$22*8760)*(1+'Resource Options'!$X$22)^($D93-$D$13) -> 329980.4487 | Q94: =('Resource Options'!$V$22/100*'Resource Options'!$J$22*8760)*(1+'Resource Options'!$X$22)^($D93-$D$13) -> 329980.4487 | R94: =('Resource Options'!$V$22/100*'Resource Options'!$J$22*8760)*(1+'Resource Options'!$X$22)^($D93-$D$13) -> 329980.4487 | S94: =('Resource Options'!$V$22/100*'Resource Options'!$J$22*8760)*(1+'Resource Options'!$X$22)^($D93-$D$13) -> 329980.4487 | T94: =('Resource Options'!$V$22/100*'Resource Options'!$J$22*8760)*(1+'Resource Options'!$X$22)^($D93-$D$13) -> 329980.4487 | U94: =('Resource Options'!$V$22/100*'Resource Options'!$J$22*8760)*(1+'Resource Options'!$X$22)^($D93-$D$13) -> 329980.4487 | V94: =('Resource Options'!$V$22/100*'Resource Options'!$J$22*8760)*(1+'Resource Options'!$X$22)^($D93-$D$13) -> 329980.4487 | W94: =('Resource Options'!$V$22/100*'Resource Options'!$J$22*8760)*(1+'Resource Options'!$X$22)^($D93-$D$13) -> 329980.4487 | AB94: MWh | AD94: =('Resource Options'!$V$23/100*'Resource Options'!$J$23*8760)*(1+'Resource Options'!$X$23)^($AD93-$AD$13) -> 329980.4487 | AE94: =('Resource Options'!$V$23/100*'Resource Options'!$J$23*8760)*(1+'Resource Options'!$X$23)^($AD93-$AD$13) -> 329980.4487 | AF94: =('Resource Options'!$V$23/100*'Resource Options'!$J$23*8760)*(1+'Resource Options'!$X$23)^($AD93-$AD$13) -> 329980.4487 | AG94: =('Resource Options'!$V$23/100*'Resource Options'!$J$23*8760)*(1+'Resource Options'!$X$23)^($AD93-$AD$13) -> 329980.4487 | AH94: =('Resource Options'!$V$23/100*'Resource Options'!$J$23*8760)*(1+'Resource Options'!$X$23)^($AD93-$AD$13) -> 329980.4487 | AI94: =('Resource Options'!$V$23/100*'Resource Options'!$J$23*8760)*(1+'Resource Options'!$X$23)^($AD93-$AD$13) -> 329980.4487 | AJ94: =('Resource Options'!$V$23/100*'Resource Options'!$J$23*8760)*(1+'Resource Options'!$X$23)^($AD93-$AD$13) -> 329980.4487 | AK94: =('Resource Options'!$V$23/100*'Resource Options'!$J$23*8760)*(1+'Resource Options'!$X$23)^($AD93-$AD$13) -> 329980.4487 | AL94: =('Resource Options'!$V$23/100*'Resource Options'!$J$23*8760)*(1+'Resource Options'!$X$23)^($AD93-$AD$13) -> 329980.4487 | AM94: =('Resource Options'!$V$23/100*'Resource Options'!$J$23*8760)*(1+'Resource Options'!$X$23)^($AD93-$AD$13) -> 329980.4487 | AN94: =('Resource Options'!$V$23/100*'Resource Options'!$J$23*8760)*(1+'Resource Options'!$X$23)^($AD93-$AD$13) -> 329980.4487 | AO94: =('Resource Options'!$V$23/100*'Resource Options'!$J$23*8760)*(1+'Resource Options'!$X$23)^($AD93-$AD$13) -> 329980.4487 | AP94: =('Resource Options'!$V$23/100*'Resource Options'!$J$23*8760)*(1+'Resource Options'!$X$23)^($AD93-$AD$13) -> 329980.4487 | AQ94: =('Resource Options'!$V$23/100*'Resource Options'!$J$23*8760)*(1+'Resource Options'!$X$23)^($AD93-$AD$13) -> 329980.4487 | AR94: =('Resource Options'!$V$23/100*'Resource Options'!$J$23*8760)*(1+'Resource Options'!$X$23)^($AD93-$AD$13) -> 329980.4487 | AS94: =('Resource Options'!$V$23/100*'Resource Options'!$J$23*8760)*(1+'Resource Options'!$X$23)^($AD93-$AD$13) -> 329980.4487 | AT94: =('Resource Options'!$V$23/100*'Resource Options'!$J$23*8760)*(1+'Resource Options'!$X$23)^($AD93-$AD$13) -> 329980.4487 | AU94: =('Resource Options'!$V$23/100*'Resource Options'!$J$23*8760)*(1+'Resource Options'!$X$23)^($AD93-$AD$13) -> 329980.4487 | AV94: =('Resource Options'!$V$23/100*'Resource Options'!$J$23*8760)*(1+'Resource Options'!$X$23)^($AD93-$AD$13) -> 329980.4487 | AW94: =('Resource Options'!$V$23/100*'Resource Options'!$J$23*8760)*(1+'Resource Options'!$X$23)^($AD93-$AD$13) -> 329980.4487 | BB94: MWh | BD94: =('Resource Options'!$V$24/100*'Resource Options'!$J$24*8760)*(1+'Resource Options'!$X$24)^($AD93-$AD$13) -> 428082.7443 | BE94: =('Resource Options'!$V$24/100*'Resource Options'!$J$24*8760)*(1+'Resource Options'!$X$24)^($AD93-$AD$13) -> 428082.7443 | BF94: =('Resource Options'!$V$24/100*'Resource Options'!$J$24*8760)*(1+'Resource Options'!$X$24)^($AD93-$AD$13) -> 428082.7443 | BG94: =('Resource Options'!$V$24/100*'Resource Options'!$J$24*8760)*(1+'Resource Options'!$X$24)^($AD93-$AD$13) -> 428082.7443 | BH94: =('Resource Options'!$V$24/100*'Resource Options'!$J$24*8760)*(1+'Resource Options'!$X$24)^($AD93-$AD$13) -> 428082.7443 | BI94: =('Resource Options'!$V$24/100*'Resource Options'!$J$24*8760)*(1+'Resource Options'!$X$24)^($AD93-$AD$13) -> 428082.7443 | BJ94: =('Resource Options'!$V$24/100*'Resource Options'!$J$24*8760)*(1+'Resource Options'!$X$24)^($AD93-$AD$13) -> 428082.7443 | BK94: =('Resource Options'!$V$24/100*'Resource Options'!$J$24*8760)*(1+'Resource Options'!$X$24)^($AD93-$AD$13) -> 428082.7443 | BL94: =('Resource Options'!$V$24/100*'Resource Options'!$J$24*8760)*(1+'Resource Options'!$X$24)^($AD93-$AD$13) -> 428082.7443 | BM94: =('Resource Options'!$V$24/100*'Resource Options'!$J$24*8760)*(1+'Resource Options'!$X$24)^($AD93-$AD$13) -> 428082.7443 | BN94: =('Resource Options'!$V$24/100*'Resource Options'!$J$24*8760)*(1+'Resource Options'!$X$24)^($AD93-$AD$13) -> 428082.7443 | BO94: =('Resource Options'!$V$24/100*'Resource Options'!$J$24*8760)*(1+'Resource Options'!$X$24)^($AD93-$AD$13) -> 428082.7443 | BP94: =('Resource Options'!$V$24/100*'Resource Options'!$J$24*8760)*(1+'Resource Options'!$X$24)^($AD93-$AD$13) -> 428082.7443 | BQ94: =('Resource Options'!$V$24/100*'Resource Options'!$J$24*8760)*(1+'Resource Options'!$X$24)^($AD93-$AD$13) -> 428082.7443 | BR94: =('Resource Options'!$V$24/100*'Resource Options'!$J$24*8760)*(1+'Resource Options'!$X$24)^($AD93-$AD$13) -> 428082.7443 | BS94: =('Resource Options'!$V$24/100*'Resource Options'!$J$24*8760)*(1+'Resource Options'!$X$24)^($AD93-$AD$13) -> 428082.7443 | BT94: =('Resource Options'!$V$24/100*'Resource Options'!$J$24*8760)*(1+'Resource Options'!$X$24)^($AD93-$AD$13) -> 428082.7443 | BU94: =('Resource Options'!$V$24/100*'Resource Options'!$J$24*8760)*(1+'Resource Options'!$X$24)^($AD93-$AD$13) -> 428082.7443 | BV94: =('Resource Options'!$V$24/100*'Resource Options'!$J$24*8760)*(1+'Resource Options'!$X$24)^($AD93-$AD$13) -> 428082.7443 | BW94: =('Resource Options'!$V$24/100*'Resource Options'!$J$24*8760)*(1+'Resource Options'!$X$24)^($AD93-$AD$13) -> 428082.7443 | CB94: MWh | CD94: =('Resource Options'!$V$25/100*'Resource Options'!$J$25*8760)*(1+'Resource Options'!$X$25)^($AD93-$AD$13) -> 440631.942 | CE94: =('Resource Options'!$V$25/100*'Resource Options'!$J$25*8760)*(1+'Resource Options'!$X$25)^($AD93-$AD$13) -> 440631.942 | CF94: =('Resource Options'!$V$25/100*'Resource Options'!$J$25*8760)*(1+'Resource Options'!$X$25)^($AD93-$AD$13) -> 440631.942 | CG94: =('Resource Options'!$V$25/100*'Resource Options'!$J$25*8760)*(1+'Resource Options'!$X$25)^($AD93-$AD$13) -> 440631.942 | CH94: =('Resource Options'!$V$25/100*'Resource Options'!$J$25*8760)*(1+'Resource Options'!$X$25)^($AD93-$AD$13) -> 440631.942 | CI94: =('Resource Options'!$V$25/100*'Resource Options'!$J$25*8760)*(1+'Resource Options'!$X$25)^($AD93-$AD$13) -> 440631.942 | CJ94: =('Resource Options'!$V$25/100*'Resource Options'!$J$25*8760)*(1+'Resource Options'!$X$25)^($AD93-$AD$13) -> 440631.942 | CK94: =('Resource Options'!$V$25/100*'Resource Options'!$J$25*8760)*(1+'Resource Options'!$X$25)^($AD93-$AD$13) -> 440631.942 | CL94: =('Resource Options'!$V$25/100*'Resource Options'!$J$25*8760)*(1+'Resource Options'!$X$25)^($AD93-$AD$13) -> 440631.942 | CM94: =('Resource Options'!$V$25/100*'Resource Options'!$J$25*8760)*(1+'Resource Options'!$X$25)^($AD93-$AD$13) -> 440631.942 | CN94: =('Resource Options'!$V$25/100*'Resource Options'!$J$25*8760)*(1+'Resource Options'!$X$25)^($AD93-$AD$13) -> 440631.942 | CO94: =('Resource Options'!$V$25/100*'Resource Options'!$J$25*8760)*(1+'Resource Options'!$X$25)^($AD93-$AD$13) -> 440631.942 | CP94: =('Resource Options'!$V$25/100*'Resource Options'!$J$25*8760)*(1+'Resource Options'!$X$25)^($AD93-$AD$13) -> 440631.942 | CQ94: =('Resource Options'!$V$25/100*'Resource Options'!$J$25*8760)*(1+'Resource Options'!$X$25)^($AD93-$AD$13) -> 440631.942 | CR94: =('Resource Options'!$V$25/100*'Resource Options'!$J$25*8760)*(1+'Resource Options'!$X$25)^($AD93-$AD$13) -> 440631.942 | CS94: =('Resource Options'!$V$25/100*'Resource Options'!$J$25*8760)*(1+'Resource Options'!$X$25)^($AD93-$AD$13) -> 440631.942 | CT94: =('Resource Options'!$V$25/100*'Resource Options'!$J$25*8760)*(1+'Resource Options'!$X$25)^($AD93-$AD$13) -> 440631.942 | CU94: =('Resource Options'!$V$25/100*'Resource Options'!$J$25*8760)*(1+'Resource Options'!$X$25)^($AD93-$AD$13) -> 440631.942 | CV94: =('Resource Options'!$V$25/100*'Resource Options'!$J$25*8760)*(1+'Resource Options'!$X$25)^($AD93-$AD$13) -> 440631.942 | CW94: =('Resource Options'!$V$25/100*'Resource Options'!$J$25*8760)*(1+'Resource Options'!$X$25)^($AD93-$AD$13) -> 440631.942
B95: PPA Rate ($/MWh) | D95: ='PPA Summary'!M6 -> 38.15327259 | E95: =D95 -> 38.15327259 | F95: =E95 -> 38.15327259 | G95: 38.15327259 | H95: 38.15327259 | I95: 38.15327259 | J95: 38.15327259 | K95: 38.15327259 | L95: 38.15327259 | M95: 38.15327259 | N95: 38.15327259 | O95: 38.15327259 | P95: 38.15327259 | Q95: 38.15327259 | R95: 38.15327259 | S95: 38.15327259 | T95: 38.15327259 | U95: 38.15327259 | V95: 38.15327259 | W95: 38.15327259 | AB95: PPA Rate ($/MWh) | AD95: ='PPA Summary'!P6 -> 34.11584671 | AE95: =AD95 -> 34.11584671 | AF95: =AE95 -> 34.11584671 | AG95: 34.11584671 | AH95: 34.11584671 | AI95: 34.11584671 | AJ95: 34.11584671 | AK95: 34.11584671 | AL95: 34.11584671 | AM95: 34.11584671 | AN95: 34.11584671 | AO95: 34.11584671 | AP95: 34.11584671 | AQ95: 34.11584671 | AR95: 34.11584671 | AS95: 34.11584671 | AT95: 34.11584671 | AU95: 34.11584671 | AV95: 34.11584671 | AW95: 34.11584671 | BB95: PPA Rate ($/MWh) | BD95: ='PPA Summary'!$S$6 -> 21.43216888 | BE95: =BD95 -> 21.43216888 | BF95: =BE95 -> 21.43216888 | BG95: 21.43216888 | BH95: 21.43216888 | BI95: 21.43216888 | BJ95: 21.43216888 | BK95: 21.43216888 | BL95: 21.43216888 | BM95: 21.43216888 | BN95: 21.43216888 | BO95: 21.43216888 | BP95: 21.43216888 | BQ95: 21.43216888 | BR95: 21.43216888 | BS95: 21.43216888 | BT95: 21.43216888 | BU95: 21.43216888 | BV95: 21.43216888 | BW95: 21.43216888 | CB95: PPA Rate ($/MWh) | CD95: ='PPA Summary'!V6 -> 91.41087411 | CE95: =CD95 -> 91.41087411 | CF95: =CE95 -> 91.41087411 | CG95: 91.41087411 | CH95: 91.41087411 | CI95: 91.41087411 | CJ95: 91.41087411 | CK95: 91.41087411 | CL95: 91.41087411 | CM95: 91.41087411 | CN95: 91.41087411 | CO95: 91.41087411 | CP95: 91.41087411 | CQ95: 91.41087411 | CR95: 91.41087411 | CS95: 91.41087411 | CT95: 91.41087411 | CU95: 91.41087411 | CV95: 91.41087411 | CW95: 91.41087411
B96: Revenue | D96: =D95*D94 -> 12589834.01 | E96: =E95*E94 -> 12589834.01 | F96: =F95*F94 -> 12589834.01 | G96: =G95*G94 -> 12589834.01 | H96: =H95*H94 -> 12589834.01 | I96: =I95*I94 -> 12589834.01 | J96: =J95*J94 -> 12589834.01 | K96: =K95*K94 -> 12589834.01 | L96: =L95*L94 -> 12589834.01 | M96: =M95*M94 -> 12589834.01 | N96: =N95*N94 -> 12589834.01 | O96: =O95*O94 -> 12589834.01 | P96: =P95*P94 -> 12589834.01 | Q96: =Q95*Q94 -> 12589834.01 | R96: =R95*R94 -> 12589834.01 | S96: =S95*S94 -> 12589834.01 | T96: =T95*T94 -> 12589834.01 | U96: =U95*U94 -> 12589834.01 | V96: =V95*V94 -> 12589834.01 | W96: =W95*W94 -> 12589834.01 | AB96: Revenue | AD96: =AD95*AD94 -> 11257562.4 | AE96: =AE95*AE94 -> 11257562.4 | AF96: =AF95*AF94 -> 11257562.4 | AG96: =AG95*AG94 -> 11257562.4 | AH96: =AH95*AH94 -> 11257562.4 | AI96: =AI95*AI94 -> 11257562.4 | AJ96: =AJ95*AJ94 -> 11257562.4 | AK96: =AK95*AK94 -> 11257562.4 | AL96: =AL95*AL94 -> 11257562.4 | AM96: =AM95*AM94 -> 11257562.4 | AN96: =AN95*AN94 -> 11257562.4 | AO96: =AO95*AO94 -> 11257562.4 | AP96: =AP95*AP94 -> 11257562.4 | AQ96: =AQ95*AQ94 -> 11257562.4 | AR96: =AR95*AR94 -> 11257562.4 | AS96: =AS95*AS94 -> 11257562.4 | AT96: =AT95*AT94 -> 11257562.4 | AU96: =AU95*AU94 -> 11257562.4 | AV96: =AV95*AV94 -> 11257562.4 | AW96: =AW95*AW94 -> 11257562.4 | BB96: Revenue | BD96: =BD95*BD94 -> 9174741.669 | BE96: =BE95*BE94 -> 9174741.669 | BF96: =BF95*BF94 -> 9174741.669 | BG96: =BG95*BG94 -> 9174741.669 | BH96: =BH95*BH94 -> 9174741.669 | BI96: =BI95*BI94 -> 9174741.669 | BJ96: =BJ95*BJ94 -> 9174741.669 | BK96: =BK95*BK94 -> 9174741.669 | BL96: =BL95*BL94 -> 9174741.669 | BM96: =BM95*BM94 -> 9174741.669 | BN96: =BN95*BN94 -> 9174741.669 | BO96: =BO95*BO94 -> 9174741.669 | BP96: =BP95*BP94 -> 9174741.669 | BQ96: =BQ95*BQ94 -> 9174741.669 | BR96: =BR95*BR94 -> 9174741.669 | BS96: =BS95*BS94 -> 9174741.669 | BT96: =BT95*BT94 -> 9174741.669 | BU96: =BU95*BU94 -> 9174741.669 | BV96: =BV95*BV94 -> 9174741.669 | BW96: =BW95*BW94 -> 9174741.669 | CB96: Revenue | CD96: =CD95*CD94 -> 40278550.98 | CE96: =CE95*CE94 -> 40278550.98 | CF96: =CF95*CF94 -> 40278550.98 | CG96: =CG95*CG94 -> 40278550.98 | CH96: =CH95*CH94 -> 40278550.98 | CI96: =CI95*CI94 -> 40278550.98 | CJ96: =CJ95*CJ94 -> 40278550.98 | CK96: =CK95*CK94 -> 40278550.98 | CL96: =CL95*CL94 -> 40278550.98 | CM96: =CM95*CM94 -> 40278550.98 | CN96: =CN95*CN94 -> 40278550.98 | CO96: =CO95*CO94 -> 40278550.98 | CP96: =CP95*CP94 -> 40278550.98 | CQ96: =CQ95*CQ94 -> 40278550.98 | CR96: =CR95*CR94 -> 40278550.98 | CS96: =CS95*CS94 -> 40278550.98 | CT96: =CT95*CT94 -> 40278550.98 | CU96: =CU95*CU94 -> 40278550.98 | CV96: =CV95*CV94 -> 40278550.98 | CW96: =CW95*CW94 -> 40278550.98
B98: Fixed O&M | D98: =HLOOKUP(D93,'Fixed O&M'!$C$4:$AU$49,ROW('Fixed O&M'!$B$20)-ROW('Fixed O&M'!$B$4)+1,FALSE)*'Resource Options'!$J$22*1000 -> 3833974.711 | E98: =HLOOKUP(E93,'Fixed O&M'!$C$4:$AU$49,ROW('Fixed O&M'!$B$20)-ROW('Fixed O&M'!$B$4)+1,FALSE)*'Resource Options'!$J$22*1000 -> 3910654.205 | F98: =HLOOKUP(F93,'Fixed O&M'!$C$4:$AU$49,ROW('Fixed O&M'!$B$20)-ROW('Fixed O&M'!$B$4)+1,FALSE)*'Resource Options'!$J$22*1000 -> 3988867.289 | G98: =HLOOKUP(G93,'Fixed O&M'!$C$4:$AU$49,ROW('Fixed O&M'!$B$20)-ROW('Fixed O&M'!$B$4)+1,FALSE)*'Resource Options'!$J$22*1000 -> 4068644.635 | H98: =HLOOKUP(H93,'Fixed O&M'!$C$4:$AU$49,ROW('Fixed O&M'!$B$20)-ROW('Fixed O&M'!$B$4)+1,FALSE)*'Resource Options'!$J$22*1000 -> 4150017.528 | I98: =HLOOKUP(I93,'Fixed O&M'!$C$4:$AU$49,ROW('Fixed O&M'!$B$20)-ROW('Fixed O&M'!$B$4)+1,FALSE)*'Resource Options'!$J$22*1000 -> 4233017.878 | J98: =HLOOKUP(J93,'Fixed O&M'!$C$4:$AU$49,ROW('Fixed O&M'!$B$20)-ROW('Fixed O&M'!$B$4)+1,FALSE)*'Resource Options'!$J$22*1000 -> 4317678.236 | K98: =HLOOKUP(K93,'Fixed O&M'!$C$4:$AU$49,ROW('Fixed O&M'!$B$20)-ROW('Fixed O&M'!$B$4)+1,FALSE)*'Resource Options'!$J$22*1000 -> 4404031.8 | L98: =HLOOKUP(L93,'Fixed O&M'!$C$4:$AU$49,ROW('Fixed O&M'!$B$20)-ROW('Fixed O&M'!$B$4)+1,FALSE)*'Resource Options'!$J$22*1000 -> 4492112.436 | M98: =HLOOKUP(M93,'Fixed O&M'!$C$4:$AU$49,ROW('Fixed O&M'!$B$20)-ROW('Fixed O&M'!$B$4)+1,FALSE)*'Resource Options'!$J$22*1000 -> 4581954.685 | N98: =HLOOKUP(N93,'Fixed O&M'!$C$4:$AU$49,ROW('Fixed O&M'!$B$20)-ROW('Fixed O&M'!$B$4)+1,FALSE)*'Resource Options'!$J$22*1000 -> 4673593.779 | O98: =HLOOKUP(O93,'Fixed O&M'!$C$4:$AU$49,ROW('Fixed O&M'!$B$20)-ROW('Fixed O&M'!$B$4)+1,FALSE)*'Resource Options'!$J$22*1000 -> 4767065.654 | P98: =HLOOKUP(P93,'Fixed O&M'!$C$4:$AU$49,ROW('Fixed O&M'!$B$20)-ROW('Fixed O&M'!$B$4)+1,FALSE)*'Resource Options'!$J$22*1000 -> 4862406.967 | Q98: =HLOOKUP(Q93,'Fixed O&M'!$C$4:$AU$49,ROW('Fixed O&M'!$B$20)-ROW('Fixed O&M'!$B$4)+1,FALSE)*'Resource Options'!$J$22*1000 -> 4959655.107 | R98: =HLOOKUP(R93,'Fixed O&M'!$C$4:$AU$49,ROW('Fixed O&M'!$B$20)-ROW('Fixed O&M'!$B$4)+1,FALSE)*'Resource Options'!$J$22*1000 -> 5058848.209 | S98: =HLOOKUP(S93,'Fixed O&M'!$C$4:$AU$49,ROW('Fixed O&M'!$B$20)-ROW('Fixed O&M'!$B$4)+1,FALSE)*'Resource Options'!$J$22*1000 -> 5160025.173 | T98: =HLOOKUP(T93,'Fixed O&M'!$C$4:$AU$49,ROW('Fixed O&M'!$B$20)-ROW('Fixed O&M'!$B$4)+1,FALSE)*'Resource Options'!$J$22*1000 -> 5263225.677 | U98: =HLOOKUP(U93,'Fixed O&M'!$C$4:$AU$49,ROW('Fixed O&M'!$B$20)-ROW('Fixed O&M'!$B$4)+1,FALSE)*'Resource Options'!$J$22*1000 -> 5368490.19 | V98: =HLOOKUP(V93,'Fixed O&M'!$C$4:$AU$49,ROW('Fixed O&M'!$B$20)-ROW('Fixed O&M'!$B$4)+1,FALSE)*'Resource Options'!$J$22*1000 -> 5475859.994 | W98: =HLOOKUP(W93,'Fixed O&M'!$C$4:$AU$49,ROW('Fixed O&M'!$B$20)-ROW('Fixed O&M'!$B$4)+1,FALSE)*'Resource Options'!$J$22*1000 -> 5585377.194 | AB98: Fixed O&M | AD98: =HLOOKUP(AD93,'Fixed O&M'!$C$4:$AU$49,ROW('Fixed O&M'!$B$21)-ROW('Fixed O&M'!$B$4)+1,FALSE)*'Resource Options'!$J$22*1000 -> 3833974.711 | AE98: =HLOOKUP(AE93,'Fixed O&M'!$C$4:$AU$49,ROW('Fixed O&M'!$B$21)-ROW('Fixed O&M'!$B$4)+1,FALSE)*'Resource Options'!$J$22*1000 -> 3910654.205 | AF98: =HLOOKUP(AF93,'Fixed O&M'!$C$4:$AU$49,ROW('Fixed O&M'!$B$21)-ROW('Fixed O&M'!$B$4)+1,FALSE)*'Resource Options'!$J$22*1000 -> 3988867.289 | AG98: =HLOOKUP(AG93,'Fixed O&M'!$C$4:$AU$49,ROW('Fixed O&M'!$B$21)-ROW('Fixed O&M'!$B$4)+1,FALSE)*'Resource Options'!$J$22*1000 -> 4068644.635 | AH98: =HLOOKUP(AH93,'Fixed O&M'!$C$4:$AU$49,ROW('Fixed O&M'!$B$21)-ROW('Fixed O&M'!$B$4)+1,FALSE)*'Resource Options'!$J$22*1000 -> 4150017.528 | AI98: =HLOOKUP(AI93,'Fixed O&M'!$C$4:$AU$49,ROW('Fixed O&M'!$B$21)-ROW('Fixed O&M'!$B$4)+1,FALSE)*'Resource Options'!$J$22*1000 -> 4233017.878 | AJ98: =HLOOKUP(AJ93,'Fixed O&M'!$C$4:$AU$49,ROW('Fixed O&M'!$B$21)-ROW('Fixed O&M'!$B$4)+1,FALSE)*'Resource Options'!$J$22*1000 -> 4317678.236 | AK98: =HLOOKUP(AK93,'Fixed O&M'!$C$4:$AU$49,ROW('Fixed O&M'!$B$21)-ROW('Fixed O&M'!$B$4)+1,FALSE)*'Resource Options'!$J$22*1000 -> 4404031.8 | AL98: =HLOOKUP(AL93,'Fixed O&M'!$C$4:$AU$49,ROW('Fixed O&M'!$B$21)-ROW('Fixed O&M'!$B$4)+1,FALSE)*'Resource Options'!$J$22*1000 -> 4492112.436 | AM98: =HLOOKUP(AM93,'Fixed O&M'!$C$4:$AU$49,ROW('Fixed O&M'!$B$21)-ROW('Fixed O&M'!$B$4)+1,FALSE)*'Resource Options'!$J$22*1000 -> 4581954.685 | AN98: =HLOOKUP(AN93,'Fixed O&M'!$C$4:$AU$49,ROW('Fixed O&M'!$B$21)-ROW('Fixed O&M'!$B$4)+1,FALSE)*'Resource Options'!$J$22*1000 -> 4673593.779 | AO98: =HLOOKUP(AO93,'Fixed O&M'!$C$4:$AU$49,ROW('Fixed O&M'!$B$21)-ROW('Fixed O&M'!$B$4)+1,FALSE)*'Resource Options'!$J$22*1000 -> 4767065.654 | AP98: =HLOOKUP(AP93,'Fixed O&M'!$C$4:$AU$49,ROW('Fixed O&M'!$B$21)-ROW('Fixed O&M'!$B$4)+1,FALSE)*'Resource Options'!$J$22*1000 -> 4862406.967 | AQ98: =HLOOKUP(AQ93,'Fixed O&M'!$C$4:$AU$49,ROW('Fixed O&M'!$B$21)-ROW('Fixed O&M'!$B$4)+1,FALSE)*'Resource Options'!$J$22*1000 -> 4959655.107 | AR98: =HLOOKUP(AR93,'Fixed O&M'!$C$4:$AU$49,ROW('Fixed O&M'!$B$21)-ROW('Fixed O&M'!$B$4)+1,FALSE)*'Resource Options'!$J$22*1000 -> 5058848.209 | AS98: =HLOOKUP(AS93,'Fixed O&M'!$C$4:$AU$49,ROW('Fixed O&M'!$B$21)-ROW('Fixed O&M'!$B$4)+1,FALSE)*'Resource Options'!$J$22*1000 -> 5160025.173 | AT98: =HLOOKUP(AT93,'Fixed O&M'!$C$4:$AU$49,ROW('Fixed O&M'!$B$21)-ROW('Fixed O&M'!$B$4)+1,FALSE)*'Resource Options'!$J$22*1000 -> 5263225.677 | AU98: =HLOOKUP(AU93,'Fixed O&M'!$C$4:$AU$49,ROW('Fixed O&M'!$B$21)-ROW('Fixed O&M'!$B$4)+1,FALSE)*'Resource Options'!$J$22*1000 -> 5368490.19 | AV98: =HLOOKUP(AV93,'Fixed O&M'!$C$4:$AU$49,ROW('Fixed O&M'!$B$21)-ROW('Fixed O&M'!$B$4)+1,FALSE)*'Resource Options'!$J$22*1000 -> 5475859.994 | AW98: =HLOOKUP(AW93,'Fixed O&M'!$C$4:$AU$49,ROW('Fixed O&M'!$B$21)-ROW('Fixed O&M'!$B$4)+1,FALSE)*'Resource Options'!$J$22*1000 -> 5585377.194 | BB98: Fixed O&M | BD98: =HLOOKUP(BD93,'Fixed O&M'!$C$4:$AU$49,ROW('Fixed O&M'!$B$22)-ROW('Fixed O&M'!$B$4)+1,FALSE)*'Resource Options'!$J$22*1000 -> 3833974.711 | BE98: =HLOOKUP(BE93,'Fixed O&M'!$C$4:$AU$49,ROW('Fixed O&M'!$B$22)-ROW('Fixed O&M'!$B$4)+1,FALSE)*'Resource Options'!$J$22*1000 -> 3910654.205 | BF98: =HLOOKUP(BF93,'Fixed O&M'!$C$4:$AU$49,ROW('Fixed O&M'!$B$22)-ROW('Fixed O&M'!$B$4)+1,FALSE)*'Resource Options'!$J$22*1000 -> 3988867.289 | BG98: =HLOOKUP(BG93,'Fixed O&M'!$C$4:$AU$49,ROW('Fixed O&M'!$B$22)-ROW('Fixed O&M'!$B$4)+1,FALSE)*'Resource Options'!$J$22*1000 -> 4068644.635 | BH98: =HLOOKUP(BH93,'Fixed O&M'!$C$4:$AU$49,ROW('Fixed O&M'!$B$22)-ROW('Fixed O&M'!$B$4)+1,FALSE)*'Resource Options'!$J$22*1000 -> 4150017.528 | BI98: =HLOOKUP(BI93,'Fixed O&M'!$C$4:$AU$49,ROW('Fixed O&M'!$B$22)-ROW('Fixed O&M'!$B$4)+1,FALSE)*'Resource Options'!$J$22*1000 -> 4233017.878 | BJ98: =HLOOKUP(BJ93,'Fixed O&M'!$C$4:$AU$49,ROW('Fixed O&M'!$B$22)-ROW('Fixed O&M'!$B$4)+1,FALSE)*'Resource Options'!$J$22*1000 -> 4317678.236 | BK98: =HLOOKUP(BK93,'Fixed O&M'!$C$4:$AU$49,ROW('Fixed O&M'!$B$22)-ROW('Fixed O&M'!$B$4)+1,FALSE)*'Resource Options'!$J$22*1000 -> 4404031.8 | BL98: =HLOOKUP(BL93,'Fixed O&M'!$C$4:$AU$49,ROW('Fixed O&M'!$B$22)-ROW('Fixed O&M'!$B$4)+1,FALSE)*'Resource Options'!$J$22*1000 -> 4492112.436 | BM98: =HLOOKUP(BM93,'Fixed O&M'!$C$4:$AU$49,ROW('Fixed O&M'!$B$22)-ROW('Fixed O&M'!$B$4)+1,FALSE)*'Resource Options'!$J$22*1000 -> 4581954.685 | BN98: =HLOOKUP(BN93,'Fixed O&M'!$C$4:$AU$49,ROW('Fixed O&M'!$B$22)-ROW('Fixed O&M'!$B$4)+1,FALSE)*'Resource Options'!$J$22*1000 -> 4673593.779 | BO98: =HLOOKUP(BO93,'Fixed O&M'!$C$4:$AU$49,ROW('Fixed O&M'!$B$22)-ROW('Fixed O&M'!$B$4)+1,FALSE)*'Resource Options'!$J$22*1000 -> 4767065.654 | BP98: =HLOOKUP(BP93,'Fixed O&M'!$C$4:$AU$49,ROW('Fixed O&M'!$B$22)-ROW('Fixed O&M'!$B$4)+1,FALSE)*'Resource Options'!$J$22*1000 -> 4862406.967 | BQ98: =HLOOKUP(BQ93,'Fixed O&M'!$C$4:$AU$49,ROW('Fixed O&M'!$B$22)-ROW('Fixed O&M'!$B$4)+1,FALSE)*'Resource Options'!$J$22*1000 -> 4959655.107 | BR98: =HLOOKUP(BR93,'Fixed O&M'!$C$4:$AU$49,ROW('Fixed O&M'!$B$22)-ROW('Fixed O&M'!$B$4)+1,FALSE)*'Resource Options'!$J$22*1000 -> 5058848.209 | BS98: =HLOOKUP(BS93,'Fixed O&M'!$C$4:$AU$49,ROW('Fixed O&M'!$B$22)-ROW('Fixed O&M'!$B$4)+1,FALSE)*'Resource Options'!$J$22*1000 -> 5160025.173 | BT98: =HLOOKUP(BT93,'Fixed O&M'!$C$4:$AU$49,ROW('Fixed O&M'!$B$22)-ROW('Fixed O&M'!$B$4)+1,FALSE)*'Resource Options'!$J$22*1000 -> 5263225.677 | BU98: =HLOOKUP(BU93,'Fixed O&M'!$C$4:$AU$49,ROW('Fixed O&M'!$B$22)-ROW('Fixed O&M'!$B$4)+1,FALSE)*'Resource Options'!$J$22*1000 -> 5368490.19 | BV98: =HLOOKUP(BV93,'Fixed O&M'!$C$4:$AU$49,ROW('Fixed O&M'!$B$22)-ROW('Fixed O&M'!$B$4)+1,FALSE)*'Resource Options'!$J$22*1000 -> 5475859.994 | BW98: =HLOOKUP(BW93,'Fixed O&M'!$C$4:$AU$49,ROW('Fixed O&M'!$B$22)-ROW('Fixed O&M'!$B$4)+1,FALSE)*'Resource Options'!$J$22*1000 -> 5585377.194 | CB98: Fixed O&M | CD98: =HLOOKUP(CD93,'Fixed O&M'!$C$4:$AU$49,ROW('Fixed O&M'!$B$23)-ROW('Fixed O&M'!$B$4)+1,FALSE)*'Resource Options'!$J$25*1000 -> 9741889.44 | CE98: =HLOOKUP(CE93,'Fixed O&M'!$C$4:$AU$49,ROW('Fixed O&M'!$B$23)-ROW('Fixed O&M'!$B$4)+1,FALSE)*'Resource Options'!$J$25*1000 -> 9936727.229 | CF98: =HLOOKUP(CF93,'Fixed O&M'!$C$4:$AU$49,ROW('Fixed O&M'!$B$23)-ROW('Fixed O&M'!$B$4)+1,FALSE)*'Resource Options'!$J$25*1000 -> 10135461.77 | CG98: =HLOOKUP(CG93,'Fixed O&M'!$C$4:$AU$49,ROW('Fixed O&M'!$B$23)-ROW('Fixed O&M'!$B$4)+1,FALSE)*'Resource Options'!$J$25*1000 -> 10338171.01 | CH98: =HLOOKUP(CH93,'Fixed O&M'!$C$4:$AU$49,ROW('Fixed O&M'!$B$23)-ROW('Fixed O&M'!$B$4)+1,FALSE)*'Resource Options'!$J$25*1000 -> 10544934.43 | CI98: =HLOOKUP(CI93,'Fixed O&M'!$C$4:$AU$49,ROW('Fixed O&M'!$B$23)-ROW('Fixed O&M'!$B$4)+1,FALSE)*'Resource Options'!$J$25*1000 -> 10755833.12 | CJ98: =HLOOKUP(CJ93,'Fixed O&M'!$C$4:$AU$49,ROW('Fixed O&M'!$B$23)-ROW('Fixed O&M'!$B$4)+1,FALSE)*'Resource Options'!$J$25*1000 -> 10970949.78 | CK98: =HLOOKUP(CK93,'Fixed O&M'!$C$4:$AU$49,ROW('Fixed O&M'!$B$23)-ROW('Fixed O&M'!$B$4)+1,FALSE)*'Resource Options'!$J$25*1000 -> 11190368.78 | CL98: =HLOOKUP(CL93,'Fixed O&M'!$C$4:$AU$49,ROW('Fixed O&M'!$B$23)-ROW('Fixed O&M'!$B$4)+1,FALSE)*'Resource Options'!$J$25*1000 -> 11414176.15 | CM98: =HLOOKUP(CM93,'Fixed O&M'!$C$4:$AU$49,ROW('Fixed O&M'!$B$23)-ROW('Fixed O&M'!$B$4)+1,FALSE)*'Resource Options'!$J$25*1000 -> 11642459.67 | CN98: =HLOOKUP(CN93,'Fixed O&M'!$C$4:$AU$49,ROW('Fixed O&M'!$B$23)-ROW('Fixed O&M'!$B$4)+1,FALSE)*'Resource Options'!$J$25*1000 -> 11875308.87 | CO98: =HLOOKUP(CO93,'Fixed O&M'!$C$4:$AU$49,ROW('Fixed O&M'!$B$23)-ROW('Fixed O&M'!$B$4)+1,FALSE)*'Resource Options'!$J$25*1000 -> 12112815.04 | CP98: =HLOOKUP(CP93,'Fixed O&M'!$C$4:$AU$49,ROW('Fixed O&M'!$B$23)-ROW('Fixed O&M'!$B$4)+1,FALSE)*'Resource Options'!$J$25*1000 -> 12355071.35 | CQ98: =HLOOKUP(CQ93,'Fixed O&M'!$C$4:$AU$49,ROW('Fixed O&M'!$B$23)-ROW('Fixed O&M'!$B$4)+1,FALSE)*'Resource Options'!$J$25*1000 -> 12602172.77 | CR98: =HLOOKUP(CR93,'Fixed O&M'!$C$4:$AU$49,ROW('Fixed O&M'!$B$23)-ROW('Fixed O&M'!$B$4)+1,FALSE)*'Resource Options'!$J$25*1000 -> 12854216.23 | CS98: =HLOOKUP(CS93,'Fixed O&M'!$C$4:$AU$49,ROW('Fixed O&M'!$B$23)-ROW('Fixed O&M'!$B$4)+1,FALSE)*'Resource Options'!$J$25*1000 -> 13111300.55 | CT98: =HLOOKUP(CT93,'Fixed O&M'!$C$4:$AU$49,ROW('Fixed O&M'!$B$23)-ROW('Fixed O&M'!$B$4)+1,FALSE)*'Resource Options'!$J$25*1000 -> 13373526.56 | CU98: =HLOOKUP(CU93,'Fixed O&M'!$C$4:$AU$49,ROW('Fixed O&M'!$B$23)-ROW('Fixed O&M'!$B$4)+1,FALSE)*'Resource Options'!$J$25*1000 -> 13640997.1 | CV98: =HLOOKUP(CV93,'Fixed O&M'!$C$4:$AU$49,ROW('Fixed O&M'!$B$23)-ROW('Fixed O&M'!$B$4)+1,FALSE)*'Resource Options'!$J$25*1000 -> 13913817.04 | CW98: =HLOOKUP(CW93,'Fixed O&M'!$C$4:$AU$49,ROW('Fixed O&M'!$B$23)-ROW('Fixed O&M'!$B$4)+1,FALSE)*'Resource Options'!$J$25*1000 -> 14192093.38
B99: Variable O&M | D99: =HLOOKUP(D93,'Variable O&M'!$B$4:$AT$49,ROW('Variable O&M'!$A$20)-ROW('Variable O&M'!$A$4)+1,FALSE)*D94 -> 0 | E99: =HLOOKUP(E93,'Variable O&M'!$B$4:$AT$49,ROW('Variable O&M'!$A$20)-ROW('Variable O&M'!$A$4)+1,FALSE)*E94 -> 0 | F99: =HLOOKUP(F93,'Variable O&M'!$B$4:$AT$49,ROW('Variable O&M'!$A$20)-ROW('Variable O&M'!$A$4)+1,FALSE)*F94 -> 0 | G99: =HLOOKUP(G93,'Variable O&M'!$B$4:$AT$49,ROW('Variable O&M'!$A$20)-ROW('Variable O&M'!$A$4)+1,FALSE)*G94 -> 0 | H99: =HLOOKUP(H93,'Variable O&M'!$B$4:$AT$49,ROW('Variable O&M'!$A$20)-ROW('Variable O&M'!$A$4)+1,FALSE)*H94 -> 0 | I99: =HLOOKUP(I93,'Variable O&M'!$B$4:$AT$49,ROW('Variable O&M'!$A$20)-ROW('Variable O&M'!$A$4)+1,FALSE)*I94 -> 0 | J99: =HLOOKUP(J93,'Variable O&M'!$B$4:$AT$49,ROW('Variable O&M'!$A$20)-ROW('Variable O&M'!$A$4)+1,FALSE)*J94 -> 0 | K99: =HLOOKUP(K93,'Variable O&M'!$B$4:$AT$49,ROW('Variable O&M'!$A$20)-ROW('Variable O&M'!$A$4)+1,FALSE)*K94 -> 0 | L99: =HLOOKUP(L93,'Variable O&M'!$B$4:$AT$49,ROW('Variable O&M'!$A$20)-ROW('Variable O&M'!$A$4)+1,FALSE)*L94 -> 0 | M99: =HLOOKUP(M93,'Variable O&M'!$B$4:$AT$49,ROW('Variable O&M'!$A$20)-ROW('Variable O&M'!$A$4)+1,FALSE)*M94 -> 0 | N99: =HLOOKUP(N93,'Variable O&M'!$B$4:$AT$49,ROW('Variable O&M'!$A$20)-ROW('Variable O&M'!$A$4)+1,FALSE)*N94 -> 0 | O99: =HLOOKUP(O93,'Variable O&M'!$B$4:$AT$49,ROW('Variable O&M'!$A$20)-ROW('Variable O&M'!$A$4)+1,FALSE)*O94 -> 0 | P99: =HLOOKUP(P93,'Variable O&M'!$B$4:$AT$49,ROW('Variable O&M'!$A$20)-ROW('Variable O&M'!$A$4)+1,FALSE)*P94 -> 0 | Q99: =HLOOKUP(Q93,'Variable O&M'!$B$4:$AT$49,ROW('Variable O&M'!$A$20)-ROW('Variable O&M'!$A$4)+1,FALSE)*Q94 -> 0 | R99: =HLOOKUP(R93,'Variable O&M'!$B$4:$AT$49,ROW('Variable O&M'!$A$20)-ROW('Variable O&M'!$A$4)+1,FALSE)*R94 -> 0 | S99: =HLOOKUP(S93,'Variable O&M'!$B$4:$AT$49,ROW('Variable O&M'!$A$20)-ROW('Variable O&M'!$A$4)+1,FALSE)*S94 -> 0 | T99: =HLOOKUP(T93,'Variable O&M'!$B$4:$AT$49,ROW('Variable O&M'!$A$20)-ROW('Variable O&M'!$A$4)+1,FALSE)*T94 -> 0 | U99: =HLOOKUP(U93,'Variable O&M'!$B$4:$AT$49,ROW('Variable O&M'!$A$20)-ROW('Variable O&M'!$A$4)+1,FALSE)*U94 -> 0 | V99: =HLOOKUP(V93,'Variable O&M'!$B$4:$AT$49,ROW('Variable O&M'!$A$20)-ROW('Variable O&M'!$A$4)+1,FALSE)*V94 -> 0 | W99: =HLOOKUP(W93,'Variable O&M'!$B$4:$AT$49,ROW('Variable O&M'!$A$20)-ROW('Variable O&M'!$A$4)+1,FALSE)*W94 -> 0 | AB99: Variable O&M | AD99: =HLOOKUP(AD93,'Variable O&M'!$B$4:$AT$49,ROW('Variable O&M'!$A$21)-ROW('Variable O&M'!$A$4)+1,FALSE)*AD94 -> 0 | AE99: =HLOOKUP(AE93,'Variable O&M'!$B$4:$AT$49,ROW('Variable O&M'!$A$21)-ROW('Variable O&M'!$A$4)+1,FALSE)*AE94 -> 0 | AF99: =HLOOKUP(AF93,'Variable O&M'!$B$4:$AT$49,ROW('Variable O&M'!$A$21)-ROW('Variable O&M'!$A$4)+1,FALSE)*AF94 -> 0 | AG99: =HLOOKUP(AG93,'Variable O&M'!$B$4:$AT$49,ROW('Variable O&M'!$A$21)-ROW('Variable O&M'!$A$4)+1,FALSE)*AG94 -> 0 | AH99: =HLOOKUP(AH93,'Variable O&M'!$B$4:$AT$49,ROW('Variable O&M'!$A$21)-ROW('Variable O&M'!$A$4)+1,FALSE)*AH94 -> 0 | AI99: =HLOOKUP(AI93,'Variable O&M'!$B$4:$AT$49,ROW('Variable O&M'!$A$21)-ROW('Variable O&M'!$A$4)+1,FALSE)*AI94 -> 0 | AJ99: =HLOOKUP(AJ93,'Variable O&M'!$B$4:$AT$49,ROW('Variable O&M'!$A$21)-ROW('Variable O&M'!$A$4)+1,FALSE)*AJ94 -> 0 | AK99: =HLOOKUP(AK93,'Variable O&M'!$B$4:$AT$49,ROW('Variable O&M'!$A$21)-ROW('Variable O&M'!$A$4)+1,FALSE)*AK94 -> 0 | AL99: =HLOOKUP(AL93,'Variable O&M'!$B$4:$AT$49,ROW('Variable O&M'!$A$21)-ROW('Variable O&M'!$A$4)+1,FALSE)*AL94 -> 0 | AM99: =HLOOKUP(AM93,'Variable O&M'!$B$4:$AT$49,ROW('Variable O&M'!$A$21)-ROW('Variable O&M'!$A$4)+1,FALSE)*AM94 -> 0 | AN99: =HLOOKUP(AN93,'Variable O&M'!$B$4:$AT$49,ROW('Variable O&M'!$A$21)-ROW('Variable O&M'!$A$4)+1,FALSE)*AN94 -> 0 | AO99: =HLOOKUP(AO93,'Variable O&M'!$B$4:$AT$49,ROW('Variable O&M'!$A$21)-ROW('Variable O&M'!$A$4)+1,FALSE)*AO94 -> 0 | AP99: =HLOOKUP(AP93,'Variable O&M'!$B$4:$AT$49,ROW('Variable O&M'!$A$21)-ROW('Variable O&M'!$A$4)+1,FALSE)*AP94 -> 0 | AQ99: =HLOOKUP(AQ93,'Variable O&M'!$B$4:$AT$49,ROW('Variable O&M'!$A$21)-ROW('Variable O&M'!$A$4)+1,FALSE)*AQ94 -> 0 | AR99: =HLOOKUP(AR93,'Variable O&M'!$B$4:$AT$49,ROW('Variable O&M'!$A$21)-ROW('Variable O&M'!$A$4)+1,FALSE)*AR94 -> 0 | AS99: =HLOOKUP(AS93,'Variable O&M'!$B$4:$AT$49,ROW('Variable O&M'!$A$21)-ROW('Variable O&M'!$A$4)+1,FALSE)*AS94 -> 0 | AT99: =HLOOKUP(AT93,'Variable O&M'!$B$4:$AT$49,ROW('Variable O&M'!$A$21)-ROW('Variable O&M'!$A$4)+1,FALSE)*AT94 -> 0 | AU99: =HLOOKUP(AU93,'Variable O&M'!$B$4:$AT$49,ROW('Variable O&M'!$A$21)-ROW('Variable O&M'!$A$4)+1,FALSE)*AU94 -> 0 | AV99: =HLOOKUP(AV93,'Variable O&M'!$B$4:$AT$49,ROW('Variable O&M'!$A$21)-ROW('Variable O&M'!$A$4)+1,FALSE)*AV94 -> 0 | AW99: =HLOOKUP(AW93,'Variable O&M'!$B$4:$AT$49,ROW('Variable O&M'!$A$21)-ROW('Variable O&M'!$A$4)+1,FALSE)*AW94 -> 0 | BB99: Variable O&M | BD99: =HLOOKUP(BD93,'Variable O&M'!$B$4:$AT$49,ROW('Variable O&M'!$A$22)-ROW('Variable O&M'!$A$4)+1,FALSE)*BD94 -> 64212.41164 | BE99: =HLOOKUP(BE93,'Variable O&M'!$B$4:$AT$49,ROW('Variable O&M'!$A$22)-ROW('Variable O&M'!$A$4)+1,FALSE)*BE94 -> 64212.41164 | BF99: =HLOOKUP(BF93,'Variable O&M'!$B$4:$AT$49,ROW('Variable O&M'!$A$22)-ROW('Variable O&M'!$A$4)+1,FALSE)*BF94 -> 64212.41164 | BG99: =HLOOKUP(BG93,'Variable O&M'!$B$4:$AT$49,ROW('Variable O&M'!$A$22)-ROW('Variable O&M'!$A$4)+1,FALSE)*BG94 -> 64212.41164 | BH99: =HLOOKUP(BH93,'Variable O&M'!$B$4:$AT$49,ROW('Variable O&M'!$A$22)-ROW('Variable O&M'!$A$4)+1,FALSE)*BH94 -> 64212.41164 | BI99: =HLOOKUP(BI93,'Variable O&M'!$B$4:$AT$49,ROW('Variable O&M'!$A$22)-ROW('Variable O&M'!$A$4)+1,FALSE)*BI94 -> 64212.41164 | BJ99: =HLOOKUP(BJ93,'Variable O&M'!$B$4:$AT$49,ROW('Variable O&M'!$A$22)-ROW('Variable O&M'!$A$4)+1,FALSE)*BJ94 -> 64212.41164 | BK99: =HLOOKUP(BK93,'Variable O&M'!$B$4:$AT$49,ROW('Variable O&M'!$A$22)-ROW('Variable O&M'!$A$4)+1,FALSE)*BK94 -> 64212.41164 | BL99: =HLOOKUP(BL93,'Variable O&M'!$B$4:$AT$49,ROW('Variable O&M'!$A$22)-ROW('Variable O&M'!$A$4)+1,FALSE)*BL94 -> 64212.41164 | BM99: =HLOOKUP(BM93,'Variable O&M'!$B$4:$AT$49,ROW('Variable O&M'!$A$22)-ROW('Variable O&M'!$A$4)+1,FALSE)*BM94 -> 64212.41164 | BN99: =HLOOKUP(BN93,'Variable O&M'!$B$4:$AT$49,ROW('Variable O&M'!$A$22)-ROW('Variable O&M'!$A$4)+1,FALSE)*BN94 -> 64212.41164 | BO99: =HLOOKUP(BO93,'Variable O&M'!$B$4:$AT$49,ROW('Variable O&M'!$A$22)-ROW('Variable O&M'!$A$4)+1,FALSE)*BO94 -> 64212.41164 | BP99: =HLOOKUP(BP93,'Variable O&M'!$B$4:$AT$49,ROW('Variable O&M'!$A$22)-ROW('Variable O&M'!$A$4)+1,FALSE)*BP94 -> 64212.41164 | BQ99: =HLOOKUP(BQ93,'Variable O&M'!$B$4:$AT$49,ROW('Variable O&M'!$A$22)-ROW('Variable O&M'!$A$4)+1,FALSE)*BQ94 -> 64212.41164 | BR99: =HLOOKUP(BR93,'Variable O&M'!$B$4:$AT$49,ROW('Variable O&M'!$A$22)-ROW('Variable O&M'!$A$4)+1,FALSE)*BR94 -> 64212.41164 | BS99: =HLOOKUP(BS93,'Variable O&M'!$B$4:$AT$49,ROW('Variable O&M'!$A$22)-ROW('Variable O&M'!$A$4)+1,FALSE)*BS94 -> 64212.41164 | BT99: =HLOOKUP(BT93,'Variable O&M'!$B$4:$AT$49,ROW('Variable O&M'!$A$22)-ROW('Variable O&M'!$A$4)+1,FALSE)*BT94 -> 64212.41164 | BU99: =HLOOKUP(BU93,'Variable O&M'!$B$4:$AT$49,ROW('Variable O&M'!$A$22)-ROW('Variable O&M'!$A$4)+1,FALSE)*BU94 -> 64212.41164 | BV99: =HLOOKUP(BV93,'Variable O&M'!$B$4:$AT$49,ROW('Variable O&M'!$A$22)-ROW('Variable O&M'!$A$4)+1,FALSE)*BV94 -> 64212.41164 | BW99: =HLOOKUP(BW93,'Variable O&M'!$B$4:$AT$49,ROW('Variable O&M'!$A$22)-ROW('Variable O&M'!$A$4)+1,FALSE)*BW94 -> 64212.41164 | CB99: Variable O&M | CD99: =HLOOKUP(CD93,'Variable O&M'!$B$4:$AT$49,ROW('Variable O&M'!$A$23)-ROW('Variable O&M'!$A$4)+1,FALSE)*CD94 -> 0 | CE99: =HLOOKUP(CE93,'Variable O&M'!$B$4:$AT$49,ROW('Variable O&M'!$A$23)-ROW('Variable O&M'!$A$4)+1,FALSE)*CE94 -> 0 | CF99: =HLOOKUP(CF93,'Variable O&M'!$B$4:$AT$49,ROW('Variable O&M'!$A$23)-ROW('Variable O&M'!$A$4)+1,FALSE)*CF94 -> 0 | CG99: =HLOOKUP(CG93,'Variable O&M'!$B$4:$AT$49,ROW('Variable O&M'!$A$23)-ROW('Variable O&M'!$A$4)+1,FALSE)*CG94 -> 0 | CH99: =HLOOKUP(CH93,'Variable O&M'!$B$4:$AT$49,ROW('Variable O&M'!$A$23)-ROW('Variable O&M'!$A$4)+1,FALSE)*CH94 -> 0 | CI99: =HLOOKUP(CI93,'Variable O&M'!$B$4:$AT$49,ROW('Variable O&M'!$A$23)-ROW('Variable O&M'!$A$4)+1,FALSE)*CI94 -> 0 | CJ99: =HLOOKUP(CJ93,'Variable O&M'!$B$4:$AT$49,ROW('Variable O&M'!$A$23)-ROW('Variable O&M'!$A$4)+1,FALSE)*CJ94 -> 0 | CK99: =HLOOKUP(CK93,'Variable O&M'!$B$4:$AT$49,ROW('Variable O&M'!$A$23)-ROW('Variable O&M'!$A$4)+1,FALSE)*CK94 -> 0 | CL99: =HLOOKUP(CL93,'Variable O&M'!$B$4:$AT$49,ROW('Variable O&M'!$A$23)-ROW('Variable O&M'!$A$4)+1,FALSE)*CL94 -> 0 | CM99: =HLOOKUP(CM93,'Variable O&M'!$B$4:$AT$49,ROW('Variable O&M'!$A$23)-ROW('Variable O&M'!$A$4)+1,FALSE)*CM94 -> 0 | CN99: =HLOOKUP(CN93,'Variable O&M'!$B$4:$AT$49,ROW('Variable O&M'!$A$23)-ROW('Variable O&M'!$A$4)+1,FALSE)*CN94 -> 0 | CO99: =HLOOKUP(CO93,'Variable O&M'!$B$4:$AT$49,ROW('Variable O&M'!$A$23)-ROW('Variable O&M'!$A$4)+1,FALSE)*CO94 -> 0 | CP99: =HLOOKUP(CP93,'Variable O&M'!$B$4:$AT$49,ROW('Variable O&M'!$A$23)-ROW('Variable O&M'!$A$4)+1,FALSE)*CP94 -> 0 | CQ99: =HLOOKUP(CQ93,'Variable O&M'!$B$4:$AT$49,ROW('Variable O&M'!$A$23)-ROW('Variable O&M'!$A$4)+1,FALSE)*CQ94 -> 0 | CR99: =HLOOKUP(CR93,'Variable O&M'!$B$4:$AT$49,ROW('Variable O&M'!$A$23)-ROW('Variable O&M'!$A$4)+1,FALSE)*CR94 -> 0 | CS99: =HLOOKUP(CS93,'Variable O&M'!$B$4:$AT$49,ROW('Variable O&M'!$A$23)-ROW('Variable O&M'!$A$4)+1,FALSE)*CS94 -> 0 | CT99: =HLOOKUP(CT93,'Variable O&M'!$B$4:$AT$49,ROW('Variable O&M'!$A$23)-ROW('Variable O&M'!$A$4)+1,FALSE)*CT94 -> 0 | CU99: =HLOOKUP(CU93,'Variable O&M'!$B$4:$AT$49,ROW('Variable O&M'!$A$23)-ROW('Variable O&M'!$A$4)+1,FALSE)*CU94 -> 0 | CV99: =HLOOKUP(CV93,'Variable O&M'!$B$4:$AT$49,ROW('Variable O&M'!$A$23)-ROW('Variable O&M'!$A$4)+1,FALSE)*CV94 -> 0 | CW99: =HLOOKUP(CW93,'Variable O&M'!$B$4:$AT$49,ROW('Variable O&M'!$A$23)-ROW('Variable O&M'!$A$4)+1,FALSE)*CW94 -> 0
B100: Property Tax | D100: =C122*$B$9 -> 1677790.849 | E100: =D122*$B$9 -> 1584305.148 | F100: 1496028.426 | G100: 1412670.44 | H100: 1333957.121 | I100: 1259629.671 | J100: 1189443.71 | K100: 1123168.477 | L100: 1060586.069 | M100: 1001490.722 | N100: 945688.14 | O100: 892994.8508 | P100: 843237.6064 | Q100: 796252.8117 | R100: 751885.9873 | S100: 709991.261 | T100: 670430.8887 | U100: 633074.8014 | V100: 597800.1774 | W100: 564491.0385 | AB100: Property Tax | AD100: =AC122*$B$9 -> 1560735.673 | AE100: =AD122*$B$9 -> 1473772.231 | AF100: 1391654.349 | AG100: 1314112.037 | AH100: 1240890.345 | AI100: 1171748.531 | AJ100: 1106459.265 | AK100: 1044807.886 | AL100: 986591.6921 | AM100: 931619.2766 | AN100: 879709.8977 | AO100: 830692.8845 | AP100: 784407.0757 | AQ100: 740700.29 | AR100: 699428.8254 | AS100: 660456.987 | AT100: 623656.6407 | AU100: 588906.792 | AV100: 556093.1883 | AW100: 525107.9427 | BB100: Property Tax | BD100: =BC122*$B$9 -> 1560735.673 | BE100: =BD122*$B$9 -> 1473772.231 | BF100: 1391654.349 | BG100: 1314112.037 | BH100: 1240890.345 | BI100: 1171748.531 | BJ100: 1106459.265 | BK100: 1044807.886 | BL100: 986591.6921 | BM100: 931619.2766 | BN100: 879709.8977 | BO100: 830692.8845 | BP100: 784407.0757 | BQ100: 740700.29 | BR100: 699428.8254 | BS100: 660456.987 | BT100: 623656.6407 | BU100: 588906.792 | BV100: 556093.1883 | BW100: 525107.9427 | CB100: Property Tax | CD100: =CC122*$B$9 -> 4016949.375 | CE100: =CD122*$B$9 -> 3793126.884 | CF100: 3581775.675 | CG100: 3382200.854 | CH100: 3193746.246 | CI100: 3015792.238 | CJ100: 2847753.742 | CK100: 2689078.27 | CL100: 2539244.12 | CM100: 2397758.657 | CN100: 2264156.695 | CO100: 2137998.971 | CP100: 2018870.695 | CQ100: 1906380.189 | CR100: 1800157.6 | CS100: 1699853.682 | CT100: 1605138.651 | CU100: 1515701.096 | CV100: 1431246.958 | CW100: 1351498.565
B101: Total Operating Costs | D101: =SUM(D98:D100) -> 5511765.559 | E101: =SUM(E98:E100) -> 5494959.353 | F101: =SUM(F98:F100) -> 5484895.715 | G101: =SUM(G98:G100) -> 5481315.075 | H101: =SUM(H98:H100) -> 5483974.649 | I101: =SUM(I98:I100) -> 5492647.549 | J101: =SUM(J98:J100) -> 5507121.946 | K101: =SUM(K98:K100) -> 5527200.278 | L101: =SUM(L98:L100) -> 5552698.505 | M101: =SUM(M98:M100) -> 5583445.407 | N101: =SUM(N98:N100) -> 5619281.919 | O101: =SUM(O98:O100) -> 5660060.505 | P101: =SUM(P98:P100) -> 5705644.574 | Q101: =SUM(Q98:Q100) -> 5755907.918 | R101: =SUM(R98:R100) -> 5810734.196 | S101: =SUM(S98:S100) -> 5870016.434 | T101: =SUM(T98:T100) -> 5933656.565 | U101: =SUM(U98:U100) -> 6001564.992 | V101: =SUM(V98:V100) -> 6073660.171 | W101: =SUM(W98:W100) -> 6149868.232 | AB101: Total Operating Costs | AD101: =SUM(AD98:AD100) -> 5394710.384 | AE101: =SUM(AE98:AE100) -> 5384426.436 | AF101: =SUM(AF98:AF100) -> 5380521.638 | AG101: =SUM(AG98:AG100) -> 5382756.672 | AH101: =SUM(AH98:AH100) -> 5390907.873 | AI101: =SUM(AI98:AI100) -> 5404766.409 | AJ101: =SUM(AJ98:AJ100) -> 5424137.501 | AK101: =SUM(AK98:AK100) -> 5448839.686 | AL101: =SUM(AL98:AL100) -> 5478704.128 | AM101: =SUM(AM98:AM100) -> 5513573.962 | AN101: =SUM(AN98:AN100) -> 5553303.676 | AO101: =SUM(AO98:AO100) -> 5597758.539 | AP101: =SUM(AP98:AP100) -> 5646814.043 | AQ101: =SUM(AQ98:AQ100) -> 5700355.397 | AR101: =SUM(AR98:AR100) -> 5758277.034 | AS101: =SUM(AS98:AS100) -> 5820482.16 | AT101: =SUM(AT98:AT100) -> 5886882.317 | AU101: =SUM(AU98:AU100) -> 5957396.982 | AV101: =SUM(AV98:AV100) -> 6031953.182 | AW101: =SUM(AW98:AW100) -> 6110485.137 | BB101: Total Operating Costs | BD101: =SUM(BD98:BD100) -> 5458922.795 | BE101: =SUM(BE98:BE100) -> 5448638.847 | BF101: =SUM(BF98:BF100) -> 5444734.05 | BG101: =SUM(BG98:BG100) -> 5446969.083 | BH101: =SUM(BH98:BH100) -> 5455120.284 | BI101: =SUM(BI98:BI100) -> 5468978.82 | BJ101: =SUM(BJ98:BJ100) -> 5488349.912 | BK101: =SUM(BK98:BK100) -> 5513052.098 | BL101: =SUM(BL98:BL100) -> 5542916.54 | BM101: =SUM(BM98:BM100) -> 5577786.373 | BN101: =SUM(BN98:BN100) -> 5617516.088 | BO101: =SUM(BO98:BO100) -> 5661970.95 | BP101: =SUM(BP98:BP100) -> 5711026.455 | BQ101: =SUM(BQ98:BQ100) -> 5764567.808 | BR101: =SUM(BR98:BR100) -> 5822489.446 | BS101: =SUM(BS98:BS100) -> 5884694.572 | BT101: =SUM(BT98:BT100) -> 5951094.729 | BU101: =SUM(BU98:BU100) -> 6021609.394 | BV101: =SUM(BV98:BV100) -> 6096165.594 | BW101: =SUM(BW98:BW100) -> 6174697.548 | CB101: Total Operating Costs | CD101: =SUM(CD98:CD100) -> 13758838.81 | CE101: =SUM(CE98:CE100) -> 13729854.11 | CF101: =SUM(CF98:CF100) -> 13717237.45 | CG101: =SUM(CG98:CG100) -> 13720371.86 | CH101: =SUM(CH98:CH100) -> 13738680.67 | CI101: =SUM(CI98:CI100) -> 13771625.36 | CJ101: =SUM(CJ98:CJ100) -> 13818703.52 | CK101: =SUM(CK98:CK100) -> 13879447.05 | CL101: =SUM(CL98:CL100) -> 13953420.27 | CM101: =SUM(CM98:CM100) -> 14040218.33 | CN101: =SUM(CN98:CN100) -> 14139465.56 | CO101: =SUM(CO98:CO100) -> 14250814.02 | CP101: =SUM(CP98:CP100) -> 14373942.04 | CQ101: =SUM(CQ98:CQ100) -> 14508552.96 | CR101: =SUM(CR98:CR100) -> 14654373.83 | CS101: =SUM(CS98:CS100) -> 14811154.23 | CT101: =SUM(CT98:CT100) -> 14978665.21 | CU101: =SUM(CU98:CU100) -> 15156698.19 | CV101: =SUM(CV98:CV100) -> 15345064 | CW101: =SUM(CW98:CW100) -> 15543591.94
B103: EBITDA | D103: =D96-D101 -> 7078068.449 | E103: =E96-E101 -> 7094874.656 | F103: 7104938.294 | G103: 7108518.934 | H103: 7105859.36 | I103: 7097186.46 | J103: 7082712.063 | K103: 7062633.731 | L103: 7037135.503 | M103: 7006388.601 | N103: 6970552.09 | O103: 6929773.503 | P103: 6884189.435 | Q103: 6833926.09 | R103: 6779099.812 | S103: 6719817.574 | T103: 6656177.443 | U103: 6588269.017 | V103: 6516173.837 | W103: 6439965.776 | AB103: EBITDA | AD103: =AD96-AD101 -> 5862852.021 | AE103: =AE96-AE101 -> 5873135.969 | AF103: 5877040.766 | AG103: 5874805.733 | AH103: 5866654.532 | AI103: 5852795.996 | AJ103: 5833424.904 | AK103: 5808722.718 | AL103: 5778858.276 | AM103: 5743988.443 | AN103: 5704258.728 | AO103: 5659803.866 | AP103: 5610748.361 | AQ103: 5557207.008 | AR103: 5499285.37 | AS103: 5437080.244 | AT103: 5370680.087 | AU103: 5300165.422 | AV103: 5225609.222 | AW103: 5147077.268 | BB103: EBITDA | BD103: =BD96-BD101 -> 3715818.874 | BE103: =BE96-BE101 -> 3726102.822 | BF103: 3730007.619 | BG103: 3727772.586 | BH103: 3719621.385 | BI103: 3705762.849 | BJ103: 3686391.757 | BK103: 3661689.572 | BL103: 3631825.129 | BM103: 3596955.296 | BN103: 3557225.581 | BO103: 3512770.719 | BP103: 3463715.215 | BQ103: 3410173.861 | BR103: 3352252.224 | BS103: 3290047.098 | BT103: 3223646.941 | BU103: 3153132.276 | BV103: 3078576.076 | BW103: 3000044.121 | CB103: EBITDA | CD103: =CD96-CD101 -> 26519712.16 | CE103: =CE96-CE101 -> 26548696.87 | CF103: 26561313.53 | CG103: 26558179.12 | CH103: 26539870.3 | CI103: 26506925.62 | CJ103: 26459847.46 | CK103: 26399103.93 | CL103: 26325130.71 | CM103: 26238332.65 | CN103: 26139085.42 | CO103: 26027736.96 | CP103: 25904608.94 | CQ103: 25769998.02 | CR103: 25624177.15 | CS103: 25467396.74 | CT103: 25299885.76 | CU103: 25121852.79 | CV103: 24933486.98 | CW103: 24734959.04
